Workbook

Sheet INTRO
B2: PC Joint Reporting Form v.3.1
B4: The purpose of this template Joint Reporting Form (JRF) - available as an Excel file - is to provide national health authorities and data managers with a standardized tool to address these reporting challenges, facilitate integration and thereby further contribute to improving overall programme management. This template aims to standardize national reporting of programme implementation outcomes, improve availability and coordination of preventive chemotherapy data across the World Health Organization regions. National authorities are requested to complete this form for submission to the World Health Organization any time before 15 August of the current year for reporting data on PC interventions implemented during the previous year.
B6: Structure of the application (worksheets):
B8: INTRO | C8: This worksheet includes guides on how to complete the joint reporting form and information about status of PC for endemic diseases in the country
B9: COUNTRY_INFO | C9: This worksheet includes information about administrative structure of the country, population by age group, status of endemicity for each disease, population requiring PC, planned interventions and interventions implemented
B10: MDA1, MDA2, MDA3, T1, T2 and T3 | C10: These worksheets include information about endemic districts targeted for treatment with specified PC medicines, treatment plan, and number of people who received treatment by age group
B11: DISTRICT | C11: This worksheet includes summary of people treated by disease at the level of implementation. If data by gender is available, it requires to enter.
B12: SUMMARY | C12: This worksheet includes summary of people treated by disease and by PC intervention. Before generating the report (run macros) please select the disease for which you need the report. Follow the same rule to generate various reports. This worksheet should be printed and submitted as a Joint Report (see the instruction for submission in the SUMMARY worksheet).
B14: Instruction for data entry
B16: Most of the cells in the above-mentioned worksheets include formula that are calculated automatically according to the treatment policy recommended by WHO for each disease. See the link http://www.who.int/neglected_diseases/preventive_chemotherapy/pct_manual/en/index.html
B18: Please enter your data into the cells according to their colour code:
C20: White - cell is not protected. Please enter the value of the requested indicator.
C22: Yellow - cell is protected and includes name of indicator. No data entry required.
C24: Orange - cell is not protected and includes a drop-down menu. Please select the value from the drop-down list.
C27: Green - cell is not protected and includes formula. Please change the value only if your data are different from those that are calculated automatically.
C30: Blue - cell is protected and includes formula. No data entry required.
B32: Country data
B34: COUNTRY | E34: Uganda
B36: Year of reporting data | E36: 2021
B38: Is country endemic for lymphatic filariasis (LF)? | E38: Endemic but PC is not required
B40: Is country endemic for onchocerciasis (ONCHO)? | E40: Endemic
B42: Is country endemic for soil-transmitted helminthiases (STH)? | E42: Endemic
B44: Is country endemic for schistosomiasis (SCH)? | E44: Endemic
B46: How many administrative units in the country? | E46: 135
B47: If demographical data at the second administrative level are not available by age group, please enter the proportion (%) of population by age group in the country. If data are available, please leave these cells blank.
B48: 1-4 years age | C48: Preschool-age children (PreSAC) | E48: 0.142
B49: 5-14 years age | C49: School-age children (SAC) | E49: 0.302
B50: 15 years + | C50: Adults | E50: 0.521

Sheet COUNTRY_INFO
A1: COUNTRY INFORMATION
A2: Administrative structure, population by age group, endemicity status, planned interventions and interventions implemented
A4: TOTAL | D4: =SUM(D$9:D$993) -> 42991919 | E4: =SUM(E$9:E$993) -> 6104853 | F4: =SUM(F$9:F$993) -> 12983560 | G4: =SUM(G$9:G$993) -> 22398789 | L4: =SUM(L$9:L$993) -> 0 | M4: =SUM(M$9:M$993) -> 1684108 | N4: =SUM(N$9:N$993) -> 19088413 | O4: =SUM(O$9:O$993) -> 12667710.56
A6: Country administrative structure | D6: Population | H6: Endemicity | L6: Population requiring PC | P6: Number of treatment rounds planned for the year | T6: PC implemented | V6: Click to see the recommended strategy | AF6: mda3 | AG6: t1 | AH6: t3r1 | AI6: t3r2 | AU6: jrf2021
A7: Country | B7: Province/State | C7: District | D7: Total | E7: PreSAC | F7: SAC | G7: Adults | H7: LF | I7: Oncho | J7: STH | K7: SCH | L7: LF | M7: Oncho | N7: STH | O7: SCH | P7: LF | Q7: Oncho | R7: STH | S7: SCH | T7: ROUND 1 | U7: ROUND2 | Y7: IU_ID | Z7: IU_NAME | AA7: Parent_ID | AB7: Parent_Name | AC7: x | AD7: x | AE7: x | AF7: x | AG7: x | AH7: x | AI7: x | AJ7: x | AK7: x | AL7: x | AM7: x | AN7: x | AO7: x | AP7: x | AQ7: x | AR7: x | AS7: x | AT7: x | AU7: x | AV7: x | AW7: x | AX7: x | AY7: x | AZ7: x | BA7: x | BB7: x | BC7: x
A9: =IF(INTRO!$E$34<>0,INTRO!$E$34,"") -> Uganda | B9: CENTRAL | C9: BUIKWE | D9: 537821 | E9: =IF(INTRO!$E$48="","",ROUND($D9*INTRO!$E$48,0)) -> 76371 | F9: =IF(INTRO!$E$49="","",ROUND($D9*INTRO!$E$49,0)) -> 162422 | G9: =IF(INTRO!$E$50="","",ROUND($D9*INTRO!$E$50,0)) -> 280205 | H9: 0 | I9: 0 | J9: 3 | K9: 2 | L9: =IF(INTRO!$E$38="Endemic", IF($H9>0, IF($H9=4,"Unknown", IF($H9=99,"Stopped", $D9)), 0),"Not required") -> Not required | M9: 0 | N9: =IF(INTRO!$E$42="Endemic", IF(AND($J9>1,$J9<5), IF($J9=4, "Unknown", E9+F9), 0),"Not required") -> 238793 | O9: =IF(INTRO!$E$44="Endemic", IF(AND($K9>0,$K9<5), IF($K9=4,"Unknown", IF($K9=1, $F9*0.33, IF($K9=2, $F9*0.5+$G9*0.2, SUM(F9:G9)))), 0),"Not required") -> 137252 | P9: 0 | Q9: 0 | R9: 1 | S9: 1 | U9: T3 (ALB/MBD) | Y9: 49725 | Z9: BUIKWE | AF9: ='MDA3'!N9 -> 0 | AG9: ='T1'!M9 -> 0 | AH9: =T3_R1!L9 -> 79370 | AI9: =T3_R2!L9 -> 93014 | AK9: =_xlfn.XLOOKUP($Y9,[1]COUNTRY_INFO!$Y$9:$Y$142,[1]COUNTRY_INFO!J$9:J$142) -> 2 | AL9: =_xlfn.XLOOKUP($Y9,[1]COUNTRY_INFO!$Y$9:$Y$142,[1]COUNTRY_INFO!K$9:K$142) -> 2 | AM9: =AK9=J9 -> FALSE | AN9: =AL9=K9 -> TRUE | AP9: 3
A10: =IF(INTRO!$E$34<>0,INTRO!$E$34,"") -> Uganda | B10: CENTRAL | C10: BUKOMANSIMBI | D10: 186181 | E10: =IF(INTRO!$E$48="","",ROUND($D10*INTRO!$E$48,0)) -> 26438 | F10: =IF(INTRO!$E$49="","",ROUND($D10*INTRO!$E$49,0)) -> 56227 | G10: =IF(INTRO!$E$50="","",ROUND($D10*INTRO!$E$50,0)) -> 97000 | H10: 0 | I10: 0 | J10: 3 | K10: 0 | L10: =IF(INTRO!$E$38="Endemic", IF($H10>0, IF($H10=4,"Unknown", IF($H10=99,"Stopped", $D10)), 0),"Not required") -> Not required | M10: 0 | N10: =IF(INTRO!$E$42="Endemic", IF(AND($J10>1,$J10<5), IF($J10=4, "Unknown", E10+F10), 0),"Not required") -> 82665 | O10: =IF(INTRO!$E$44="Endemic", IF(AND($K10>0,$K10<5), IF($K10=4,"Unknown", IF($K10=1, $F10*0.33, IF($K10=2, $F10*0.5+$G10*0.2, SUM(F10:G10)))), 0),"Not required") -> 0 | P10: 0 | Q10: 0 | R10: 1 | S10: 0 | U10: T3 (ALB/MBD) | Y10: 49726 | Z10: BUKOMANSIMBI | AF10: ='MDA3'!N10 -> 0 | AG10: ='T1'!M10 -> 0 | AH10: =T3_R1!L10 -> 12150 | AI10: =T3_R2!L10 -> 22760 | AK10: =_xlfn.XLOOKUP($Y10,[1]COUNTRY_INFO!$Y$9:$Y$142,[1]COUNTRY_INFO!J$9:J$142) -> 3 | AL10: =_xlfn.XLOOKUP($Y10,[1]COUNTRY_INFO!$Y$9:$Y$142,[1]COUNTRY_INFO!K$9:K$142) -> 0 | AM10: =AK10=J10 -> TRUE | AN10: =AL10=K10 -> TRUE | AP10: 3
A11: =IF(INTRO!$E$34<>0,INTRO!$E$34,"") -> Uganda | B11: CENTRAL | C11: BUTAMBALA | D11: 123822 | E11: =IF(INTRO!$E$48="","",ROUND($D11*INTRO!$E$48,0)) -> 17583 | F11: =IF(INTRO!$E$49="","",ROUND($D11*INTRO!$E$49,0)) -> 37394 | G11: =IF(INTRO!$E$50="","",ROUND($D11*INTRO!$E$50,0)) -> 64511 | H11: 0 | I11: 0 | J11: 3 | K11: 0 | L11: =IF(INTRO!$E$38="Endemic", IF($H11>0, IF($H11=4,"Unknown", IF($H11=99,"Stopped", $D11)), 0),"Not required") -> Not required | M11: 0 | N11: =IF(INTRO!$E$42="Endemic", IF(AND($J11>1,$J11<5), IF($J11=4, "Unknown", E11+F11), 0),"Not required") -> 54977 | O11: =IF(INTRO!$E$44="Endemic", IF(AND($K11>0,$K11<5), IF($K11=4,"Unknown", IF($K11=1, $F11*0.33, IF($K11=2, $F11*0.5+$G11*0.2, SUM(F11:G11)))), 0),"Not required") -> 0 | P11: 0 | Q11: 0 | R11: 1 | S11: 0 | U11: T3 (ALB/MBD) | Y11: 49730 | Z11: BUTAMBALA | AF11: ='MDA3'!N11 -> 0 | AG11: ='T1'!M11 -> 0 | AH11: =T3_R1!L11 -> 13499 | AI11: =T3_R2!L11 -> 21198 | AK11: =_xlfn.XLOOKUP($Y11,[1]COUNTRY_INFO!$Y$9:$Y$142,[1]COUNTRY_INFO!J$9:J$142) -> 3 | AL11: =_xlfn.XLOOKUP($Y11,[1]COUNTRY_INFO!$Y$9:$Y$142,[1]COUNTRY_INFO!K$9:K$142) -> 0 | AM11: TRUE | AN11: TRUE | AP11: 3
A12: =IF(INTRO!$E$34<>0,INTRO!$E$34,"") -> Uganda | B12: CENTRAL | C12: BUVUMA | D12: 110869 | E12: =IF(INTRO!$E$48="","",ROUND($D12*INTRO!$E$48,0)) -> 15743 | F12: =IF(INTRO!$E$49="","",ROUND($D12*INTRO!$E$49,0)) -> 33482 | G12: =IF(INTRO!$E$50="","",ROUND($D12*INTRO!$E$50,0)) -> 57763 | H12: 0 | I12: 0 | J12: 3 | K12: 3 | L12: =IF(INTRO!$E$38="Endemic", IF($H12>0, IF($H12=4,"Unknown", IF($H12=99,"Stopped", $D12)), 0),"Not required") -> Not required | M12: 0 | N12: =IF(INTRO!$E$42="Endemic", IF(AND($J12>1,$J12<5), IF($J12=4, "Unknown", E12+F12), 0),"Not required") -> 49225 | O12: =IF(INTRO!$E$44="Endemic", IF(AND($K12>0,$K12<5), IF($K12=4,"Unknown", IF($K12=1, $F12*0.33, IF($K12=2, $F12*0.5+$G12*0.2, SUM(F12:G12)))), 0),"Not required") -> 91245 | P12: 0 | Q12: 0 | R12: 1 | S12: 1 | U12: T3 (ALB/MBD) | Y12: 49731 | Z12: BUVUMA | AF12: ='MDA3'!N12 -> 0 | AG12: ='T1'!M12 -> 0 | AH12: =T3_R1!L12 -> 35284 | AI12: =T3_R2!L12 -> 15253 | AK12: =_xlfn.XLOOKUP($Y12,[1]COUNTRY_INFO!$Y$9:$Y$142,[1]COUNTRY_INFO!J$9:J$142) -> 3 | AL12: =_xlfn.XLOOKUP($Y12,[1]COUNTRY_INFO!$Y$9:$Y$142,[1]COUNTRY_INFO!K$9:K$142) -> 3 | AM12: TRUE | AN12: TRUE | AP12: 3
A13: =IF(INTRO!$E$34<>0,INTRO!$E$34,"") -> Uganda | B13: CENTRAL | C13: GOMBA | D13: 197274 | E13: =IF(INTRO!$E$48="","",ROUND($D13*INTRO!$E$48,0)) -> 28013 | F13: =IF(INTRO!$E$49="","",ROUND($D13*INTRO!$E$49,0)) -> 59577 | G13: =IF(INTRO!$E$50="","",ROUND($D13*INTRO!$E$50,0)) -> 102780 | H13: 0 | I13: 0 | J13: 3 | K13: 3 | L13: =IF(INTRO!$E$38="Endemic", IF($H13>0, IF($H13=4,"Unknown", IF($H13=99,"Stopped", $D13)), 0),"Not required") -> Not required | M13: 0 | N13: =IF(INTRO!$E$42="Endemic", IF(AND($J13>1,$J13<5), IF($J13=4, "Unknown", E13+F13), 0),"Not required") -> 87590 | O13: =IF(INTRO!$E$44="Endemic", IF(AND($K13>0,$K13<5), IF($K13=4,"Unknown", IF($K13=1, $F13*0.33, IF($K13=2, $F13*0.5+$G13*0.2, SUM(F13:G13)))), 0),"Not required") -> 162357 | P13: 0 | Q13: 0 | R13: 1 | S13: 1 | U13: T3 (ALB/MBD) | Y13: 49735 | Z13: GOMBA | AF13: ='MDA3'!N13 -> 0 | AG13: ='T1'!M13 -> 0 | AH13: =T3_R1!L13 -> 26495 | AI13: =T3_R2!L13 -> 29924 | AK13: =_xlfn.XLOOKUP($Y13,[1]COUNTRY_INFO!$Y$9:$Y$142,[1]COUNTRY_INFO!J$9:J$142) -> 3 | AL13: =_xlfn.XLOOKUP($Y13,[1]COUNTRY_INFO!$Y$9:$Y$142,[1]COUNTRY_INFO!K$9:K$142) -> 3 | AM13: TRUE | AN13: TRUE | AP13: 3
A14: =IF(INTRO!$E$34<>0,INTRO!$E$34,"") -> Uganda | B14: CENTRAL | C14: KALANGALA | D14: 65814 | E14: =IF(INTRO!$E$48="","",ROUND($D14*INTRO!$E$48,0)) -> 9346 | F14: =IF(INTRO!$E$49="","",ROUND($D14*INTRO!$E$49,0)) -> 19876 | G14: =IF(INTRO!$E$50="","",ROUND($D14*INTRO!$E$50,0)) -> 34289 | H14: 0 | I14: 0 | J14: 3 | K14: 3 | L14: =IF(INTRO!$E$38="Endemic", IF($H14>0, IF($H14=4,"Unknown", IF($H14=99,"Stopped", $D14)), 0),"Not required") -> Not required | M14: 0 | N14: =IF(INTRO!$E$42="Endemic", IF(AND($J14>1,$J14<5), IF($J14=4, "Unknown", E14+F14), 0),"Not required") -> 29222 | O14: =IF(INTRO!$E$44="Endemic", IF(AND($K14>0,$K14<5), IF($K14=4,"Unknown", IF($K14=1, $F14*0.33, IF($K14=2, $F14*0.5+$G14*0.2, SUM(F14:G14)))), 0),"Not required") -> 54165 | P14: 0 | Q14: 0 | R14: 1 | S14: 1 | U14: T3 (ALB/MBD) | Y14: 49745 | Z14: KALANGALA | AF14: ='MDA3'!N14 -> 0 | AG14: ='T1'!M14 -> 0 | AH14: =T3_R1!L14 -> 13353 | AI14: =T3_R2!L14 -> 16439 | AK14: =_xlfn.XLOOKUP($Y14,[1]COUNTRY_INFO!$Y$9:$Y$142,[1]COUNTRY_INFO!J$9:J$142) -> 2 | AL14: =_xlfn.XLOOKUP($Y14,[1]COUNTRY_INFO!$Y$9:$Y$142,[1]COUNTRY_INFO!K$9:K$142) -> 3 | AM14: FALSE | AN14: TRUE | AP14: 3
A15: =IF(INTRO!$E$34<>0,INTRO!$E$34,"") -> Uganda | B15: CENTRAL | C15: KALUNGU | D15: 226923 | E15: =IF(INTRO!$E$48="","",ROUND($D15*INTRO!$E$48,0)) -> 32223 | F15: =IF(INTRO!$E$49="","",ROUND($D15*INTRO!$E$49,0)) -> 68531 | G15: =IF(INTRO!$E$50="","",ROUND($D15*INTRO!$E$50,0)) -> 118227 | H15: 0 | I15: 0 | J15: 3 | K15: 1 | L15: =IF(INTRO!$E$38="Endemic", IF($H15>0, IF($H15=4,"Unknown", IF($H15=99,"Stopped", $D15)), 0),"Not required") -> Not required | M15: 0 | N15: =IF(INTRO!$E$42="Endemic", IF(AND($J15>1,$J15<5), IF($J15=4, "Unknown", E15+F15), 0),"Not required") -> 100754 | O15: =IF(INTRO!$E$44="Endemic", IF(AND($K15>0,$K15<5), IF($K15=4,"Unknown", IF($K15=1, $F15*0.33, IF($K15=2, $F15*0.5+$G15*0.2, SUM(F15:G15)))), 0),"Not required") -> 22615.23 | P15: 0 | Q15: 0 | R15: 1 | S15: 1 | U15: T3 (ALB/MBD) | Y15: 49758 | Z15: KALUNGU | AF15: ='MDA3'!N15 -> 0 | AG15: ='T1'!M15 -> 0 | AH15: =T3_R1!L15 -> 37276 | AI15: =T3_R2!L15 -> 39577 | AK15: =_xlfn.XLOOKUP($Y15,[1]COUNTRY_INFO!$Y$9:$Y$142,[1]COUNTRY_INFO!J$9:J$142) -> 3 | AL15: =_xlfn.XLOOKUP($Y15,[1]COUNTRY_INFO!$Y$9:$Y$142,[1]COUNTRY_INFO!K$9:K$142) -> 1 | AM15: TRUE | AN15: TRUE | AP15: 3
A16: =IF(INTRO!$E$34<>0,INTRO!$E$34,"") -> Uganda | B16: CENTRAL | C16: KAMPALA | D16: 1868554 | E16: =IF(INTRO!$E$48="","",ROUND($D16*INTRO!$E$48,0)) -> 265335 | F16: =IF(INTRO!$E$49="","",ROUND($D16*INTRO!$E$49,0)) -> 564303 | G16: =IF(INTRO!$E$50="","",ROUND($D16*INTRO!$E$50,0)) -> 973517 | H16: 0 | I16: 0 | J16: 3 | K16: 0 | L16: =IF(INTRO!$E$38="Endemic", IF($H16>0, IF($H16=4,"Unknown", IF($H16=99,"Stopped", $D16)), 0),"Not required") -> Not required | M16: 0 | N16: =IF(INTRO!$E$42="Endemic", IF(AND($J16>1,$J16<5), IF($J16=4, "Unknown", E16+F16), 0),"Not required") -> 829638 | O16: =IF(INTRO!$E$44="Endemic", IF(AND($K16>0,$K16<5), IF($K16=4,"Unknown", IF($K16=1, $F16*0.33, IF($K16=2, $F16*0.5+$G16*0.2, SUM(F16:G16)))), 0),"Not required") -> 0 | P16: 0 | Q16: 0 | R16: 1 | S16: 0 | U16: T3 (ALB/MBD) | Y16: 49759 | Z16: KAMPALA | AF16: ='MDA3'!N16 -> 0 | AG16: ='T1'!M16 -> 0 | AH16: =T3_R1!L16 -> 296992 | AI16: =T3_R2!L16 -> 225318 | AK16: =_xlfn.XLOOKUP($Y16,[1]COUNTRY_INFO!$Y$9:$Y$142,[1]COUNTRY_INFO!J$9:J$142) -> 3 | AL16: =_xlfn.XLOOKUP($Y16,[1]COUNTRY_INFO!$Y$9:$Y$142,[1]COUNTRY_INFO!K$9:K$142) -> 0 | AM16: TRUE | AN16: TRUE | AP16: 3
A17: =IF(INTRO!$E$34<>0,INTRO!$E$34,"") -> Uganda | B17: CENTRAL | C17: KASSANDA | D17: 339231 | E17: =IF(INTRO!$E$48="","",ROUND($D17*INTRO!$E$48,0)) -> 48171 | F17: =IF(INTRO!$E$49="","",ROUND($D17*INTRO!$E$49,0)) -> 102448 | G17: =IF(INTRO!$E$50="","",ROUND($D17*INTRO!$E$50,0)) -> 176739 | H17: 0 | I17: 0 | J17: 3 | K17: 1 | L17: =IF(INTRO!$E$38="Endemic", IF($H17>0, IF($H17=4,"Unknown", IF($H17=99,"Stopped", $D17)), 0),"Not required") -> Not required | M17: 0 | N17: =IF(INTRO!$E$42="Endemic", IF(AND($J17>1,$J17<5), IF($J17=4, "Unknown", E17+F17), 0),"Not required") -> 150619 | O17: =IF(INTRO!$E$44="Endemic", IF(AND($K17>0,$K17<5), IF($K17=4,"Unknown", IF($K17=1, $F17*0.33, IF($K17=2, $F17*0.5+$G17*0.2, SUM(F17:G17)))), 0),"Not required") -> 33807.84 | P17: 0 | Q17: 0 | R17: 1 | S17: 1 | U17: T3 (ALB/MBD) | Y17: 49830 | Z17: KASSANDA | AF17: ='MDA3'!N17 -> 0 | AG17: ='T1'!M17 -> 0 | AH17: =T3_R1!L17 -> 40981 | AI17: =T3_R2!L17 -> 77143 | AK17: =_xlfn.XLOOKUP($Y17,[1]COUNTRY_INFO!$Y$9:$Y$142,[1]COUNTRY_INFO!J$9:J$142) -> 3 | AL17: =_xlfn.XLOOKUP($Y17,[1]COUNTRY_INFO!$Y$9:$Y$142,[1]COUNTRY_INFO!K$9:K$142) -> 1 | AM17: TRUE | AN17: TRUE | AP17: 3
A18: =IF(INTRO!$E$34<>0,INTRO!$E$34,"") -> Uganda | B18: CENTRAL | C18: KAYUNGA | D18: 456242 | E18: =IF(INTRO!$E$48="","",ROUND($D18*INTRO!$E$48,0)) -> 64786 | F18: =IF(INTRO!$E$49="","",ROUND($D18*INTRO!$E$49,0)) -> 137785 | G18: =IF(INTRO!$E$50="","",ROUND($D18*INTRO!$E$50,0)) -> 237702 | H18: 0 | I18: 0 | J18: 3 | K18: 3 | L18: =IF(INTRO!$E$38="Endemic", IF($H18>0, IF($H18=4,"Unknown", IF($H18=99,"Stopped", $D18)), 0),"Not required") -> Not required | M18: 0 | N18: =IF(INTRO!$E$42="Endemic", IF(AND($J18>1,$J18<5), IF($J18=4, "Unknown", E18+F18), 0),"Not required") -> 202571 | O18: =IF(INTRO!$E$44="Endemic", IF(AND($K18>0,$K18<5), IF($K18=4,"Unknown", IF($K18=1, $F18*0.33, IF($K18=2, $F18*0.5+$G18*0.2, SUM(F18:G18)))), 0),"Not required") -> 375487 | P18: 0 | Q18: 0 | R18: 1 | S18: 1 | U18: T3 (ALB/MBD) | Y18: 49761 | Z18: KAYUNGA | AF18: ='MDA3'!N18 -> 0 | AG18: ='T1'!M18 -> 0 | AH18: =T3_R1!L18 -> 60575 | AI18: =T3_R2!L18 -> 107235 | AK18: =_xlfn.XLOOKUP($Y18,[1]COUNTRY_INFO!$Y$9:$Y$142,[1]COUNTRY_INFO!J$9:J$142) -> 2 | AL18: =_xlfn.XLOOKUP($Y18,[1]COUNTRY_INFO!$Y$9:$Y$142,[1]COUNTRY_INFO!K$9:K$142) -> 3 | AM18: FALSE | AN18: TRUE | AP18: 3
A19: =IF(INTRO!$E$34<>0,INTRO!$E$34,"") -> Uganda | B19: CENTRAL | C19: KIBOGA | D19: 182664 | E19: =IF(INTRO!$E$48="","",ROUND($D19*INTRO!$E$48,0)) -> 25938 | F19: =IF(INTRO!$E$49="","",ROUND($D19*INTRO!$E$49,0)) -> 55165 | G19: =IF(INTRO!$E$50="","",ROUND($D19*INTRO!$E$50,0)) -> 95168 | H19: 0 | I19: 0 | J19: 3 | K19: 0 | L19: =IF(INTRO!$E$38="Endemic", IF($H19>0, IF($H19=4,"Unknown", IF($H19=99,"Stopped", $D19)), 0),"Not required") -> Not required | M19: 0 | N19: =IF(INTRO!$E$42="Endemic", IF(AND($J19>1,$J19<5), IF($J19=4, "Unknown", E19+F19), 0),"Not required") -> 81103 | O19: =IF(INTRO!$E$44="Endemic", IF(AND($K19>0,$K19<5), IF($K19=4,"Unknown", IF($K19=1, $F19*0.33, IF($K19=2, $F19*0.5+$G19*0.2, SUM(F19:G19)))), 0),"Not required") -> 0 | P19: 0 | Q19: 0 | R19: 1 | S19: 0 | U19: T3 (ALB/MBD) | Y19: 49762 | Z19: KIBOGA | AF19: ='MDA3'!N19 -> 0 | AG19: ='T1'!M19 -> 0 | AH19: =T3_R1!L19 -> 29084 | AI19: =T3_R2!L19 -> 38220 | AK19: =_xlfn.XLOOKUP($Y19,[1]COUNTRY_INFO!$Y$9:$Y$142,[1]COUNTRY_INFO!J$9:J$142) -> 3 | AL19: =_xlfn.XLOOKUP($Y19,[1]COUNTRY_INFO!$Y$9:$Y$142,[1]COUNTRY_INFO!K$9:K$142) -> 0 | AM19: TRUE | AN19: TRUE | AP19: 3
A20: =IF(INTRO!$E$34<>0,INTRO!$E$34,"") -> Uganda | B20: CENTRAL | C20: KYANKWANZI | D20: 264584 | E20: =IF(INTRO!$E$48="","",ROUND($D20*INTRO!$E$48,0)) -> 37571 | F20: =IF(INTRO!$E$49="","",ROUND($D20*INTRO!$E$49,0)) -> 79904 | G20: =IF(INTRO!$E$50="","",ROUND($D20*INTRO!$E$50,0)) -> 137848 | H20: 0 | I20: 0 | J20: 3 | K20: 0 | L20: =IF(INTRO!$E$38="Endemic", IF($H20>0, IF($H20=4,"Unknown", IF($H20=99,"Stopped", $D20)), 0),"Not required") -> Not required | M20: 0 | N20: =IF(INTRO!$E$42="Endemic", IF(AND($J20>1,$J20<5), IF($J20=4, "Unknown", E20+F20), 0),"Not required") -> 117475 | O20: =IF(INTRO!$E$44="Endemic", IF(AND($K20>0,$K20<5), IF($K20=4,"Unknown", IF($K20=1, $F20*0.33, IF($K20=2, $F20*0.5+$G20*0.2, SUM(F20:G20)))), 0),"Not required") -> 0 | P20: 0 | Q20: 0 | R20: 1 | S20: 0 | U20: T3 (ALB/MBD) | Y20: 49769 | Z20: KYANKWANZI | AF20: ='MDA3'!N20 -> 0 | AG20: ='T1'!M20 -> 0 | AH20: =T3_R1!L20 -> 90817 | AI20: =T3_R2!L20 -> 141157 | AK20: =_xlfn.XLOOKUP($Y20,[1]COUNTRY_INFO!$Y$9:$Y$142,[1]COUNTRY_INFO!J$9:J$142) -> 3 | AL20: =_xlfn.XLOOKUP($Y20,[1]COUNTRY_INFO!$Y$9:$Y$142,[1]COUNTRY_INFO!K$9:K$142) -> 0 | AM20: TRUE | AN20: TRUE | AP20: 3
A21: =IF(INTRO!$E$34<>0,INTRO!$E$34,"") -> Uganda | B21: CENTRAL | C21: KYOTERA | D21: 199546 | E21: =IF(INTRO!$E$48="","",ROUND($D21*INTRO!$E$48,0)) -> 28336 | F21: =IF(INTRO!$E$49="","",ROUND($D21*INTRO!$E$49,0)) -> 60263 | G21: =IF(INTRO!$E$50="","",ROUND($D21*INTRO!$E$50,0)) -> 103963 | H21: 0 | I21: 0 | J21: 3 | K21: 1 | L21: =IF(INTRO!$E$38="Endemic", IF($H21>0, IF($H21=4,"Unknown", IF($H21=99,"Stopped", $D21)), 0),"Not required") -> Not required | M21: 0 | N21: =IF(INTRO!$E$42="Endemic", IF(AND($J21>1,$J21<5), IF($J21=4, "Unknown", E21+F21), 0),"Not required") -> 88599 | O21: =IF(INTRO!$E$44="Endemic", IF(AND($K21>0,$K21<5), IF($K21=4,"Unknown", IF($K21=1, $F21*0.33, IF($K21=2, $F21*0.5+$G21*0.2, SUM(F21:G21)))), 0),"Not required") -> 19886.79 | P21: 0 | Q21: 0 | R21: 1 | S21: 1 | U21: T3 (ALB/MBD) | Y21: 49823 | Z21: KYOTERA | AF21: ='MDA3'!N21 -> 0 | AG21: ='T1'!M21 -> 0 | AH21: =T3_R1!L21 -> 48557 | AI21: =T3_R2!L21 -> 61975 | AK21: =_xlfn.XLOOKUP($Y21,[1]COUNTRY_INFO!$Y$9:$Y$142,[1]COUNTRY_INFO!J$9:J$142) -> 3 | AL21: =_xlfn.XLOOKUP($Y21,[1]COUNTRY_INFO!$Y$9:$Y$142,[1]COUNTRY_INFO!K$9:K$142) -> 1 | AM21: TRUE | AN21: TRUE | AP21: 3
A22: =IF(INTRO!$E$34<>0,INTRO!$E$34,"") -> Uganda | B22: CENTRAL | C22: LUWERO | D22: 563144 | E22: =IF(INTRO!$E$48="","",ROUND($D22*INTRO!$E$48,0)) -> 79966 | F22: =IF(INTRO!$E$49="","",ROUND($D22*INTRO!$E$49,0)) -> 170069 | G22: =IF(INTRO!$E$50="","",ROUND($D22*INTRO!$E$50,0)) -> 293398 | H22: 0 | I22: 0 | J22: 3 | K22: 0 | L22: =IF(INTRO!$E$38="Endemic", IF($H22>0, IF($H22=4,"Unknown", IF($H22=99,"Stopped", $D22)), 0),"Not required") -> Not required | M22: 0 | N22: =IF(INTRO!$E$42="Endemic", IF(AND($J22>1,$J22<5), IF($J22=4, "Unknown", E22+F22), 0),"Not required") -> 250035 | O22: =IF(INTRO!$E$44="Endemic", IF(AND($K22>0,$K22<5), IF($K22=4,"Unknown", IF($K22=1, $F22*0.33, IF($K22=2, $F22*0.5+$G22*0.2, SUM(F22:G22)))), 0),"Not required") -> 0 | P22: 0 | Q22: 0 | R22: 1 | S22: 0 | U22: T3 (ALB/MBD) | Y22: 49774 | Z22: LUWERO | AF22: ='MDA3'!N22 -> 0 | AG22: ='T1'!M22 -> 0 | AH22: =T3_R1!L22 -> 119434 | AI22: =T3_R2!L22 -> 134265 | AK22: =_xlfn.XLOOKUP($Y22,[1]COUNTRY_INFO!$Y$9:$Y$142,[1]COUNTRY_INFO!J$9:J$142) -> 3 | AL22: =_xlfn.XLOOKUP($Y22,[1]COUNTRY_INFO!$Y$9:$Y$142,[1]COUNTRY_INFO!K$9:K$142) -> 0 | AM22: TRUE | AN22: TRUE | AP22: 3
A23: =IF(INTRO!$E$34<>0,INTRO!$E$34,"") -> Uganda | B23: CENTRAL | C23: LWENGO | D23: 339459 | E23: =IF(INTRO!$E$48="","",ROUND($D23*INTRO!$E$48,0)) -> 48203 | F23: =IF(INTRO!$E$49="","",ROUND($D23*INTRO!$E$49,0)) -> 102517 | G23: =IF(INTRO!$E$50="","",ROUND($D23*INTRO!$E$50,0)) -> 176858 | H23: 0 | I23: 0 | J23: 3 | K23: 0 | L23: =IF(INTRO!$E$38="Endemic", IF($H23>0, IF($H23=4,"Unknown", IF($H23=99,"Stopped", $D23)), 0),"Not required") -> Not required | M23: 0 | N23: =IF(INTRO!$E$42="Endemic", IF(AND($J23>1,$J23<5), IF($J23=4, "Unknown", E23+F23), 0),"Not required") -> 150720 | O23: =IF(INTRO!$E$44="Endemic", IF(AND($K23>0,$K23<5), IF($K23=4,"Unknown", IF($K23=1, $F23*0.33, IF($K23=2, $F23*0.5+$G23*0.2, SUM(F23:G23)))), 0),"Not required") -> 0 | P23: 0 | Q23: 0 | R23: 1 | S23: 0 | U23: T3 (ALB/MBD) | Y23: 49775 | Z23: LWENGO | AF23: ='MDA3'!N23 -> 0 | AG23: ='T1'!M23 -> 0 | AH23: =T3_R1!L23 -> 52857 | AI23: =T3_R2!L23 -> 46120 | AK23: =_xlfn.XLOOKUP($Y23,[1]COUNTRY_INFO!$Y$9:$Y$142,[1]COUNTRY_INFO!J$9:J$142) -> 3 | AL23: =_xlfn.XLOOKUP($Y23,[1]COUNTRY_INFO!$Y$9:$Y$142,[1]COUNTRY_INFO!K$9:K$142) -> 0 | AM23: TRUE | AN23: TRUE | AP23: 3
A24: =IF(INTRO!$E$34<>0,INTRO!$E$34,"") -> Uganda | B24: CENTRAL | C24: LYANTONDE | D24: 116546 | E24: =IF(INTRO!$E$48="","",ROUND($D24*INTRO!$E$48,0)) -> 16550 | F24: =IF(INTRO!$E$49="","",ROUND($D24*INTRO!$E$49,0)) -> 35197 | G24: =IF(INTRO!$E$50="","",ROUND($D24*INTRO!$E$50,0)) -> 60720 | H24: 0 | I24: 0 | J24: 3 | K24: 0 | L24: =IF(INTRO!$E$38="Endemic", IF($H24>0, IF($H24=4,"Unknown", IF($H24=99,"Stopped", $D24)), 0),"Not required") -> Not required | M24: 0 | N24: =IF(INTRO!$E$42="Endemic", IF(AND($J24>1,$J24<5), IF($J24=4, "Unknown", E24+F24), 0),"Not required") -> 51747 | O24: =IF(INTRO!$E$44="Endemic", IF(AND($K24>0,$K24<5), IF($K24=4,"Unknown", IF($K24=1, $F24*0.33, IF($K24=2, $F24*0.5+$G24*0.2, SUM(F24:G24)))), 0),"Not required") -> 0 | P24: 0 | Q24: 0 | R24: 1 | S24: 0 | U24: T3 (ALB/MBD) | Y24: 49776 | Z24: LYANTONDE | AF24: ='MDA3'!N24 -> 0 | AG24: ='T1'!M24 -> 0 | AH24: =T3_R1!L24 -> 26846 | AI24: =T3_R2!L24 -> 27390 | AK24: =_xlfn.XLOOKUP($Y24,[1]COUNTRY_INFO!$Y$9:$Y$142,[1]COUNTRY_INFO!J$9:J$142) -> 3 | AL24: =_xlfn.XLOOKUP($Y24,[1]COUNTRY_INFO!$Y$9:$Y$142,[1]COUNTRY_INFO!K$9:K$142) -> 0 | AM24: TRUE | AN24: TRUE | AP24: 3
A25: =IF(INTRO!$E$34<>0,INTRO!$E$34,"") -> Uganda | B25: CENTRAL | C25: MASAKA | D25: 365583 | E25: =IF(INTRO!$E$48="","",ROUND($D25*INTRO!$E$48,0)) -> 51913 | F25: =IF(INTRO!$E$49="","",ROUND($D25*INTRO!$E$49,0)) -> 110406 | G25: =IF(INTRO!$E$50="","",ROUND($D25*INTRO!$E$50,0)) -> 190469 | H25: 0 | I25: 0 | J25: 3 | K25: 3 | L25: =IF(INTRO!$E$38="Endemic", IF($H25>0, IF($H25=4,"Unknown", IF($H25=99,"Stopped", $D25)), 0),"Not required") -> Not required | M25: 0 | N25: =IF(INTRO!$E$42="Endemic", IF(AND($J25>1,$J25<5), IF($J25=4, "Unknown", E25+F25), 0),"Not required") -> 162319 | O25: =IF(INTRO!$E$44="Endemic", IF(AND($K25>0,$K25<5), IF($K25=4,"Unknown", IF($K25=1, $F25*0.33, IF($K25=2, $F25*0.5+$G25*0.2, SUM(F25:G25)))), 0),"Not required") -> 300875 | P25: 0 | Q25: 0 | R25: 1 | S25: 1 | U25: T3 (ALB/MBD) | Y25: 49785 | Z25: MASAKA | AF25: ='MDA3'!N25 -> 0 | AG25: ='T1'!M25 -> 0 | AH25: =T3_R1!L25 -> 57713 | AI25: =T3_R2!L25 -> 58991 | AK25: =_xlfn.XLOOKUP($Y25,[1]COUNTRY_INFO!$Y$9:$Y$142,[1]COUNTRY_INFO!J$9:J$142) -> 3 | AL25: =_xlfn.XLOOKUP($Y25,[1]COUNTRY_INFO!$Y$9:$Y$142,[1]COUNTRY_INFO!K$9:K$142) -> 3 | AM25: TRUE | AN25: TRUE | AP25: 3
A26: =IF(INTRO!$E$34<>0,INTRO!$E$34,"") -> Uganda | B26: CENTRAL | C26: MITYANA | D26: 408247 | E26: =IF(INTRO!$E$48="","",ROUND($D26*INTRO!$E$48,0)) -> 57971 | F26: =IF(INTRO!$E$49="","",ROUND($D26*INTRO!$E$49,0)) -> 123291 | G26: =IF(INTRO!$E$50="","",ROUND($D26*INTRO!$E$50,0)) -> 212697 | H26: 0 | I26: 0 | J26: 3 | K26: 3 | L26: =IF(INTRO!$E$38="Endemic", IF($H26>0, IF($H26=4,"Unknown", IF($H26=99,"Stopped", $D26)), 0),"Not required") -> Not required | M26: 0 | N26: =IF(INTRO!$E$42="Endemic", IF(AND($J26>1,$J26<5), IF($J26=4, "Unknown", E26+F26), 0),"Not required") -> 181262 | O26: =IF(INTRO!$E$44="Endemic", IF(AND($K26>0,$K26<5), IF($K26=4,"Unknown", IF($K26=1, $F26*0.33, IF($K26=2, $F26*0.5+$G26*0.2, SUM(F26:G26)))), 0),"Not required") -> 335988 | P26: 0 | Q26: 0 | R26: 1 | S26: 1 | U26: T3 (ALB/MBD) | Y26: 49788 | Z26: MITYANA | AF26: ='MDA3'!N26 -> 0 | AG26: ='T1'!M26 -> 0 | AH26: =T3_R1!L26 -> 79075 | AI26: =T3_R2!L26 -> 86711 | AK26: =_xlfn.XLOOKUP($Y26,[1]COUNTRY_INFO!$Y$9:$Y$142,[1]COUNTRY_INFO!J$9:J$142) -> 2 | AL26: =_xlfn.XLOOKUP($Y26,[1]COUNTRY_INFO!$Y$9:$Y$142,[1]COUNTRY_INFO!K$9:K$142) -> 3 | AM26: FALSE | AN26: TRUE | AP26: 3
A27: =IF(INTRO!$E$34<>0,INTRO!$E$34,"") -> Uganda | B27: CENTRAL | C27: MPIGI | D27: 309959 | E27: =IF(INTRO!$E$48="","",ROUND($D27*INTRO!$E$48,0)) -> 44014 | F27: =IF(INTRO!$E$49="","",ROUND($D27*INTRO!$E$49,0)) -> 93608 | G27: =IF(INTRO!$E$50="","",ROUND($D27*INTRO!$E$50,0)) -> 161489 | H27: 0 | I27: 0 | J27: 3 | K27: 2 | L27: =IF(INTRO!$E$38="Endemic", IF($H27>0, IF($H27=4,"Unknown", IF($H27=99,"Stopped", $D27)), 0),"Not required") -> Not required | M27: 0 | N27: =IF(INTRO!$E$42="Endemic", IF(AND($J27>1,$J27<5), IF($J27=4, "Unknown", E27+F27), 0),"Not required") -> 137622 | O27: =IF(INTRO!$E$44="Endemic", IF(AND($K27>0,$K27<5), IF($K27=4,"Unknown", IF($K27=1, $F27*0.33, IF($K27=2, $F27*0.5+$G27*0.2, SUM(F27:G27)))), 0),"Not required") -> 79101.8 | P27: 0 | Q27: 0 | R27: 1 | S27: 1 | U27: T3 (ALB/MBD) | Y27: 49789 | Z27: MPIGI | AF27: ='MDA3'!N27 -> 0 | AG27: ='T1'!M27 -> 0 | AH27: =T3_R1!L27 -> 39953 | AI27: =T3_R2!L27 -> 43304 | AK27: =_xlfn.XLOOKUP($Y27,[1]COUNTRY_INFO!$Y$9:$Y$142,[1]COUNTRY_INFO!J$9:J$142) -> 2 | AL27: =_xlfn.XLOOKUP($Y27,[1]COUNTRY_INFO!$Y$9:$Y$142,[1]COUNTRY_INFO!K$9:K$142) -> 2 | AM27: FALSE | AN27: TRUE | AP27: 3
A28: =IF(INTRO!$E$34<>0,INTRO!$E$34,"") -> Uganda | B28: CENTRAL | C28: MUBENDE | D28: 509655 | E28: =IF(INTRO!$E$48="","",ROUND($D28*INTRO!$E$48,0)) -> 72371 | F28: =IF(INTRO!$E$49="","",ROUND($D28*INTRO!$E$49,0)) -> 153916 | G28: =IF(INTRO!$E$50="","",ROUND($D28*INTRO!$E$50,0)) -> 265530 | H28: 0 | I28: 0 | J28: 3 | K28: 1 | L28: =IF(INTRO!$E$38="Endemic", IF($H28>0, IF($H28=4,"Unknown", IF($H28=99,"Stopped", $D28)), 0),"Not required") -> Not required | M28: 0 | N28: =IF(INTRO!$E$42="Endemic", IF(AND($J28>1,$J28<5), IF($J28=4, "Unknown", E28+F28), 0),"Not required") -> 226287 | O28: =IF(INTRO!$E$44="Endemic", IF(AND($K28>0,$K28<5), IF($K28=4,"Unknown", IF($K28=1, $F28*0.33, IF($K28=2, $F28*0.5+$G28*0.2, SUM(F28:G28)))), 0),"Not required") -> 50792.28 | P28: 0 | Q28: 0 | R28: 1 | S28: 1 | U28: T3 (ALB/MBD) | Y28: 49790 | Z28: MUBENDE | AF28: ='MDA3'!N28 -> 0 | AG28: ='T1'!M28 -> 0 | AH28: =T3_R1!L28 -> 106057 | AI28: =T3_R2!L28 -> 83658 | AK28: =_xlfn.XLOOKUP($Y28,[1]COUNTRY_INFO!$Y$9:$Y$142,[1]COUNTRY_INFO!J$9:J$142) -> 3 | AL28: =_xlfn.XLOOKUP($Y28,[1]COUNTRY_INFO!$Y$9:$Y$142,[1]COUNTRY_INFO!K$9:K$142) -> 1 | AM28: TRUE | AN28: TRUE | AP28: 3
A29: =IF(INTRO!$E$34<>0,INTRO!$E$34,"") -> Uganda | B29: CENTRAL | C29: MUKONO | D29: 739203 | E29: =IF(INTRO!$E$48="","",ROUND($D29*INTRO!$E$48,0)) -> 104967 | F29: =IF(INTRO!$E$49="","",ROUND($D29*INTRO!$E$49,0)) -> 223239 | G29: =IF(INTRO!$E$50="","",ROUND($D29*INTRO!$E$50,0)) -> 385125 | H29: 0 | I29: 0 | J29: 3 | K29: 3 | L29: =IF(INTRO!$E$38="Endemic", IF($H29>0, IF($H29=4,"Unknown", IF($H29=99,"Stopped", $D29)), 0),"Not required") -> Not required | M29: 0 | N29: =IF(INTRO!$E$42="Endemic", IF(AND($J29>1,$J29<5), IF($J29=4, "Unknown", E29+F29), 0),"Not required") -> 328206 | O29: =IF(INTRO!$E$44="Endemic", IF(AND($K29>0,$K29<5), IF($K29=4,"Unknown", IF($K29=1, $F29*0.33, IF($K29=2, $F29*0.5+$G29*0.2, SUM(F29:G29)))), 0),"Not required") -> 608364 | P29: 0 | Q29: 0 | R29: 1 | S29: 1 | U29: T3 (ALB/MBD) | Y29: 49783 | Z29: MUKONO | AF29: ='MDA3'!N29 -> 0 | AG29: ='T1'!M29 -> 0 | AH29: =T3_R1!L29 -> 93270 | AI29: =T3_R2!L29 -> 128363 | AK29: =_xlfn.XLOOKUP($Y29,[1]COUNTRY_INFO!$Y$9:$Y$142,[1]COUNTRY_INFO!J$9:J$142) -> 2 | AL29: =_xlfn.XLOOKUP($Y29,[1]COUNTRY_INFO!$Y$9:$Y$142,[1]COUNTRY_INFO!K$9:K$142) -> 3 | AM29: FALSE | AN29: TRUE | AP29: 3
A30: =IF(INTRO!$E$34<>0,INTRO!$E$34,"") -> Uganda | B30: CENTRAL | C30: NAKASEKE | D30: 243647 | E30: =IF(INTRO!$E$48="","",ROUND($D30*INTRO!$E$48,0)) -> 34598 | F30: =IF(INTRO!$E$49="","",ROUND($D30*INTRO!$E$49,0)) -> 73581 | G30: =IF(INTRO!$E$50="","",ROUND($D30*INTRO!$E$50,0)) -> 126940 | H30: 0 | I30: 0 | J30: 3 | K30: 0 | L30: =IF(INTRO!$E$38="Endemic", IF($H30>0, IF($H30=4,"Unknown", IF($H30=99,"Stopped", $D30)), 0),"Not required") -> Not required | M30: 0 | N30: =IF(INTRO!$E$42="Endemic", IF(AND($J30>1,$J30<5), IF($J30=4, "Unknown", E30+F30), 0),"Not required") -> 108179 | O30: =IF(INTRO!$E$44="Endemic", IF(AND($K30>0,$K30<5), IF($K30=4,"Unknown", IF($K30=1, $F30*0.33, IF($K30=2, $F30*0.5+$G30*0.2, SUM(F30:G30)))), 0),"Not required") -> 0 | P30: 0 | Q30: 0 | R30: 1 | S30: 0 | U30: T3 (ALB/MBD) | Y30: 49795 | Z30: NAKASEKE | AF30: ='MDA3'!N30 -> 0 | AG30: ='T1'!M30 -> 0 | AH30: =T3_R1!L30 -> 67558 | AI30: =T3_R2!L30 -> 58541 | AK30: =_xlfn.XLOOKUP($Y30,[1]COUNTRY_INFO!$Y$9:$Y$142,[1]COUNTRY_INFO!J$9:J$142) -> 3 | AL30: =_xlfn.XLOOKUP($Y30,[1]COUNTRY_INFO!$Y$9:$Y$142,[1]COUNTRY_INFO!K$9:K$142) -> 0 | AM30: TRUE | AN30: TRUE | AP30: 3
A31: =IF(INTRO!$E$34<>0,INTRO!$E$34,"") -> Uganda | B31: CENTRAL | C31: NAKASONGOLA | D31: 224123 | E31: =IF(INTRO!$E$48="","",ROUND($D31*INTRO!$E$48,0)) -> 31825 | F31: =IF(INTRO!$E$49="","",ROUND($D31*INTRO!$E$49,0)) -> 67685 | G31: =IF(INTRO!$E$50="","",ROUND($D31*INTRO!$E$50,0)) -> 116768 | H31: 0 | I31: 0 | J31: 3 | K31: 1 | L31: =IF(INTRO!$E$38="Endemic", IF($H31>0, IF($H31=4,"Unknown", IF($H31=99,"Stopped", $D31)), 0),"Not required") -> Not required | M31: 0 | N31: =IF(INTRO!$E$42="Endemic", IF(AND($J31>1,$J31<5), IF($J31=4, "Unknown", E31+F31), 0),"Not required") -> 99510 | O31: =IF(INTRO!$E$44="Endemic", IF(AND($K31>0,$K31<5), IF($K31=4,"Unknown", IF($K31=1, $F31*0.33, IF($K31=2, $F31*0.5+$G31*0.2, SUM(F31:G31)))), 0),"Not required") -> 22336.05 | P31: 0 | Q31: 0 | R31: 1 | S31: 1 | U31: T3 (ALB/MBD) | Y31: 49791 | Z31: NAKASONGOLA | AF31: ='MDA3'!N31 -> 0 | AG31: ='T1'!M31 -> 0 | AH31: =T3_R1!L31 -> 28407 | AI31: =T3_R2!L31 -> 51180 | AK31: =_xlfn.XLOOKUP($Y31,[1]COUNTRY_INFO!$Y$9:$Y$142,[1]COUNTRY_INFO!J$9:J$142) -> 3 | AL31: =_xlfn.XLOOKUP($Y31,[1]COUNTRY_INFO!$Y$9:$Y$142,[1]COUNTRY_INFO!K$9:K$142) -> 1 | AM31: TRUE | AN31: TRUE | AP31: 3
A32: =IF(INTRO!$E$34<>0,INTRO!$E$34,"") -> Uganda | B32: CENTRAL | C32: RAKAI | D32: 438845 | E32: =IF(INTRO!$E$48="","",ROUND($D32*INTRO!$E$48,0)) -> 62316 | F32: =IF(INTRO!$E$49="","",ROUND($D32*INTRO!$E$49,0)) -> 132531 | G32: =IF(INTRO!$E$50="","",ROUND($D32*INTRO!$E$50,0)) -> 228638 | H32: 0 | I32: 0 | J32: 3 | K32: 1 | L32: =IF(INTRO!$E$38="Endemic", IF($H32>0, IF($H32=4,"Unknown", IF($H32=99,"Stopped", $D32)), 0),"Not required") -> Not required | M32: 0 | N32: =IF(INTRO!$E$42="Endemic", IF(AND($J32>1,$J32<5), IF($J32=4, "Unknown", E32+F32), 0),"Not required") -> 194847 | O32: =IF(INTRO!$E$44="Endemic", IF(AND($K32>0,$K32<5), IF($K32=4,"Unknown", IF($K32=1, $F32*0.33, IF($K32=2, $F32*0.5+$G32*0.2, SUM(F32:G32)))), 0),"Not required") -> 43735.23 | P32: 0 | Q32: 0 | R32: 1 | S32: 1 | U32: T3 (ALB/MBD) | Y32: 49807 | Z32: RAKAI | AF32: ='MDA3'!N32 -> 0 | AG32: ='T1'!M32 -> 0 | AH32: =T3_R1!L32 -> 81644 | AI32: =T3_R2!L32 -> 112654 | AK32: =_xlfn.XLOOKUP($Y32,[1]COUNTRY_INFO!$Y$9:$Y$142,[1]COUNTRY_INFO!J$9:J$142) -> 3 | AL32: =_xlfn.XLOOKUP($Y32,[1]COUNTRY_INFO!$Y$9:$Y$142,[1]COUNTRY_INFO!K$9:K$142) -> 1 | AM32: TRUE | AN32: TRUE | AP32: 3
A33: =IF(INTRO!$E$34<>0,INTRO!$E$34,"") -> Uganda | B33: CENTRAL | C33: SEMBABULE | D33: 311786 | E33: =IF(INTRO!$E$48="","",ROUND($D33*INTRO!$E$48,0)) -> 44274 | F33: =IF(INTRO!$E$49="","",ROUND($D33*INTRO!$E$49,0)) -> 94159 | G33: =IF(INTRO!$E$50="","",ROUND($D33*INTRO!$E$50,0)) -> 162441 | H33: 0 | I33: 0 | J33: 3 | K33: 0 | L33: =IF(INTRO!$E$38="Endemic", IF($H33>0, IF($H33=4,"Unknown", IF($H33=99,"Stopped", $D33)), 0),"Not required") -> Not required | M33: 0 | N33: =IF(INTRO!$E$42="Endemic", IF(AND($J33>1,$J33<5), IF($J33=4, "Unknown", E33+F33), 0),"Not required") -> 138433 | O33: =IF(INTRO!$E$44="Endemic", IF(AND($K33>0,$K33<5), IF($K33=4,"Unknown", IF($K33=1, $F33*0.33, IF($K33=2, $F33*0.5+$G33*0.2, SUM(F33:G33)))), 0),"Not required") -> 0 | P33: 0 | Q33: 0 | R33: 1 | S33: 0 | U33: T3 (ALB/MBD) | Y33: 49811 | Z33: SSEMBABULE | AF33: ='MDA3'!N33 -> 0 | AG33: ='T1'!M33 -> 0 | AH33: =T3_R1!L33 -> 23534 | AI33: =T3_R2!L33 -> 54859 | AK33: =_xlfn.XLOOKUP($Y33,[1]COUNTRY_INFO!$Y$9:$Y$142,[1]COUNTRY_INFO!J$9:J$142) -> 3 | AL33: =_xlfn.XLOOKUP($Y33,[1]COUNTRY_INFO!$Y$9:$Y$142,[1]COUNTRY_INFO!K$9:K$142) -> 0 | AM33: TRUE | AN33: TRUE | AP33: 3
A34: =IF(INTRO!$E$34<>0,INTRO!$E$34,"") -> Uganda | B34: CENTRAL | C34: WAKISO | D34: 2474261 | E34: =IF(INTRO!$E$48="","",ROUND($D34*INTRO!$E$48,0)) -> 351345 | F34: =IF(INTRO!$E$49="","",ROUND($D34*INTRO!$E$49,0)) -> 747227 | G34: =IF(INTRO!$E$50="","",ROUND($D34*INTRO!$E$50,0)) -> 1289090 | H34: 0 | I34: 0 | J34: 3 | K34: 2 | L34: =IF(INTRO!$E$38="Endemic", IF($H34>0, IF($H34=4,"Unknown", IF($H34=99,"Stopped", $D34)), 0),"Not required") -> Not required | M34: 0 | N34: =IF(INTRO!$E$42="Endemic", IF(AND($J34>1,$J34<5), IF($J34=4, "Unknown", E34+F34), 0),"Not required") -> 1098572 | O34: =IF(INTRO!$E$44="Endemic", IF(AND($K34>0,$K34<5), IF($K34=4,"Unknown", IF($K34=1, $F34*0.33, IF($K34=2, $F34*0.5+$G34*0.2, SUM(F34:G34)))), 0),"Not required") -> 631431.5 | P34: 0 | Q34: 0 | R34: 1 | S34: 1 | U34: T3 (ALB/MBD) | Y34: 49815 | Z34: WAKISO | AF34: ='MDA3'!N34 -> 0 | AG34: ='T1'!M34 -> 0 | AH34: =T3_R1!L34 -> 287151 | AI34: =T3_R2!L34 -> 271536 | AK34: =_xlfn.XLOOKUP($Y34,[1]COUNTRY_INFO!$Y$9:$Y$142,[1]COUNTRY_INFO!J$9:J$142) -> 1 | AL34: =_xlfn.XLOOKUP($Y34,[1]COUNTRY_INFO!$Y$9:$Y$142,[1]COUNTRY_INFO!K$9:K$142) -> 2 | AM34: FALSE | AN34: TRUE | AP34: 3
A35: =IF(INTRO!$E$34<>0,INTRO!$E$34,"") -> Uganda | B35: EASTERN | C35: AMURIA | D35: 225535 | E35: =IF(INTRO!$E$48="","",ROUND($D35*INTRO!$E$48,0)) -> 32026 | F35: =IF(INTRO!$E$49="","",ROUND($D35*INTRO!$E$49,0)) -> 68112 | G35: =IF(INTRO!$E$50="","",ROUND($D35*INTRO!$E$50,0)) -> 117504 | H35: 99 | I35: 0 | J35: 3 | K35: 0 | L35: =IF(INTRO!$E$38="Endemic", IF($H35>0, IF($H35=4,"Unknown", IF($H35=99,"Stopped", $D35)), 0),"Not required") -> Not required | M35: 0 | N35: =IF(INTRO!$E$42="Endemic", IF(AND($J35>1,$J35<5), IF($J35=4, "Unknown", E35+F35), 0),"Not required") -> 100138 | O35: =IF(INTRO!$E$44="Endemic", IF(AND($K35>0,$K35<5), IF($K35=4,"Unknown", IF($K35=1, $F35*0.33, IF($K35=2, $F35*0.5+$G35*0.2, SUM(F35:G35)))), 0),"Not required") -> 0 | P35: 0 | Q35: 0 | R35: 1 | S35: 0 | U35: T3 (ALB/MBD) | Y35: 49709 | Z35: AMURIA | AF35: ='MDA3'!N35 -> 0 | AG35: ='T1'!M35 -> 0 | AH35: =T3_R1!L35 -> 72475 | AI35: =T3_R2!L35 -> 63439 | AK35: =_xlfn.XLOOKUP($Y35,[1]COUNTRY_INFO!$Y$9:$Y$142,[1]COUNTRY_INFO!J$9:J$142) -> 3 | AL35: =_xlfn.XLOOKUP($Y35,[1]COUNTRY_INFO!$Y$9:$Y$142,[1]COUNTRY_INFO!K$9:K$142) -> 0 | AM35: TRUE | AN35: TRUE | AP35: 3
A36: =IF(INTRO!$E$34<>0,INTRO!$E$34,"") -> Uganda | B36: EASTERN | C36: BUDAKA | D36: 256876 | E36: =IF(INTRO!$E$48="","",ROUND($D36*INTRO!$E$48,0)) -> 36476 | F36: =IF(INTRO!$E$49="","",ROUND($D36*INTRO!$E$49,0)) -> 77577 | G36: =IF(INTRO!$E$50="","",ROUND($D36*INTRO!$E$50,0)) -> 133832 | H36: 99 | I36: 0 | J36: 3 | K36: 1 | L36: =IF(INTRO!$E$38="Endemic", IF($H36>0, IF($H36=4,"Unknown", IF($H36=99,"Stopped", $D36)), 0),"Not required") -> Not required | M36: 0 | N36: =IF(INTRO!$E$42="Endemic", IF(AND($J36>1,$J36<5), IF($J36=4, "Unknown", E36+F36), 0),"Not required") -> 114053 | O36: =IF(INTRO!$E$44="Endemic", IF(AND($K36>0,$K36<5), IF($K36=4,"Unknown", IF($K36=1, $F36*0.33, IF($K36=2, $F36*0.5+$G36*0.2, SUM(F36:G36)))), 0),"Not required") -> 25600.41 | P36: 0 | Q36: 0 | R36: 1 | S36: 1 | U36: T3 (ALB/MBD) | Y36: 49716 | Z36: BUDAKA | AF36: ='MDA3'!N36 -> 0 | AG36: ='T1'!M36 -> 0 | AH36: =T3_R1!L36 -> 55259 | AI36: =T3_R2!L36 -> 56795 | AK36: =_xlfn.XLOOKUP($Y36,[1]COUNTRY_INFO!$Y$9:$Y$142,[1]COUNTRY_INFO!J$9:J$142) -> 3 | AL36: =_xlfn.XLOOKUP($Y36,[1]COUNTRY_INFO!$Y$9:$Y$142,[1]COUNTRY_INFO!K$9:K$142) -> 1 | AM36: TRUE | AN36: TRUE | AP36: 3
A37: =IF(INTRO!$E$34<>0,INTRO!$E$34,"") -> Uganda | B37: EASTERN | C37: BUDUDA | D37: 260876 | E37: =IF(INTRO!$E$48="","",ROUND($D37*INTRO!$E$48,0)) -> 37044 | F37: =IF(INTRO!$E$49="","",ROUND($D37*INTRO!$E$49,0)) -> 78785 | G37: =IF(INTRO!$E$50="","",ROUND($D37*INTRO!$E$50,0)) -> 135916 | H37: 0 | I37: 99 | J37: 3 | K37: 0 | L37: =IF(INTRO!$E$38="Endemic", IF($H37>0, IF($H37=4,"Unknown", IF($H37=99,"Stopped", $D37)), 0),"Not required") -> Not required | M37: 0 | N37: =IF(INTRO!$E$42="Endemic", IF(AND($J37>1,$J37<5), IF($J37=4, "Unknown", E37+F37), 0),"Not required") -> 115829 | O37: =IF(INTRO!$E$44="Endemic", IF(AND($K37>0,$K37<5), IF($K37=4,"Unknown", IF($K37=1, $F37*0.33, IF($K37=2, $F37*0.5+$G37*0.2, SUM(F37:G37)))), 0),"Not required") -> 0 | P37: 0 | Q37: 0 | R37: 1 | S37: 0 | U37: T3 (ALB/MBD) | Y37: 49717 | Z37: BUDUDA | AF37: ='MDA3'!N37 -> 0 | AG37: ='T1'!M37 -> 0 | AH37: =T3_R1!L37 -> 102250 | AI37: =T3_R2!L37 -> 82656 | AK37: =_xlfn.XLOOKUP($Y37,[1]COUNTRY_INFO!$Y$9:$Y$142,[1]COUNTRY_INFO!J$9:J$142) -> 3 | AL37: =_xlfn.XLOOKUP($Y37,[1]COUNTRY_INFO!$Y$9:$Y$142,[1]COUNTRY_INFO!K$9:K$142) -> 0 | AM37: TRUE | AN37: TRUE | AP37: 3
A38: =IF(INTRO!$E$34<>0,INTRO!$E$34,"") -> Uganda | B38: EASTERN | C38: BUGIRI | D38: 480726 | E38: =IF(INTRO!$E$48="","",ROUND($D38*INTRO!$E$48,0)) -> 68263 | F38: =IF(INTRO!$E$49="","",ROUND($D38*INTRO!$E$49,0)) -> 145179 | G38: =IF(INTRO!$E$50="","",ROUND($D38*INTRO!$E$50,0)) -> 250458 | H38: 99 | I38: 0 | J38: 3 | K38: 2 | L38: =IF(INTRO!$E$38="Endemic", IF($H38>0, IF($H38=4,"Unknown", IF($H38=99,"Stopped", $D38)), 0),"Not required") -> Not required | M38: 0 | N38: =IF(INTRO!$E$42="Endemic", IF(AND($J38>1,$J38<5), IF($J38=4, "Unknown", E38+F38), 0),"Not required") -> 213442 | O38: =IF(INTRO!$E$44="Endemic", IF(AND($K38>0,$K38<5), IF($K38=4,"Unknown", IF($K38=1, $F38*0.33, IF($K38=2, $F38*0.5+$G38*0.2, SUM(F38:G38)))), 0),"Not required") -> 122681.1 | P38: 0 | Q38: 0 | R38: 1 | S38: 1 | U38: T3 (ALB/MBD) | Y38: 49718 | Z38: BUGIRI | AF38: ='MDA3'!N38 -> 0 | AG38: ='T1'!M38 -> 0 | AH38: =T3_R1!L38 -> 147388 | AI38: =T3_R2!L38 -> 138509 | AK38: =_xlfn.XLOOKUP($Y38,[1]COUNTRY_INFO!$Y$9:$Y$142,[1]COUNTRY_INFO!J$9:J$142) -> 3 | AL38: =_xlfn.XLOOKUP($Y38,[1]COUNTRY_INFO!$Y$9:$Y$142,[1]COUNTRY_INFO!K$9:K$142) -> 2 | AM38: TRUE | AN38: TRUE | AP38: 3
A39: =IF(INTRO!$E$34<>0,INTRO!$E$34,"") -> Uganda | B39: EASTERN | C39: BUGWERI | D39: 208110 | E39: =IF(INTRO!$E$48="","",ROUND($D39*INTRO!$E$48,0)) -> 29552 | F39: =IF(INTRO!$E$49="","",ROUND($D39*INTRO!$E$49,0)) -> 62849 | G39: =IF(INTRO!$E$50="","",ROUND($D39*INTRO!$E$50,0)) -> 108425 | H39: 99 | I39: 0 | J39: 3 | K39: 1 | L39: =IF(INTRO!$E$38="Endemic", IF($H39>0, IF($H39=4,"Unknown", IF($H39=99,"Stopped", $D39)), 0),"Not required") -> Not required | M39: 0 | N39: =IF(INTRO!$E$42="Endemic", IF(AND($J39>1,$J39<5), IF($J39=4, "Unknown", E39+F39), 0),"Not required") -> 92401 | O39: =IF(INTRO!$E$44="Endemic", IF(AND($K39>0,$K39<5), IF($K39=4,"Unknown", IF($K39=1, $F39*0.33, IF($K39=2, $F39*0.5+$G39*0.2, SUM(F39:G39)))), 0),"Not required") -> 20740.17 | P39: 0 | Q39: 0 | R39: 1 | S39: 1 | U39: T3 (ALB/MBD) | Y39: 49833 | Z39: BUGWERI | AF39: ='MDA3'!N39 -> 0 | AG39: ='T1'!M39 -> 0 | AH39: =T3_R1!L39 -> 26407 | AI39: =T3_R2!L39 -> 30280 | AK39: =_xlfn.XLOOKUP($Y39,[1]COUNTRY_INFO!$Y$9:$Y$142,[1]COUNTRY_INFO!J$9:J$142) -> 3 | AL39: =_xlfn.XLOOKUP($Y39,[1]COUNTRY_INFO!$Y$9:$Y$142,[1]COUNTRY_INFO!K$9:K$142) -> 1 | AM39: TRUE | AN39: TRUE | AP39: 3
A40: =IF(INTRO!$E$34<>0,INTRO!$E$34,"") -> Uganda | B40: EASTERN | C40: BUKEDEA | D40: 232821 | E40: =IF(INTRO!$E$48="","",ROUND($D40*INTRO!$E$48,0)) -> 33061 | F40: =IF(INTRO!$E$49="","",ROUND($D40*INTRO!$E$49,0)) -> 70312 | G40: =IF(INTRO!$E$50="","",ROUND($D40*INTRO!$E$50,0)) -> 121300 | H40: 99 | I40: 0 | J40: 3 | K40: 1 | L40: =IF(INTRO!$E$38="Endemic", IF($H40>0, IF($H40=4,"Unknown", IF($H40=99,"Stopped", $D40)), 0),"Not required") -> Not required | M40: 0 | N40: =IF(INTRO!$E$42="Endemic", IF(AND($J40>1,$J40<5), IF($J40=4, "Unknown", E40+F40), 0),"Not required") -> 103373 | O40: =IF(INTRO!$E$44="Endemic", IF(AND($K40>0,$K40<5), IF($K40=4,"Unknown", IF($K40=1, $F40*0.33, IF($K40=2, $F40*0.5+$G40*0.2, SUM(F40:G40)))), 0),"Not required") -> 23202.96 | P40: 0 | Q40: 0 | R40: 1 | S40: 1 | U40: T3 (ALB/MBD) | Y40: 49719 | Z40: BUKEDEA | AF40: ='MDA3'!N40 -> 0 | AG40: ='T1'!M40 -> 0 | AH40: =T3_R1!L40 -> 92418 | AI40: =T3_R2!L40 -> 101118 | AK40: =_xlfn.XLOOKUP($Y40,[1]COUNTRY_INFO!$Y$9:$Y$142,[1]COUNTRY_INFO!J$9:J$142) -> 3 | AL40: =_xlfn.XLOOKUP($Y40,[1]COUNTRY_INFO!$Y$9:$Y$142,[1]COUNTRY_INFO!K$9:K$142) -> 1 | AM40: TRUE | AN40: TRUE | AP40: 3
A41: =IF(INTRO!$E$34<>0,INTRO!$E$34,"") -> Uganda | B41: EASTERN | C41: BUKWO | D41: 109994 | E41: =IF(INTRO!$E$48="","",ROUND($D41*INTRO!$E$48,0)) -> 15619 | F41: =IF(INTRO!$E$49="","",ROUND($D41*INTRO!$E$49,0)) -> 33218 | G41: =IF(INTRO!$E$50="","",ROUND($D41*INTRO!$E$50,0)) -> 57307 | H41: 0 | I41: 0 | J41: 3 | K41: 0 | L41: =IF(INTRO!$E$38="Endemic", IF($H41>0, IF($H41=4,"Unknown", IF($H41=99,"Stopped", $D41)), 0),"Not required") -> Not required | M41: 0 | N41: =IF(INTRO!$E$42="Endemic", IF(AND($J41>1,$J41<5), IF($J41=4, "Unknown", E41+F41), 0),"Not required") -> 48837 | O41: =IF(INTRO!$E$44="Endemic", IF(AND($K41>0,$K41<5), IF($K41=4,"Unknown", IF($K41=1, $F41*0.33, IF($K41=2, $F41*0.5+$G41*0.2, SUM(F41:G41)))), 0),"Not required") -> 0 | P41: 0 | Q41: 0 | R41: 1 | S41: 0 | U41: T3 (ALB/MBD) | Y41: 49727 | Z41: BUKWO | AF41: ='MDA3'!N41 -> 0 | AG41: ='T1'!M41 -> 0 | AH41: =T3_R1!L41 -> 48253 | AI41: =T3_R2!L41 -> 81363 | AK41: =_xlfn.XLOOKUP($Y41,[1]COUNTRY_INFO!$Y$9:$Y$142,[1]COUNTRY_INFO!J$9:J$142) -> 3 | AL41: =_xlfn.XLOOKUP($Y41,[1]COUNTRY_INFO!$Y$9:$Y$142,[1]COUNTRY_INFO!K$9:K$142) -> 0 | AM41: TRUE | AN41: TRUE | AP41: 3
A42: =IF(INTRO!$E$34<>0,INTRO!$E$34,"") -> Uganda | B42: EASTERN | C42: BULAMBULI | D42: 218533 | E42: =IF(INTRO!$E$48="","",ROUND($D42*INTRO!$E$48,0)) -> 31032 | F42: =IF(INTRO!$E$49="","",ROUND($D42*INTRO!$E$49,0)) -> 65997 | G42: =IF(INTRO!$E$50="","",ROUND($D42*INTRO!$E$50,0)) -> 113856 | H42: 0 | I42: 0 | J42: 3 | K42: 1 | L42: =IF(INTRO!$E$38="Endemic", IF($H42>0, IF($H42=4,"Unknown", IF($H42=99,"Stopped", $D42)), 0),"Not required") -> Not required | M42: 0 | N42: =IF(INTRO!$E$42="Endemic", IF(AND($J42>1,$J42<5), IF($J42=4, "Unknown", E42+F42), 0),"Not required") -> 97029 | O42: =IF(INTRO!$E$44="Endemic", IF(AND($K42>0,$K42<5), IF($K42=4,"Unknown", IF($K42=1, $F42*0.33, IF($K42=2, $F42*0.5+$G42*0.2, SUM(F42:G42)))), 0),"Not required") -> 21779.01 | P42: 0 | Q42: 0 | R42: 1 | S42: 1 | U42: T3 (ALB/MBD) | Y42: 49728 | Z42: BULAMBULI | AF42: ='MDA3'!N42 -> 0 | AG42: ='T1'!M42 -> 0 | AH42: =T3_R1!L42 -> 66754 | AI42: =T3_R2!L42 -> 78569 | AK42: =_xlfn.XLOOKUP($Y42,[1]COUNTRY_INFO!$Y$9:$Y$142,[1]COUNTRY_INFO!J$9:J$142) -> 3 | AL42: =_xlfn.XLOOKUP($Y42,[1]COUNTRY_INFO!$Y$9:$Y$142,[1]COUNTRY_INFO!K$9:K$142) -> 1 | AM42: TRUE | AN42: TRUE | AP42: 3
A43: =IF(INTRO!$E$34<>0,INTRO!$E$34,"") -> Uganda | B43: EASTERN | C43: BUSIA | D43: 401173 | E43: =IF(INTRO!$E$48="","",ROUND($D43*INTRO!$E$48,0)) -> 56967 | F43: =IF(INTRO!$E$49="","",ROUND($D43*INTRO!$E$49,0)) -> 121154 | G43: =IF(INTRO!$E$50="","",ROUND($D43*INTRO!$E$50,0)) -> 209011 | H43: 0 | I43: 0 | J43: 3 | K43: 3 | L43: =IF(INTRO!$E$38="Endemic", IF($H43>0, IF($H43=4,"Unknown", IF($H43=99,"Stopped", $D43)), 0),"Not required") -> Not required | M43: 0 | N43: =IF(INTRO!$E$42="Endemic", IF(AND($J43>1,$J43<5), IF($J43=4, "Unknown", E43+F43), 0),"Not required") -> 178121 | O43: =IF(INTRO!$E$44="Endemic", IF(AND($K43>0,$K43<5), IF($K43=4,"Unknown", IF($K43=1, $F43*0.33, IF($K43=2, $F43*0.5+$G43*0.2, SUM(F43:G43)))), 0),"Not required") -> 330165 | P43: 0 | Q43: 0 | R43: 1 | S43: 1 | U43: T3 (ALB/MBD) | Y43: 49723 | Z43: BUSIA | AF43: ='MDA3'!N43 -> 0 | AG43: ='T1'!M43 -> 0 | AH43: =T3_R1!L43 -> 106504 | AI43: =T3_R2!L43 -> 887111 | AK43: =_xlfn.XLOOKUP($Y43,[1]COUNTRY_INFO!$Y$9:$Y$142,[1]COUNTRY_INFO!J$9:J$142) -> 2 | AL43: =_xlfn.XLOOKUP($Y43,[1]COUNTRY_INFO!$Y$9:$Y$142,[1]COUNTRY_INFO!K$9:K$142) -> 3 | AM43: FALSE | AN43: TRUE | AP43: 3
A44: =IF(INTRO!$E$34<>0,INTRO!$E$34,"") -> Uganda | B44: EASTERN | C44: BUTALEJA | D44: 303011 | E44: =IF(INTRO!$E$48="","",ROUND($D44*INTRO!$E$48,0)) -> 43028 | F44: =IF(INTRO!$E$49="","",ROUND($D44*INTRO!$E$49,0)) -> 91509 | G44: =IF(INTRO!$E$50="","",ROUND($D44*INTRO!$E$50,0)) -> 157869 | H44: 99 | I44: 0 | J44: 3 | K44: 1 | L44: =IF(INTRO!$E$38="Endemic", IF($H44>0, IF($H44=4,"Unknown", IF($H44=99,"Stopped", $D44)), 0),"Not required") -> Not required | M44: 0 | N44: =IF(INTRO!$E$42="Endemic", IF(AND($J44>1,$J44<5), IF($J44=4, "Unknown", E44+F44), 0),"Not required") -> 134537 | O44: =IF(INTRO!$E$44="Endemic", IF(AND($K44>0,$K44<5), IF($K44=4,"Unknown", IF($K44=1, $F44*0.33, IF($K44=2, $F44*0.5+$G44*0.2, SUM(F44:G44)))), 0),"Not required") -> 30197.97 | P44: 0 | Q44: 0 | R44: 1 | S44: 1 | U44: T3 (ALB/MBD) | Y44: 49729 | Z44: BUTALEJA | AF44: ='MDA3'!N44 -> 0 | AG44: ='T1'!M44 -> 0 | AH44: =T3_R1!L44 -> 62943 | AI44: =T3_R2!L44 -> 50935 | AK44: =_xlfn.XLOOKUP($Y44,[1]COUNTRY_INFO!$Y$9:$Y$142,[1]COUNTRY_INFO!J$9:J$142) -> 3 | AL44: =_xlfn.XLOOKUP($Y44,[1]COUNTRY_INFO!$Y$9:$Y$142,[1]COUNTRY_INFO!K$9:K$142) -> 1 | AM44: TRUE | AN44: TRUE | AP44: 3
A45: =IF(INTRO!$E$34<>0,INTRO!$E$34,"") -> Uganda | B45: EASTERN | C45: BUTEBO | D45: 177812 | E45: =IF(INTRO!$E$48="","",ROUND($D45*INTRO!$E$48,0)) -> 25249 | F45: =IF(INTRO!$E$49="","",ROUND($D45*INTRO!$E$49,0)) -> 53699 | G45: =IF(INTRO!$E$50="","",ROUND($D45*INTRO!$E$50,0)) -> 92640 | H45: 99 | I45: 0 | J45: 3 | K45: 1 | L45: =IF(INTRO!$E$38="Endemic", IF($H45>0, IF($H45=4,"Unknown", IF($H45=99,"Stopped", $D45)), 0),"Not required") -> Not required | M45: 0 | N45: =IF(INTRO!$E$42="Endemic", IF(AND($J45>1,$J45<5), IF($J45=4, "Unknown", E45+F45), 0),"Not required") -> 78948 | O45: =IF(INTRO!$E$44="Endemic", IF(AND($K45>0,$K45<5), IF($K45=4,"Unknown", IF($K45=1, $F45*0.33, IF($K45=2, $F45*0.5+$G45*0.2, SUM(F45:G45)))), 0),"Not required") -> 17720.67 | P45: 0 | Q45: 0 | R45: 1 | S45: 1 | U45: T3 (ALB/MBD) | Y45: 49824 | Z45: BUTEBO | AF45: ='MDA3'!N45 -> 0 | AG45: ='T1'!M45 -> 0 | AH45: =T3_R1!L45 -> 41672 | AI45: =T3_R2!L45 -> 21252 | AK45: =_xlfn.XLOOKUP($Y45,[1]COUNTRY_INFO!$Y$9:$Y$142,[1]COUNTRY_INFO!J$9:J$142) -> 3 | AL45: =_xlfn.XLOOKUP($Y45,[1]COUNTRY_INFO!$Y$9:$Y$142,[1]COUNTRY_INFO!K$9:K$142) -> 1 | AM45: TRUE | AN45: TRUE | AP45: 3
A46: =IF(INTRO!$E$34<>0,INTRO!$E$34,"") -> Uganda | B46: EASTERN | C46: BUYENDE | D46: 394938 | E46: =IF(INTRO!$E$48="","",ROUND($D46*INTRO!$E$48,0)) -> 56081 | F46: =IF(INTRO!$E$49="","",ROUND($D46*INTRO!$E$49,0)) -> 119271 | G46: =IF(INTRO!$E$50="","",ROUND($D46*INTRO!$E$50,0)) -> 205763 | H46: 99 | I46: 0 | J46: 3 | K46: 3 | L46: =IF(INTRO!$E$38="Endemic", IF($H46>0, IF($H46=4,"Unknown", IF($H46=99,"Stopped", $D46)), 0),"Not required") -> Not required | M46: 0 | N46: =IF(INTRO!$E$42="Endemic", IF(AND($J46>1,$J46<5), IF($J46=4, "Unknown", E46+F46), 0),"Not required") -> 175352 | O46: =IF(INTRO!$E$44="Endemic", IF(AND($K46>0,$K46<5), IF($K46=4,"Unknown", IF($K46=1, $F46*0.33, IF($K46=2, $F46*0.5+$G46*0.2, SUM(F46:G46)))), 0),"Not required") -> 325034 | P46: 0 | Q46: 0 | R46: 1 | S46: 1 | U46: T3 (ALB/MBD) | Y46: 49732 | Z46: BUYENDE | AF46: ='MDA3'!N46 -> 0 | AG46: ='T1'!M46 -> 0 | AH46: =T3_R1!L46 -> 74962 | AI46: =T3_R2!L46 -> 58765 | AK46: =_xlfn.XLOOKUP($Y46,[1]COUNTRY_INFO!$Y$9:$Y$142,[1]COUNTRY_INFO!J$9:J$142) -> 3 | AL46: =_xlfn.XLOOKUP($Y46,[1]COUNTRY_INFO!$Y$9:$Y$142,[1]COUNTRY_INFO!K$9:K$142) -> 3 | AM46: TRUE | AN46: TRUE | AP46: 3
A47: =IF(INTRO!$E$34<>0,INTRO!$E$34,"") -> Uganda | B47: EASTERN | C47: IGANGA | D47: 415956 | E47: =IF(INTRO!$E$48="","",ROUND($D47*INTRO!$E$48,0)) -> 59066 | F47: =IF(INTRO!$E$49="","",ROUND($D47*INTRO!$E$49,0)) -> 125619 | G47: =IF(INTRO!$E$50="","",ROUND($D47*INTRO!$E$50,0)) -> 216713 | H47: 99 | I47: 0 | J47: 3 | K47: 1 | L47: =IF(INTRO!$E$38="Endemic", IF($H47>0, IF($H47=4,"Unknown", IF($H47=99,"Stopped", $D47)), 0),"Not required") -> Not required | M47: 0 | N47: =IF(INTRO!$E$42="Endemic", IF(AND($J47>1,$J47<5), IF($J47=4, "Unknown", E47+F47), 0),"Not required") -> 184685 | O47: =IF(INTRO!$E$44="Endemic", IF(AND($K47>0,$K47<5), IF($K47=4,"Unknown", IF($K47=1, $F47*0.33, IF($K47=2, $F47*0.5+$G47*0.2, SUM(F47:G47)))), 0),"Not required") -> 41454.27 | P47: 0 | Q47: 0 | R47: 1 | S47: 1 | U47: T3 (ALB/MBD) | Y47: 49738 | Z47: IGANGA | AF47: ='MDA3'!N47 -> 0 | AG47: ='T1'!M47 -> 0 | AH47: =T3_R1!L47 -> 96759 | AI47: =T3_R2!L47 -> 139763 | AK47: =_xlfn.XLOOKUP($Y47,[1]COUNTRY_INFO!$Y$9:$Y$142,[1]COUNTRY_INFO!J$9:J$142) -> 3 | AL47: =_xlfn.XLOOKUP($Y47,[1]COUNTRY_INFO!$Y$9:$Y$142,[1]COUNTRY_INFO!K$9:K$142) -> 1 | AM47: TRUE | AN47: TRUE | AP47: 3
A48: =IF(INTRO!$E$34<>0,INTRO!$E$34,"") -> Uganda | B48: EASTERN | C48: JINJA | D48: 577077 | E48: =IF(INTRO!$E$48="","",ROUND($D48*INTRO!$E$48,0)) -> 81945 | F48: =IF(INTRO!$E$49="","",ROUND($D48*INTRO!$E$49,0)) -> 174277 | G48: =IF(INTRO!$E$50="","",ROUND($D48*INTRO!$E$50,0)) -> 300657 | H48: 0 | I48: 0 | J48: 3 | K48: 3 | L48: =IF(INTRO!$E$38="Endemic", IF($H48>0, IF($H48=4,"Unknown", IF($H48=99,"Stopped", $D48)), 0),"Not required") -> Not required | M48: 0 | N48: =IF(INTRO!$E$42="Endemic", IF(AND($J48>1,$J48<5), IF($J48=4, "Unknown", E48+F48), 0),"Not required") -> 256222 | O48: =IF(INTRO!$E$44="Endemic", IF(AND($K48>0,$K48<5), IF($K48=4,"Unknown", IF($K48=1, $F48*0.33, IF($K48=2, $F48*0.5+$G48*0.2, SUM(F48:G48)))), 0),"Not required") -> 474934 | P48: 0 | Q48: 0 | R48: 1 | S48: 1 | U48: T3 (ALB/MBD) | Y48: 49740 | Z48: JINJA | AF48: ='MDA3'!N48 -> 0 | AG48: ='T1'!M48 -> 0 | AH48: =T3_R1!L48 -> 95247 | AI48: =T3_R2!L48 -> 80423 | AK48: =_xlfn.XLOOKUP($Y48,[1]COUNTRY_INFO!$Y$9:$Y$142,[1]COUNTRY_INFO!J$9:J$142) -> 3 | AL48: =_xlfn.XLOOKUP($Y48,[1]COUNTRY_INFO!$Y$9:$Y$142,[1]COUNTRY_INFO!K$9:K$142) -> 3 | AM48: TRUE | AN48: TRUE | AP48: 3
A49: =IF(INTRO!$E$34<>0,INTRO!$E$34,"") -> Uganda | B49: EASTERN | C49: KABERAMAIDO | D49: 127917 | E49: =IF(INTRO!$E$48="","",ROUND($D49*INTRO!$E$48,0)) -> 18164 | F49: =IF(INTRO!$E$49="","",ROUND($D49*INTRO!$E$49,0)) -> 38631 | G49: =IF(INTRO!$E$50="","",ROUND($D49*INTRO!$E$50,0)) -> 66645 | H49: 99 | I49: 0 | J49: 3 | K49: 3 | L49: =IF(INTRO!$E$38="Endemic", IF($H49>0, IF($H49=4,"Unknown", IF($H49=99,"Stopped", $D49)), 0),"Not required") -> Not required | M49: 0 | N49: =IF(INTRO!$E$42="Endemic", IF(AND($J49>1,$J49<5), IF($J49=4, "Unknown", E49+F49), 0),"Not required") -> 56795 | O49: =IF(INTRO!$E$44="Endemic", IF(AND($K49>0,$K49<5), IF($K49=4,"Unknown", IF($K49=1, $F49*0.33, IF($K49=2, $F49*0.5+$G49*0.2, SUM(F49:G49)))), 0),"Not required") -> 105276 | P49: 0 | Q49: 0 | R49: 1 | S49: 1 | U49: T3 (ALB/MBD) | Y49: 49743 | Z49: KABERAMAIDO | AF49: ='MDA3'!N49 -> 0 | AG49: ='T1'!M49 -> 0 | AH49: =T3_R1!L49 -> 61464 | AI49: =T3_R2!L49 -> 34764 | AK49: =_xlfn.XLOOKUP($Y49,[1]COUNTRY_INFO!$Y$9:$Y$142,[1]COUNTRY_INFO!J$9:J$142) -> 3 | AL49: =_xlfn.XLOOKUP($Y49,[1]COUNTRY_INFO!$Y$9:$Y$142,[1]COUNTRY_INFO!K$9:K$142) -> 3 | AM49: TRUE | AN49: TRUE | AP49: 3
A50: =IF(INTRO!$E$34<>0,INTRO!$E$34,"") -> Uganda | B50: EASTERN | C50: KALAKI | D50: 135043 | E50: =IF(INTRO!$E$48="","",ROUND($D50*INTRO!$E$48,0)) -> 19176 | F50: =IF(INTRO!$E$49="","",ROUND($D50*INTRO!$E$49,0)) -> 40783 | G50: =IF(INTRO!$E$50="","",ROUND($D50*INTRO!$E$50,0)) -> 70357 | H50: 99 | I50: 0 | J50: 3 | K50: 3 | L50: =IF(INTRO!$E$38="Endemic", IF($H50>0, IF($H50=4,"Unknown", IF($H50=99,"Stopped", $D50)), 0),"Not required") -> Not required | M50: 0 | N50: =IF(INTRO!$E$42="Endemic", IF(AND($J50>1,$J50<5), IF($J50=4, "Unknown", E50+F50), 0),"Not required") -> 59959 | O50: =IF(INTRO!$E$44="Endemic", IF(AND($K50>0,$K50<5), IF($K50=4,"Unknown", IF($K50=1, $F50*0.33, IF($K50=2, $F50*0.5+$G50*0.2, SUM(F50:G50)))), 0),"Not required") -> 111140 | P50: 0 | Q50: 0 | R50: 1 | S50: 1 | U50: T3 (ALB/MBD) | Y50: 49843 | Z50: KALAKI | AA50: 49743 | AB50: KABERAMAIDO | AF50: ='MDA3'!N50 -> 0 | AG50: ='T1'!M50 -> 0 | AH50: =T3_R1!L50 -> 0 | AI50: =T3_R2!L50 -> 17542 | AK50: 3 | AL50: 3 | AM50: TRUE | AN50: TRUE | AP50: 3
A51: =IF(INTRO!$E$34<>0,INTRO!$E$34,"") -> Uganda | B51: EASTERN | C51: KALIRO | D51: 291986 | E51: =IF(INTRO!$E$48="","",ROUND($D51*INTRO!$E$48,0)) -> 41462 | F51: =IF(INTRO!$E$49="","",ROUND($D51*INTRO!$E$49,0)) -> 88180 | G51: =IF(INTRO!$E$50="","",ROUND($D51*INTRO!$E$50,0)) -> 152125 | H51: 99 | I51: 0 | J51: 3 | K51: 1 | L51: =IF(INTRO!$E$38="Endemic", IF($H51>0, IF($H51=4,"Unknown", IF($H51=99,"Stopped", $D51)), 0),"Not required") -> Not required | M51: 0 | N51: =IF(INTRO!$E$42="Endemic", IF(AND($J51>1,$J51<5), IF($J51=4, "Unknown", E51+F51), 0),"Not required") -> 129642 | O51: =IF(INTRO!$E$44="Endemic", IF(AND($K51>0,$K51<5), IF($K51=4,"Unknown", IF($K51=1, $F51*0.33, IF($K51=2, $F51*0.5+$G51*0.2, SUM(F51:G51)))), 0),"Not required") -> 29099.4 | P51: 0 | Q51: 0 | R51: 1 | S51: 1 | U51: T3 (ALB/MBD) | Y51: 49746 | Z51: KALIRO | AF51: ='MDA3'!N51 -> 0 | AG51: ='T1'!M51 -> 0 | AH51: =T3_R1!L51 -> 155221 | AI51: =T3_R2!L51 -> 158055 | AK51: =_xlfn.XLOOKUP($Y51,[1]COUNTRY_INFO!$Y$9:$Y$142,[1]COUNTRY_INFO!J$9:J$142) -> 3 | AL51: =_xlfn.XLOOKUP($Y51,[1]COUNTRY_INFO!$Y$9:$Y$142,[1]COUNTRY_INFO!K$9:K$142) -> 1 | AM51: TRUE | AN51: TRUE | AP51: 3
A52: =IF(INTRO!$E$34<>0,INTRO!$E$34,"") -> Uganda | B52: EASTERN | C52: KAMULI | D52: 604178 | E52: =IF(INTRO!$E$48="","",ROUND($D52*INTRO!$E$48,0)) -> 85793 | F52: =IF(INTRO!$E$49="","",ROUND($D52*INTRO!$E$49,0)) -> 182462 | G52: =IF(INTRO!$E$50="","",ROUND($D52*INTRO!$E$50,0)) -> 314777 | H52: 99 | I52: 0 | J52: 3 | K52: 1 | L52: =IF(INTRO!$E$38="Endemic", IF($H52>0, IF($H52=4,"Unknown", IF($H52=99,"Stopped", $D52)), 0),"Not required") -> Not required | M52: 0 | N52: =IF(INTRO!$E$42="Endemic", IF(AND($J52>1,$J52<5), IF($J52=4, "Unknown", E52+F52), 0),"Not required") -> 268255 | O52: =IF(INTRO!$E$44="Endemic", IF(AND($K52>0,$K52<5), IF($K52=4,"Unknown", IF($K52=1, $F52*0.33, IF($K52=2, $F52*0.5+$G52*0.2, SUM(F52:G52)))), 0),"Not required") -> 60212.46 | P52: 0 | Q52: 0 | R52: 1 | S52: 1 | U52: T3 (ALB/MBD) | Y52: 49747 | Z52: KAMULI | AF52: ='MDA3'!N52 -> 0 | AG52: ='T1'!M52 -> 0 | AH52: =T3_R1!L52 -> 97851 | AI52: =T3_R2!L52 -> 106251 | AK52: =_xlfn.XLOOKUP($Y52,[1]COUNTRY_INFO!$Y$9:$Y$142,[1]COUNTRY_INFO!J$9:J$142) -> 3 | AL52: =_xlfn.XLOOKUP($Y52,[1]COUNTRY_INFO!$Y$9:$Y$142,[1]COUNTRY_INFO!K$9:K$142) -> 1 | AM52: TRUE | AN52: TRUE | AP52: 3
A53: =IF(INTRO!$E$34<>0,INTRO!$E$34,"") -> Uganda | B53: EASTERN | C53: KAPCHORWA | D53: 137484 | E53: =IF(INTRO!$E$48="","",ROUND($D53*INTRO!$E$48,0)) -> 19523 | F53: =IF(INTRO!$E$49="","",ROUND($D53*INTRO!$E$49,0)) -> 41520 | G53: =IF(INTRO!$E$50="","",ROUND($D53*INTRO!$E$50,0)) -> 71629 | H53: 0 | I53: 0 | J53: 3 | K53: 0 | L53: =IF(INTRO!$E$38="Endemic", IF($H53>0, IF($H53=4,"Unknown", IF($H53=99,"Stopped", $D53)), 0),"Not required") -> Not required | M53: 0 | N53: =IF(INTRO!$E$42="Endemic", IF(AND($J53>1,$J53<5), IF($J53=4, "Unknown", E53+F53), 0),"Not required") -> 61043 | O53: =IF(INTRO!$E$44="Endemic", IF(AND($K53>0,$K53<5), IF($K53=4,"Unknown", IF($K53=1, $F53*0.33, IF($K53=2, $F53*0.5+$G53*0.2, SUM(F53:G53)))), 0),"Not required") -> 0 | P53: 0 | Q53: 0 | R53: 1 | S53: 0 | U53: T3 (ALB/MBD) | Y53: 49760 | Z53: KAPCHORWA | AF53: ='MDA3'!N53 -> 0 | AG53: ='T1'!M53 -> 0 | AH53: =T3_R1!L53 -> 39173 | AI53: =T3_R2!L53 -> 47031 | AK53: =_xlfn.XLOOKUP($Y53,[1]COUNTRY_INFO!$Y$9:$Y$142,[1]COUNTRY_INFO!J$9:J$142) -> 3 | AL53: =_xlfn.XLOOKUP($Y53,[1]COUNTRY_INFO!$Y$9:$Y$142,[1]COUNTRY_INFO!K$9:K$142) -> 0 | AM53: TRUE | AN53: TRUE | AP53: 3
A54: =IF(INTRO!$E$34<>0,INTRO!$E$34,"") -> Uganda | B54: EASTERN | C54: KAPELEBYONG | D54: 107952 | E54: =IF(INTRO!$E$48="","",ROUND($D54*INTRO!$E$48,0)) -> 15329 | F54: =IF(INTRO!$E$49="","",ROUND($D54*INTRO!$E$49,0)) -> 32602 | G54: =IF(INTRO!$E$50="","",ROUND($D54*INTRO!$E$50,0)) -> 56243 | H54: 99 | I54: 0 | J54: 3 | K54: 0 | L54: =IF(INTRO!$E$38="Endemic", IF($H54>0, IF($H54=4,"Unknown", IF($H54=99,"Stopped", $D54)), 0),"Not required") -> Not required | M54: 0 | N54: =IF(INTRO!$E$42="Endemic", IF(AND($J54>1,$J54<5), IF($J54=4, "Unknown", E54+F54), 0),"Not required") -> 47931 | O54: =IF(INTRO!$E$44="Endemic", IF(AND($K54>0,$K54<5), IF($K54=4,"Unknown", IF($K54=1, $F54*0.33, IF($K54=2, $F54*0.5+$G54*0.2, SUM(F54:G54)))), 0),"Not required") -> 0 | P54: 0 | Q54: 0 | R54: 1 | S54: 0 | U54: T3 (ALB/MBD) | Y54: 49832 | Z54: KAPELEBYONG | AF54: ='MDA3'!N54 -> 0 | AG54: ='T1'!M54 -> 0 | AH54: =T3_R1!L54 -> 25585 | AI54: =T3_R2!L54 -> 24332 | AK54: =_xlfn.XLOOKUP($Y54,[1]COUNTRY_INFO!$Y$9:$Y$142,[1]COUNTRY_INFO!J$9:J$142) -> 3 | AL54: =_xlfn.XLOOKUP($Y54,[1]COUNTRY_INFO!$Y$9:$Y$142,[1]COUNTRY_INFO!K$9:K$142) -> 0 | AM54: TRUE | AN54: TRUE | AP54: 3
A55: =IF(INTRO!$E$34<>0,INTRO!$E$34,"") -> Uganda | B55: EASTERN | C55: KATAKWI | D55: 204022 | E55: =IF(INTRO!$E$48="","",ROUND($D55*INTRO!$E$48,0)) -> 28971 | F55: =IF(INTRO!$E$49="","",ROUND($D55*INTRO!$E$49,0)) -> 61615 | G55: =IF(INTRO!$E$50="","",ROUND($D55*INTRO!$E$50,0)) -> 106295 | H55: 99 | I55: 0 | J55: 3 | K55: 1 | L55: =IF(INTRO!$E$38="Endemic", IF($H55>0, IF($H55=4,"Unknown", IF($H55=99,"Stopped", $D55)), 0),"Not required") -> Not required | M55: 0 | N55: =IF(INTRO!$E$42="Endemic", IF(AND($J55>1,$J55<5), IF($J55=4, "Unknown", E55+F55), 0),"Not required") -> 90586 | O55: =IF(INTRO!$E$44="Endemic", IF(AND($K55>0,$K55<5), IF($K55=4,"Unknown", IF($K55=1, $F55*0.33, IF($K55=2, $F55*0.5+$G55*0.2, SUM(F55:G55)))), 0),"Not required") -> 20332.95 | P55: 0 | Q55: 0 | R55: 1 | S55: 1 | U55: T3 (ALB/MBD) | Y55: 49751 | Z55: KATAKWI | AF55: ='MDA3'!N55 -> 0 | AG55: ='T1'!M55 -> 0 | AH55: =T3_R1!L55 -> 59724 | AI55: =T3_R2!L55 -> 54449 | AK55: =_xlfn.XLOOKUP($Y55,[1]COUNTRY_INFO!$Y$9:$Y$142,[1]COUNTRY_INFO!J$9:J$142) -> 3 | AL55: =_xlfn.XLOOKUP($Y55,[1]COUNTRY_INFO!$Y$9:$Y$142,[1]COUNTRY_INFO!K$9:K$142) -> 1 | AM55: TRUE | AN55: TRUE | AP55: 3
A56: =IF(INTRO!$E$34<>0,INTRO!$E$34,"") -> Uganda | B56: EASTERN | C56: KIBUKU | D56: 249716 | E56: =IF(INTRO!$E$48="","",ROUND($D56*INTRO!$E$48,0)) -> 35460 | F56: =IF(INTRO!$E$49="","",ROUND($D56*INTRO!$E$49,0)) -> 75414 | G56: =IF(INTRO!$E$50="","",ROUND($D56*INTRO!$E$50,0)) -> 130102 | H56: 99 | I56: 0 | J56: 3 | K56: 1 | L56: =IF(INTRO!$E$38="Endemic", IF($H56>0, IF($H56=4,"Unknown", IF($H56=99,"Stopped", $D56)), 0),"Not required") -> Not required | M56: 0 | N56: =IF(INTRO!$E$42="Endemic", IF(AND($J56>1,$J56<5), IF($J56=4, "Unknown", E56+F56), 0),"Not required") -> 110874 | O56: =IF(INTRO!$E$44="Endemic", IF(AND($K56>0,$K56<5), IF($K56=4,"Unknown", IF($K56=1, $F56*0.33, IF($K56=2, $F56*0.5+$G56*0.2, SUM(F56:G56)))), 0),"Not required") -> 24886.62 | P56: 0 | Q56: 0 | R56: 1 | S56: 1 | U56: T3 (ALB/MBD) | Y56: 49763 | Z56: KIBUKU | AF56: ='MDA3'!N56 -> 0 | AG56: ='T1'!M56 -> 0 | AH56: =T3_R1!L56 -> 43669 | AI56: =T3_R2!L56 -> 65539 | AK56: =_xlfn.XLOOKUP($Y56,[1]COUNTRY_INFO!$Y$9:$Y$142,[1]COUNTRY_INFO!J$9:J$142) -> 3 | AL56: =_xlfn.XLOOKUP($Y56,[1]COUNTRY_INFO!$Y$9:$Y$142,[1]COUNTRY_INFO!K$9:K$142) -> 1 | AM56: TRUE | AN56: TRUE | AP56: 3
A57: =IF(INTRO!$E$34<>0,INTRO!$E$34,"") -> Uganda | B57: EASTERN | C57: KUMI | D57: 318045 | E57: =IF(INTRO!$E$48="","",ROUND($D57*INTRO!$E$48,0)) -> 45162 | F57: =IF(INTRO!$E$49="","",ROUND($D57*INTRO!$E$49,0)) -> 96050 | G57: =IF(INTRO!$E$50="","",ROUND($D57*INTRO!$E$50,0)) -> 165701 | H57: 99 | I57: 0 | J57: 3 | K57: 1 | L57: =IF(INTRO!$E$38="Endemic", IF($H57>0, IF($H57=4,"Unknown", IF($H57=99,"Stopped", $D57)), 0),"Not required") -> Not required | M57: 0 | N57: =IF(INTRO!$E$42="Endemic", IF(AND($J57>1,$J57<5), IF($J57=4, "Unknown", E57+F57), 0),"Not required") -> 141212 | O57: =IF(INTRO!$E$44="Endemic", IF(AND($K57>0,$K57<5), IF($K57=4,"Unknown", IF($K57=1, $F57*0.33, IF($K57=2, $F57*0.5+$G57*0.2, SUM(F57:G57)))), 0),"Not required") -> 31696.5 | P57: 0 | Q57: 0 | R57: 1 | S57: 1 | U57: T3 (ALB/MBD) | Y57: 49756 | Z57: KUMI | AF57: ='MDA3'!N57 -> 0 | AG57: ='T1'!M57 -> 0 | AH57: =T3_R1!L57 -> 91376 | AI57: =T3_R2!L57 -> 82453 | AK57: =_xlfn.XLOOKUP($Y57,[1]COUNTRY_INFO!$Y$9:$Y$142,[1]COUNTRY_INFO!J$9:J$142) -> 3 | AL57: =_xlfn.XLOOKUP($Y57,[1]COUNTRY_INFO!$Y$9:$Y$142,[1]COUNTRY_INFO!K$9:K$142) -> 1 | AM57: TRUE | AN57: TRUE | AP57: 3
A58: =IF(INTRO!$E$34<>0,INTRO!$E$34,"") -> Uganda | B58: EASTERN | C58: KWEEN | D58: 117843 | E58: =IF(INTRO!$E$48="","",ROUND($D58*INTRO!$E$48,0)) -> 16734 | F58: =IF(INTRO!$E$49="","",ROUND($D58*INTRO!$E$49,0)) -> 35589 | G58: =IF(INTRO!$E$50="","",ROUND($D58*INTRO!$E$50,0)) -> 61396 | H58: 0 | I58: 0 | J58: 3 | K58: 1 | L58: =IF(INTRO!$E$38="Endemic", IF($H58>0, IF($H58=4,"Unknown", IF($H58=99,"Stopped", $D58)), 0),"Not required") -> Not required | M58: 0 | N58: =IF(INTRO!$E$42="Endemic", IF(AND($J58>1,$J58<5), IF($J58=4, "Unknown", E58+F58), 0),"Not required") -> 52323 | O58: =IF(INTRO!$E$44="Endemic", IF(AND($K58>0,$K58<5), IF($K58=4,"Unknown", IF($K58=1, $F58*0.33, IF($K58=2, $F58*0.5+$G58*0.2, SUM(F58:G58)))), 0),"Not required") -> 11744.37 | P58: 0 | Q58: 0 | R58: 1 | S58: 1 | U58: T3 (ALB/MBD) | Y58: 49768 | Z58: KWEEN | AF58: ='MDA3'!N58 -> 0 | AG58: ='T1'!M58 -> 0 | AH58: =T3_R1!L58 -> 35743 | AI58: =T3_R2!L58 -> 46074 | AK58: =_xlfn.XLOOKUP($Y58,[1]COUNTRY_INFO!$Y$9:$Y$142,[1]COUNTRY_INFO!J$9:J$142) -> 3 | AL58: =_xlfn.XLOOKUP($Y58,[1]COUNTRY_INFO!$Y$9:$Y$142,[1]COUNTRY_INFO!K$9:K$142) -> 1 | AM58: TRUE | AN58: TRUE | AP58: 3
A59: =IF(INTRO!$E$34<>0,INTRO!$E$34,"") -> Uganda | B59: EASTERN | C59: LUUKA | D59: 297564 | E59: =IF(INTRO!$E$48="","",ROUND($D59*INTRO!$E$48,0)) -> 42254 | F59: =IF(INTRO!$E$49="","",ROUND($D59*INTRO!$E$49,0)) -> 89864 | G59: =IF(INTRO!$E$50="","",ROUND($D59*INTRO!$E$50,0)) -> 155031 | H59: 99 | I59: 0 | J59: 3 | K59: 1 | L59: =IF(INTRO!$E$38="Endemic", IF($H59>0, IF($H59=4,"Unknown", IF($H59=99,"Stopped", $D59)), 0),"Not required") -> Not required | M59: 0 | N59: =IF(INTRO!$E$42="Endemic", IF(AND($J59>1,$J59<5), IF($J59=4, "Unknown", E59+F59), 0),"Not required") -> 132118 | O59: =IF(INTRO!$E$44="Endemic", IF(AND($K59>0,$K59<5), IF($K59=4,"Unknown", IF($K59=1, $F59*0.33, IF($K59=2, $F59*0.5+$G59*0.2, SUM(F59:G59)))), 0),"Not required") -> 29655.12 | P59: 0 | Q59: 0 | R59: 1 | S59: 1 | U59: T3 (ALB/MBD) | Y59: 49773 | Z59: LUUKA | AF59: ='MDA3'!N59 -> 0 | AG59: ='T1'!M59 -> 0 | AH59: =T3_R1!L59 -> 81934 | AI59: =T3_R2!L59 -> 83192 | AK59: =_xlfn.XLOOKUP($Y59,[1]COUNTRY_INFO!$Y$9:$Y$142,[1]COUNTRY_INFO!J$9:J$142) -> 3 | AL59: =_xlfn.XLOOKUP($Y59,[1]COUNTRY_INFO!$Y$9:$Y$142,[1]COUNTRY_INFO!K$9:K$142) -> 1 | AM59: TRUE | AN59: TRUE | AP59: 3
A60: =IF(INTRO!$E$34<>0,INTRO!$E$34,"") -> Uganda | B60: EASTERN | C60: MANAFWA | D60: 207406 | E60: =IF(INTRO!$E$48="","",ROUND($D60*INTRO!$E$48,0)) -> 29452 | F60: =IF(INTRO!$E$49="","",ROUND($D60*INTRO!$E$49,0)) -> 62637 | G60: =IF(INTRO!$E$50="","",ROUND($D60*INTRO!$E$50,0)) -> 108059 | H60: 0 | I60: 99 | J60: 3 | K60: 1 | L60: =IF(INTRO!$E$38="Endemic", IF($H60>0, IF($H60=4,"Unknown", IF($H60=99,"Stopped", $D60)), 0),"Not required") -> Not required | M60: 0 | N60: =IF(INTRO!$E$42="Endemic", IF(AND($J60>1,$J60<5), IF($J60=4, "Unknown", E60+F60), 0),"Not required") -> 92089 | O60: =IF(INTRO!$E$44="Endemic", IF(AND($K60>0,$K60<5), IF($K60=4,"Unknown", IF($K60=1, $F60*0.33, IF($K60=2, $F60*0.5+$G60*0.2, SUM(F60:G60)))), 0),"Not required") -> 20670.21 | P60: 0 | Q60: 0 | R60: 1 | S60: 1 | U60: T3 (ALB/MBD) | Y60: 49777 | Z60: MANAFWA | AF60: ='MDA3'!N60 -> 0 | AG60: ='T1'!M60 -> 0 | AH60: =T3_R1!L60 -> 49992 | AI60: =T3_R2!L60 -> 122846 | AK60: =_xlfn.XLOOKUP($Y60,[1]COUNTRY_INFO!$Y$9:$Y$142,[1]COUNTRY_INFO!J$9:J$142) -> 3 | AL60: =_xlfn.XLOOKUP($Y60,[1]COUNTRY_INFO!$Y$9:$Y$142,[1]COUNTRY_INFO!K$9:K$142) -> 1 | AM60: TRUE | AN60: TRUE | AP60: 3
A61: =IF(INTRO!$E$34<>0,INTRO!$E$34,"") -> Uganda | B61: EASTERN | C61: MAYUGE | D61: 590524 | E61: =IF(INTRO!$E$48="","",ROUND($D61*INTRO!$E$48,0)) -> 83854 | F61: =IF(INTRO!$E$49="","",ROUND($D61*INTRO!$E$49,0)) -> 178338 | G61: =IF(INTRO!$E$50="","",ROUND($D61*INTRO!$E$50,0)) -> 307663 | H61: 99 | I61: 0 | J61: 3 | K61: 3 | L61: =IF(INTRO!$E$38="Endemic", IF($H61>0, IF($H61=4,"Unknown", IF($H61=99,"Stopped", $D61)), 0),"Not required") -> Not required | M61: 0 | N61: =IF(INTRO!$E$42="Endemic", IF(AND($J61>1,$J61<5), IF($J61=4, "Unknown", E61+F61), 0),"Not required") -> 262192 | O61: =IF(INTRO!$E$44="Endemic", IF(AND($K61>0,$K61<5), IF($K61=4,"Unknown", IF($K61=1, $F61*0.33, IF($K61=2, $F61*0.5+$G61*0.2, SUM(F61:G61)))), 0),"Not required") -> 486001 | P61: 0 | Q61: 0 | R61: 1 | S61: 1 | U61: T3 (ALB/MBD) | Y61: 49779 | Z61: MAYUGE | AF61: ='MDA3'!N61 -> 0 | AG61: ='T1'!M61 -> 0 | AH61: =T3_R1!L61 -> 82571 | AI61: =T3_R2!L61 -> 76536 | AK61: =_xlfn.XLOOKUP($Y61,[1]COUNTRY_INFO!$Y$9:$Y$142,[1]COUNTRY_INFO!J$9:J$142) -> 3 | AL61: =_xlfn.XLOOKUP($Y61,[1]COUNTRY_INFO!$Y$9:$Y$142,[1]COUNTRY_INFO!K$9:K$142) -> 3 | AM61: TRUE | AN61: TRUE | AP61: 3
A62: =IF(INTRO!$E$34<>0,INTRO!$E$34,"") -> Uganda | B62: EASTERN | C62: MBALE | D62: 607319 | E62: =IF(INTRO!$E$48="","",ROUND($D62*INTRO!$E$48,0)) -> 86239 | F62: =IF(INTRO!$E$49="","",ROUND($D62*INTRO!$E$49,0)) -> 183410 | G62: =IF(INTRO!$E$50="","",ROUND($D62*INTRO!$E$50,0)) -> 316413 | H62: 0 | I62: 99 | J62: 3 | K62: 1 | L62: =IF(INTRO!$E$38="Endemic", IF($H62>0, IF($H62=4,"Unknown", IF($H62=99,"Stopped", $D62)), 0),"Not required") -> Not required | M62: 0 | N62: =IF(INTRO!$E$42="Endemic", IF(AND($J62>1,$J62<5), IF($J62=4, "Unknown", E62+F62), 0),"Not required") -> 269649 | O62: =IF(INTRO!$E$44="Endemic", IF(AND($K62>0,$K62<5), IF($K62=4,"Unknown", IF($K62=1, $F62*0.33, IF($K62=2, $F62*0.5+$G62*0.2, SUM(F62:G62)))), 0),"Not required") -> 60525.3 | P62: 0 | Q62: 0 | R62: 1 | S62: 1 | U62: T3 (ALB/MBD) | Y62: 49780 | Z62: MBALE | AF62: ='MDA3'!N62 -> 0 | AG62: ='T1'!M62 -> 0 | AH62: =T3_R1!L62 -> 104785 | AI62: =T3_R2!L62 -> 112515 | AK62: =_xlfn.XLOOKUP($Y62,[1]COUNTRY_INFO!$Y$9:$Y$142,[1]COUNTRY_INFO!J$9:J$142) -> 3 | AL62: =_xlfn.XLOOKUP($Y62,[1]COUNTRY_INFO!$Y$9:$Y$142,[1]COUNTRY_INFO!K$9:K$142) -> 1 | AM62: TRUE | AN62: TRUE | AP62: 3
A63: =IF(INTRO!$E$34<>0,INTRO!$E$34,"") -> Uganda | B63: EASTERN | C63: NAMAYINGO | D63: 275100 | E63: =IF(INTRO!$E$48="","",ROUND($D63*INTRO!$E$48,0)) -> 39064 | F63: =IF(INTRO!$E$49="","",ROUND($D63*INTRO!$E$49,0)) -> 83080 | G63: =IF(INTRO!$E$50="","",ROUND($D63*INTRO!$E$50,0)) -> 143327 | H63: 99 | I63: 0 | J63: 3 | K63: 3 | L63: =IF(INTRO!$E$38="Endemic", IF($H63>0, IF($H63=4,"Unknown", IF($H63=99,"Stopped", $D63)), 0),"Not required") -> Not required | M63: 0 | N63: =IF(INTRO!$E$42="Endemic", IF(AND($J63>1,$J63<5), IF($J63=4, "Unknown", E63+F63), 0),"Not required") -> 122144 | O63: =IF(INTRO!$E$44="Endemic", IF(AND($K63>0,$K63<5), IF($K63=4,"Unknown", IF($K63=1, $F63*0.33, IF($K63=2, $F63*0.5+$G63*0.2, SUM(F63:G63)))), 0),"Not required") -> 226407 | P63: 0 | Q63: 0 | R63: 1 | S63: 1 | U63: T3 (ALB/MBD) | Y63: 49796 | Z63: NAMAYINGO | AF63: ='MDA3'!N63 -> 0 | AG63: ='T1'!M63 -> 0 | AH63: =T3_R1!L63 -> 47415 | AI63: =T3_R2!L63 -> 76827 | AK63: =_xlfn.XLOOKUP($Y63,[1]COUNTRY_INFO!$Y$9:$Y$142,[1]COUNTRY_INFO!J$9:J$142) -> 3 | AL63: =_xlfn.XLOOKUP($Y63,[1]COUNTRY_INFO!$Y$9:$Y$142,[1]COUNTRY_INFO!K$9:K$142) -> 3 | AM63: TRUE | AN63: TRUE | AP63: 3
A64: =IF(INTRO!$E$34<>0,INTRO!$E$34,"") -> Uganda | B64: EASTERN | C64: NAMISINDWA | D64: 227460 | E64: =IF(INTRO!$E$48="","",ROUND($D64*INTRO!$E$48,0)) -> 32299 | F64: =IF(INTRO!$E$49="","",ROUND($D64*INTRO!$E$49,0)) -> 68693 | G64: =IF(INTRO!$E$50="","",ROUND($D64*INTRO!$E$50,0)) -> 118507 | H64: 0 | I64: 0 | J64: 3 | K64: 1 | L64: =IF(INTRO!$E$38="Endemic", IF($H64>0, IF($H64=4,"Unknown", IF($H64=99,"Stopped", $D64)), 0),"Not required") -> Not required | M64: 0 | N64: =IF(INTRO!$E$42="Endemic", IF(AND($J64>1,$J64<5), IF($J64=4, "Unknown", E64+F64), 0),"Not required") -> 100992 | O64: =IF(INTRO!$E$44="Endemic", IF(AND($K64>0,$K64<5), IF($K64=4,"Unknown", IF($K64=1, $F64*0.33, IF($K64=2, $F64*0.5+$G64*0.2, SUM(F64:G64)))), 0),"Not required") -> 22668.69 | P64: 0 | Q64: 0 | R64: 1 | S64: 1 | U64: T3 (ALB/MBD) | Y64: 49834 | Z64: NAMISINDWA | AF64: ='MDA3'!N64 -> 0 | AG64: ='T1'!M64 -> 0 | AH64: =T3_R1!L64 -> 107144 | AI64: =T3_R2!L64 -> 72099 | AK64: =_xlfn.XLOOKUP($Y64,[1]COUNTRY_INFO!$Y$9:$Y$142,[1]COUNTRY_INFO!J$9:J$142) -> 3 | AL64: =_xlfn.XLOOKUP($Y64,[1]COUNTRY_INFO!$Y$9:$Y$142,[1]COUNTRY_INFO!K$9:K$142) -> 1 | AM64: TRUE | AN64: TRUE | AP64: 3
A65: =IF(INTRO!$E$34<>0,INTRO!$E$34,"") -> Uganda | B65: EASTERN | C65: NAMUTUMBA | D65: 312112 | E65: =IF(INTRO!$E$48="","",ROUND($D65*INTRO!$E$48,0)) -> 44320 | F65: =IF(INTRO!$E$49="","",ROUND($D65*INTRO!$E$49,0)) -> 94258 | G65: =IF(INTRO!$E$50="","",ROUND($D65*INTRO!$E$50,0)) -> 162610 | H65: 99 | I65: 0 | J65: 3 | K65: 1 | L65: =IF(INTRO!$E$38="Endemic", IF($H65>0, IF($H65=4,"Unknown", IF($H65=99,"Stopped", $D65)), 0),"Not required") -> Not required | M65: 0 | N65: =IF(INTRO!$E$42="Endemic", IF(AND($J65>1,$J65<5), IF($J65=4, "Unknown", E65+F65), 0),"Not required") -> 138578 | O65: =IF(INTRO!$E$44="Endemic", IF(AND($K65>0,$K65<5), IF($K65=4,"Unknown", IF($K65=1, $F65*0.33, IF($K65=2, $F65*0.5+$G65*0.2, SUM(F65:G65)))), 0),"Not required") -> 31105.14 | P65: 0 | Q65: 0 | R65: 1 | S65: 1 | U65: T3 (ALB/MBD) | Y65: 49792 | Z65: NAMUTUMBA | AF65: ='MDA3'!N65 -> 0 | AG65: ='T1'!M65 -> 0 | AH65: =T3_R1!L65 -> 73129 | AI65: =T3_R2!L65 -> 114108 | AK65: =_xlfn.XLOOKUP($Y65,[1]COUNTRY_INFO!$Y$9:$Y$142,[1]COUNTRY_INFO!J$9:J$142) -> 3 | AL65: =_xlfn.XLOOKUP($Y65,[1]COUNTRY_INFO!$Y$9:$Y$142,[1]COUNTRY_INFO!K$9:K$142) -> 1 | AM65: TRUE | AN65: TRUE | AP65: 3
A66: =IF(INTRO!$E$34<>0,INTRO!$E$34,"") -> Uganda | B66: EASTERN | C66: NGORA | D66: 175599 | E66: =IF(INTRO!$E$48="","",ROUND($D66*INTRO!$E$48,0)) -> 24935 | F66: =IF(INTRO!$E$49="","",ROUND($D66*INTRO!$E$49,0)) -> 53031 | G66: =IF(INTRO!$E$50="","",ROUND($D66*INTRO!$E$50,0)) -> 91487 | H66: 99 | I66: 0 | J66: 3 | K66: 1 | L66: =IF(INTRO!$E$38="Endemic", IF($H66>0, IF($H66=4,"Unknown", IF($H66=99,"Stopped", $D66)), 0),"Not required") -> Not required | M66: 0 | N66: =IF(INTRO!$E$42="Endemic", IF(AND($J66>1,$J66<5), IF($J66=4, "Unknown", E66+F66), 0),"Not required") -> 77966 | O66: =IF(INTRO!$E$44="Endemic", IF(AND($K66>0,$K66<5), IF($K66=4,"Unknown", IF($K66=1, $F66*0.33, IF($K66=2, $F66*0.5+$G66*0.2, SUM(F66:G66)))), 0),"Not required") -> 17500.23 | P66: 0 | Q66: 0 | R66: 1 | S66: 1 | U66: T3 (ALB/MBD) | Y66: 49798 | Z66: NGORA | AF66: ='MDA3'!N66 -> 0 | AG66: ='T1'!M66 -> 0 | AH66: =T3_R1!L66 -> 28962 | AI66: =T3_R2!L66 -> 43748 | AK66: =_xlfn.XLOOKUP($Y66,[1]COUNTRY_INFO!$Y$9:$Y$142,[1]COUNTRY_INFO!J$9:J$142) -> 3 | AL66: =_xlfn.XLOOKUP($Y66,[1]COUNTRY_INFO!$Y$9:$Y$142,[1]COUNTRY_INFO!K$9:K$142) -> 1 | AM66: TRUE | AN66: TRUE | AP66: 3
A67: =IF(INTRO!$E$34<>0,INTRO!$E$34,"") -> Uganda | B67: EASTERN | C67: PALLISA | D67: 297979 | E67: =IF(INTRO!$E$48="","",ROUND($D67*INTRO!$E$48,0)) -> 42313 | F67: =IF(INTRO!$E$49="","",ROUND($D67*INTRO!$E$49,0)) -> 89990 | G67: =IF(INTRO!$E$50="","",ROUND($D67*INTRO!$E$50,0)) -> 155247 | H67: 99 | I67: 0 | J67: 3 | K67: 1 | L67: =IF(INTRO!$E$38="Endemic", IF($H67>0, IF($H67=4,"Unknown", IF($H67=99,"Stopped", $D67)), 0),"Not required") -> Not required | M67: 0 | N67: =IF(INTRO!$E$42="Endemic", IF(AND($J67>1,$J67<5), IF($J67=4, "Unknown", E67+F67), 0),"Not required") -> 132303 | O67: =IF(INTRO!$E$44="Endemic", IF(AND($K67>0,$K67<5), IF($K67=4,"Unknown", IF($K67=1, $F67*0.33, IF($K67=2, $F67*0.5+$G67*0.2, SUM(F67:G67)))), 0),"Not required") -> 29696.7 | P67: 0 | Q67: 0 | R67: 1 | S67: 1 | U67: T3 (ALB/MBD) | Y67: 49804 | Z67: PALLISA | AF67: ='MDA3'!N67 -> 0 | AG67: ='T1'!M67 -> 0 | AH67: =T3_R1!L67 -> 77217 | AI67: =T3_R2!L67 -> 68606 | AK67: =_xlfn.XLOOKUP($Y67,[1]COUNTRY_INFO!$Y$9:$Y$142,[1]COUNTRY_INFO!J$9:J$142) -> 3 | AL67: =_xlfn.XLOOKUP($Y67,[1]COUNTRY_INFO!$Y$9:$Y$142,[1]COUNTRY_INFO!K$9:K$142) -> 1 | AM67: TRUE | AN67: TRUE | AP67: 3
A68: =IF(INTRO!$E$34<>0,INTRO!$E$34,"") -> Uganda | B68: EASTERN | C68: SERERE | D68: 349544 | E68: =IF(INTRO!$E$48="","",ROUND($D68*INTRO!$E$48,0)) -> 49635 | F68: =IF(INTRO!$E$49="","",ROUND($D68*INTRO!$E$49,0)) -> 105562 | G68: =IF(INTRO!$E$50="","",ROUND($D68*INTRO!$E$50,0)) -> 182112 | H68: 99 | I68: 0 | J68: 3 | K68: 3 | L68: =IF(INTRO!$E$38="Endemic", IF($H68>0, IF($H68=4,"Unknown", IF($H68=99,"Stopped", $D68)), 0),"Not required") -> Not required | M68: 0 | N68: =IF(INTRO!$E$42="Endemic", IF(AND($J68>1,$J68<5), IF($J68=4, "Unknown", E68+F68), 0),"Not required") -> 155197 | O68: =IF(INTRO!$E$44="Endemic", IF(AND($K68>0,$K68<5), IF($K68=4,"Unknown", IF($K68=1, $F68*0.33, IF($K68=2, $F68*0.5+$G68*0.2, SUM(F68:G68)))), 0),"Not required") -> 287674 | P68: 0 | Q68: 0 | R68: 1 | S68: 1 | U68: T3 (ALB/MBD) | Y68: 49812 | Z68: SERERE | AF68: ='MDA3'!N68 -> 0 | AG68: ='T1'!M68 -> 0 | AH68: =T3_R1!L68 -> 73251 | AI68: =T3_R2!L68 -> 119070 | AK68: =_xlfn.XLOOKUP($Y68,[1]COUNTRY_INFO!$Y$9:$Y$142,[1]COUNTRY_INFO!J$9:J$142) -> 3 | AL68: =_xlfn.XLOOKUP($Y68,[1]COUNTRY_INFO!$Y$9:$Y$142,[1]COUNTRY_INFO!K$9:K$142) -> 3 | AM68: TRUE | AN68: TRUE | AP68: 3
A69: =IF(INTRO!$E$34<>0,INTRO!$E$34,"") -> Uganda | B69: EASTERN | C69: SIRONKO | D69: 303957 | E69: =IF(INTRO!$E$48="","",ROUND($D69*INTRO!$E$48,0)) -> 43162 | F69: =IF(INTRO!$E$49="","",ROUND($D69*INTRO!$E$49,0)) -> 91795 | G69: =IF(INTRO!$E$50="","",ROUND($D69*INTRO!$E$50,0)) -> 158362 | H69: 0 | I69: 99 | J69: 3 | K69: 1 | L69: =IF(INTRO!$E$38="Endemic", IF($H69>0, IF($H69=4,"Unknown", IF($H69=99,"Stopped", $D69)), 0),"Not required") -> Not required | M69: 0 | N69: =IF(INTRO!$E$42="Endemic", IF(AND($J69>1,$J69<5), IF($J69=4, "Unknown", E69+F69), 0),"Not required") -> 134957 | O69: =IF(INTRO!$E$44="Endemic", IF(AND($K69>0,$K69<5), IF($K69=4,"Unknown", IF($K69=1, $F69*0.33, IF($K69=2, $F69*0.5+$G69*0.2, SUM(F69:G69)))), 0),"Not required") -> 30292.35 | P69: 0 | Q69: 0 | R69: 1 | S69: 1 | U69: T3 (ALB/MBD) | Y69: 49809 | Z69: SIRONKO | AF69: ='MDA3'!N69 -> 0 | AG69: ='T1'!M69 -> 0 | AH69: =T3_R1!L69 -> 79769 | AI69: =T3_R2!L69 -> 75226 | AK69: =_xlfn.XLOOKUP($Y69,[1]COUNTRY_INFO!$Y$9:$Y$142,[1]COUNTRY_INFO!J$9:J$142) -> 3 | AL69: =_xlfn.XLOOKUP($Y69,[1]COUNTRY_INFO!$Y$9:$Y$142,[1]COUNTRY_INFO!K$9:K$142) -> 1 | AM69: TRUE | AN69: TRUE | AP69: 3
A70: =IF(INTRO!$E$34<>0,INTRO!$E$34,"") -> Uganda | B70: EASTERN | C70: SOROTI | D70: 366208 | E70: =IF(INTRO!$E$48="","",ROUND($D70*INTRO!$E$48,0)) -> 52002 | F70: =IF(INTRO!$E$49="","",ROUND($D70*INTRO!$E$49,0)) -> 110595 | G70: =IF(INTRO!$E$50="","",ROUND($D70*INTRO!$E$50,0)) -> 190794 | H70: 99 | I70: 0 | J70: 3 | K70: 1 | L70: =IF(INTRO!$E$38="Endemic", IF($H70>0, IF($H70=4,"Unknown", IF($H70=99,"Stopped", $D70)), 0),"Not required") -> Not required | M70: 0 | N70: =IF(INTRO!$E$42="Endemic", IF(AND($J70>1,$J70<5), IF($J70=4, "Unknown", E70+F70), 0),"Not required") -> 162597 | O70: =IF(INTRO!$E$44="Endemic", IF(AND($K70>0,$K70<5), IF($K70=4,"Unknown", IF($K70=1, $F70*0.33, IF($K70=2, $F70*0.5+$G70*0.2, SUM(F70:G70)))), 0),"Not required") -> 36496.35 | P70: 0 | Q70: 0 | R70: 1 | S70: 1 | U70: T3 (ALB/MBD) | Y70: 49810 | Z70: SOROTI | AF70: ='MDA3'!N70 -> 0 | AG70: ='T1'!M70 -> 0 | AH70: =T3_R1!L70 -> 122731 | AI70: =T3_R2!L70 -> 108847 | AK70: =_xlfn.XLOOKUP($Y70,[1]COUNTRY_INFO!$Y$9:$Y$142,[1]COUNTRY_INFO!J$9:J$142) -> 3 | AL70: =_xlfn.XLOOKUP($Y70,[1]COUNTRY_INFO!$Y$9:$Y$142,[1]COUNTRY_INFO!K$9:K$142) -> 1 | AM70: TRUE | AN70: TRUE | AP70: 3
A71: =IF(INTRO!$E$34<>0,INTRO!$E$34,"") -> Uganda | B71: EASTERN | C71: TORORO | D71: 648704 | E71: =IF(INTRO!$E$48="","",ROUND($D71*INTRO!$E$48,0)) -> 92116 | F71: =IF(INTRO!$E$49="","",ROUND($D71*INTRO!$E$49,0)) -> 195909 | G71: =IF(INTRO!$E$50="","",ROUND($D71*INTRO!$E$50,0)) -> 337975 | H71: 99 | I71: 0 | J71: 3 | K71: 1 | L71: =IF(INTRO!$E$38="Endemic", IF($H71>0, IF($H71=4,"Unknown", IF($H71=99,"Stopped", $D71)), 0),"Not required") -> Not required | M71: 0 | N71: =IF(INTRO!$E$42="Endemic", IF(AND($J71>1,$J71<5), IF($J71=4, "Unknown", E71+F71), 0),"Not required") -> 288025 | O71: =IF(INTRO!$E$44="Endemic", IF(AND($K71>0,$K71<5), IF($K71=4,"Unknown", IF($K71=1, $F71*0.33, IF($K71=2, $F71*0.5+$G71*0.2, SUM(F71:G71)))), 0),"Not required") -> 64649.97 | P71: 0 | Q71: 0 | R71: 1 | S71: 1 | U71: T3 (ALB/MBD) | Y71: 49814 | Z71: TORORO | AF71: ='MDA3'!N71 -> 0 | AG71: ='T1'!M71 -> 0 | AH71: =T3_R1!L71 -> 152545 | AI71: =T3_R2!L71 -> 142627 | AK71: =_xlfn.XLOOKUP($Y71,[1]COUNTRY_INFO!$Y$9:$Y$142,[1]COUNTRY_INFO!J$9:J$142) -> 3 | AL71: =_xlfn.XLOOKUP($Y71,[1]COUNTRY_INFO!$Y$9:$Y$142,[1]COUNTRY_INFO!K$9:K$142) -> 1 | AM71: TRUE | AN71: TRUE | AP71: 3
A72: =IF(INTRO!$E$34<>0,INTRO!$E$34,"") -> Uganda | B72: NORTHERN | C72: ABIM | D72: 134379 | E72: =IF(INTRO!$E$48="","",ROUND($D72*INTRO!$E$48,0)) -> 19082 | F72: =IF(INTRO!$E$49="","",ROUND($D72*INTRO!$E$49,0)) -> 40582 | G72: =IF(INTRO!$E$50="","",ROUND($D72*INTRO!$E$50,0)) -> 70011 | H72: 99 | I72: 0 | J72: 3 | K72: 0 | L72: =IF(INTRO!$E$38="Endemic", IF($H72>0, IF($H72=4,"Unknown", IF($H72=99,"Stopped", $D72)), 0),"Not required") -> Not required | M72: 0 | N72: =IF(INTRO!$E$42="Endemic", IF(AND($J72>1,$J72<5), IF($J72=4, "Unknown", E72+F72), 0),"Not required") -> 59664 | O72: =IF(INTRO!$E$44="Endemic", IF(AND($K72>0,$K72<5), IF($K72=4,"Unknown", IF($K72=1, $F72*0.33, IF($K72=2, $F72*0.5+$G72*0.2, SUM(F72:G72)))), 0),"Not required") -> 0 | P72: 0 | Q72: 0 | R72: 1 | S72: 0 | U72: T3 (ALB/MBD) | Y72: 49706 | Z72: ABIM | AF72: ='MDA3'!N72 -> 0 | AG72: ='T1'!M72 -> 0 | AH72: =T3_R1!L72 -> 59017 | AI72: =T3_R2!L72 -> 66951 | AK72: =_xlfn.XLOOKUP($Y72,[1]COUNTRY_INFO!$Y$9:$Y$142,[1]COUNTRY_INFO!J$9:J$142) -> 3 | AL72: =_xlfn.XLOOKUP($Y72,[1]COUNTRY_INFO!$Y$9:$Y$142,[1]COUNTRY_INFO!K$9:K$142) -> 0 | AM72: TRUE | AN72: TRUE | AP72: 3
A73: =IF(INTRO!$E$34<>0,INTRO!$E$34,"") -> Uganda | B73: NORTHERN | C73: ADJUMANI | D73: 286915 | E73: =IF(INTRO!$E$48="","",ROUND($D73*INTRO!$E$48,0)) -> 40742 | F73: =IF(INTRO!$E$49="","",ROUND($D73*INTRO!$E$49,0)) -> 86648 | G73: =IF(INTRO!$E$50="","",ROUND($D73*INTRO!$E$50,0)) -> 149483 | H73: 99 | I73: 1 | J73: 3 | K73: 3 | L73: =IF(INTRO!$E$38="Endemic", IF($H73>0, IF($H73=4,"Unknown", IF($H73=99,"Stopped", $D73)), 0),"Not required") -> Not required | M73: 236131 | N73: =IF(INTRO!$E$42="Endemic", IF(AND($J73>1,$J73<5), IF($J73=4, "Unknown", E73+F73), 0),"Not required") -> 127390 | O73: =IF(INTRO!$E$44="Endemic", IF(AND($K73>0,$K73<5), IF($K73=4,"Unknown", IF($K73=1, $F73*0.33, IF($K73=2, $F73*0.5+$G73*0.2, SUM(F73:G73)))), 0),"Not required") -> 236131 | P73: 0 | Q73: 2 | R73: 1 | S73: 1 | T73: MDA3 (IVM) | U73: T3 (ALB/MBD) | Y73: 49707 | Z73: ADJUMANI | AF73: ='MDA3'!N73 -> 27762 | AG73: ='T1'!M73 -> 0 | AH73: =T3_R1!L73 -> 107484 | AI73: =T3_R2!L73 -> 124137 | AK73: =_xlfn.XLOOKUP($Y73,[1]COUNTRY_INFO!$Y$9:$Y$142,[1]COUNTRY_INFO!J$9:J$142) -> 3 | AL73: =_xlfn.XLOOKUP($Y73,[1]COUNTRY_INFO!$Y$9:$Y$142,[1]COUNTRY_INFO!K$9:K$142) -> 3 | AM73: TRUE | AN73: TRUE | AP73: 3
A74: =IF(INTRO!$E$34<>0,INTRO!$E$34,"") -> Uganda | B74: NORTHERN | C74: AGAGO | D74: 280350 | E74: =IF(INTRO!$E$48="","",ROUND($D74*INTRO!$E$48,0)) -> 39810 | F74: =IF(INTRO!$E$49="","",ROUND($D74*INTRO!$E$49,0)) -> 84666 | G74: =IF(INTRO!$E$50="","",ROUND($D74*INTRO!$E$50,0)) -> 146062 | H74: 99 | I74: 0 | J74: 3 | K74: 3 | L74: =IF(INTRO!$E$38="Endemic", IF($H74>0, IF($H74=4,"Unknown", IF($H74=99,"Stopped", $D74)), 0),"Not required") -> Not required | M74: 0 | N74: =IF(INTRO!$E$42="Endemic", IF(AND($J74>1,$J74<5), IF($J74=4, "Unknown", E74+F74), 0),"Not required") -> 124476 | O74: =IF(INTRO!$E$44="Endemic", IF(AND($K74>0,$K74<5), IF($K74=4,"Unknown", IF($K74=1, $F74*0.33, IF($K74=2, $F74*0.5+$G74*0.2, SUM(F74:G74)))), 0),"Not required") -> 230728 | P74: 0 | Q74: 0 | R74: 1 | S74: 1 | U74: T3 (ALB/MBD) | Y74: 49713 | Z74: AGAGO | AF74: ='MDA3'!N74 -> 0 | AG74: ='T1'!M74 -> 0 | AH74: =T3_R1!L74 -> 69346 | AI74: =T3_R2!L74 -> 74121 | AK74: =_xlfn.XLOOKUP($Y74,[1]COUNTRY_INFO!$Y$9:$Y$142,[1]COUNTRY_INFO!J$9:J$142) -> 3 | AL74: =_xlfn.XLOOKUP($Y74,[1]COUNTRY_INFO!$Y$9:$Y$142,[1]COUNTRY_INFO!K$9:K$142) -> 3 | AM74: =AK74=J74 -> TRUE | AN74: =AL74=K74 -> TRUE | AP74: 3
A75: =IF(INTRO!$E$34<>0,INTRO!$E$34,"") -> Uganda | B75: NORTHERN | C75: ALEBTONG | D75: 277686 | E75: =IF(INTRO!$E$48="","",ROUND($D75*INTRO!$E$48,0)) -> 39431 | F75: =IF(INTRO!$E$49="","",ROUND($D75*INTRO!$E$49,0)) -> 83861 | G75: =IF(INTRO!$E$50="","",ROUND($D75*INTRO!$E$50,0)) -> 144674 | H75: 99 | I75: 0 | J75: 3 | K75: 2 | L75: =IF(INTRO!$E$38="Endemic", IF($H75>0, IF($H75=4,"Unknown", IF($H75=99,"Stopped", $D75)), 0),"Not required") -> Not required | M75: 0 | N75: =IF(INTRO!$E$42="Endemic", IF(AND($J75>1,$J75<5), IF($J75=4, "Unknown", E75+F75), 0),"Not required") -> 123292 | O75: =IF(INTRO!$E$44="Endemic", IF(AND($K75>0,$K75<5), IF($K75=4,"Unknown", IF($K75=1, $F75*0.33, IF($K75=2, $F75*0.5+$G75*0.2, SUM(F75:G75)))), 0),"Not required") -> 70865.3 | P75: 0 | Q75: 0 | R75: 1 | S75: 1 | U75: T3 (ALB/MBD) | Y75: 49714 | Z75: ALEBTONG | AF75: ='MDA3'!N75 -> 0 | AG75: ='T1'!M75 -> 0 | AH75: =T3_R1!L75 -> 51535 | AI75: =T3_R2!L75 -> 64493 | AK75: =_xlfn.XLOOKUP($Y75,[1]COUNTRY_INFO!$Y$9:$Y$142,[1]COUNTRY_INFO!J$9:J$142) -> 3 | AL75: =_xlfn.XLOOKUP($Y75,[1]COUNTRY_INFO!$Y$9:$Y$142,[1]COUNTRY_INFO!K$9:K$142) -> 2 | AM75: TRUE | AN75: TRUE | AP75: 3
A76: =IF(INTRO!$E$34<>0,INTRO!$E$34,"") -> Uganda | B76: NORTHERN | C76: AMOLATAR | D76: 181043 | E76: =IF(INTRO!$E$48="","",ROUND($D76*INTRO!$E$48,0)) -> 25708 | F76: =IF(INTRO!$E$49="","",ROUND($D76*INTRO!$E$49,0)) -> 54675 | G76: =IF(INTRO!$E$50="","",ROUND($D76*INTRO!$E$50,0)) -> 94323 | H76: 99 | I76: 0 | J76: 3 | K76: 3 | L76: =IF(INTRO!$E$38="Endemic", IF($H76>0, IF($H76=4,"Unknown", IF($H76=99,"Stopped", $D76)), 0),"Not required") -> Not required | M76: 0 | N76: =IF(INTRO!$E$42="Endemic", IF(AND($J76>1,$J76<5), IF($J76=4, "Unknown", E76+F76), 0),"Not required") -> 80383 | O76: =IF(INTRO!$E$44="Endemic", IF(AND($K76>0,$K76<5), IF($K76=4,"Unknown", IF($K76=1, $F76*0.33, IF($K76=2, $F76*0.5+$G76*0.2, SUM(F76:G76)))), 0),"Not required") -> 148998 | P76: 0 | Q76: 0 | R76: 1 | S76: 1 | U76: T3 (ALB/MBD) | Y76: 49708 | Z76: AMOLATAR | AF76: ='MDA3'!N76 -> 0 | AG76: ='T1'!M76 -> 0 | AH76: =T3_R1!L76 -> 27107 | AI76: =T3_R2!L76 -> 22298 | AK76: =_xlfn.XLOOKUP($Y76,[1]COUNTRY_INFO!$Y$9:$Y$142,[1]COUNTRY_INFO!J$9:J$142) -> 3 | AL76: =_xlfn.XLOOKUP($Y76,[1]COUNTRY_INFO!$Y$9:$Y$142,[1]COUNTRY_INFO!K$9:K$142) -> 3 | AM76: TRUE | AN76: TRUE | AP76: 3
A77: =IF(INTRO!$E$34<>0,INTRO!$E$34,"") -> Uganda | B77: NORTHERN | C77: AMUDAT | D77: 137732 | E77: =IF(INTRO!$E$48="","",ROUND($D77*INTRO!$E$48,0)) -> 19558 | F77: =IF(INTRO!$E$49="","",ROUND($D77*INTRO!$E$49,0)) -> 41595 | G77: =IF(INTRO!$E$50="","",ROUND($D77*INTRO!$E$50,0)) -> 71758 | H77: 99 | I77: 0 | J77: 3 | K77: 0 | L77: =IF(INTRO!$E$38="Endemic", IF($H77>0, IF($H77=4,"Unknown", IF($H77=99,"Stopped", $D77)), 0),"Not required") -> Not required | M77: 0 | N77: =IF(INTRO!$E$42="Endemic", IF(AND($J77>1,$J77<5), IF($J77=4, "Unknown", E77+F77), 0),"Not required") -> 61153 | O77: =IF(INTRO!$E$44="Endemic", IF(AND($K77>0,$K77<5), IF($K77=4,"Unknown", IF($K77=1, $F77*0.33, IF($K77=2, $F77*0.5+$G77*0.2, SUM(F77:G77)))), 0),"Not required") -> 0 | P77: 0 | Q77: 0 | R77: 1 | S77: 0 | U77: T3 (ALB/MBD) | Y77: 49715 | Z77: AMUDAT | AF77: ='MDA3'!N77 -> 0 | AG77: ='T1'!M77 -> 0 | AH77: =T3_R1!L77 -> 58341 | AI77: =T3_R2!L77 -> 47058 | AK77: =_xlfn.XLOOKUP($Y77,[1]COUNTRY_INFO!$Y$9:$Y$142,[1]COUNTRY_INFO!J$9:J$142) -> 3 | AL77: =_xlfn.XLOOKUP($Y77,[1]COUNTRY_INFO!$Y$9:$Y$142,[1]COUNTRY_INFO!K$9:K$142) -> 0 | AM77: TRUE | AN77: TRUE | AP77: 3
A78: =IF(INTRO!$E$34<>0,INTRO!$E$34,"") -> Uganda | B78: NORTHERN | C78: AMURU | D78: 234788 | E78: =IF(INTRO!$E$48="","",ROUND($D78*INTRO!$E$48,0)) -> 33340 | F78: =IF(INTRO!$E$49="","",ROUND($D78*INTRO!$E$49,0)) -> 70906 | G78: =IF(INTRO!$E$50="","",ROUND($D78*INTRO!$E$50,0)) -> 122325 | H78: 99 | I78: 1 | J78: 3 | K78: 3 | L78: =IF(INTRO!$E$38="Endemic", IF($H78>0, IF($H78=4,"Unknown", IF($H78=99,"Stopped", $D78)), 0),"Not required") -> Not required | M78: 193231 | N78: =IF(INTRO!$E$42="Endemic", IF(AND($J78>1,$J78<5), IF($J78=4, "Unknown", E78+F78), 0),"Not required") -> 104246 | O78: =IF(INTRO!$E$44="Endemic", IF(AND($K78>0,$K78<5), IF($K78=4,"Unknown", IF($K78=1, $F78*0.33, IF($K78=2, $F78*0.5+$G78*0.2, SUM(F78:G78)))), 0),"Not required") -> 193231 | P78: 0 | Q78: 2 | R78: 1 | S78: 1 | T78: MDA3 (IVM) | U78: T3 (ALB/MBD) | Y78: 49710 | Z78: AMURU | AF78: ='MDA3'!N78 -> 216646 | AG78: ='T1'!M78 -> 0 | AH78: =T3_R1!L78 -> 12484 | AI78: =T3_R2!L78 -> 12939 | AK78: =_xlfn.XLOOKUP($Y78,[1]COUNTRY_INFO!$Y$9:$Y$142,[1]COUNTRY_INFO!J$9:J$142) -> 1 | AL78: =_xlfn.XLOOKUP($Y78,[1]COUNTRY_INFO!$Y$9:$Y$142,[1]COUNTRY_INFO!K$9:K$142) -> 3 | AM78: FALSE | AN78: TRUE | AP78: 3
A79: =IF(INTRO!$E$34<>0,INTRO!$E$34,"") -> Uganda | B79: NORTHERN | C79: APAC | D79: 228464 | E79: =IF(INTRO!$E$48="","",ROUND($D79*INTRO!$E$48,0)) -> 32442 | F79: =IF(INTRO!$E$49="","",ROUND($D79*INTRO!$E$49,0)) -> 68996 | G79: =IF(INTRO!$E$50="","",ROUND($D79*INTRO!$E$50,0)) -> 119030 | H79: 99 | I79: 0 | J79: 3 | K79: 3 | L79: =IF(INTRO!$E$38="Endemic", IF($H79>0, IF($H79=4,"Unknown", IF($H79=99,"Stopped", $D79)), 0),"Not required") -> Not required | M79: 0 | N79: =IF(INTRO!$E$42="Endemic", IF(AND($J79>1,$J79<5), IF($J79=4, "Unknown", E79+F79), 0),"Not required") -> 101438 | O79: =IF(INTRO!$E$44="Endemic", IF(AND($K79>0,$K79<5), IF($K79=4,"Unknown", IF($K79=1, $F79*0.33, IF($K79=2, $F79*0.5+$G79*0.2, SUM(F79:G79)))), 0),"Not required") -> 188026 | P79: 0 | Q79: 0 | R79: 1 | S79: 1 | U79: T3 (ALB/MBD) | Y79: 49711 | Z79: APAC | AF79: ='MDA3'!N79 -> 0 | AG79: ='T1'!M79 -> 0 | AH79: =T3_R1!L79 -> 72930 | AI79: =T3_R2!L79 -> 59338 | AK79: =_xlfn.XLOOKUP($Y79,[1]COUNTRY_INFO!$Y$9:$Y$142,[1]COUNTRY_INFO!J$9:J$142) -> 3 | AL79: =_xlfn.XLOOKUP($Y79,[1]COUNTRY_INFO!$Y$9:$Y$142,[1]COUNTRY_INFO!K$9:K$142) -> 3 | AM79: TRUE | AN79: TRUE | AP79: 3
A80: =IF(INTRO!$E$34<>0,INTRO!$E$34,"") -> Uganda | B80: NORTHERN | C80: ARUA | D80: 796745 | E80: =IF(INTRO!$E$48="","",ROUND($D80*INTRO!$E$48,0)) -> 113138 | F80: =IF(INTRO!$E$49="","",ROUND($D80*INTRO!$E$49,0)) -> 240617 | G80: =IF(INTRO!$E$50="","",ROUND($D80*INTRO!$E$50,0)) -> 415104 | H80: 99 | I80: 99 | J80: 3 | K80: 2 | L80: =IF(INTRO!$E$38="Endemic", IF($H80>0, IF($H80=4,"Unknown", IF($H80=99,"Stopped", $D80)), 0),"Not required") -> Not required | M80: 0 | N80: =IF(INTRO!$E$42="Endemic", IF(AND($J80>1,$J80<5), IF($J80=4, "Unknown", E80+F80), 0),"Not required") -> 353755 | O80: =IF(INTRO!$E$44="Endemic", IF(AND($K80>0,$K80<5), IF($K80=4,"Unknown", IF($K80=1, $F80*0.33, IF($K80=2, $F80*0.5+$G80*0.2, SUM(F80:G80)))), 0),"Not required") -> 203329.3 | P80: 0 | Q80: 0 | R80: 1 | S80: 1 | U80: T3 (ALB/MBD) | Y80: 49712 | Z80: ARUA | AF80: ='MDA3'!N80 -> 0 | AG80: ='T1'!M80 -> 0 | AH80: =T3_R1!L80 -> 189675 | AI80: =T3_R2!L80 -> 162504 | AK80: =_xlfn.XLOOKUP($Y80,[1]COUNTRY_INFO!$Y$9:$Y$142,[1]COUNTRY_INFO!J$9:J$142) -> 1 | AL80: =_xlfn.XLOOKUP($Y80,[1]COUNTRY_INFO!$Y$9:$Y$142,[1]COUNTRY_INFO!K$9:K$142) -> 2 | AM80: FALSE | AN80: TRUE | AP80: 3
A81: =IF(INTRO!$E$34<>0,INTRO!$E$34,"") -> Uganda | B81: NORTHERN | C81: DOKOLO | D81: 225005 | E81: =IF(INTRO!$E$48="","",ROUND($D81*INTRO!$E$48,0)) -> 31951 | F81: =IF(INTRO!$E$49="","",ROUND($D81*INTRO!$E$49,0)) -> 67952 | G81: =IF(INTRO!$E$50="","",ROUND($D81*INTRO!$E$50,0)) -> 117228 | H81: 99 | I81: 0 | J81: 3 | K81: 1 | L81: =IF(INTRO!$E$38="Endemic", IF($H81>0, IF($H81=4,"Unknown", IF($H81=99,"Stopped", $D81)), 0),"Not required") -> Not required | M81: 0 | N81: =IF(INTRO!$E$42="Endemic", IF(AND($J81>1,$J81<5), IF($J81=4, "Unknown", E81+F81), 0),"Not required") -> 99903 | O81: =IF(INTRO!$E$44="Endemic", IF(AND($K81>0,$K81<5), IF($K81=4,"Unknown", IF($K81=1, $F81*0.33, IF($K81=2, $F81*0.5+$G81*0.2, SUM(F81:G81)))), 0),"Not required") -> 22424.16 | P81: 0 | Q81: 0 | R81: 1 | S81: 1 | U81: T3 (ALB/MBD) | Y81: 49733 | Z81: DOKOLO | AF81: ='MDA3'!N81 -> 0 | AG81: ='T1'!M81 -> 0 | AH81: =T3_R1!L81 -> 61593 | AI81: =T3_R2!L81 -> 57278 | AK81: =_xlfn.XLOOKUP($Y81,[1]COUNTRY_INFO!$Y$9:$Y$142,[1]COUNTRY_INFO!J$9:J$142) -> 3 | AL81: =_xlfn.XLOOKUP($Y81,[1]COUNTRY_INFO!$Y$9:$Y$142,[1]COUNTRY_INFO!K$9:K$142) -> 1 | AM81: TRUE | AN81: TRUE | AP81: 3
A82: =IF(INTRO!$E$34<>0,INTRO!$E$34,"") -> Uganda | B82: NORTHERN | C82: GULU | D82: 385868 | E82: =IF(INTRO!$E$48="","",ROUND($D82*INTRO!$E$48,0)) -> 54793 | F82: =IF(INTRO!$E$49="","",ROUND($D82*INTRO!$E$49,0)) -> 116532 | G82: =IF(INTRO!$E$50="","",ROUND($D82*INTRO!$E$50,0)) -> 201037 | H82: 99 | I82: 1 | J82: 3 | K82: 2 | L82: =IF(INTRO!$E$38="Endemic", IF($H82>0, IF($H82=4,"Unknown", IF($H82=99,"Stopped", $D82)), 0),"Not required") -> Not required | M82: 195788 | N82: =IF(INTRO!$E$42="Endemic", IF(AND($J82>1,$J82<5), IF($J82=4, "Unknown", E82+F82), 0),"Not required") -> 171325 | O82: =IF(INTRO!$E$44="Endemic", IF(AND($K82>0,$K82<5), IF($K82=4,"Unknown", IF($K82=1, $F82*0.33, IF($K82=2, $F82*0.5+$G82*0.2, SUM(F82:G82)))), 0),"Not required") -> 98473.4 | P82: 0 | Q82: 2 | R82: 1 | S82: 1 | T82: MDA3 (IVM) | U82: T3 (ALB/MBD) | Y82: 49734 | Z82: GULU | AF82: ='MDA3'!N82 -> 128740 | AG82: ='T1'!M82 -> 0 | AH82: =T3_R1!L82 -> 63201 | AI82: =T3_R2!L82 -> 57453 | AK82: =_xlfn.XLOOKUP($Y82,[1]COUNTRY_INFO!$Y$9:$Y$142,[1]COUNTRY_INFO!J$9:J$142) -> 1 | AL82: =_xlfn.XLOOKUP($Y82,[1]COUNTRY_INFO!$Y$9:$Y$142,[1]COUNTRY_INFO!K$9:K$142) -> 2 | AM82: FALSE | AN82: TRUE | AP82: 3
A83: =IF(INTRO!$E$34<>0,INTRO!$E$34,"") -> Uganda | B83: NORTHERN | C83: KAABONG | D83: 136121 | E83: =IF(INTRO!$E$48="","",ROUND($D83*INTRO!$E$48,0)) -> 19329 | F83: =IF(INTRO!$E$49="","",ROUND($D83*INTRO!$E$49,0)) -> 41109 | G83: =IF(INTRO!$E$50="","",ROUND($D83*INTRO!$E$50,0)) -> 70919 | H83: 99 | I83: 0 | J83: 3 | K83: 0 | L83: =IF(INTRO!$E$38="Endemic", IF($H83>0, IF($H83=4,"Unknown", IF($H83=99,"Stopped", $D83)), 0),"Not required") -> Not required | M83: 0 | N83: =IF(INTRO!$E$42="Endemic", IF(AND($J83>1,$J83<5), IF($J83=4, "Unknown", E83+F83), 0),"Not required") -> 60438 | O83: =IF(INTRO!$E$44="Endemic", IF(AND($K83>0,$K83<5), IF($K83=4,"Unknown", IF($K83=1, $F83*0.33, IF($K83=2, $F83*0.5+$G83*0.2, SUM(F83:G83)))), 0),"Not required") -> 0 | P83: 0 | Q83: 0 | R83: 1 | S83: 0 | U83: T3 (ALB/MBD) | Y83: 49744 | Z83: KAABONG | AF83: ='MDA3'!N83 -> 0 | AG83: ='T1'!M83 -> 0 | AH83: =T3_R1!L83 -> 47118 | AI83: =T3_R2!L83 -> 47940 | AK83: =_xlfn.XLOOKUP($Y83,[1]COUNTRY_INFO!$Y$9:$Y$142,[1]COUNTRY_INFO!J$9:J$142) -> 3 | AL83: =_xlfn.XLOOKUP($Y83,[1]COUNTRY_INFO!$Y$9:$Y$142,[1]COUNTRY_INFO!K$9:K$142) -> 0 | AM83: TRUE | AN83: TRUE | AP83: 3
A84: =IF(INTRO!$E$34<>0,INTRO!$E$34,"") -> Uganda | B84: NORTHERN | C84: KARENGA | D84: 72489 | E84: =IF(INTRO!$E$48="","",ROUND($D84*INTRO!$E$48,0)) -> 10293 | F84: =IF(INTRO!$E$49="","",ROUND($D84*INTRO!$E$49,0)) -> 21892 | G84: =IF(INTRO!$E$50="","",ROUND($D84*INTRO!$E$50,0)) -> 37767 | H84: 99 | I84: 0 | J84: 3 | K84: 0 | L84: =IF(INTRO!$E$38="Endemic", IF($H84>0, IF($H84=4,"Unknown", IF($H84=99,"Stopped", $D84)), 0),"Not required") -> Not required | M84: 0 | N84: =IF(INTRO!$E$42="Endemic", IF(AND($J84>1,$J84<5), IF($J84=4, "Unknown", E84+F84), 0),"Not required") -> 32185 | O84: =IF(INTRO!$E$44="Endemic", IF(AND($K84>0,$K84<5), IF($K84=4,"Unknown", IF($K84=1, $F84*0.33, IF($K84=2, $F84*0.5+$G84*0.2, SUM(F84:G84)))), 0),"Not required") -> 0 | P84: 0 | Q84: 0 | R84: 1 | S84: 0 | U84: T3 (ALB/MBD) | Y84: 49837 | Z84: KARENGA | AF84: ='MDA3'!N84 -> 0 | AG84: ='T1'!M84 -> 0 | AH84: =T3_R1!L84 -> 9587 | AI84: =T3_R2!L84 -> 15567 | AK84: =_xlfn.XLOOKUP($Y84,[1]COUNTRY_INFO!$Y$9:$Y$142,[1]COUNTRY_INFO!J$9:J$142) -> 3 | AL84: =_xlfn.XLOOKUP($Y84,[1]COUNTRY_INFO!$Y$9:$Y$142,[1]COUNTRY_INFO!K$9:K$142) -> 0 | AM84: TRUE | AN84: TRUE | AP84: 3
A85: =IF(INTRO!$E$34<>0,INTRO!$E$34,"") -> Uganda | B85: NORTHERN | C85: KITGUM | D85: 251418 | E85: =IF(INTRO!$E$48="","",ROUND($D85*INTRO!$E$48,0)) -> 35701 | F85: =IF(INTRO!$E$49="","",ROUND($D85*INTRO!$E$49,0)) -> 75928 | G85: =IF(INTRO!$E$50="","",ROUND($D85*INTRO!$E$50,0)) -> 130989 | H85: 99 | I85: 1 | J85: 3 | K85: 3 | L85: =IF(INTRO!$E$38="Endemic", IF($H85>0, IF($H85=4,"Unknown", IF($H85=99,"Stopped", $D85)), 0),"Not required") -> Not required | M85: 133899 | N85: =IF(INTRO!$E$42="Endemic", IF(AND($J85>1,$J85<5), IF($J85=4, "Unknown", E85+F85), 0),"Not required") -> 111629 | O85: =IF(INTRO!$E$44="Endemic", IF(AND($K85>0,$K85<5), IF($K85=4,"Unknown", IF($K85=1, $F85*0.33, IF($K85=2, $F85*0.5+$G85*0.2, SUM(F85:G85)))), 0),"Not required") -> 206917 | P85: 0 | Q85: 2 | R85: 1 | S85: 1 | T85: MDA3 (IVM) | U85: T3 (ALB/MBD) | Y85: 49766 | Z85: KITGUM | AF85: ='MDA3'!N85 -> 89417 | AG85: ='T1'!M85 -> 0 | AH85: =T3_R1!L85 -> 44232 | AI85: =T3_R2!L85 -> 35140 | AK85: =_xlfn.XLOOKUP($Y85,[1]COUNTRY_INFO!$Y$9:$Y$142,[1]COUNTRY_INFO!J$9:J$142) -> 1 | AL85: =_xlfn.XLOOKUP($Y85,[1]COUNTRY_INFO!$Y$9:$Y$142,[1]COUNTRY_INFO!K$9:K$142) -> 3 | AM85: FALSE | AN85: TRUE | AP85: 3
A86: =IF(INTRO!$E$34<>0,INTRO!$E$34,"") -> Uganda | B86: NORTHERN | C86: KOBOKO | D86: 256535 | E86: =IF(INTRO!$E$48="","",ROUND($D86*INTRO!$E$48,0)) -> 36428 | F86: =IF(INTRO!$E$49="","",ROUND($D86*INTRO!$E$49,0)) -> 77474 | G86: =IF(INTRO!$E$50="","",ROUND($D86*INTRO!$E$50,0)) -> 133655 | H86: 99 | I86: 99 | J86: 3 | K86: 3 | L86: =IF(INTRO!$E$38="Endemic", IF($H86>0, IF($H86=4,"Unknown", IF($H86=99,"Stopped", $D86)), 0),"Not required") -> Not required | M86: 0 | N86: =IF(INTRO!$E$42="Endemic", IF(AND($J86>1,$J86<5), IF($J86=4, "Unknown", E86+F86), 0),"Not required") -> 113902 | O86: =IF(INTRO!$E$44="Endemic", IF(AND($K86>0,$K86<5), IF($K86=4,"Unknown", IF($K86=1, $F86*0.33, IF($K86=2, $F86*0.5+$G86*0.2, SUM(F86:G86)))), 0),"Not required") -> 211129 | P86: 0 | Q86: 0 | R86: 1 | S86: 1 | U86: T3 (ALB/MBD) | Y86: 49754 | Z86: KOBOKO | AF86: ='MDA3'!N86 -> 0 | AG86: ='T1'!M86 -> 0 | AH86: =T3_R1!L86 -> 84344 | AI86: =T3_R2!L86 -> 62811 | AK86: =_xlfn.XLOOKUP($Y86,[1]COUNTRY_INFO!$Y$9:$Y$142,[1]COUNTRY_INFO!J$9:J$142) -> 3 | AL86: =_xlfn.XLOOKUP($Y86,[1]COUNTRY_INFO!$Y$9:$Y$142,[1]COUNTRY_INFO!K$9:K$142) -> 3 | AM86: TRUE | AN86: TRUE | AP86: 3
A87: =IF(INTRO!$E$34<>0,INTRO!$E$34,"") -> Uganda | B87: NORTHERN | C87: KOLE | D87: 298086 | E87: =IF(INTRO!$E$48="","",ROUND($D87*INTRO!$E$48,0)) -> 42328 | F87: =IF(INTRO!$E$49="","",ROUND($D87*INTRO!$E$49,0)) -> 90022 | G87: =IF(INTRO!$E$50="","",ROUND($D87*INTRO!$E$50,0)) -> 155303 | H87: 99 | I87: 0 | J87: 3 | K87: 0 | L87: =IF(INTRO!$E$38="Endemic", IF($H87>0, IF($H87=4,"Unknown", IF($H87=99,"Stopped", $D87)), 0),"Not required") -> Not required | M87: 0 | N87: =IF(INTRO!$E$42="Endemic", IF(AND($J87>1,$J87<5), IF($J87=4, "Unknown", E87+F87), 0),"Not required") -> 132350 | O87: =IF(INTRO!$E$44="Endemic", IF(AND($K87>0,$K87<5), IF($K87=4,"Unknown", IF($K87=1, $F87*0.33, IF($K87=2, $F87*0.5+$G87*0.2, SUM(F87:G87)))), 0),"Not required") -> 0 | P87: 0 | Q87: 0 | R87: 1 | S87: 0 | U87: T3 (ALB/MBD) | Y87: 49767 | Z87: KOLE | AF87: ='MDA3'!N87 -> 0 | AG87: ='T1'!M87 -> 0 | AH87: =T3_R1!L87 -> 116334 | AI87: =T3_R2!L87 -> 107242 | AK87: =_xlfn.XLOOKUP($Y87,[1]COUNTRY_INFO!$Y$9:$Y$142,[1]COUNTRY_INFO!J$9:J$142) -> 3 | AL87: =_xlfn.XLOOKUP($Y87,[1]COUNTRY_INFO!$Y$9:$Y$142,[1]COUNTRY_INFO!K$9:K$142) -> 0 | AM87: TRUE | AN87: TRUE | AP87: 3
A88: =IF(INTRO!$E$34<>0,INTRO!$E$34,"") -> Uganda | B88: NORTHERN | C88: KOTIDO | D88: 220483 | E88: =IF(INTRO!$E$48="","",ROUND($D88*INTRO!$E$48,0)) -> 31309 | F88: =IF(INTRO!$E$49="","",ROUND($D88*INTRO!$E$49,0)) -> 66586 | G88: =IF(INTRO!$E$50="","",ROUND($D88*INTRO!$E$50,0)) -> 114872 | H88: 99 | I88: 0 | J88: 3 | K88: 0 | L88: =IF(INTRO!$E$38="Endemic", IF($H88>0, IF($H88=4,"Unknown", IF($H88=99,"Stopped", $D88)), 0),"Not required") -> Not required | M88: 0 | N88: =IF(INTRO!$E$42="Endemic", IF(AND($J88>1,$J88<5), IF($J88=4, "Unknown", E88+F88), 0),"Not required") -> 97895 | O88: =IF(INTRO!$E$44="Endemic", IF(AND($K88>0,$K88<5), IF($K88=4,"Unknown", IF($K88=1, $F88*0.33, IF($K88=2, $F88*0.5+$G88*0.2, SUM(F88:G88)))), 0),"Not required") -> 0 | P88: 0 | Q88: 0 | R88: 1 | S88: 0 | U88: T3 (ALB/MBD) | Y88: 49755 | Z88: KOTIDO | AF88: ='MDA3'!N88 -> 0 | AG88: ='T1'!M88 -> 0 | AH88: =T3_R1!L88 -> 59385 | AI88: =T3_R2!L88 -> 68942 | AK88: =_xlfn.XLOOKUP($Y88,[1]COUNTRY_INFO!$Y$9:$Y$142,[1]COUNTRY_INFO!J$9:J$142) -> 3 | AL88: =_xlfn.XLOOKUP($Y88,[1]COUNTRY_INFO!$Y$9:$Y$142,[1]COUNTRY_INFO!K$9:K$142) -> 0 | AM88: TRUE | AN88: TRUE | AP88: 3
A89: =IF(INTRO!$E$34<>0,INTRO!$E$34,"") -> Uganda | B89: NORTHERN | C89: KWANIA | D89: 226027 | E89: =IF(INTRO!$E$48="","",ROUND($D89*INTRO!$E$48,0)) -> 32096 | F89: =IF(INTRO!$E$49="","",ROUND($D89*INTRO!$E$49,0)) -> 68260 | G89: =IF(INTRO!$E$50="","",ROUND($D89*INTRO!$E$50,0)) -> 117760 | H89: 99 | I89: 0 | J89: 3 | K89: 3 | L89: =IF(INTRO!$E$38="Endemic", IF($H89>0, IF($H89=4,"Unknown", IF($H89=99,"Stopped", $D89)), 0),"Not required") -> Not required | M89: 0 | N89: =IF(INTRO!$E$42="Endemic", IF(AND($J89>1,$J89<5), IF($J89=4, "Unknown", E89+F89), 0),"Not required") -> 100356 | O89: =IF(INTRO!$E$44="Endemic", IF(AND($K89>0,$K89<5), IF($K89=4,"Unknown", IF($K89=1, $F89*0.33, IF($K89=2, $F89*0.5+$G89*0.2, SUM(F89:G89)))), 0),"Not required") -> 186020 | P89: 0 | Q89: 0 | R89: 1 | S89: 1 | U89: T3 (ALB/MBD) | Y89: 49835 | Z89: KWANIA | AF89: ='MDA3'!N89 -> 0 | AG89: ='T1'!M89 -> 0 | AH89: =T3_R1!L89 -> 63635 | AI89: =T3_R2!L89 -> 111962 | AK89: =_xlfn.XLOOKUP($Y89,[1]COUNTRY_INFO!$Y$9:$Y$142,[1]COUNTRY_INFO!J$9:J$142) -> 3 | AL89: =_xlfn.XLOOKUP($Y89,[1]COUNTRY_INFO!$Y$9:$Y$142,[1]COUNTRY_INFO!K$9:K$142) -> 3 | AM89: TRUE | AN89: TRUE | AP89: 3
A90: =IF(INTRO!$E$34<>0,INTRO!$E$34,"") -> Uganda | B90: NORTHERN | C90: LAMWO | D90: 165199 | E90: =IF(INTRO!$E$48="","",ROUND($D90*INTRO!$E$48,0)) -> 23458 | F90: =IF(INTRO!$E$49="","",ROUND($D90*INTRO!$E$49,0)) -> 49890 | G90: =IF(INTRO!$E$50="","",ROUND($D90*INTRO!$E$50,0)) -> 86069 | H90: 99 | I90: 1 | J90: 3 | K90: 1 | L90: =IF(INTRO!$E$38="Endemic", IF($H90>0, IF($H90=4,"Unknown", IF($H90=99,"Stopped", $D90)), 0),"Not required") -> Not required | M90: 135959 | N90: =IF(INTRO!$E$42="Endemic", IF(AND($J90>1,$J90<5), IF($J90=4, "Unknown", E90+F90), 0),"Not required") -> 73348 | O90: =IF(INTRO!$E$44="Endemic", IF(AND($K90>0,$K90<5), IF($K90=4,"Unknown", IF($K90=1, $F90*0.33, IF($K90=2, $F90*0.5+$G90*0.2, SUM(F90:G90)))), 0),"Not required") -> 16463.7 | P90: 0 | Q90: 2 | R90: 1 | S90: 1 | T90: MDA3 (IVM) | U90: T3 (ALB/MBD) | Y90: 49772 | Z90: LAMWO | AF90: ='MDA3'!N90 -> 130084 | AG90: ='T1'!M90 -> 0 | AH90: =T3_R1!L90 -> 55423 | AI90: =T3_R2!L90 -> 53005 | AK90: =_xlfn.XLOOKUP($Y90,[1]COUNTRY_INFO!$Y$9:$Y$142,[1]COUNTRY_INFO!J$9:J$142) -> 3 | AL90: =_xlfn.XLOOKUP($Y90,[1]COUNTRY_INFO!$Y$9:$Y$142,[1]COUNTRY_INFO!K$9:K$142) -> 1 | AM90: TRUE | AN90: TRUE | AP90: 3
A91: =IF(INTRO!$E$34<>0,INTRO!$E$34,"") -> Uganda | B91: NORTHERN | C91: LIRA | D91: 505908 | E91: =IF(INTRO!$E$48="","",ROUND($D91*INTRO!$E$48,0)) -> 71839 | F91: =IF(INTRO!$E$49="","",ROUND($D91*INTRO!$E$49,0)) -> 152784 | G91: =IF(INTRO!$E$50="","",ROUND($D91*INTRO!$E$50,0)) -> 263578 | H91: 99 | I91: 1 | J91: 3 | K91: 2 | L91: =IF(INTRO!$E$38="Endemic", IF($H91>0, IF($H91=4,"Unknown", IF($H91=99,"Stopped", $D91)), 0),"Not required") -> Not required | M91: 69147 | N91: =IF(INTRO!$E$42="Endemic", IF(AND($J91>1,$J91<5), IF($J91=4, "Unknown", E91+F91), 0),"Not required") -> 224623 | O91: =IF(INTRO!$E$44="Endemic", IF(AND($K91>0,$K91<5), IF($K91=4,"Unknown", IF($K91=1, $F91*0.33, IF($K91=2, $F91*0.5+$G91*0.2, SUM(F91:G91)))), 0),"Not required") -> 129107.6 | P91: 0 | Q91: 2 | R91: 1 | S91: 1 | T91: MDA3 (IVM) | U91: T3 (ALB/MBD) | Y91: 49771 | Z91: LIRA | AF91: ='MDA3'!N91 -> 66314 | AG91: ='T1'!M91 -> 0 | AH91: =T3_R1!L91 -> 92738 | AI91: =T3_R2!L91 -> 95928 | AK91: =_xlfn.XLOOKUP($Y91,[1]COUNTRY_INFO!$Y$9:$Y$142,[1]COUNTRY_INFO!J$9:J$142) -> 2 | AL91: =_xlfn.XLOOKUP($Y91,[1]COUNTRY_INFO!$Y$9:$Y$142,[1]COUNTRY_INFO!K$9:K$142) -> 2 | AM91: FALSE | AN91: TRUE | AP91: 3
A92: =IF(INTRO!$E$34<>0,INTRO!$E$34,"") -> Uganda | B92: NORTHERN | C92: MADI OKOLLO | D92: 170903 | E92: =IF(INTRO!$E$48="","",ROUND($D92*INTRO!$E$48,0)) -> 24268 | F92: =IF(INTRO!$E$49="","",ROUND($D92*INTRO!$E$49,0)) -> 51613 | G92: =IF(INTRO!$E$50="","",ROUND($D92*INTRO!$E$50,0)) -> 89040 | H92: 99 | I92: 99 | J92: 3 | K92: 2 | L92: =IF(INTRO!$E$38="Endemic", IF($H92>0, IF($H92=4,"Unknown", IF($H92=99,"Stopped", $D92)), 0),"Not required") -> Not required | M92: 0 | N92: =IF(INTRO!$E$42="Endemic", IF(AND($J92>1,$J92<5), IF($J92=4, "Unknown", E92+F92), 0),"Not required") -> 75881 | O92: =IF(INTRO!$E$44="Endemic", IF(AND($K92>0,$K92<5), IF($K92=4,"Unknown", IF($K92=1, $F92*0.33, IF($K92=2, $F92*0.5+$G92*0.2, SUM(F92:G92)))), 0),"Not required") -> 43614.5 | P92: 0 | Q92: 0 | R92: 1 | S92: 1 | U92: T3 (ALB/MBD) | Y92: 49836 | Z92: MADI OKOLLO | AF92: ='MDA3'!N92 -> 0 | AG92: ='T1'!M92 -> 0 | AH92: =T3_R1!L92 -> 57278 | AI92: =T3_R2!L92 -> 64014 | AK92: =_xlfn.XLOOKUP($Y92,[1]COUNTRY_INFO!$Y$9:$Y$142,[1]COUNTRY_INFO!J$9:J$142) -> 3 | AL92: =_xlfn.XLOOKUP($Y92,[1]COUNTRY_INFO!$Y$9:$Y$142,[1]COUNTRY_INFO!K$9:K$142) -> 2 | AM92: TRUE | AN92: TRUE | AP92: 3
A93: =IF(INTRO!$E$34<>0,INTRO!$E$34,"") -> Uganda | B93: NORTHERN | C93: MARACHA | D93: 229442 | E93: =IF(INTRO!$E$48="","",ROUND($D93*INTRO!$E$48,0)) -> 32581 | F93: =IF(INTRO!$E$49="","",ROUND($D93*INTRO!$E$49,0)) -> 69291 | G93: =IF(INTRO!$E$50="","",ROUND($D93*INTRO!$E$50,0)) -> 119539 | H93: 99 | I93: 99 | J93: 3 | K93: 1 | L93: =IF(INTRO!$E$38="Endemic", IF($H93>0, IF($H93=4,"Unknown", IF($H93=99,"Stopped", $D93)), 0),"Not required") -> Not required | M93: 0 | N93: =IF(INTRO!$E$42="Endemic", IF(AND($J93>1,$J93<5), IF($J93=4, "Unknown", E93+F93), 0),"Not required") -> 101872 | O93: =IF(INTRO!$E$44="Endemic", IF(AND($K93>0,$K93<5), IF($K93=4,"Unknown", IF($K93=1, $F93*0.33, IF($K93=2, $F93*0.5+$G93*0.2, SUM(F93:G93)))), 0),"Not required") -> 22866.03 | P93: 0 | Q93: 0 | R93: 1 | S93: 1 | U93: T3 (ALB/MBD) | Y93: 49784 | Z93: MARACHA | AF93: ='MDA3'!N93 -> 0 | AG93: ='T1'!M93 -> 0 | AH93: =T3_R1!L93 -> 61988 | AI93: =T3_R2!L93 -> 84577 | AK93: =_xlfn.XLOOKUP($Y93,[1]COUNTRY_INFO!$Y$9:$Y$142,[1]COUNTRY_INFO!J$9:J$142) -> 3 | AL93: =_xlfn.XLOOKUP($Y93,[1]COUNTRY_INFO!$Y$9:$Y$142,[1]COUNTRY_INFO!K$9:K$142) -> 1 | AM93: TRUE | AN93: TRUE | AP93: 3
A94: =IF(INTRO!$E$34<>0,INTRO!$E$34,"") -> Uganda | B94: NORTHERN | C94: MOROTO | D94: 128830 | E94: =IF(INTRO!$E$48="","",ROUND($D94*INTRO!$E$48,0)) -> 18294 | F94: =IF(INTRO!$E$49="","",ROUND($D94*INTRO!$E$49,0)) -> 38907 | G94: =IF(INTRO!$E$50="","",ROUND($D94*INTRO!$E$50,0)) -> 67120 | H94: 99 | I94: 0 | J94: 3 | K94: 0 | L94: =IF(INTRO!$E$38="Endemic", IF($H94>0, IF($H94=4,"Unknown", IF($H94=99,"Stopped", $D94)), 0),"Not required") -> Not required | M94: 0 | N94: =IF(INTRO!$E$42="Endemic", IF(AND($J94>1,$J94<5), IF($J94=4, "Unknown", E94+F94), 0),"Not required") -> 57201 | O94: =IF(INTRO!$E$44="Endemic", IF(AND($K94>0,$K94<5), IF($K94=4,"Unknown", IF($K94=1, $F94*0.33, IF($K94=2, $F94*0.5+$G94*0.2, SUM(F94:G94)))), 0),"Not required") -> 0 | P94: 0 | Q94: 0 | R94: 1 | S94: 0 | U94: T3 (ALB/MBD) | Y94: 49781 | Z94: MOROTO | AF94: ='MDA3'!N94 -> 0 | AG94: ='T1'!M94 -> 0 | AH94: =T3_R1!L94 -> 28569 | AI94: =T3_R2!L94 -> 29110 | AK94: =_xlfn.XLOOKUP($Y94,[1]COUNTRY_INFO!$Y$9:$Y$142,[1]COUNTRY_INFO!J$9:J$142) -> 3 | AL94: =_xlfn.XLOOKUP($Y94,[1]COUNTRY_INFO!$Y$9:$Y$142,[1]COUNTRY_INFO!K$9:K$142) -> 0 | AM94: TRUE | AN94: TRUE | AP94: 3
A95: =IF(INTRO!$E$34<>0,INTRO!$E$34,"") -> Uganda | B95: NORTHERN | C95: MOYO | D95: 116276 | E95: =IF(INTRO!$E$48="","",ROUND($D95*INTRO!$E$48,0)) -> 16511 | F95: =IF(INTRO!$E$49="","",ROUND($D95*INTRO!$E$49,0)) -> 35115 | G95: =IF(INTRO!$E$50="","",ROUND($D95*INTRO!$E$50,0)) -> 60580 | H95: 99 | I95: 1 | J95: 3 | K95: 3 | L95: =IF(INTRO!$E$38="Endemic", IF($H95>0, IF($H95=4,"Unknown", IF($H95=99,"Stopped", $D95)), 0),"Not required") -> Not required | M95: 90251 | N95: =IF(INTRO!$E$42="Endemic", IF(AND($J95>1,$J95<5), IF($J95=4, "Unknown", E95+F95), 0),"Not required") -> 51626 | O95: =IF(INTRO!$E$44="Endemic", IF(AND($K95>0,$K95<5), IF($K95=4,"Unknown", IF($K95=1, $F95*0.33, IF($K95=2, $F95*0.5+$G95*0.2, SUM(F95:G95)))), 0),"Not required") -> 95695 | P95: 0 | Q95: 2 | R95: 1 | S95: 1 | T95: MDA3 (IVM) | U95: T3 (ALB/MBD) | Y95: 49782 | Z95: MOYO | AF95: ='MDA3'!N95 -> 88142 | AG95: ='T1'!M95 -> 0 | AH95: =T3_R1!L95 -> 25536 | AI95: =T3_R2!L95 -> 31640 | AK95: =_xlfn.XLOOKUP($Y95,[1]COUNTRY_INFO!$Y$9:$Y$142,[1]COUNTRY_INFO!J$9:J$142) -> 3 | AL95: =_xlfn.XLOOKUP($Y95,[1]COUNTRY_INFO!$Y$9:$Y$142,[1]COUNTRY_INFO!K$9:K$142) -> 3 | AM95: TRUE | AN95: TRUE | AP95: 3
A96: =IF(INTRO!$E$34<>0,INTRO!$E$34,"") -> Uganda | B96: NORTHERN | C96: NABILATUK | D96: 85870 | E96: =IF(INTRO!$E$48="","",ROUND($D96*INTRO!$E$48,0)) -> 12194 | F96: =IF(INTRO!$E$49="","",ROUND($D96*INTRO!$E$49,0)) -> 25933 | G96: =IF(INTRO!$E$50="","",ROUND($D96*INTRO!$E$50,0)) -> 44738 | H96: 99 | I96: 0 | J96: 3 | K96: 0 | L96: =IF(INTRO!$E$38="Endemic", IF($H96>0, IF($H96=4,"Unknown", IF($H96=99,"Stopped", $D96)), 0),"Not required") -> Not required | M96: 0 | N96: =IF(INTRO!$E$42="Endemic", IF(AND($J96>1,$J96<5), IF($J96=4, "Unknown", E96+F96), 0),"Not required") -> 38127 | O96: =IF(INTRO!$E$44="Endemic", IF(AND($K96>0,$K96<5), IF($K96=4,"Unknown", IF($K96=1, $F96*0.33, IF($K96=2, $F96*0.5+$G96*0.2, SUM(F96:G96)))), 0),"Not required") -> 0 | P96: 0 | Q96: 0 | R96: 1 | S96: 0 | U96: T3 (ALB/MBD) | Y96: 49826 | Z96: NABILATUK | AF96: ='MDA3'!N96 -> 0 | AG96: ='T1'!M96 -> 0 | AH96: =T3_R1!L96 -> 55229 | AI96: =T3_R2!L96 -> 44953 | AK96: =_xlfn.XLOOKUP($Y96,[1]COUNTRY_INFO!$Y$9:$Y$142,[1]COUNTRY_INFO!J$9:J$142) -> 3 | AL96: =_xlfn.XLOOKUP($Y96,[1]COUNTRY_INFO!$Y$9:$Y$142,[1]COUNTRY_INFO!K$9:K$142) -> 0 | AM96: TRUE | AN96: TRUE | AP96: 3
A97: =IF(INTRO!$E$34<>0,INTRO!$E$34,"") -> Uganda | B97: NORTHERN | C97: NAKAPIRIPIRIT | D97: 123257 | E97: =IF(INTRO!$E$48="","",ROUND($D97*INTRO!$E$48,0)) -> 17502 | F97: =IF(INTRO!$E$49="","",ROUND($D97*INTRO!$E$49,0)) -> 37224 | G97: =IF(INTRO!$E$50="","",ROUND($D97*INTRO!$E$50,0)) -> 64217 | H97: 99 | I97: 0 | J97: 3 | K97: 1 | L97: =IF(INTRO!$E$38="Endemic", IF($H97>0, IF($H97=4,"Unknown", IF($H97=99,"Stopped", $D97)), 0),"Not required") -> Not required | M97: 0 | N97: =IF(INTRO!$E$42="Endemic", IF(AND($J97>1,$J97<5), IF($J97=4, "Unknown", E97+F97), 0),"Not required") -> 54726 | O97: =IF(INTRO!$E$44="Endemic", IF(AND($K97>0,$K97<5), IF($K97=4,"Unknown", IF($K97=1, $F97*0.33, IF($K97=2, $F97*0.5+$G97*0.2, SUM(F97:G97)))), 0),"Not required") -> 12283.92 | P97: 0 | Q97: 0 | R97: 1 | S97: 1 | U97: T3 (ALB/MBD) | Y97: 49794 | Z97: NAKAPIRIPIRIT | AF97: ='MDA3'!N97 -> 0 | AG97: ='T1'!M97 -> 0 | AH97: =T3_R1!L97 -> 61456 | AI97: =T3_R2!L97 -> 63558 | AK97: =_xlfn.XLOOKUP($Y97,[1]COUNTRY_INFO!$Y$9:$Y$142,[1]COUNTRY_INFO!J$9:J$142) -> 3 | AL97: =_xlfn.XLOOKUP($Y97,[1]COUNTRY_INFO!$Y$9:$Y$142,[1]COUNTRY_INFO!K$9:K$142) -> 1 | AM97: TRUE | AN97: TRUE | AP97: 3
A98: =IF(INTRO!$E$34<>0,INTRO!$E$34,"") -> Uganda | B98: NORTHERN | C98: NAPAK | D98: 178967 | E98: =IF(INTRO!$E$48="","",ROUND($D98*INTRO!$E$48,0)) -> 25413 | F98: =IF(INTRO!$E$49="","",ROUND($D98*INTRO!$E$49,0)) -> 54048 | G98: =IF(INTRO!$E$50="","",ROUND($D98*INTRO!$E$50,0)) -> 93242 | H98: 99 | I98: 0 | J98: 3 | K98: 0 | L98: =IF(INTRO!$E$38="Endemic", IF($H98>0, IF($H98=4,"Unknown", IF($H98=99,"Stopped", $D98)), 0),"Not required") -> Not required | M98: 0 | N98: =IF(INTRO!$E$42="Endemic", IF(AND($J98>1,$J98<5), IF($J98=4, "Unknown", E98+F98), 0),"Not required") -> 79461 | O98: =IF(INTRO!$E$44="Endemic", IF(AND($K98>0,$K98<5), IF($K98=4,"Unknown", IF($K98=1, $F98*0.33, IF($K98=2, $F98*0.5+$G98*0.2, SUM(F98:G98)))), 0),"Not required") -> 0 | P98: 0 | Q98: 0 | R98: 1 | S98: 0 | U98: T3 (ALB/MBD) | Y98: 49797 | Z98: NAPAK | AF98: ='MDA3'!N98 -> 0 | AG98: ='T1'!M98 -> 0 | AH98: =T3_R1!L98 -> 87519 | AI98: =T3_R2!L98 -> 100974 | AK98: =_xlfn.XLOOKUP($Y98,[1]COUNTRY_INFO!$Y$9:$Y$142,[1]COUNTRY_INFO!J$9:J$142) -> 3 | AL98: =_xlfn.XLOOKUP($Y98,[1]COUNTRY_INFO!$Y$9:$Y$142,[1]COUNTRY_INFO!K$9:K$142) -> 0 | AM98: TRUE | AN98: TRUE | AP98: 3
A99: =IF(INTRO!$E$34<>0,INTRO!$E$34,"") -> Uganda | B99: NORTHERN | C99: NEBBI | D99: 292392 | E99: =IF(INTRO!$E$48="","",ROUND($D99*INTRO!$E$48,0)) -> 41520 | F99: =IF(INTRO!$E$49="","",ROUND($D99*INTRO!$E$49,0)) -> 88302 | G99: =IF(INTRO!$E$50="","",ROUND($D99*INTRO!$E$50,0)) -> 152336 | H99: 99 | I99: 99 | J99: 3 | K99: 0 | L99: =IF(INTRO!$E$38="Endemic", IF($H99>0, IF($H99=4,"Unknown", IF($H99=99,"Stopped", $D99)), 0),"Not required") -> Not required | M99: 0 | N99: =IF(INTRO!$E$42="Endemic", IF(AND($J99>1,$J99<5), IF($J99=4, "Unknown", E99+F99), 0),"Not required") -> 129822 | O99: =IF(INTRO!$E$44="Endemic", IF(AND($K99>0,$K99<5), IF($K99=4,"Unknown", IF($K99=1, $F99*0.33, IF($K99=2, $F99*0.5+$G99*0.2, SUM(F99:G99)))), 0),"Not required") -> 0 | P99: 0 | Q99: 0 | R99: 1 | S99: 0 | U99: T3 (ALB/MBD) | Y99: 49793 | Z99: NEBBI | AF99: ='MDA3'!N99 -> 0 | AG99: ='T1'!M99 -> 0 | AH99: =T3_R1!L99 -> 85497 | AI99: =T3_R2!L99 -> 62194 | AK99: =_xlfn.XLOOKUP($Y99,[1]COUNTRY_INFO!$Y$9:$Y$142,[1]COUNTRY_INFO!J$9:J$142) -> 3 | AL99: =_xlfn.XLOOKUP($Y99,[1]COUNTRY_INFO!$Y$9:$Y$142,[1]COUNTRY_INFO!K$9:K$142) -> 0 | AM99: TRUE | AN99: TRUE | AP99: 3
A100: =IF(INTRO!$E$34<>0,INTRO!$E$34,"") -> Uganda | B100: NORTHERN | C100: NWOYA | D100: 157860 | E100: =IF(INTRO!$E$48="","",ROUND($D100*INTRO!$E$48,0)) -> 22416 | F100: =IF(INTRO!$E$49="","",ROUND($D100*INTRO!$E$49,0)) -> 47674 | G100: =IF(INTRO!$E$50="","",ROUND($D100*INTRO!$E$50,0)) -> 82245 | H100: 99 | I100: 1 | J100: 3 | K100: 2 | L100: =IF(INTRO!$E$38="Endemic", IF($H100>0, IF($H100=4,"Unknown", IF($H100=99,"Stopped", $D100)), 0),"Not required") -> Not required | M100: 129919 | N100: =IF(INTRO!$E$42="Endemic", IF(AND($J100>1,$J100<5), IF($J100=4, "Unknown", E100+F100), 0),"Not required") -> 70090 | O100: =IF(INTRO!$E$44="Endemic", IF(AND($K100>0,$K100<5), IF($K100=4,"Unknown", IF($K100=1, $F100*0.33, IF($K100=2, $F100*0.5+$G100*0.2, SUM(F100:G100)))), 0),"Not required") -> 40286 | P100: 0 | Q100: 2 | R100: 1 | S100: 1 | T100: MDA3 (IVM) | U100: T3 (ALB/MBD) | Y100: 49801 | Z100: NWOYA | AF100: ='MDA3'!N100 -> 156843 | AG100: ='T1'!M100 -> 0 | AH100: =T3_R1!L100 -> 37204 | AI100: =T3_R2!L100 -> 39715 | AK100: =_xlfn.XLOOKUP($Y100,[1]COUNTRY_INFO!$Y$9:$Y$142,[1]COUNTRY_INFO!J$9:J$142) -> 1 | AL100: =_xlfn.XLOOKUP($Y100,[1]COUNTRY_INFO!$Y$9:$Y$142,[1]COUNTRY_INFO!K$9:K$142) -> 2 | AM100: FALSE | AN100: TRUE | AP100: 3
A101: =IF(INTRO!$E$34<>0,INTRO!$E$34,"") -> Uganda | B101: NORTHERN | C101: OBONGI | D101: 53167 | E101: =IF(INTRO!$E$48="","",ROUND($D101*INTRO!$E$48,0)) -> 7550 | F101: =IF(INTRO!$E$49="","",ROUND($D101*INTRO!$E$49,0)) -> 16056 | G101: =IF(INTRO!$E$50="","",ROUND($D101*INTRO!$E$50,0)) -> 27700 | H101: 99 | I101: 99 | J101: 3 | K101: 3 | L101: =IF(INTRO!$E$38="Endemic", IF($H101>0, IF($H101=4,"Unknown", IF($H101=99,"Stopped", $D101)), 0),"Not required") -> Not required | M101: 0 | N101: =IF(INTRO!$E$42="Endemic", IF(AND($J101>1,$J101<5), IF($J101=4, "Unknown", E101+F101), 0),"Not required") -> 23606 | O101: =IF(INTRO!$E$44="Endemic", IF(AND($K101>0,$K101<5), IF($K101=4,"Unknown", IF($K101=1, $F101*0.33, IF($K101=2, $F101*0.5+$G101*0.2, SUM(F101:G101)))), 0),"Not required") -> 43756 | P101: 0 | Q101: 0 | R101: 1 | S101: 1 | U101: T3 (ALB/MBD) | Y101: 49838 | Z101: OBONGI | AF101: ='MDA3'!N101 -> 0 | AG101: ='T1'!M101 -> 0 | AH101: =T3_R1!L101 -> 38041 | AI101: =T3_R2!L101 -> 39664 | AK101: =_xlfn.XLOOKUP($Y101,[1]COUNTRY_INFO!$Y$9:$Y$142,[1]COUNTRY_INFO!J$9:J$142) -> 3 | AL101: =_xlfn.XLOOKUP($Y101,[1]COUNTRY_INFO!$Y$9:$Y$142,[1]COUNTRY_INFO!K$9:K$142) -> 3 | AM101: TRUE | AN101: TRUE | AP101: 3
A102: =IF(INTRO!$E$34<>0,INTRO!$E$34,"") -> Uganda | B102: NORTHERN | C102: OMORO | D102: 204134 | E102: =IF(INTRO!$E$48="","",ROUND($D102*INTRO!$E$48,0)) -> 28987 | F102: =IF(INTRO!$E$49="","",ROUND($D102*INTRO!$E$49,0)) -> 61648 | G102: =IF(INTRO!$E$50="","",ROUND($D102*INTRO!$E$50,0)) -> 106354 | H102: 99 | I102: 1 | J102: 3 | K102: 2 | L102: =IF(INTRO!$E$38="Endemic", IF($H102>0, IF($H102=4,"Unknown", IF($H102=99,"Stopped", $D102)), 0),"Not required") -> Not required | M102: 168002 | N102: =IF(INTRO!$E$42="Endemic", IF(AND($J102>1,$J102<5), IF($J102=4, "Unknown", E102+F102), 0),"Not required") -> 90635 | O102: =IF(INTRO!$E$44="Endemic", IF(AND($K102>0,$K102<5), IF($K102=4,"Unknown", IF($K102=1, $F102*0.33, IF($K102=2, $F102*0.5+$G102*0.2, SUM(F102:G102)))), 0),"Not required") -> 52094.8 | P102: 0 | Q102: 2 | R102: 1 | S102: 1 | T102: MDA3 (IVM) | U102: T3 (ALB/MBD) | Y102: 49818 | Z102: OMORO | AF102: ='MDA3'!N102 -> 163497 | AG102: ='T1'!M102 -> 0 | AH102: =T3_R1!L102 -> 42006 | AI102: =T3_R2!L102 -> 45854 | AK102: =_xlfn.XLOOKUP($Y102,[1]COUNTRY_INFO!$Y$9:$Y$142,[1]COUNTRY_INFO!J$9:J$142) -> 1 | AL102: =_xlfn.XLOOKUP($Y102,[1]COUNTRY_INFO!$Y$9:$Y$142,[1]COUNTRY_INFO!K$9:K$142) -> 2 | AM102: FALSE | AN102: TRUE | AP102: 3
A103: =IF(INTRO!$E$34<>0,INTRO!$E$34,"") -> Uganda | B103: NORTHERN | C103: OTUKE | D103: 130159 | E103: =IF(INTRO!$E$48="","",ROUND($D103*INTRO!$E$48,0)) -> 18483 | F103: =IF(INTRO!$E$49="","",ROUND($D103*INTRO!$E$49,0)) -> 39308 | G103: =IF(INTRO!$E$50="","",ROUND($D103*INTRO!$E$50,0)) -> 67813 | H103: 99 | I103: 0 | J103: 3 | K103: 0 | L103: =IF(INTRO!$E$38="Endemic", IF($H103>0, IF($H103=4,"Unknown", IF($H103=99,"Stopped", $D103)), 0),"Not required") -> Not required | M103: 0 | N103: =IF(INTRO!$E$42="Endemic", IF(AND($J103>1,$J103<5), IF($J103=4, "Unknown", E103+F103), 0),"Not required") -> 57791 | O103: =IF(INTRO!$E$44="Endemic", IF(AND($K103>0,$K103<5), IF($K103=4,"Unknown", IF($K103=1, $F103*0.33, IF($K103=2, $F103*0.5+$G103*0.2, SUM(F103:G103)))), 0),"Not required") -> 0 | P103: 0 | Q103: 0 | R103: 1 | S103: 0 | U103: T3 (ALB/MBD) | Y103: 49803 | Z103: OTUKE | AF103: ='MDA3'!N103 -> 0 | AG103: ='T1'!M103 -> 0 | AH103: =T3_R1!L103 -> 39420 | AI103: =T3_R2!L103 -> 33659 | AK103: =_xlfn.XLOOKUP($Y103,[1]COUNTRY_INFO!$Y$9:$Y$142,[1]COUNTRY_INFO!J$9:J$142) -> 3 | AL103: =_xlfn.XLOOKUP($Y103,[1]COUNTRY_INFO!$Y$9:$Y$142,[1]COUNTRY_INFO!K$9:K$142) -> 0 | AM103: TRUE | AN103: TRUE | AP103: 3
A104: =IF(INTRO!$E$34<>0,INTRO!$E$34,"") -> Uganda | B104: NORTHERN | C104: OYAM | D104: 478175 | E104: =IF(INTRO!$E$48="","",ROUND($D104*INTRO!$E$48,0)) -> 67901 | F104: =IF(INTRO!$E$49="","",ROUND($D104*INTRO!$E$49,0)) -> 144409 | G104: =IF(INTRO!$E$50="","",ROUND($D104*INTRO!$E$50,0)) -> 249129 | H104: 99 | I104: 1 | J104: 3 | K104: 3 | L104: =IF(INTRO!$E$38="Endemic", IF($H104>0, IF($H104=4,"Unknown", IF($H104=99,"Stopped", $D104)), 0),"Not required") -> Not required | M104: 24888 | N104: =IF(INTRO!$E$42="Endemic", IF(AND($J104>1,$J104<5), IF($J104=4, "Unknown", E104+F104), 0),"Not required") -> 212310 | O104: =IF(INTRO!$E$44="Endemic", IF(AND($K104>0,$K104<5), IF($K104=4,"Unknown", IF($K104=1, $F104*0.33, IF($K104=2, $F104*0.5+$G104*0.2, SUM(F104:G104)))), 0),"Not required") -> 393538 | P104: 0 | Q104: 2 | R104: 1 | S104: 1 | T104: MDA3 (IVM) | U104: T3 (ALB/MBD) | Y104: 49802 | Z104: OYAM | AF104: ='MDA3'!N104 -> 22105 | AG104: ='T1'!M104 -> 0 | AH104: =T3_R1!L104 -> 91069 | AI104: =T3_R2!L104 -> 82525 | AK104: =_xlfn.XLOOKUP($Y104,[1]COUNTRY_INFO!$Y$9:$Y$142,[1]COUNTRY_INFO!J$9:J$142) -> 3 | AL104: =_xlfn.XLOOKUP($Y104,[1]COUNTRY_INFO!$Y$9:$Y$142,[1]COUNTRY_INFO!K$9:K$142) -> 3 | AM104: TRUE | AN104: TRUE | AP104: 3
A105: =IF(INTRO!$E$34<>0,INTRO!$E$34,"") -> Uganda | B105: NORTHERN | C105: PADER | D105: 226425 | E105: =IF(INTRO!$E$48="","",ROUND($D105*INTRO!$E$48,0)) -> 32152 | F105: =IF(INTRO!$E$49="","",ROUND($D105*INTRO!$E$49,0)) -> 68380 | G105: =IF(INTRO!$E$50="","",ROUND($D105*INTRO!$E$50,0)) -> 117967 | H105: 99 | I105: 1 | J105: 3 | K105: 3 | L105: =IF(INTRO!$E$38="Endemic", IF($H105>0, IF($H105=4,"Unknown", IF($H105=99,"Stopped", $D105)), 0),"Not required") -> Not required | M105: 182025 | N105: =IF(INTRO!$E$42="Endemic", IF(AND($J105>1,$J105<5), IF($J105=4, "Unknown", E105+F105), 0),"Not required") -> 100532 | O105: =IF(INTRO!$E$44="Endemic", IF(AND($K105>0,$K105<5), IF($K105=4,"Unknown", IF($K105=1, $F105*0.33, IF($K105=2, $F105*0.5+$G105*0.2, SUM(F105:G105)))), 0),"Not required") -> 186347 | P105: 0 | Q105: 2 | R105: 1 | S105: 1 | T105: MDA3 (IVM) | U105: T3 (ALB/MBD) | Y105: 49805 | Z105: PADER | AF105: ='MDA3'!N105 -> 172351 | AG105: ='T1'!M105 -> 0 | AH105: =T3_R1!L105 -> 41697 | AI105: =T3_R2!L105 -> 54930 | AK105: =_xlfn.XLOOKUP($Y105,[1]COUNTRY_INFO!$Y$9:$Y$142,[1]COUNTRY_INFO!J$9:J$142) -> 1 | AL105: =_xlfn.XLOOKUP($Y105,[1]COUNTRY_INFO!$Y$9:$Y$142,[1]COUNTRY_INFO!K$9:K$142) -> 3 | AM105: FALSE | AN105: TRUE | AP105: 3
A106: =IF(INTRO!$E$34<>0,INTRO!$E$34,"") -> Uganda | B106: NORTHERN | C106: PAKWACH | D106: 182346 | E106: =IF(INTRO!$E$48="","",ROUND($D106*INTRO!$E$48,0)) -> 25893 | F106: =IF(INTRO!$E$49="","",ROUND($D106*INTRO!$E$49,0)) -> 55068 | G106: =IF(INTRO!$E$50="","",ROUND($D106*INTRO!$E$50,0)) -> 95002 | H106: 99 | I106: 99 | J106: 3 | K106: 3 | L106: =IF(INTRO!$E$38="Endemic", IF($H106>0, IF($H106=4,"Unknown", IF($H106=99,"Stopped", $D106)), 0),"Not required") -> Not required | M106: 0 | N106: =IF(INTRO!$E$42="Endemic", IF(AND($J106>1,$J106<5), IF($J106=4, "Unknown", E106+F106), 0),"Not required") -> 80961 | O106: =IF(INTRO!$E$44="Endemic", IF(AND($K106>0,$K106<5), IF($K106=4,"Unknown", IF($K106=1, $F106*0.33, IF($K106=2, $F106*0.5+$G106*0.2, SUM(F106:G106)))), 0),"Not required") -> 150070 | P106: 0 | Q106: 0 | R106: 1 | S106: 1 | U106: T3 (ALB/MBD) | Y106: 49827 | Z106: PAKWACH | AF106: ='MDA3'!N106 -> 0 | AG106: ='T1'!M106 -> 0 | AH106: =T3_R1!L106 -> 59570 | AI106: =T3_R2!L106 -> 58761 | AK106: =_xlfn.XLOOKUP($Y106,[1]COUNTRY_INFO!$Y$9:$Y$142,[1]COUNTRY_INFO!J$9:J$142) -> 3 | AL106: =_xlfn.XLOOKUP($Y106,[1]COUNTRY_INFO!$Y$9:$Y$142,[1]COUNTRY_INFO!K$9:K$142) -> 3 | AM106: TRUE | AN106: TRUE | AP106: 3
A107: =IF(INTRO!$E$34<>0,INTRO!$E$34,"") -> Uganda | B107: NORTHERN | C107: YUMBE | D107: 598418 | E107: =IF(INTRO!$E$48="","",ROUND($D107*INTRO!$E$48,0)) -> 84975 | F107: =IF(INTRO!$E$49="","",ROUND($D107*INTRO!$E$49,0)) -> 180722 | G107: =IF(INTRO!$E$50="","",ROUND($D107*INTRO!$E$50,0)) -> 311776 | H107: 99 | I107: 99 | J107: 3 | K107: 2 | L107: =IF(INTRO!$E$38="Endemic", IF($H107>0, IF($H107=4,"Unknown", IF($H107=99,"Stopped", $D107)), 0),"Not required") -> Not required | M107: 0 | N107: =IF(INTRO!$E$42="Endemic", IF(AND($J107>1,$J107<5), IF($J107=4, "Unknown", E107+F107), 0),"Not required") -> 265697 | O107: =IF(INTRO!$E$44="Endemic", IF(AND($K107>0,$K107<5), IF($K107=4,"Unknown", IF($K107=1, $F107*0.33, IF($K107=2, $F107*0.5+$G107*0.2, SUM(F107:G107)))), 0),"Not required") -> 152716.2 | P107: 0 | Q107: 0 | R107: 1 | S107: 1 | U107: T3 (ALB/MBD) | Y107: 49816 | Z107: YUMBE | AF107: ='MDA3'!N107 -> 0 | AG107: ='T1'!M107 -> 0 | AH107: =T3_R1!L107 -> 338983 | AI107: =T3_R2!L107 -> 356707 | AK107: =_xlfn.XLOOKUP($Y107,[1]COUNTRY_INFO!$Y$9:$Y$142,[1]COUNTRY_INFO!J$9:J$142) -> 3 | AL107: =_xlfn.XLOOKUP($Y107,[1]COUNTRY_INFO!$Y$9:$Y$142,[1]COUNTRY_INFO!K$9:K$142) -> 2 | AM107: TRUE | AN107: TRUE | AP107: 3
A108: =IF(INTRO!$E$34<>0,INTRO!$E$34,"") -> Uganda | B108: NORTHERN | C108: ZOMBO | D108: 296228 | E108: =IF(INTRO!$E$48="","",ROUND($D108*INTRO!$E$48,0)) -> 42064 | F108: =IF(INTRO!$E$49="","",ROUND($D108*INTRO!$E$49,0)) -> 89461 | G108: =IF(INTRO!$E$50="","",ROUND($D108*INTRO!$E$50,0)) -> 154335 | H108: 99 | I108: 99 | J108: 3 | K108: 1 | L108: =IF(INTRO!$E$38="Endemic", IF($H108>0, IF($H108=4,"Unknown", IF($H108=99,"Stopped", $D108)), 0),"Not required") -> Not required | M108: 0 | N108: =IF(INTRO!$E$42="Endemic", IF(AND($J108>1,$J108<5), IF($J108=4, "Unknown", E108+F108), 0),"Not required") -> 131525 | O108: =IF(INTRO!$E$44="Endemic", IF(AND($K108>0,$K108<5), IF($K108=4,"Unknown", IF($K108=1, $F108*0.33, IF($K108=2, $F108*0.5+$G108*0.2, SUM(F108:G108)))), 0),"Not required") -> 29522.13 | P108: 0 | Q108: 0 | R108: 1 | S108: 1 | U108: T3 (ALB/MBD) | Y108: 49817 | Z108: ZOMBO | AF108: ='MDA3'!N108 -> 0 | AG108: ='T1'!M108 -> 0 | AH108: =T3_R1!L108 -> 54416 | AI108: =T3_R2!L108 -> 68378 | AK108: =_xlfn.XLOOKUP($Y108,[1]COUNTRY_INFO!$Y$9:$Y$142,[1]COUNTRY_INFO!J$9:J$142) -> 3 | AL108: =_xlfn.XLOOKUP($Y108,[1]COUNTRY_INFO!$Y$9:$Y$142,[1]COUNTRY_INFO!K$9:K$142) -> 1 | AM108: TRUE | AN108: TRUE | AP108: 3
A109: =IF(INTRO!$E$34<>0,INTRO!$E$34,"") -> Uganda | B109: WESTERN | C109: BUHWEJU | D109: 152873 | E109: =IF(INTRO!$E$48="","",ROUND($D109*INTRO!$E$48,0)) -> 21708 | F109: =IF(INTRO!$E$49="","",ROUND($D109*INTRO!$E$49,0)) -> 46168 | G109: =IF(INTRO!$E$50="","",ROUND($D109*INTRO!$E$50,0)) -> 79647 | H109: 0 | I109: 99 | J109: 3 | K109: 0 | L109: =IF(INTRO!$E$38="Endemic", IF($H109>0, IF($H109=4,"Unknown", IF($H109=99,"Stopped", $D109)), 0),"Not required") -> Not required | M109: 0 | N109: =IF(INTRO!$E$42="Endemic", IF(AND($J109>1,$J109<5), IF($J109=4, "Unknown", E109+F109), 0),"Not required") -> 67876 | O109: =IF(INTRO!$E$44="Endemic", IF(AND($K109>0,$K109<5), IF($K109=4,"Unknown", IF($K109=1, $F109*0.33, IF($K109=2, $F109*0.5+$G109*0.2, SUM(F109:G109)))), 0),"Not required") -> 0 | P109: 0 | Q109: 0 | R109: 1 | S109: 0 | U109: T3 (ALB/MBD) | Y109: 49724 | Z109: BUHWEJU | AF109: ='MDA3'!N109 -> 0 | AG109: ='T1'!M109 -> 0 | AH109: =T3_R1!L109 -> 40293 | AI109: =T3_R2!L109 -> 57956 | AK109: =_xlfn.XLOOKUP($Y109,[1]COUNTRY_INFO!$Y$9:$Y$142,[1]COUNTRY_INFO!J$9:J$142) -> 3 | AL109: =_xlfn.XLOOKUP($Y109,[1]COUNTRY_INFO!$Y$9:$Y$142,[1]COUNTRY_INFO!K$9:K$142) -> 0 | AM109: TRUE | AN109: TRUE | AP109: 3
A110: =IF(INTRO!$E$34<>0,INTRO!$E$34,"") -> Uganda | B110: WESTERN | C110: BULIISA | D110: 139962 | E110: =IF(INTRO!$E$48="","",ROUND($D110*INTRO!$E$48,0)) -> 19875 | F110: =IF(INTRO!$E$49="","",ROUND($D110*INTRO!$E$49,0)) -> 42269 | G110: =IF(INTRO!$E$50="","",ROUND($D110*INTRO!$E$50,0)) -> 72920 | H110: 0 | I110: 99 | J110: 3 | K110: 3 | L110: =IF(INTRO!$E$38="Endemic", IF($H110>0, IF($H110=4,"Unknown", IF($H110=99,"Stopped", $D110)), 0),"Not required") -> Not required | M110: 0 | N110: =IF(INTRO!$E$42="Endemic", IF(AND($J110>1,$J110<5), IF($J110=4, "Unknown", E110+F110), 0),"Not required") -> 62144 | O110: =IF(INTRO!$E$44="Endemic", IF(AND($K110>0,$K110<5), IF($K110=4,"Unknown", IF($K110=1, $F110*0.33, IF($K110=2, $F110*0.5+$G110*0.2, SUM(F110:G110)))), 0),"Not required") -> 115189 | P110: 0 | Q110: 0 | R110: 1 | S110: 1 | U110: T3 (ALB/MBD) | Y110: 49720 | Z110: BULIISA | AF110: ='MDA3'!N110 -> 0 | AG110: ='T1'!M110 -> 0 | AH110: =T3_R1!L110 -> 20472 | AI110: =T3_R2!L110 -> 29932 | AK110: =_xlfn.XLOOKUP($Y110,[1]COUNTRY_INFO!$Y$9:$Y$142,[1]COUNTRY_INFO!J$9:J$142) -> 3 | AL110: =_xlfn.XLOOKUP($Y110,[1]COUNTRY_INFO!$Y$9:$Y$142,[1]COUNTRY_INFO!K$9:K$142) -> 3 | AM110: TRUE | AN110: TRUE | AP110: 3
A111: =IF(INTRO!$E$34<>0,INTRO!$E$34,"") -> Uganda | B111: WESTERN | C111: BUNDIBUGYO | D111: 276230 | E111: =IF(INTRO!$E$48="","",ROUND($D111*INTRO!$E$48,0)) -> 39225 | F111: =IF(INTRO!$E$49="","",ROUND($D111*INTRO!$E$49,0)) -> 83421 | G111: =IF(INTRO!$E$50="","",ROUND($D111*INTRO!$E$50,0)) -> 143916 | H111: 99 | I111: 0 | J111: 3 | K111: 3 | L111: =IF(INTRO!$E$38="Endemic", IF($H111>0, IF($H111=4,"Unknown", IF($H111=99,"Stopped", $D111)), 0),"Not required") -> Not required | M111: 0 | N111: =IF(INTRO!$E$42="Endemic", IF(AND($J111>1,$J111<5), IF($J111=4, "Unknown", E111+F111), 0),"Not required") -> 122646 | O111: =IF(INTRO!$E$44="Endemic", IF(AND($K111>0,$K111<5), IF($K111=4,"Unknown", IF($K111=1, $F111*0.33, IF($K111=2, $F111*0.5+$G111*0.2, SUM(F111:G111)))), 0),"Not required") -> 227337 | P111: 0 | Q111: 0 | R111: 1 | S111: 1 | U111: T3 (ALB/MBD) | Y111: 49721 | Z111: BUNDIBUGYO | AF111: ='MDA3'!N111 -> 0 | AG111: ='T1'!M111 -> 0 | AH111: =T3_R1!L111 -> 52810 | AI111: =T3_R2!L111 -> 42577 | AK111: =_xlfn.XLOOKUP($Y111,[1]COUNTRY_INFO!$Y$9:$Y$142,[1]COUNTRY_INFO!J$9:J$142) -> 3 | AL111: =_xlfn.XLOOKUP($Y111,[1]COUNTRY_INFO!$Y$9:$Y$142,[1]COUNTRY_INFO!K$9:K$142) -> 3 | AM111: TRUE | AN111: TRUE | AP111: 3
A112: =IF(INTRO!$E$34<>0,INTRO!$E$34,"") -> Uganda | B112: WESTERN | C112: BUNYANGABU | D112: 211098 | E112: =IF(INTRO!$E$48="","",ROUND($D112*INTRO!$E$48,0)) -> 29976 | F112: =IF(INTRO!$E$49="","",ROUND($D112*INTRO!$E$49,0)) -> 63752 | G112: =IF(INTRO!$E$50="","",ROUND($D112*INTRO!$E$50,0)) -> 109982 | H112: 0 | I112: 99 | J112: 3 | K112: 3 | L112: =IF(INTRO!$E$38="Endemic", IF($H112>0, IF($H112=4,"Unknown", IF($H112=99,"Stopped", $D112)), 0),"Not required") -> Not required | M112: 0 | N112: =IF(INTRO!$E$42="Endemic", IF(AND($J112>1,$J112<5), IF($J112=4, "Unknown", E112+F112), 0),"Not required") -> 93728 | O112: =IF(INTRO!$E$44="Endemic", IF(AND($K112>0,$K112<5), IF($K112=4,"Unknown", IF($K112=1, $F112*0.33, IF($K112=2, $F112*0.5+$G112*0.2, SUM(F112:G112)))), 0),"Not required") -> 173734 | P112: 0 | Q112: 0 | R112: 1 | S112: 1 | U112: T3 (ALB/MBD) | Y112: 49828 | Z112: BUNYANGABU | AF112: ='MDA3'!N112 -> 0 | AG112: ='T1'!M112 -> 0 | AH112: =T3_R1!L112 -> 17478 | AI112: =T3_R2!L112 -> 50884 | AK112: =_xlfn.XLOOKUP($Y112,[1]COUNTRY_INFO!$Y$9:$Y$142,[1]COUNTRY_INFO!J$9:J$142) -> 3 | AL112: =_xlfn.XLOOKUP($Y112,[1]COUNTRY_INFO!$Y$9:$Y$142,[1]COUNTRY_INFO!K$9:K$142) -> 3 | AM112: TRUE | AN112: TRUE | AP112: 3
A113: =IF(INTRO!$E$34<>0,INTRO!$E$34,"") -> Uganda | B113: WESTERN | C113: BUSHENYI | D113: 290377 | E113: =IF(INTRO!$E$48="","",ROUND($D113*INTRO!$E$48,0)) -> 41234 | F113: =IF(INTRO!$E$49="","",ROUND($D113*INTRO!$E$49,0)) -> 87694 | G113: =IF(INTRO!$E$50="","",ROUND($D113*INTRO!$E$50,0)) -> 151286 | H113: 0 | I113: 99 | J113: 3 | K113: 0 | L113: =IF(INTRO!$E$38="Endemic", IF($H113>0, IF($H113=4,"Unknown", IF($H113=99,"Stopped", $D113)), 0),"Not required") -> Not required | M113: 0 | N113: =IF(INTRO!$E$42="Endemic", IF(AND($J113>1,$J113<5), IF($J113=4, "Unknown", E113+F113), 0),"Not required") -> 128928 | O113: =IF(INTRO!$E$44="Endemic", IF(AND($K113>0,$K113<5), IF($K113=4,"Unknown", IF($K113=1, $F113*0.33, IF($K113=2, $F113*0.5+$G113*0.2, SUM(F113:G113)))), 0),"Not required") -> 0 | P113: 0 | Q113: 0 | R113: 1 | S113: 0 | U113: T3 (ALB/MBD) | Y113: 49722 | Z113: BUSHENYI | AF113: ='MDA3'!N113 -> 0 | AG113: ='T1'!M113 -> 0 | AH113: =T3_R1!L113 -> 129880 | AI113: =T3_R2!L113 -> 161579 | AK113: =_xlfn.XLOOKUP($Y113,[1]COUNTRY_INFO!$Y$9:$Y$142,[1]COUNTRY_INFO!J$9:J$142) -> 3 | AL113: =_xlfn.XLOOKUP($Y113,[1]COUNTRY_INFO!$Y$9:$Y$142,[1]COUNTRY_INFO!K$9:K$142) -> 0 | AM113: TRUE | AN113: TRUE | AP113: 3
A114: =IF(INTRO!$E$34<>0,INTRO!$E$34,"") -> Uganda | B114: WESTERN | C114: HOIMA | D114: 380406 | E114: =IF(INTRO!$E$48="","",ROUND($D114*INTRO!$E$48,0)) -> 54018 | F114: =IF(INTRO!$E$49="","",ROUND($D114*INTRO!$E$49,0)) -> 114883 | G114: =IF(INTRO!$E$50="","",ROUND($D114*INTRO!$E$50,0)) -> 198192 | H114: 0 | I114: 99 | J114: 3 | K114: 3 | L114: =IF(INTRO!$E$38="Endemic", IF($H114>0, IF($H114=4,"Unknown", IF($H114=99,"Stopped", $D114)), 0),"Not required") -> Not required | M114: 0 | N114: =IF(INTRO!$E$42="Endemic", IF(AND($J114>1,$J114<5), IF($J114=4, "Unknown", E114+F114), 0),"Not required") -> 168901 | O114: =IF(INTRO!$E$44="Endemic", IF(AND($K114>0,$K114<5), IF($K114=4,"Unknown", IF($K114=1, $F114*0.33, IF($K114=2, $F114*0.5+$G114*0.2, SUM(F114:G114)))), 0),"Not required") -> 313075 | P114: 0 | Q114: 0 | R114: 1 | S114: 1 | U114: T3 (ALB/MBD) | Y114: 49736 | Z114: HOIMA | AF114: ='MDA3'!N114 -> 0 | AG114: ='T1'!M114 -> 0 | AH114: =T3_R1!L114 -> 69448 | AI114: =T3_R2!L114 -> 74057 | AK114: =_xlfn.XLOOKUP($Y114,[1]COUNTRY_INFO!$Y$9:$Y$142,[1]COUNTRY_INFO!J$9:J$142) -> 3 | AL114: =_xlfn.XLOOKUP($Y114,[1]COUNTRY_INFO!$Y$9:$Y$142,[1]COUNTRY_INFO!K$9:K$142) -> 3 | AM114: TRUE | AN114: TRUE | AP114: 3
A115: =IF(INTRO!$E$34<>0,INTRO!$E$34,"") -> Uganda | B115: WESTERN | C115: IBANDA | D115: 305735 | E115: =IF(INTRO!$E$48="","",ROUND($D115*INTRO!$E$48,0)) -> 43414 | F115: =IF(INTRO!$E$49="","",ROUND($D115*INTRO!$E$49,0)) -> 92332 | G115: =IF(INTRO!$E$50="","",ROUND($D115*INTRO!$E$50,0)) -> 159288 | H115: 0 | I115: 99 | J115: 3 | K115: 1 | L115: =IF(INTRO!$E$38="Endemic", IF($H115>0, IF($H115=4,"Unknown", IF($H115=99,"Stopped", $D115)), 0),"Not required") -> Not required | M115: 0 | N115: =IF(INTRO!$E$42="Endemic", IF(AND($J115>1,$J115<5), IF($J115=4, "Unknown", E115+F115), 0),"Not required") -> 135746 | O115: =IF(INTRO!$E$44="Endemic", IF(AND($K115>0,$K115<5), IF($K115=4,"Unknown", IF($K115=1, $F115*0.33, IF($K115=2, $F115*0.5+$G115*0.2, SUM(F115:G115)))), 0),"Not required") -> 30469.56 | P115: 0 | Q115: 0 | R115: 1 | S115: 1 | U115: T3 (ALB/MBD) | Y115: 49737 | Z115: IBANDA | AF115: ='MDA3'!N115 -> 0 | AG115: ='T1'!M115 -> 0 | AH115: =T3_R1!L115 -> 71029 | AI115: =T3_R2!L115 -> 78458 | AK115: =_xlfn.XLOOKUP($Y115,[1]COUNTRY_INFO!$Y$9:$Y$142,[1]COUNTRY_INFO!J$9:J$142) -> 3 | AL115: =_xlfn.XLOOKUP($Y115,[1]COUNTRY_INFO!$Y$9:$Y$142,[1]COUNTRY_INFO!K$9:K$142) -> 1 | AM115: TRUE | AN115: TRUE | AP115: 3
A116: =IF(INTRO!$E$34<>0,INTRO!$E$34,"") -> Uganda | B116: WESTERN | C116: ISINGIRO | D116: 606485 | E116: =IF(INTRO!$E$48="","",ROUND($D116*INTRO!$E$48,0)) -> 86121 | F116: =IF(INTRO!$E$49="","",ROUND($D116*INTRO!$E$49,0)) -> 183158 | G116: =IF(INTRO!$E$50="","",ROUND($D116*INTRO!$E$50,0)) -> 315979 | H116: 0 | I116: 0 | J116: 3 | K116: 1 | L116: =IF(INTRO!$E$38="Endemic", IF($H116>0, IF($H116=4,"Unknown", IF($H116=99,"Stopped", $D116)), 0),"Not required") -> Not required | M116: 0 | N116: =IF(INTRO!$E$42="Endemic", IF(AND($J116>1,$J116<5), IF($J116=4, "Unknown", E116+F116), 0),"Not required") -> 269279 | O116: =IF(INTRO!$E$44="Endemic", IF(AND($K116>0,$K116<5), IF($K116=4,"Unknown", IF($K116=1, $F116*0.33, IF($K116=2, $F116*0.5+$G116*0.2, SUM(F116:G116)))), 0),"Not required") -> 60442.14 | P116: 0 | Q116: 0 | R116: 1 | S116: 1 | U116: T3 (ALB/MBD) | Y116: 49739 | Z116: ISINGIRO | AF116: ='MDA3'!N116 -> 0 | AG116: ='T1'!M116 -> 0 | AH116: =T3_R1!L116 -> 205986 | AI116: =T3_R2!L116 -> 289774 | AK116: =_xlfn.XLOOKUP($Y116,[1]COUNTRY_INFO!$Y$9:$Y$142,[1]COUNTRY_INFO!J$9:J$142) -> 3 | AL116: =_xlfn.XLOOKUP($Y116,[1]COUNTRY_INFO!$Y$9:$Y$142,[1]COUNTRY_INFO!K$9:K$142) -> 1 | AM116: TRUE | AN116: TRUE | AP116: 3
A117: =IF(INTRO!$E$34<>0,INTRO!$E$34,"") -> Uganda | B117: WESTERN | C117: KABALE | D117: 286533 | E117: =IF(INTRO!$E$48="","",ROUND($D117*INTRO!$E$48,0)) -> 40688 | F117: =IF(INTRO!$E$49="","",ROUND($D117*INTRO!$E$49,0)) -> 86533 | G117: =IF(INTRO!$E$50="","",ROUND($D117*INTRO!$E$50,0)) -> 149284 | H117: 0 | I117: 0 | J117: 3 | K117: 0 | L117: =IF(INTRO!$E$38="Endemic", IF($H117>0, IF($H117=4,"Unknown", IF($H117=99,"Stopped", $D117)), 0),"Not required") -> Not required | M117: 0 | N117: =IF(INTRO!$E$42="Endemic", IF(AND($J117>1,$J117<5), IF($J117=4, "Unknown", E117+F117), 0),"Not required") -> 127221 | O117: =IF(INTRO!$E$44="Endemic", IF(AND($K117>0,$K117<5), IF($K117=4,"Unknown", IF($K117=1, $F117*0.33, IF($K117=2, $F117*0.5+$G117*0.2, SUM(F117:G117)))), 0),"Not required") -> 0 | P117: 0 | Q117: 0 | R117: 1 | S117: 0 | U117: T3 (ALB/MBD) | Y117: 49741 | Z117: KABALE | AF117: ='MDA3'!N117 -> 0 | AG117: ='T1'!M117 -> 0 | AH117: =T3_R1!L117 -> 112397 | AI117: =T3_R2!L117 -> 167419 | AK117: =_xlfn.XLOOKUP($Y117,[1]COUNTRY_INFO!$Y$9:$Y$142,[1]COUNTRY_INFO!J$9:J$142) -> 3 | AL117: =_xlfn.XLOOKUP($Y117,[1]COUNTRY_INFO!$Y$9:$Y$142,[1]COUNTRY_INFO!K$9:K$142) -> 0 | AM117: TRUE | AN117: TRUE | AP117: 3
A118: =IF(INTRO!$E$34<>0,INTRO!$E$34,"") -> Uganda | B118: WESTERN | C118: KABAROLE | D118: 373322 | E118: =IF(INTRO!$E$48="","",ROUND($D118*INTRO!$E$48,0)) -> 53012 | F118: =IF(INTRO!$E$49="","",ROUND($D118*INTRO!$E$49,0)) -> 112743 | G118: =IF(INTRO!$E$50="","",ROUND($D118*INTRO!$E$50,0)) -> 194501 | H118: 0 | I118: 99 | J118: 3 | K118: 3 | L118: =IF(INTRO!$E$38="Endemic", IF($H118>0, IF($H118=4,"Unknown", IF($H118=99,"Stopped", $D118)), 0),"Not required") -> Not required | M118: 0 | N118: =IF(INTRO!$E$42="Endemic", IF(AND($J118>1,$J118<5), IF($J118=4, "Unknown", E118+F118), 0),"Not required") -> 165755 | O118: =IF(INTRO!$E$44="Endemic", IF(AND($K118>0,$K118<5), IF($K118=4,"Unknown", IF($K118=1, $F118*0.33, IF($K118=2, $F118*0.5+$G118*0.2, SUM(F118:G118)))), 0),"Not required") -> 307244 | P118: 0 | Q118: 0 | R118: 1 | S118: 1 | U118: T3 (ALB/MBD) | Y118: 49742 | Z118: KABAROLE | AF118: ='MDA3'!N118 -> 0 | AG118: ='T1'!M118 -> 0 | AH118: =T3_R1!L118 -> 45667 | AI118: =T3_R2!L118 -> 44135 | AK118: =_xlfn.XLOOKUP($Y118,[1]COUNTRY_INFO!$Y$9:$Y$142,[1]COUNTRY_INFO!J$9:J$142) -> 2 | AL118: =_xlfn.XLOOKUP($Y118,[1]COUNTRY_INFO!$Y$9:$Y$142,[1]COUNTRY_INFO!K$9:K$142) -> 3 | AM118: FALSE | AN118: TRUE | AP118: 3
A119: =IF(INTRO!$E$34<>0,INTRO!$E$34,"") -> Uganda | B119: WESTERN | C119: KAGADI | D119: 434802 | E119: =IF(INTRO!$E$48="","",ROUND($D119*INTRO!$E$48,0)) -> 61742 | F119: =IF(INTRO!$E$49="","",ROUND($D119*INTRO!$E$49,0)) -> 131310 | G119: =IF(INTRO!$E$50="","",ROUND($D119*INTRO!$E$50,0)) -> 226532 | H119: 0 | I119: 99 | J119: 3 | K119: 3 | L119: =IF(INTRO!$E$38="Endemic", IF($H119>0, IF($H119=4,"Unknown", IF($H119=99,"Stopped", $D119)), 0),"Not required") -> Not required | M119: 0 | N119: =IF(INTRO!$E$42="Endemic", IF(AND($J119>1,$J119<5), IF($J119=4, "Unknown", E119+F119), 0),"Not required") -> 193052 | O119: =IF(INTRO!$E$44="Endemic", IF(AND($K119>0,$K119<5), IF($K119=4,"Unknown", IF($K119=1, $F119*0.33, IF($K119=2, $F119*0.5+$G119*0.2, SUM(F119:G119)))), 0),"Not required") -> 357842 | P119: 0 | Q119: 0 | R119: 1 | S119: 1 | U119: T3 (ALB/MBD) | Y119: 49752 | Z119: KAGADI | AF119: ='MDA3'!N119 -> 0 | AG119: ='T1'!M119 -> 0 | AH119: =T3_R1!L119 -> 126744 | AI119: =T3_R2!L119 -> 114610 | AK119: =_xlfn.XLOOKUP($Y119,[1]COUNTRY_INFO!$Y$9:$Y$142,[1]COUNTRY_INFO!J$9:J$142) -> 2 | AL119: =_xlfn.XLOOKUP($Y119,[1]COUNTRY_INFO!$Y$9:$Y$142,[1]COUNTRY_INFO!K$9:K$142) -> 3 | AM119: FALSE | AN119: TRUE | AP119: 3
A120: =IF(INTRO!$E$34<>0,INTRO!$E$34,"") -> Uganda | B120: WESTERN | C120: KAKUMIRO | D120: 365244 | E120: =IF(INTRO!$E$48="","",ROUND($D120*INTRO!$E$48,0)) -> 51865 | F120: =IF(INTRO!$E$49="","",ROUND($D120*INTRO!$E$49,0)) -> 110304 | G120: =IF(INTRO!$E$50="","",ROUND($D120*INTRO!$E$50,0)) -> 190292 | H120: 0 | I120: 0 | J120: 3 | K120: 0 | L120: =IF(INTRO!$E$38="Endemic", IF($H120>0, IF($H120=4,"Unknown", IF($H120=99,"Stopped", $D120)), 0),"Not required") -> Not required | M120: 0 | N120: =IF(INTRO!$E$42="Endemic", IF(AND($J120>1,$J120<5), IF($J120=4, "Unknown", E120+F120), 0),"Not required") -> 162169 | O120: =IF(INTRO!$E$44="Endemic", IF(AND($K120>0,$K120<5), IF($K120=4,"Unknown", IF($K120=1, $F120*0.33, IF($K120=2, $F120*0.5+$G120*0.2, SUM(F120:G120)))), 0),"Not required") -> 0 | P120: 0 | Q120: 0 | R120: 1 | S120: 0 | U120: T3 (ALB/MBD) | Y120: 49819 | Z120: KAKUMIRO | AF120: ='MDA3'!N120 -> 0 | AG120: ='T1'!M120 -> 0 | AH120: =T3_R1!L120 -> 57248 | AI120: =T3_R2!L120 -> 115836 | AK120: =_xlfn.XLOOKUP($Y120,[1]COUNTRY_INFO!$Y$9:$Y$142,[1]COUNTRY_INFO!J$9:J$142) -> 2 | AL120: =_xlfn.XLOOKUP($Y120,[1]COUNTRY_INFO!$Y$9:$Y$142,[1]COUNTRY_INFO!K$9:K$142) -> 0 | AM120: FALSE | AN120: TRUE | AP120: 3
A121: =IF(INTRO!$E$34<>0,INTRO!$E$34,"") -> Uganda | B121: WESTERN | C121: KAMWENGE | D121: 339995 | E121: =IF(INTRO!$E$48="","",ROUND($D121*INTRO!$E$48,0)) -> 48279 | F121: =IF(INTRO!$E$49="","",ROUND($D121*INTRO!$E$49,0)) -> 102678 | G121: =IF(INTRO!$E$50="","",ROUND($D121*INTRO!$E$50,0)) -> 177137 | H121: 0 | I121: 99 | J121: 3 | K121: 0 | L121: =IF(INTRO!$E$38="Endemic", IF($H121>0, IF($H121=4,"Unknown", IF($H121=99,"Stopped", $D121)), 0),"Not required") -> Not required | M121: 0 | N121: =IF(INTRO!$E$42="Endemic", IF(AND($J121>1,$J121<5), IF($J121=4, "Unknown", E121+F121), 0),"Not required") -> 150957 | O121: =IF(INTRO!$E$44="Endemic", IF(AND($K121>0,$K121<5), IF($K121=4,"Unknown", IF($K121=1, $F121*0.33, IF($K121=2, $F121*0.5+$G121*0.2, SUM(F121:G121)))), 0),"Not required") -> 0 | P121: 0 | Q121: 0 | R121: 1 | S121: 1 | U121: T3 (ALB/MBD) | Y121: 49748 | Z121: KAMWENGE | AF121: ='MDA3'!N121 -> 0 | AG121: ='T1'!M121 -> 0 | AH121: =T3_R1!L121 -> 122522 | AI121: =T3_R2!L121 -> 98595 | AK121: =_xlfn.XLOOKUP($Y121,[1]COUNTRY_INFO!$Y$9:$Y$142,[1]COUNTRY_INFO!J$9:J$142) -> 3 | AL121: =_xlfn.XLOOKUP($Y121,[1]COUNTRY_INFO!$Y$9:$Y$142,[1]COUNTRY_INFO!K$9:K$142) -> 0 | AM121: TRUE | AN121: TRUE | AP121: 3
A122: =IF(INTRO!$E$34<>0,INTRO!$E$34,"") -> Uganda | B122: WESTERN | C122: KANUNGU | D122: 310657 | E122: =IF(INTRO!$E$48="","",ROUND($D122*INTRO!$E$48,0)) -> 44113 | F122: =IF(INTRO!$E$49="","",ROUND($D122*INTRO!$E$49,0)) -> 93818 | G122: =IF(INTRO!$E$50="","",ROUND($D122*INTRO!$E$50,0)) -> 161852 | H122: 0 | I122: 99 | J122: 3 | K122: 0 | L122: =IF(INTRO!$E$38="Endemic", IF($H122>0, IF($H122=4,"Unknown", IF($H122=99,"Stopped", $D122)), 0),"Not required") -> Not required | M122: 0 | N122: =IF(INTRO!$E$42="Endemic", IF(AND($J122>1,$J122<5), IF($J122=4, "Unknown", E122+F122), 0),"Not required") -> 137931 | O122: =IF(INTRO!$E$44="Endemic", IF(AND($K122>0,$K122<5), IF($K122=4,"Unknown", IF($K122=1, $F122*0.33, IF($K122=2, $F122*0.5+$G122*0.2, SUM(F122:G122)))), 0),"Not required") -> 0 | P122: 0 | Q122: 0 | R122: 1 | S122: 0 | U122: T3 (ALB/MBD) | Y122: 49749 | Z122: KANUNGU | AF122: ='MDA3'!N122 -> 0 | AG122: ='T1'!M122 -> 0 | AH122: =T3_R1!L122 -> 92596 | AI122: =T3_R2!L122 -> 107729 | AK122: =_xlfn.XLOOKUP($Y122,[1]COUNTRY_INFO!$Y$9:$Y$142,[1]COUNTRY_INFO!J$9:J$142) -> 3 | AL122: =_xlfn.XLOOKUP($Y122,[1]COUNTRY_INFO!$Y$9:$Y$142,[1]COUNTRY_INFO!K$9:K$142) -> 0 | AM122: TRUE | AN122: TRUE | AP122: 3
A123: =IF(INTRO!$E$34<>0,INTRO!$E$34,"") -> Uganda | B123: WESTERN | C123: KASESE | D123: 865171 | E123: =IF(INTRO!$E$48="","",ROUND($D123*INTRO!$E$48,0)) -> 122854 | F123: =IF(INTRO!$E$49="","",ROUND($D123*INTRO!$E$49,0)) -> 261282 | G123: =IF(INTRO!$E$50="","",ROUND($D123*INTRO!$E$50,0)) -> 450754 | H123: 0 | I123: 1 | J123: 3 | K123: 3 | L123: =IF(INTRO!$E$38="Endemic", IF($H123>0, IF($H123=4,"Unknown", IF($H123=99,"Stopped", $D123)), 0),"Not required") -> Not required | M123: 124868 | N123: =IF(INTRO!$E$42="Endemic", IF(AND($J123>1,$J123<5), IF($J123=4, "Unknown", E123+F123), 0),"Not required") -> 384136 | O123: =IF(INTRO!$E$44="Endemic", IF(AND($K123>0,$K123<5), IF($K123=4,"Unknown", IF($K123=1, $F123*0.33, IF($K123=2, $F123*0.5+$G123*0.2, SUM(F123:G123)))), 0),"Not required") -> 712036 | P123: 0 | Q123: 2 | R123: 1 | S123: 1 | T123: MDA3 (IVM) | U123: T3 (ALB/MBD) | Y123: 49750 | Z123: KASESE | AF123: ='MDA3'!N123 -> 120798 | AG123: ='T1'!M123 -> 0 | AH123: =T3_R1!L123 -> 167651 | AI123: =T3_R2!L123 -> 167004 | AK123: =_xlfn.XLOOKUP($Y123,[1]COUNTRY_INFO!$Y$9:$Y$142,[1]COUNTRY_INFO!J$9:J$142) -> 3 | AL123: =_xlfn.XLOOKUP($Y123,[1]COUNTRY_INFO!$Y$9:$Y$142,[1]COUNTRY_INFO!K$9:K$142) -> 3 | AM123: TRUE | AN123: TRUE | AP123: 3
A124: =IF(INTRO!$E$34<>0,INTRO!$E$34,"") -> Uganda | B124: WESTERN | C124: KAZO | D124: 217958 | E124: =IF(INTRO!$E$48="","",ROUND($D124*INTRO!$E$48,0)) -> 30950 | F124: =IF(INTRO!$E$49="","",ROUND($D124*INTRO!$E$49,0)) -> 65823 | G124: =IF(INTRO!$E$50="","",ROUND($D124*INTRO!$E$50,0)) -> 113556 | H124: 0 | I124: 0 | J124: 3 | K124: 1 | L124: =IF(INTRO!$E$38="Endemic", IF($H124>0, IF($H124=4,"Unknown", IF($H124=99,"Stopped", $D124)), 0),"Not required") -> Not required | M124: 0 | N124: =IF(INTRO!$E$42="Endemic", IF(AND($J124>1,$J124<5), IF($J124=4, "Unknown", E124+F124), 0),"Not required") -> 96773 | O124: =IF(INTRO!$E$44="Endemic", IF(AND($K124>0,$K124<5), IF($K124=4,"Unknown", IF($K124=1, $F124*0.33, IF($K124=2, $F124*0.5+$G124*0.2, SUM(F124:G124)))), 0),"Not required") -> 21721.59 | P124: 0 | Q124: 0 | R124: 1 | S124: 1 | U124: T3 (ALB/MBD) | Y124: 49841 | Z124: KAZO | AF124: ='MDA3'!N124 -> 0 | AG124: ='T1'!M124 -> 0 | AH124: =T3_R1!L124 -> 69077 | AI124: =T3_R2!L124 -> 71568 | AK124: =_xlfn.XLOOKUP($Y124,[1]COUNTRY_INFO!$Y$9:$Y$142,[1]COUNTRY_INFO!J$9:J$142) -> 3 | AL124: =_xlfn.XLOOKUP($Y124,[1]COUNTRY_INFO!$Y$9:$Y$142,[1]COUNTRY_INFO!K$9:K$142) -> 1 | AM124: TRUE | AN124: TRUE | AP124: 3
A125: =IF(INTRO!$E$34<>0,INTRO!$E$34,"") -> Uganda | B125: WESTERN | C125: KIBAALE | D125: 171952 | E125: =IF(INTRO!$E$48="","",ROUND($D125*INTRO!$E$48,0)) -> 24417 | F125: =IF(INTRO!$E$49="","",ROUND($D125*INTRO!$E$49,0)) -> 51930 | G125: =IF(INTRO!$E$50="","",ROUND($D125*INTRO!$E$50,0)) -> 89587 | H125: 0 | I125: 99 | J125: 3 | K125: 0 | L125: =IF(INTRO!$E$38="Endemic", IF($H125>0, IF($H125=4,"Unknown", IF($H125=99,"Stopped", $D125)), 0),"Not required") -> Not required | M125: 0 | N125: =IF(INTRO!$E$42="Endemic", IF(AND($J125>1,$J125<5), IF($J125=4, "Unknown", E125+F125), 0),"Not required") -> 76347 | O125: =IF(INTRO!$E$44="Endemic", IF(AND($K125>0,$K125<5), IF($K125=4,"Unknown", IF($K125=1, $F125*0.33, IF($K125=2, $F125*0.5+$G125*0.2, SUM(F125:G125)))), 0),"Not required") -> 0 | P125: 0 | Q125: 0 | R125: 1 | S125: 0 | U125: T3 (ALB/MBD) | Y125: 49820 | Z125: KIBAALE | AF125: ='MDA3'!N125 -> 0 | AG125: ='T1'!M125 -> 0 | AH125: =T3_R1!L125 -> 35803 | AI125: =T3_R2!L125 -> 42066 | AK125: =_xlfn.XLOOKUP($Y125,[1]COUNTRY_INFO!$Y$9:$Y$142,[1]COUNTRY_INFO!J$9:J$142) -> 2 | AL125: =_xlfn.XLOOKUP($Y125,[1]COUNTRY_INFO!$Y$9:$Y$142,[1]COUNTRY_INFO!K$9:K$142) -> 0 | AM125: FALSE | AN125: TRUE | AP125: 3
A126: =IF(INTRO!$E$34<>0,INTRO!$E$34,"") -> Uganda | B126: WESTERN | C126: KIKUUBE | D126: 326862 | E126: =IF(INTRO!$E$48="","",ROUND($D126*INTRO!$E$48,0)) -> 46414 | F126: =IF(INTRO!$E$49="","",ROUND($D126*INTRO!$E$49,0)) -> 98712 | G126: =IF(INTRO!$E$50="","",ROUND($D126*INTRO!$E$50,0)) -> 170295 | H126: 0 | I126: 99 | J126: 3 | K126: 3 | L126: =IF(INTRO!$E$38="Endemic", IF($H126>0, IF($H126=4,"Unknown", IF($H126=99,"Stopped", $D126)), 0),"Not required") -> Not required | M126: 0 | N126: =IF(INTRO!$E$42="Endemic", IF(AND($J126>1,$J126<5), IF($J126=4, "Unknown", E126+F126), 0),"Not required") -> 145126 | O126: =IF(INTRO!$E$44="Endemic", IF(AND($K126>0,$K126<5), IF($K126=4,"Unknown", IF($K126=1, $F126*0.33, IF($K126=2, $F126*0.5+$G126*0.2, SUM(F126:G126)))), 0),"Not required") -> 269007 | P126: 0 | Q126: 0 | R126: 1 | S126: 1 | U126: T3 (ALB/MBD) | Y126: 49839 | Z126: KIKUUBE | AF126: ='MDA3'!N126 -> 0 | AG126: ='T1'!M126 -> 0 | AH126: =T3_R1!L126 -> 94664 | AI126: =T3_R2!L126 -> 104144 | AK126: =_xlfn.XLOOKUP($Y126,[1]COUNTRY_INFO!$Y$9:$Y$142,[1]COUNTRY_INFO!J$9:J$142) -> 3 | AL126: =_xlfn.XLOOKUP($Y126,[1]COUNTRY_INFO!$Y$9:$Y$142,[1]COUNTRY_INFO!K$9:K$142) -> 3 | AM126: TRUE | AN126: TRUE | AP126: 3
A127: =IF(INTRO!$E$34<>0,INTRO!$E$34,"") -> Uganda | B127: WESTERN | C127: KIRUHURA | D127: 186934 | E127: =IF(INTRO!$E$48="","",ROUND($D127*INTRO!$E$48,0)) -> 26545 | F127: =IF(INTRO!$E$49="","",ROUND($D127*INTRO!$E$49,0)) -> 56454 | G127: =IF(INTRO!$E$50="","",ROUND($D127*INTRO!$E$50,0)) -> 97393 | H127: 0 | I127: 0 | J127: 3 | K127: 1 | L127: =IF(INTRO!$E$38="Endemic", IF($H127>0, IF($H127=4,"Unknown", IF($H127=99,"Stopped", $D127)), 0),"Not required") -> Not required | M127: 0 | N127: =IF(INTRO!$E$42="Endemic", IF(AND($J127>1,$J127<5), IF($J127=4, "Unknown", E127+F127), 0),"Not required") -> 82999 | O127: =IF(INTRO!$E$44="Endemic", IF(AND($K127>0,$K127<5), IF($K127=4,"Unknown", IF($K127=1, $F127*0.33, IF($K127=2, $F127*0.5+$G127*0.2, SUM(F127:G127)))), 0),"Not required") -> 18629.82 | P127: 0 | Q127: 0 | R127: 1 | S127: 1 | U127: T3 (ALB/MBD) | Y127: 49764 | Z127: KIRUHURA | AF127: ='MDA3'!N127 -> 0 | AG127: ='T1'!M127 -> 0 | AH127: =T3_R1!L127 -> 54504 | AI127: =T3_R2!L127 -> 69869 | AK127: =_xlfn.XLOOKUP($Y127,[1]COUNTRY_INFO!$Y$9:$Y$142,[1]COUNTRY_INFO!J$9:J$142) -> 3 | AL127: =_xlfn.XLOOKUP($Y127,[1]COUNTRY_INFO!$Y$9:$Y$142,[1]COUNTRY_INFO!K$9:K$142) -> 1 | AM127: TRUE | AN127: TRUE | AP127: 3
A128: =IF(INTRO!$E$34<>0,INTRO!$E$34,"") -> Uganda | B128: WESTERN | C128: KIRYANDONGO | D128: 330514 | E128: =IF(INTRO!$E$48="","",ROUND($D128*INTRO!$E$48,0)) -> 46933 | F128: =IF(INTRO!$E$49="","",ROUND($D128*INTRO!$E$49,0)) -> 99815 | G128: =IF(INTRO!$E$50="","",ROUND($D128*INTRO!$E$50,0)) -> 172198 | H128: 0 | I128: 0 | J128: 3 | K128: 3 | L128: =IF(INTRO!$E$38="Endemic", IF($H128>0, IF($H128=4,"Unknown", IF($H128=99,"Stopped", $D128)), 0),"Not required") -> Not required | M128: 0 | N128: =IF(INTRO!$E$42="Endemic", IF(AND($J128>1,$J128<5), IF($J128=4, "Unknown", E128+F128), 0),"Not required") -> 146748 | O128: =IF(INTRO!$E$44="Endemic", IF(AND($K128>0,$K128<5), IF($K128=4,"Unknown", IF($K128=1, $F128*0.33, IF($K128=2, $F128*0.5+$G128*0.2, SUM(F128:G128)))), 0),"Not required") -> 272013 | P128: 0 | Q128: 0 | R128: 1 | S128: 1 | U128: T3 (ALB/MBD) | Y128: 49765 | Z128: KIRYANDONGO | AF128: ='MDA3'!N128 -> 0 | AG128: ='T1'!M128 -> 0 | AH128: =T3_R1!L128 -> 128555 | AI128: =T3_R2!L128 -> 124961 | AK128: =_xlfn.XLOOKUP($Y128,[1]COUNTRY_INFO!$Y$9:$Y$142,[1]COUNTRY_INFO!J$9:J$142) -> 3 | AL128: =_xlfn.XLOOKUP($Y128,[1]COUNTRY_INFO!$Y$9:$Y$142,[1]COUNTRY_INFO!K$9:K$142) -> 3 | AM128: TRUE | AN128: TRUE | AP128: 3
A129: =IF(INTRO!$E$34<>0,INTRO!$E$34,"") -> Uganda | B129: WESTERN | C129: KISORO | D129: 353915 | E129: =IF(INTRO!$E$48="","",ROUND($D129*INTRO!$E$48,0)) -> 50256 | F129: =IF(INTRO!$E$49="","",ROUND($D129*INTRO!$E$49,0)) -> 106882 | G129: =IF(INTRO!$E$50="","",ROUND($D129*INTRO!$E$50,0)) -> 184390 | H129: 0 | I129: 99 | J129: 3 | K129: 0 | L129: =IF(INTRO!$E$38="Endemic", IF($H129>0, IF($H129=4,"Unknown", IF($H129=99,"Stopped", $D129)), 0),"Not required") -> Not required | M129: 0 | N129: =IF(INTRO!$E$42="Endemic", IF(AND($J129>1,$J129<5), IF($J129=4, "Unknown", E129+F129), 0),"Not required") -> 157138 | O129: =IF(INTRO!$E$44="Endemic", IF(AND($K129>0,$K129<5), IF($K129=4,"Unknown", IF($K129=1, $F129*0.33, IF($K129=2, $F129*0.5+$G129*0.2, SUM(F129:G129)))), 0),"Not required") -> 0 | P129: 0 | Q129: 0 | R129: 1 | S129: 0 | U129: T3 (ALB/MBD) | Y129: 49753 | Z129: KISORO | AF129: ='MDA3'!N129 -> 0 | AG129: ='T1'!M129 -> 0 | AH129: =T3_R1!L129 -> 79988 | AI129: =T3_R2!L129 -> 69787 | AK129: =_xlfn.XLOOKUP($Y129,[1]COUNTRY_INFO!$Y$9:$Y$142,[1]COUNTRY_INFO!J$9:J$142) -> 3 | AL129: =_xlfn.XLOOKUP($Y129,[1]COUNTRY_INFO!$Y$9:$Y$142,[1]COUNTRY_INFO!K$9:K$142) -> 0 | AM129: TRUE | AN129: TRUE | AP129: 3
A130: =IF(INTRO!$E$34<>0,INTRO!$E$34,"") -> Uganda | B130: WESTERN | C130: KITAGWENDA | D130: 179423 | E130: =IF(INTRO!$E$48="","",ROUND($D130*INTRO!$E$48,0)) -> 25478 | F130: =IF(INTRO!$E$49="","",ROUND($D130*INTRO!$E$49,0)) -> 54186 | G130: =IF(INTRO!$E$50="","",ROUND($D130*INTRO!$E$50,0)) -> 93479 | H130: 0 | I130: 99 | J130: 3 | K130: 2 | L130: =IF(INTRO!$E$38="Endemic", IF($H130>0, IF($H130=4,"Unknown", IF($H130=99,"Stopped", $D130)), 0),"Not required") -> Not required | M130: 0 | N130: =IF(INTRO!$E$42="Endemic", IF(AND($J130>1,$J130<5), IF($J130=4, "Unknown", E130+F130), 0),"Not required") -> 79664 | O130: =IF(INTRO!$E$44="Endemic", IF(AND($K130>0,$K130<5), IF($K130=4,"Unknown", IF($K130=1, $F130*0.33, IF($K130=2, $F130*0.5+$G130*0.2, SUM(F130:G130)))), 0),"Not required") -> 45788.8 | P130: 0 | Q130: 0 | R130: 1 | S130: 1 | U130: T3 (ALB/MBD) | Y130: 49840 | Z130: KITAGWENDA | AF130: ='MDA3'!N130 -> 0 | AG130: ='T1'!M130 -> 0 | AH130: =T3_R1!L130 -> 57901 | AI130: =T3_R2!L130 -> 41921 | AK130: =_xlfn.XLOOKUP($Y130,[1]COUNTRY_INFO!$Y$9:$Y$142,[1]COUNTRY_INFO!J$9:J$142) -> 3 | AL130: =_xlfn.XLOOKUP($Y130,[1]COUNTRY_INFO!$Y$9:$Y$142,[1]COUNTRY_INFO!K$9:K$142) -> 2 | AM130: TRUE | AN130: TRUE | AP130: 3
A131: =IF(INTRO!$E$34<>0,INTRO!$E$34,"") -> Uganda | B131: WESTERN | C131: KYEGEGWA | D131: 341838 | E131: =IF(INTRO!$E$48="","",ROUND($D131*INTRO!$E$48,0)) -> 48541 | F131: =IF(INTRO!$E$49="","",ROUND($D131*INTRO!$E$49,0)) -> 103235 | G131: =IF(INTRO!$E$50="","",ROUND($D131*INTRO!$E$50,0)) -> 178098 | H131: 0 | I131: 0 | J131: 3 | K131: 0 | L131: =IF(INTRO!$E$38="Endemic", IF($H131>0, IF($H131=4,"Unknown", IF($H131=99,"Stopped", $D131)), 0),"Not required") -> Not required | M131: 0 | N131: =IF(INTRO!$E$42="Endemic", IF(AND($J131>1,$J131<5), IF($J131=4, "Unknown", E131+F131), 0),"Not required") -> 151776 | O131: =IF(INTRO!$E$44="Endemic", IF(AND($K131>0,$K131<5), IF($K131=4,"Unknown", IF($K131=1, $F131*0.33, IF($K131=2, $F131*0.5+$G131*0.2, SUM(F131:G131)))), 0),"Not required") -> 0 | P131: 0 | Q131: 0 | R131: 1 | S131: 0 | U131: T3 (ALB/MBD) | Y131: 49770 | Z131: KYEGEGWA | AF131: ='MDA3'!N131 -> 0 | AG131: ='T1'!M131 -> 0 | AH131: =T3_R1!L131 -> 216692 | AI131: =T3_R2!L131 -> 215732 | AK131: =_xlfn.XLOOKUP($Y131,[1]COUNTRY_INFO!$Y$9:$Y$142,[1]COUNTRY_INFO!J$9:J$142) -> 3 | AL131: =_xlfn.XLOOKUP($Y131,[1]COUNTRY_INFO!$Y$9:$Y$142,[1]COUNTRY_INFO!K$9:K$142) -> 0 | AM131: TRUE | AN131: TRUE | AP131: 3
A132: =IF(INTRO!$E$34<>0,INTRO!$E$34,"") -> Uganda | B132: WESTERN | C132: KYENJOJO | D132: 493080 | E132: =IF(INTRO!$E$48="","",ROUND($D132*INTRO!$E$48,0)) -> 70017 | F132: =IF(INTRO!$E$49="","",ROUND($D132*INTRO!$E$49,0)) -> 148910 | G132: =IF(INTRO!$E$50="","",ROUND($D132*INTRO!$E$50,0)) -> 256895 | H132: 0 | I132: 99 | J132: 3 | K132: 0 | L132: =IF(INTRO!$E$38="Endemic", IF($H132>0, IF($H132=4,"Unknown", IF($H132=99,"Stopped", $D132)), 0),"Not required") -> Not required | M132: 0 | N132: =IF(INTRO!$E$42="Endemic", IF(AND($J132>1,$J132<5), IF($J132=4, "Unknown", E132+F132), 0),"Not required") -> 218927 | O132: =IF(INTRO!$E$44="Endemic", IF(AND($K132>0,$K132<5), IF($K132=4,"Unknown", IF($K132=1, $F132*0.33, IF($K132=2, $F132*0.5+$G132*0.2, SUM(F132:G132)))), 0),"Not required") -> 0 | P132: 0 | Q132: 0 | R132: 1 | S132: 0 | U132: T3 (ALB/MBD) | Y132: 49757 | Z132: KYENJOJO | AF132: ='MDA3'!N132 -> 0 | AG132: ='T1'!M132 -> 0 | AH132: =T3_R1!L132 -> 118479 | AI132: =T3_R2!L132 -> 136776 | AK132: =_xlfn.XLOOKUP($Y132,[1]COUNTRY_INFO!$Y$9:$Y$142,[1]COUNTRY_INFO!J$9:J$142) -> 3 | AL132: =_xlfn.XLOOKUP($Y132,[1]COUNTRY_INFO!$Y$9:$Y$142,[1]COUNTRY_INFO!K$9:K$142) -> 0 | AM132: TRUE | AN132: TRUE | AP132: 3
A133: =IF(INTRO!$E$34<>0,INTRO!$E$34,"") -> Uganda | B133: WESTERN | C133: MASINDI | D133: 390460 | E133: =IF(INTRO!$E$48="","",ROUND($D133*INTRO!$E$48,0)) -> 55445 | F133: =IF(INTRO!$E$49="","",ROUND($D133*INTRO!$E$49,0)) -> 117919 | G133: =IF(INTRO!$E$50="","",ROUND($D133*INTRO!$E$50,0)) -> 203430 | H133: 0 | I133: 99 | J133: 3 | K133: 0 | L133: =IF(INTRO!$E$38="Endemic", IF($H133>0, IF($H133=4,"Unknown", IF($H133=99,"Stopped", $D133)), 0),"Not required") -> Not required | M133: 0 | N133: =IF(INTRO!$E$42="Endemic", IF(AND($J133>1,$J133<5), IF($J133=4, "Unknown", E133+F133), 0),"Not required") -> 173364 | O133: =IF(INTRO!$E$44="Endemic", IF(AND($K133>0,$K133<5), IF($K133=4,"Unknown", IF($K133=1, $F133*0.33, IF($K133=2, $F133*0.5+$G133*0.2, SUM(F133:G133)))), 0),"Not required") -> 0 | P133: 0 | Q133: 0 | R133: 1 | S133: 0 | U133: T3 (ALB/MBD) | Y133: 49778 | Z133: MASINDI | AF133: ='MDA3'!N133 -> 0 | AG133: ='T1'!M133 -> 0 | AH133: =T3_R1!L133 -> 68417 | AI133: =T3_R2!L133 -> 55404 | AK133: =_xlfn.XLOOKUP($Y133,[1]COUNTRY_INFO!$Y$9:$Y$142,[1]COUNTRY_INFO!J$9:J$142) -> 3 | AL133: =_xlfn.XLOOKUP($Y133,[1]COUNTRY_INFO!$Y$9:$Y$142,[1]COUNTRY_INFO!K$9:K$142) -> 0 | AM133: TRUE | AN133: TRUE | AP133: 3
A134: =IF(INTRO!$E$34<>0,INTRO!$E$34,"") -> Uganda | B134: WESTERN | C134: MBARARA | D134: 426129 | E134: =IF(INTRO!$E$48="","",ROUND($D134*INTRO!$E$48,0)) -> 60510 | F134: =IF(INTRO!$E$49="","",ROUND($D134*INTRO!$E$49,0)) -> 128691 | G134: =IF(INTRO!$E$50="","",ROUND($D134*INTRO!$E$50,0)) -> 222013 | H134: 0 | I134: 0 | J134: 3 | K134: 0 | L134: =IF(INTRO!$E$38="Endemic", IF($H134>0, IF($H134=4,"Unknown", IF($H134=99,"Stopped", $D134)), 0),"Not required") -> Not required | M134: 0 | N134: =IF(INTRO!$E$42="Endemic", IF(AND($J134>1,$J134<5), IF($J134=4, "Unknown", E134+F134), 0),"Not required") -> 189201 | O134: =IF(INTRO!$E$44="Endemic", IF(AND($K134>0,$K134<5), IF($K134=4,"Unknown", IF($K134=1, $F134*0.33, IF($K134=2, $F134*0.5+$G134*0.2, SUM(F134:G134)))), 0),"Not required") -> 0 | P134: 0 | Q134: 0 | R134: 1 | S134: 0 | U134: T3 (ALB/MBD) | Y134: 49786 | Z134: MBARARA | AF134: ='MDA3'!N134 -> 0 | AG134: ='T1'!M134 -> 0 | AH134: =T3_R1!L134 -> 57211 | AI134: =T3_R2!L134 -> 78924 | AK134: =_xlfn.XLOOKUP($Y134,[1]COUNTRY_INFO!$Y$9:$Y$142,[1]COUNTRY_INFO!J$9:J$142) -> 3 | AL134: =_xlfn.XLOOKUP($Y134,[1]COUNTRY_INFO!$Y$9:$Y$142,[1]COUNTRY_INFO!K$9:K$142) -> 0 | AM134: TRUE | AN134: TRUE | AP134: 3
A135: =IF(INTRO!$E$34<>0,INTRO!$E$34,"") -> Uganda | B135: WESTERN | C135: MITOOMA | D135: 228633 | E135: =IF(INTRO!$E$48="","",ROUND($D135*INTRO!$E$48,0)) -> 32466 | F135: =IF(INTRO!$E$49="","",ROUND($D135*INTRO!$E$49,0)) -> 69047 | G135: =IF(INTRO!$E$50="","",ROUND($D135*INTRO!$E$50,0)) -> 119118 | H135: 0 | I135: 99 | J135: 3 | K135: 0 | L135: =IF(INTRO!$E$38="Endemic", IF($H135>0, IF($H135=4,"Unknown", IF($H135=99,"Stopped", $D135)), 0),"Not required") -> Not required | M135: 0 | N135: =IF(INTRO!$E$42="Endemic", IF(AND($J135>1,$J135<5), IF($J135=4, "Unknown", E135+F135), 0),"Not required") -> 101513 | O135: =IF(INTRO!$E$44="Endemic", IF(AND($K135>0,$K135<5), IF($K135=4,"Unknown", IF($K135=1, $F135*0.33, IF($K135=2, $F135*0.5+$G135*0.2, SUM(F135:G135)))), 0),"Not required") -> 0 | P135: 0 | Q135: 0 | R135: 1 | S135: 0 | U135: T3 (ALB/MBD) | Y135: 49787 | Z135: MITOOMA | AF135: ='MDA3'!N135 -> 0 | AG135: ='T1'!M135 -> 0 | AH135: =T3_R1!L135 -> 65325 | AI135: =T3_R2!L135 -> 48664 | AK135: =_xlfn.XLOOKUP($Y135,[1]COUNTRY_INFO!$Y$9:$Y$142,[1]COUNTRY_INFO!J$9:J$142) -> 3 | AL135: =_xlfn.XLOOKUP($Y135,[1]COUNTRY_INFO!$Y$9:$Y$142,[1]COUNTRY_INFO!K$9:K$142) -> 0 | AM135: TRUE | AN135: TRUE | AP135: 3
A136: =IF(INTRO!$E$34<>0,INTRO!$E$34,"") -> Uganda | B136: WESTERN | C136: NTOROKO | D136: 81860 | E136: =IF(INTRO!$E$48="","",ROUND($D136*INTRO!$E$48,0)) -> 11624 | F136: =IF(INTRO!$E$49="","",ROUND($D136*INTRO!$E$49,0)) -> 24722 | G136: =IF(INTRO!$E$50="","",ROUND($D136*INTRO!$E$50,0)) -> 42649 | H136: 99 | I136: 0 | J136: 3 | K136: 3 | L136: =IF(INTRO!$E$38="Endemic", IF($H136>0, IF($H136=4,"Unknown", IF($H136=99,"Stopped", $D136)), 0),"Not required") -> Not required | M136: 0 | N136: =IF(INTRO!$E$42="Endemic", IF(AND($J136>1,$J136<5), IF($J136=4, "Unknown", E136+F136), 0),"Not required") -> 36346 | O136: =IF(INTRO!$E$44="Endemic", IF(AND($K136>0,$K136<5), IF($K136=4,"Unknown", IF($K136=1, $F136*0.33, IF($K136=2, $F136*0.5+$G136*0.2, SUM(F136:G136)))), 0),"Not required") -> 67371 | P136: 0 | Q136: 0 | R136: 1 | S136: 1 | U136: T3 (ALB/MBD) | Y136: 49799 | Z136: NTOROKO | AF136: ='MDA3'!N136 -> 0 | AG136: ='T1'!M136 -> 0 | AH136: =T3_R1!L136 -> 9467 | AI136: =T3_R2!L136 -> 61821 | AK136: =_xlfn.XLOOKUP($Y136,[1]COUNTRY_INFO!$Y$9:$Y$142,[1]COUNTRY_INFO!J$9:J$142) -> 3 | AL136: =_xlfn.XLOOKUP($Y136,[1]COUNTRY_INFO!$Y$9:$Y$142,[1]COUNTRY_INFO!K$9:K$142) -> 3 | AM136: TRUE | AN136: TRUE | AP136: 3
A137: =IF(INTRO!$E$34<>0,INTRO!$E$34,"") -> Uganda | B137: WESTERN | C137: NTUNGAMO | D137: 603037 | E137: =IF(INTRO!$E$48="","",ROUND($D137*INTRO!$E$48,0)) -> 85631 | F137: =IF(INTRO!$E$49="","",ROUND($D137*INTRO!$E$49,0)) -> 182117 | G137: =IF(INTRO!$E$50="","",ROUND($D137*INTRO!$E$50,0)) -> 314182 | H137: 0 | I137: 0 | J137: 3 | K137: 0 | L137: =IF(INTRO!$E$38="Endemic", IF($H137>0, IF($H137=4,"Unknown", IF($H137=99,"Stopped", $D137)), 0),"Not required") -> Not required | M137: 0 | N137: =IF(INTRO!$E$42="Endemic", IF(AND($J137>1,$J137<5), IF($J137=4, "Unknown", E137+F137), 0),"Not required") -> 267748 | O137: =IF(INTRO!$E$44="Endemic", IF(AND($K137>0,$K137<5), IF($K137=4,"Unknown", IF($K137=1, $F137*0.33, IF($K137=2, $F137*0.5+$G137*0.2, SUM(F137:G137)))), 0),"Not required") -> 0 | P137: 0 | Q137: 0 | R137: 1 | S137: 0 | U137: T3 (ALB/MBD) | Y137: 49800 | Z137: NTUNGAMO | AF137: ='MDA3'!N137 -> 0 | AG137: ='T1'!M137 -> 0 | AH137: =T3_R1!L137 -> 191160 | AI137: =T3_R2!L137 -> 220057 | AK137: =_xlfn.XLOOKUP($Y137,[1]COUNTRY_INFO!$Y$9:$Y$142,[1]COUNTRY_INFO!J$9:J$142) -> 3 | AL137: =_xlfn.XLOOKUP($Y137,[1]COUNTRY_INFO!$Y$9:$Y$142,[1]COUNTRY_INFO!K$9:K$142) -> 0 | AM137: TRUE | AN137: TRUE | AP137: 3
A138: =IF(INTRO!$E$34<>0,INTRO!$E$34,"") -> Uganda | B138: WESTERN | C138: RUBANDA | D138: 246005 | E138: =IF(INTRO!$E$48="","",ROUND($D138*INTRO!$E$48,0)) -> 34933 | F138: =IF(INTRO!$E$49="","",ROUND($D138*INTRO!$E$49,0)) -> 74294 | G138: =IF(INTRO!$E$50="","",ROUND($D138*INTRO!$E$50,0)) -> 128169 | H138: 0 | I138: 99 | J138: 3 | K138: 0 | L138: =IF(INTRO!$E$38="Endemic", IF($H138>0, IF($H138=4,"Unknown", IF($H138=99,"Stopped", $D138)), 0),"Not required") -> Not required | M138: 0 | N138: =IF(INTRO!$E$42="Endemic", IF(AND($J138>1,$J138<5), IF($J138=4, "Unknown", E138+F138), 0),"Not required") -> 109227 | O138: =IF(INTRO!$E$44="Endemic", IF(AND($K138>0,$K138<5), IF($K138=4,"Unknown", IF($K138=1, $F138*0.33, IF($K138=2, $F138*0.5+$G138*0.2, SUM(F138:G138)))), 0),"Not required") -> 0 | P138: 0 | Q138: 0 | R138: 1 | S138: 0 | U138: T3 (ALB/MBD) | Y138: 49821 | Z138: RUBANDA | AF138: ='MDA3'!N138 -> 0 | AG138: ='T1'!M138 -> 0 | AH138: =T3_R1!L138 -> 83981 | AI138: =T3_R2!L138 -> 123766 | AK138: =_xlfn.XLOOKUP($Y138,[1]COUNTRY_INFO!$Y$9:$Y$142,[1]COUNTRY_INFO!J$9:J$142) -> 3 | AL138: =_xlfn.XLOOKUP($Y138,[1]COUNTRY_INFO!$Y$9:$Y$142,[1]COUNTRY_INFO!K$9:K$142) -> 0 | AM138: =AK138=J138 -> TRUE | AN138: =AL138=K138 -> TRUE | AP138: 3
A139: =IF(INTRO!$E$34<>0,INTRO!$E$34,"") -> Uganda | B139: WESTERN | C139: RUBIRIZI | D139: 159327 | E139: =IF(INTRO!$E$48="","",ROUND($D139*INTRO!$E$48,0)) -> 22624 | F139: =IF(INTRO!$E$49="","",ROUND($D139*INTRO!$E$49,0)) -> 48117 | G139: =IF(INTRO!$E$50="","",ROUND($D139*INTRO!$E$50,0)) -> 83009 | H139: 0 | I139: 0 | J139: 3 | K139: 3 | L139: =IF(INTRO!$E$38="Endemic", IF($H139>0, IF($H139=4,"Unknown", IF($H139=99,"Stopped", $D139)), 0),"Not required") -> Not required | M139: 0 | N139: =IF(INTRO!$E$42="Endemic", IF(AND($J139>1,$J139<5), IF($J139=4, "Unknown", E139+F139), 0),"Not required") -> 70741 | O139: =IF(INTRO!$E$44="Endemic", IF(AND($K139>0,$K139<5), IF($K139=4,"Unknown", IF($K139=1, $F139*0.33, IF($K139=2, $F139*0.5+$G139*0.2, SUM(F139:G139)))), 0),"Not required") -> 131126 | P139: 0 | Q139: 0 | R139: 1 | S139: 1 | U139: T3 (ALB/MBD) | Y139: 49808 | Z139: RUBIRIZI | AF139: ='MDA3'!N139 -> 0 | AG139: ='T1'!M139 -> 0 | AH139: =T3_R1!L139 -> 57472 | AI139: =T3_R2!L139 -> 46041 | AK139: =_xlfn.XLOOKUP($Y139,[1]COUNTRY_INFO!$Y$9:$Y$142,[1]COUNTRY_INFO!J$9:J$142) -> 3 | AL139: =_xlfn.XLOOKUP($Y139,[1]COUNTRY_INFO!$Y$9:$Y$142,[1]COUNTRY_INFO!K$9:K$142) -> 3 | AM139: TRUE | AN139: TRUE | AP139: 3
A140: =IF(INTRO!$E$34<>0,INTRO!$E$34,"") -> Uganda | B140: WESTERN | C140: RUKIGA | D140: 125752 | E140: =IF(INTRO!$E$48="","",ROUND($D140*INTRO!$E$48,0)) -> 17857 | F140: =IF(INTRO!$E$49="","",ROUND($D140*INTRO!$E$49,0)) -> 37977 | G140: =IF(INTRO!$E$50="","",ROUND($D140*INTRO!$E$50,0)) -> 65517 | H140: 0 | I140: 0 | J140: 3 | K140: 0 | L140: =IF(INTRO!$E$38="Endemic", IF($H140>0, IF($H140=4,"Unknown", IF($H140=99,"Stopped", $D140)), 0),"Not required") -> Not required | M140: 0 | N140: =IF(INTRO!$E$42="Endemic", IF(AND($J140>1,$J140<5), IF($J140=4, "Unknown", E140+F140), 0),"Not required") -> 55834 | O140: =IF(INTRO!$E$44="Endemic", IF(AND($K140>0,$K140<5), IF($K140=4,"Unknown", IF($K140=1, $F140*0.33, IF($K140=2, $F140*0.5+$G140*0.2, SUM(F140:G140)))), 0),"Not required") -> 0 | P140: 0 | Q140: 0 | R140: 1 | S140: 0 | U140: T3 (ALB/MBD) | Y140: 49829 | Z140: RUKIGA | AF140: ='MDA3'!N140 -> 0 | AG140: ='T1'!M140 -> 0 | AH140: =T3_R1!L140 -> 51209 | AI140: =T3_R2!L140 -> 60771 | AK140: =_xlfn.XLOOKUP($Y140,[1]COUNTRY_INFO!$Y$9:$Y$142,[1]COUNTRY_INFO!J$9:J$142) -> 3 | AL140: =_xlfn.XLOOKUP($Y140,[1]COUNTRY_INFO!$Y$9:$Y$142,[1]COUNTRY_INFO!K$9:K$142) -> 0 | AM140: TRUE | AN140: TRUE | AP140: 3
A141: =IF(INTRO!$E$34<>0,INTRO!$E$34,"") -> Uganda | B141: WESTERN | C141: RUKUNGIRI | D141: 395064 | E141: =IF(INTRO!$E$48="","",ROUND($D141*INTRO!$E$48,0)) -> 56099 | F141: =IF(INTRO!$E$49="","",ROUND($D141*INTRO!$E$49,0)) -> 119309 | G141: =IF(INTRO!$E$50="","",ROUND($D141*INTRO!$E$50,0)) -> 205828 | H141: 0 | I141: 0 | J141: 3 | K141: 1 | L141: =IF(INTRO!$E$38="Endemic", IF($H141>0, IF($H141=4,"Unknown", IF($H141=99,"Stopped", $D141)), 0),"Not required") -> Not required | M141: 0 | N141: =IF(INTRO!$E$42="Endemic", IF(AND($J141>1,$J141<5), IF($J141=4, "Unknown", E141+F141), 0),"Not required") -> 175408 | O141: =IF(INTRO!$E$44="Endemic", IF(AND($K141>0,$K141<5), IF($K141=4,"Unknown", IF($K141=1, $F141*0.33, IF($K141=2, $F141*0.5+$G141*0.2, SUM(F141:G141)))), 0),"Not required") -> 39371.97 | P141: 0 | Q141: 0 | R141: 1 | S141: 1 | U141: T3 (ALB/MBD) | Y141: 49806 | Z141: RUKUNGIRI | AF141: ='MDA3'!N141 -> 0 | AG141: ='T1'!M141 -> 0 | AH141: =T3_R1!L141 -> 96257 | AI141: =T3_R2!L141 -> 147948 | AK141: =_xlfn.XLOOKUP($Y141,[1]COUNTRY_INFO!$Y$9:$Y$142,[1]COUNTRY_INFO!J$9:J$142) -> 3 | AL141: =_xlfn.XLOOKUP($Y141,[1]COUNTRY_INFO!$Y$9:$Y$142,[1]COUNTRY_INFO!K$9:K$142) -> 1 | AM141: TRUE | AN141: TRUE | AP141: 3
A142: =IF(INTRO!$E$34<>0,INTRO!$E$34,"") -> Uganda | B142: WESTERN | C142: RWAMPARA | D142: 158195 | E142: =IF(INTRO!$E$48="","",ROUND($D142*INTRO!$E$48,0)) -> 22464 | F142: =IF(INTRO!$E$49="","",ROUND($D142*INTRO!$E$49,0)) -> 47775 | G142: =IF(INTRO!$E$50="","",ROUND($D142*INTRO!$E$50,0)) -> 82420 | H142: 0 | I142: 0 | J142: 3 | K142: 0 | L142: =IF(INTRO!$E$38="Endemic", IF($H142>0, IF($H142=4,"Unknown", IF($H142=99,"Stopped", $D142)), 0),"Not required") -> Not required | M142: 0 | N142: =IF(INTRO!$E$42="Endemic", IF(AND($J142>1,$J142<5), IF($J142=4, "Unknown", E142+F142), 0),"Not required") -> 70239 | O142: =IF(INTRO!$E$44="Endemic", IF(AND($K142>0,$K142<5), IF($K142=4,"Unknown", IF($K142=1, $F142*0.33, IF($K142=2, $F142*0.5+$G142*0.2, SUM(F142:G142)))), 0),"Not required") -> 0 | P142: 0 | Q142: 0 | R142: 1 | S142: 0 | U142: T3 (ALB/MBD) | Y142: 49842 | Z142: RWAMPARA | AF142: ='MDA3'!N142 -> 0 | AG142: ='T1'!M142 -> 0 | AH142: =T3_R1!L142 -> 45486 | AI142: =T3_R2!L142 -> 58023 | AK142: =_xlfn.XLOOKUP($Y142,[1]COUNTRY_INFO!$Y$9:$Y$142,[1]COUNTRY_INFO!J$9:J$142) -> 3 | AL142: =_xlfn.XLOOKUP($Y142,[1]COUNTRY_INFO!$Y$9:$Y$142,[1]COUNTRY_INFO!K$9:K$142) -> 0 | AM142: TRUE | AN142: TRUE | AP142: 3
A143: =IF(INTRO!$E$34<>0,INTRO!$E$34,"") -> Uganda | B143: WESTERN | C143: SHEEMA | D143: 260918 | E143: =IF(INTRO!$E$48="","",ROUND($D143*INTRO!$E$48,0)) -> 37050 | F143: =IF(INTRO!$E$49="","",ROUND($D143*INTRO!$E$49,0)) -> 78797 | G143: =IF(INTRO!$E$50="","",ROUND($D143*INTRO!$E$50,0)) -> 135938 | H143: 0 | I143: 0 | J143: 3 | K143: 0 | L143: =IF(INTRO!$E$38="Endemic", IF($H143>0, IF($H143=4,"Unknown", IF($H143=99,"Stopped", $D143)), 0),"Not required") -> Not required | M143: 0 | N143: =IF(INTRO!$E$42="Endemic", IF(AND($J143>1,$J143<5), IF($J143=4, "Unknown", E143+F143), 0),"Not required") -> 115847 | O143: =IF(INTRO!$E$44="Endemic", IF(AND($K143>0,$K143<5), IF($K143=4,"Unknown", IF($K143=1, $F143*0.33, IF($K143=2, $F143*0.5+$G143*0.2, SUM(F143:G143)))), 0),"Not required") -> 0 | P143: 0 | Q143: 0 | R143: 1 | S143: 0 | U143: T3 (ALB/MBD) | Y143: 49813 | Z143: SHEEMA | AF143: ='MDA3'!N143 -> 0 | AG143: ='T1'!M143 -> 0 | AH143: =T3_R1!L143 -> 101216 | AI143: =T3_R2!L143 -> 57331 | AK143: =_xlfn.XLOOKUP($Y143,[1]COUNTRY_INFO!$Y$9:$Y$142,[1]COUNTRY_INFO!J$9:J$142) -> 3 | AL143: =_xlfn.XLOOKUP($Y143,[1]COUNTRY_INFO!$Y$9:$Y$142,[1]COUNTRY_INFO!K$9:K$142) -> 0 | AM143: TRUE | AN143: TRUE | AP143: 3
M144: 0 | AM144: TRUE | AN144: TRUE
M145: 0 | AM145: TRUE | AN145: TRUE

Sheet MDA1 (hidden)
A1: MDA 1 - Ivermectin (IVM) and Albendazole (ALB)
A2: Administrative structure, population requiring PC by age group, population treated by age group and coverage
A4: TOTAL | G4: =SUM(G$9:G$993) -> 0 | H4: =SUM(H$9:H$993) -> 0 | I4: =SUM(I$9:I$993) -> 0 | K4: =SUM(K$9:K$993) -> 0 | L4: =SUM(L$9:L$993) -> 0 | M4: =SUM(M$9:M$993) -> 0 | O4: =IF(G4<>0, IF(K4/G4*100=0, "-", K4/G4*100), " ") ->  | P4: =IF(H4<>0, IF(L4/H4*100=0, "-", L4/H4*100), " ") ->  | Q4: =IF(I4<>0, IF(M4/I4*100=0, "-", M4/I4*100), " ") -> 
D6: PC implemented | E6: Date | F6: Population targeted for MDA 1 | J6: Population treated | N6: Programme coverage (%)
A7: Country | B7: Province/State | C7: District | F7: PreSAC | G7: SAC | H7: Adults | I7: Total | J7: PreSAC | K7: SAC | L7: Adults | M7: Total | N7: PreSAC | O7: SAC | P7: Adults | Q7: Total
A9: =IF(COUNTRY_INFO!A9=0," ",COUNTRY_INFO!A9) -> Uganda | B9: =IF(COUNTRY_INFO!B9=0," ",COUNTRY_INFO!B9) -> CENTRAL | C9: =IF(COUNTRY_INFO!C9=0," ",COUNTRY_INFO!C9) -> BUIKWE | D9: =IF(COUNTRY_INFO!$T$9:$T$993="MDA1 (IVM+ALB)", COUNTRY_INFO!$T$9:$T$993, " ") ->  | I9: =SUM(F9:H9) -> 0 | M9: =SUM(J9:L9) -> 0 | O9: =IF(G9<>0, IF(K9/G9*100=0, "-", K9/G9*100), " ") ->  | P9: =IF(H9<>0, IF(L9/H9*100=0, "-", L9/H9*100), " ") -> 
A10: =IF(COUNTRY_INFO!A10=0," ",COUNTRY_INFO!A10) -> Uganda | B10: =IF(COUNTRY_INFO!B10=0," ",COUNTRY_INFO!B10) -> CENTRAL | C10: =IF(COUNTRY_INFO!C10=0," ",COUNTRY_INFO!C10) -> BUKOMANSIMBI | D10: =IF(COUNTRY_INFO!$T$9:$T$993="MDA1 (IVM+ALB)", COUNTRY_INFO!$T$9:$T$993, " ") ->  | I10: =SUM(F10:H10) -> 0 | M10: =SUM(J10:L10) -> 0 | O10: =IF(G10<>0, IF(K10/G10*100=0, "-", K10/G10*100), " ") ->  | P10: =IF(H10<>0, IF(L10/H10*100=0, "-", L10/H10*100), " ") ->  | Q10: =IF(I10<>0, IF(M10/I10*100=0, "-", M10/I10*100), " ") -> 
A11: =IF(COUNTRY_INFO!A11=0," ",COUNTRY_INFO!A11) -> Uganda | B11: =IF(COUNTRY_INFO!B11=0," ",COUNTRY_INFO!B11) -> CENTRAL | C11: =IF(COUNTRY_INFO!C11=0," ",COUNTRY_INFO!C11) -> BUTAMBALA | D11: =IF(COUNTRY_INFO!$T$9:$T$993="MDA1 (IVM+ALB)", COUNTRY_INFO!$T$9:$T$993, " ") ->  | I11: 0 | M11: 0
A12: =IF(COUNTRY_INFO!A12=0," ",COUNTRY_INFO!A12) -> Uganda | B12: =IF(COUNTRY_INFO!B12=0," ",COUNTRY_INFO!B12) -> CENTRAL | C12: =IF(COUNTRY_INFO!C12=0," ",COUNTRY_INFO!C12) -> BUVUMA | D12: =IF(COUNTRY_INFO!$T$9:$T$993="MDA1 (IVM+ALB)", COUNTRY_INFO!$T$9:$T$993, " ") ->  | I12: 0 | M12: 0
A13: =IF(COUNTRY_INFO!A13=0," ",COUNTRY_INFO!A13) -> Uganda | B13: =IF(COUNTRY_INFO!B13=0," ",COUNTRY_INFO!B13) -> CENTRAL | C13: =IF(COUNTRY_INFO!C13=0," ",COUNTRY_INFO!C13) -> GOMBA | D13: =IF(COUNTRY_INFO!$T$9:$T$993="MDA1 (IVM+ALB)", COUNTRY_INFO!$T$9:$T$993, " ") ->  | I13: 0 | M13: 0
A14: =IF(COUNTRY_INFO!A14=0," ",COUNTRY_INFO!A14) -> Uganda | B14: =IF(COUNTRY_INFO!B14=0," ",COUNTRY_INFO!B14) -> CENTRAL | C14: =IF(COUNTRY_INFO!C14=0," ",COUNTRY_INFO!C14) -> KALANGALA | D14: =IF(COUNTRY_INFO!$T$9:$T$993="MDA1 (IVM+ALB)", COUNTRY_INFO!$T$9:$T$993, " ") ->  | I14: 0 | M14: 0
A15: =IF(COUNTRY_INFO!A15=0," ",COUNTRY_INFO!A15) -> Uganda | B15: =IF(COUNTRY_INFO!B15=0," ",COUNTRY_INFO!B15) -> CENTRAL | C15: =IF(COUNTRY_INFO!C15=0," ",COUNTRY_INFO!C15) -> KALUNGU | D15: =IF(COUNTRY_INFO!$T$9:$T$993="MDA1 (IVM+ALB)", COUNTRY_INFO!$T$9:$T$993, " ") ->  | I15: 0 | M15: 0
A16: =IF(COUNTRY_INFO!A16=0," ",COUNTRY_INFO!A16) -> Uganda | B16: =IF(COUNTRY_INFO!B16=0," ",COUNTRY_INFO!B16) -> CENTRAL | C16: =IF(COUNTRY_INFO!C16=0," ",COUNTRY_INFO!C16) -> KAMPALA | D16: =IF(COUNTRY_INFO!$T$9:$T$993="MDA1 (IVM+ALB)", COUNTRY_INFO!$T$9:$T$993, " ") ->  | I16: 0 | M16: 0
A17: =IF(COUNTRY_INFO!A17=0," ",COUNTRY_INFO!A17) -> Uganda | B17: =IF(COUNTRY_INFO!B17=0," ",COUNTRY_INFO!B17) -> CENTRAL | C17: =IF(COUNTRY_INFO!C17=0," ",COUNTRY_INFO!C17) -> KASSANDA | D17: =IF(COUNTRY_INFO!$T$9:$T$993="MDA1 (IVM+ALB)", COUNTRY_INFO!$T$9:$T$993, " ") ->  | I17: 0 | M17: 0
A18: =IF(COUNTRY_INFO!A18=0," ",COUNTRY_INFO!A18) -> Uganda | B18: =IF(COUNTRY_INFO!B18=0," ",COUNTRY_INFO!B18) -> CENTRAL | C18: =IF(COUNTRY_INFO!C18=0," ",COUNTRY_INFO!C18) -> KAYUNGA | D18: =IF(COUNTRY_INFO!$T$9:$T$993="MDA1 (IVM+ALB)", COUNTRY_INFO!$T$9:$T$993, " ") ->  | I18: 0 | M18: 0
A19: =IF(COUNTRY_INFO!A19=0," ",COUNTRY_INFO!A19) -> Uganda | B19: =IF(COUNTRY_INFO!B19=0," ",COUNTRY_INFO!B19) -> CENTRAL | C19: =IF(COUNTRY_INFO!C19=0," ",COUNTRY_INFO!C19) -> KIBOGA | D19: =IF(COUNTRY_INFO!$T$9:$T$993="MDA1 (IVM+ALB)", COUNTRY_INFO!$T$9:$T$993, " ") ->  | I19: 0 | M19: 0
A20: =IF(COUNTRY_INFO!A20=0," ",COUNTRY_INFO!A20) -> Uganda | B20: =IF(COUNTRY_INFO!B20=0," ",COUNTRY_INFO!B20) -> CENTRAL | C20: =IF(COUNTRY_INFO!C20=0," ",COUNTRY_INFO!C20) -> KYANKWANZI | D20: =IF(COUNTRY_INFO!$T$9:$T$993="MDA1 (IVM+ALB)", COUNTRY_INFO!$T$9:$T$993, " ") ->  | I20: 0 | M20: 0
A21: =IF(COUNTRY_INFO!A21=0," ",COUNTRY_INFO!A21) -> Uganda | B21: =IF(COUNTRY_INFO!B21=0," ",COUNTRY_INFO!B21) -> CENTRAL | C21: =IF(COUNTRY_INFO!C21=0," ",COUNTRY_INFO!C21) -> KYOTERA | D21: =IF(COUNTRY_INFO!$T$9:$T$993="MDA1 (IVM+ALB)", COUNTRY_INFO!$T$9:$T$993, " ") ->  | I21: 0 | M21: 0
A22: =IF(COUNTRY_INFO!A22=0," ",COUNTRY_INFO!A22) -> Uganda | B22: =IF(COUNTRY_INFO!B22=0," ",COUNTRY_INFO!B22) -> CENTRAL | C22: =IF(COUNTRY_INFO!C22=0," ",COUNTRY_INFO!C22) -> LUWERO | D22: =IF(COUNTRY_INFO!$T$9:$T$993="MDA1 (IVM+ALB)", COUNTRY_INFO!$T$9:$T$993, " ") ->  | I22: 0 | M22: 0
A23: =IF(COUNTRY_INFO!A23=0," ",COUNTRY_INFO!A23) -> Uganda | B23: =IF(COUNTRY_INFO!B23=0," ",COUNTRY_INFO!B23) -> CENTRAL | C23: =IF(COUNTRY_INFO!C23=0," ",COUNTRY_INFO!C23) -> LWENGO | D23: =IF(COUNTRY_INFO!$T$9:$T$993="MDA1 (IVM+ALB)", COUNTRY_INFO!$T$9:$T$993, " ") ->  | I23: 0 | M23: 0
A24: =IF(COUNTRY_INFO!A24=0," ",COUNTRY_INFO!A24) -> Uganda | B24: =IF(COUNTRY_INFO!B24=0," ",COUNTRY_INFO!B24) -> CENTRAL | C24: =IF(COUNTRY_INFO!C24=0," ",COUNTRY_INFO!C24) -> LYANTONDE | D24: =IF(COUNTRY_INFO!$T$9:$T$993="MDA1 (IVM+ALB)", COUNTRY_INFO!$T$9:$T$993, " ") ->  | I24: 0 | M24: 0
A25: =IF(COUNTRY_INFO!A25=0," ",COUNTRY_INFO!A25) -> Uganda | B25: =IF(COUNTRY_INFO!B25=0," ",COUNTRY_INFO!B25) -> CENTRAL | C25: =IF(COUNTRY_INFO!C25=0," ",COUNTRY_INFO!C25) -> MASAKA | D25: =IF(COUNTRY_INFO!$T$9:$T$993="MDA1 (IVM+ALB)", COUNTRY_INFO!$T$9:$T$993, " ") ->  | I25: 0 | M25: 0
A26: =IF(COUNTRY_INFO!A26=0," ",COUNTRY_INFO!A26) -> Uganda | B26: =IF(COUNTRY_INFO!B26=0," ",COUNTRY_INFO!B26) -> CENTRAL | C26: =IF(COUNTRY_INFO!C26=0," ",COUNTRY_INFO!C26) -> MITYANA | D26: =IF(COUNTRY_INFO!$T$9:$T$993="MDA1 (IVM+ALB)", COUNTRY_INFO!$T$9:$T$993, " ") ->  | I26: 0 | M26: 0
A27: =IF(COUNTRY_INFO!A27=0," ",COUNTRY_INFO!A27) -> Uganda | B27: =IF(COUNTRY_INFO!B27=0," ",COUNTRY_INFO!B27) -> CENTRAL | C27: =IF(COUNTRY_INFO!C27=0," ",COUNTRY_INFO!C27) -> MPIGI | D27: =IF(COUNTRY_INFO!$T$9:$T$993="MDA1 (IVM+ALB)", COUNTRY_INFO!$T$9:$T$993, " ") ->  | I27: 0 | M27: 0
A28: =IF(COUNTRY_INFO!A28=0," ",COUNTRY_INFO!A28) -> Uganda | B28: =IF(COUNTRY_INFO!B28=0," ",COUNTRY_INFO!B28) -> CENTRAL | C28: =IF(COUNTRY_INFO!C28=0," ",COUNTRY_INFO!C28) -> MUBENDE | D28: =IF(COUNTRY_INFO!$T$9:$T$993="MDA1 (IVM+ALB)", COUNTRY_INFO!$T$9:$T$993, " ") ->  | I28: 0 | M28: 0
A29: =IF(COUNTRY_INFO!A29=0," ",COUNTRY_INFO!A29) -> Uganda | B29: =IF(COUNTRY_INFO!B29=0," ",COUNTRY_INFO!B29) -> CENTRAL | C29: =IF(COUNTRY_INFO!C29=0," ",COUNTRY_INFO!C29) -> MUKONO | D29: =IF(COUNTRY_INFO!$T$9:$T$993="MDA1 (IVM+ALB)", COUNTRY_INFO!$T$9:$T$993, " ") ->  | I29: 0 | M29: 0
A30: =IF(COUNTRY_INFO!A30=0," ",COUNTRY_INFO!A30) -> Uganda | B30: =IF(COUNTRY_INFO!B30=0," ",COUNTRY_INFO!B30) -> CENTRAL | C30: =IF(COUNTRY_INFO!C30=0," ",COUNTRY_INFO!C30) -> NAKASEKE | D30: =IF(COUNTRY_INFO!$T$9:$T$993="MDA1 (IVM+ALB)", COUNTRY_INFO!$T$9:$T$993, " ") ->  | I30: 0 | M30: 0
A31: =IF(COUNTRY_INFO!A31=0," ",COUNTRY_INFO!A31) -> Uganda | B31: =IF(COUNTRY_INFO!B31=0," ",COUNTRY_INFO!B31) -> CENTRAL | C31: =IF(COUNTRY_INFO!C31=0," ",COUNTRY_INFO!C31) -> NAKASONGOLA | D31: =IF(COUNTRY_INFO!$T$9:$T$993="MDA1 (IVM+ALB)", COUNTRY_INFO!$T$9:$T$993, " ") ->  | I31: 0 | M31: 0
A32: =IF(COUNTRY_INFO!A32=0," ",COUNTRY_INFO!A32) -> Uganda | B32: =IF(COUNTRY_INFO!B32=0," ",COUNTRY_INFO!B32) -> CENTRAL | C32: =IF(COUNTRY_INFO!C32=0," ",COUNTRY_INFO!C32) -> RAKAI | D32: =IF(COUNTRY_INFO!$T$9:$T$993="MDA1 (IVM+ALB)", COUNTRY_INFO!$T$9:$T$993, " ") ->  | I32: 0 | M32: 0
A33: =IF(COUNTRY_INFO!A33=0," ",COUNTRY_INFO!A33) -> Uganda | B33: =IF(COUNTRY_INFO!B33=0," ",COUNTRY_INFO!B33) -> CENTRAL | C33: =IF(COUNTRY_INFO!C33=0," ",COUNTRY_INFO!C33) -> SEMBABULE | D33: =IF(COUNTRY_INFO!$T$9:$T$993="MDA1 (IVM+ALB)", COUNTRY_INFO!$T$9:$T$993, " ") ->  | I33: 0 | M33: 0
A34: =IF(COUNTRY_INFO!A34=0," ",COUNTRY_INFO!A34) -> Uganda | B34: =IF(COUNTRY_INFO!B34=0," ",COUNTRY_INFO!B34) -> CENTRAL | C34: =IF(COUNTRY_INFO!C34=0," ",COUNTRY_INFO!C34) -> WAKISO | D34: =IF(COUNTRY_INFO!$T$9:$T$993="MDA1 (IVM+ALB)", COUNTRY_INFO!$T$9:$T$993, " ") ->  | I34: 0 | M34: 0
A35: =IF(COUNTRY_INFO!A35=0," ",COUNTRY_INFO!A35) -> Uganda | B35: =IF(COUNTRY_INFO!B35=0," ",COUNTRY_INFO!B35) -> EASTERN | C35: =IF(COUNTRY_INFO!C35=0," ",COUNTRY_INFO!C35) -> AMURIA | D35: =IF(COUNTRY_INFO!$T$9:$T$993="MDA1 (IVM+ALB)", COUNTRY_INFO!$T$9:$T$993, " ") ->  | I35: 0 | M35: 0
A36: =IF(COUNTRY_INFO!A36=0," ",COUNTRY_INFO!A36) -> Uganda | B36: =IF(COUNTRY_INFO!B36=0," ",COUNTRY_INFO!B36) -> EASTERN | C36: =IF(COUNTRY_INFO!C36=0," ",COUNTRY_INFO!C36) -> BUDAKA | D36: =IF(COUNTRY_INFO!$T$9:$T$993="MDA1 (IVM+ALB)", COUNTRY_INFO!$T$9:$T$993, " ") ->  | I36: 0 | M36: 0
A37: =IF(COUNTRY_INFO!A37=0," ",COUNTRY_INFO!A37) -> Uganda | B37: =IF(COUNTRY_INFO!B37=0," ",COUNTRY_INFO!B37) -> EASTERN | C37: =IF(COUNTRY_INFO!C37=0," ",COUNTRY_INFO!C37) -> BUDUDA | D37: =IF(COUNTRY_INFO!$T$9:$T$993="MDA1 (IVM+ALB)", COUNTRY_INFO!$T$9:$T$993, " ") ->  | I37: 0 | M37: 0
A38: =IF(COUNTRY_INFO!A38=0," ",COUNTRY_INFO!A38) -> Uganda | B38: =IF(COUNTRY_INFO!B38=0," ",COUNTRY_INFO!B38) -> EASTERN | C38: =IF(COUNTRY_INFO!C38=0," ",COUNTRY_INFO!C38) -> BUGIRI | D38: =IF(COUNTRY_INFO!$T$9:$T$993="MDA1 (IVM+ALB)", COUNTRY_INFO!$T$9:$T$993, " ") ->  | I38: 0 | M38: 0
A39: =IF(COUNTRY_INFO!A39=0," ",COUNTRY_INFO!A39) -> Uganda | B39: =IF(COUNTRY_INFO!B39=0," ",COUNTRY_INFO!B39) -> EASTERN | C39: =IF(COUNTRY_INFO!C39=0," ",COUNTRY_INFO!C39) -> BUGWERI | D39: =IF(COUNTRY_INFO!$T$9:$T$993="MDA1 (IVM+ALB)", COUNTRY_INFO!$T$9:$T$993, " ") ->  | I39: 0 | M39: 0
A40: =IF(COUNTRY_INFO!A40=0," ",COUNTRY_INFO!A40) -> Uganda | B40: =IF(COUNTRY_INFO!B40=0," ",COUNTRY_INFO!B40) -> EASTERN | C40: =IF(COUNTRY_INFO!C40=0," ",COUNTRY_INFO!C40) -> BUKEDEA | D40: =IF(COUNTRY_INFO!$T$9:$T$993="MDA1 (IVM+ALB)", COUNTRY_INFO!$T$9:$T$993, " ") ->  | I40: 0 | M40: 0
A41: =IF(COUNTRY_INFO!A41=0," ",COUNTRY_INFO!A41) -> Uganda | B41: =IF(COUNTRY_INFO!B41=0," ",COUNTRY_INFO!B41) -> EASTERN | C41: =IF(COUNTRY_INFO!C41=0," ",COUNTRY_INFO!C41) -> BUKWO | D41: =IF(COUNTRY_INFO!$T$9:$T$993="MDA1 (IVM+ALB)", COUNTRY_INFO!$T$9:$T$993, " ") ->  | I41: 0 | M41: 0
A42: =IF(COUNTRY_INFO!A42=0," ",COUNTRY_INFO!A42) -> Uganda | B42: =IF(COUNTRY_INFO!B42=0," ",COUNTRY_INFO!B42) -> EASTERN | C42: =IF(COUNTRY_INFO!C42=0," ",COUNTRY_INFO!C42) -> BULAMBULI | D42: =IF(COUNTRY_INFO!$T$9:$T$993="MDA1 (IVM+ALB)", COUNTRY_INFO!$T$9:$T$993, " ") ->  | I42: 0 | M42: 0
A43: =IF(COUNTRY_INFO!A43=0," ",COUNTRY_INFO!A43) -> Uganda | B43: =IF(COUNTRY_INFO!B43=0," ",COUNTRY_INFO!B43) -> EASTERN | C43: =IF(COUNTRY_INFO!C43=0," ",COUNTRY_INFO!C43) -> BUSIA | D43: =IF(COUNTRY_INFO!$T$9:$T$993="MDA1 (IVM+ALB)", COUNTRY_INFO!$T$9:$T$993, " ") ->  | I43: 0 | M43: 0
A44: =IF(COUNTRY_INFO!A44=0," ",COUNTRY_INFO!A44) -> Uganda | B44: =IF(COUNTRY_INFO!B44=0," ",COUNTRY_INFO!B44) -> EASTERN | C44: =IF(COUNTRY_INFO!C44=0," ",COUNTRY_INFO!C44) -> BUTALEJA | D44: =IF(COUNTRY_INFO!$T$9:$T$993="MDA1 (IVM+ALB)", COUNTRY_INFO!$T$9:$T$993, " ") ->  | I44: 0 | M44: 0
A45: =IF(COUNTRY_INFO!A45=0," ",COUNTRY_INFO!A45) -> Uganda | B45: =IF(COUNTRY_INFO!B45=0," ",COUNTRY_INFO!B45) -> EASTERN | C45: =IF(COUNTRY_INFO!C45=0," ",COUNTRY_INFO!C45) -> BUTEBO | D45: =IF(COUNTRY_INFO!$T$9:$T$993="MDA1 (IVM+ALB)", COUNTRY_INFO!$T$9:$T$993, " ") ->  | I45: 0 | M45: 0
A46: =IF(COUNTRY_INFO!A46=0," ",COUNTRY_INFO!A46) -> Uganda | B46: =IF(COUNTRY_INFO!B46=0," ",COUNTRY_INFO!B46) -> EASTERN | C46: =IF(COUNTRY_INFO!C46=0," ",COUNTRY_INFO!C46) -> BUYENDE | D46: =IF(COUNTRY_INFO!$T$9:$T$993="MDA1 (IVM+ALB)", COUNTRY_INFO!$T$9:$T$993, " ") ->  | I46: 0 | M46: 0
A47: =IF(COUNTRY_INFO!A47=0," ",COUNTRY_INFO!A47) -> Uganda | B47: =IF(COUNTRY_INFO!B47=0," ",COUNTRY_INFO!B47) -> EASTERN | C47: =IF(COUNTRY_INFO!C47=0," ",COUNTRY_INFO!C47) -> IGANGA | D47: =IF(COUNTRY_INFO!$T$9:$T$993="MDA1 (IVM+ALB)", COUNTRY_INFO!$T$9:$T$993, " ") ->  | I47: 0 | M47: 0
A48: =IF(COUNTRY_INFO!A48=0," ",COUNTRY_INFO!A48) -> Uganda | B48: =IF(COUNTRY_INFO!B48=0," ",COUNTRY_INFO!B48) -> EASTERN | C48: =IF(COUNTRY_INFO!C48=0," ",COUNTRY_INFO!C48) -> JINJA | D48: =IF(COUNTRY_INFO!$T$9:$T$993="MDA1 (IVM+ALB)", COUNTRY_INFO!$T$9:$T$993, " ") ->  | I48: 0 | M48: 0
A49: =IF(COUNTRY_INFO!A49=0," ",COUNTRY_INFO!A49) -> Uganda | B49: =IF(COUNTRY_INFO!B49=0," ",COUNTRY_INFO!B49) -> EASTERN | C49: =IF(COUNTRY_INFO!C49=0," ",COUNTRY_INFO!C49) -> KABERAMAIDO | D49: =IF(COUNTRY_INFO!$T$9:$T$993="MDA1 (IVM+ALB)", COUNTRY_INFO!$T$9:$T$993, " ") ->  | I49: 0 | M49: 0
A50: =IF(COUNTRY_INFO!A50=0," ",COUNTRY_INFO!A50) -> Uganda | B50: =IF(COUNTRY_INFO!B50=0," ",COUNTRY_INFO!B50) -> EASTERN | C50: =IF(COUNTRY_INFO!C50=0," ",COUNTRY_INFO!C50) -> KALAKI | D50: =IF(COUNTRY_INFO!$T$9:$T$993="MDA1 (IVM+ALB)", COUNTRY_INFO!$T$9:$T$993, " ") ->  | I50: 0 | M50: 0
A51: =IF(COUNTRY_INFO!A51=0," ",COUNTRY_INFO!A51) -> Uganda | B51: =IF(COUNTRY_INFO!B51=0," ",COUNTRY_INFO!B51) -> EASTERN | C51: =IF(COUNTRY_INFO!C51=0," ",COUNTRY_INFO!C51) -> KALIRO | D51: =IF(COUNTRY_INFO!$T$9:$T$993="MDA1 (IVM+ALB)", COUNTRY_INFO!$T$9:$T$993, " ") ->  | I51: 0 | M51: 0
A52: =IF(COUNTRY_INFO!A52=0," ",COUNTRY_INFO!A52) -> Uganda | B52: =IF(COUNTRY_INFO!B52=0," ",COUNTRY_INFO!B52) -> EASTERN | C52: =IF(COUNTRY_INFO!C52=0," ",COUNTRY_INFO!C52) -> KAMULI | D52: =IF(COUNTRY_INFO!$T$9:$T$993="MDA1 (IVM+ALB)", COUNTRY_INFO!$T$9:$T$993, " ") ->  | I52: 0 | M52: 0
A53: =IF(COUNTRY_INFO!A53=0," ",COUNTRY_INFO!A53) -> Uganda | B53: =IF(COUNTRY_INFO!B53=0," ",COUNTRY_INFO!B53) -> EASTERN | C53: =IF(COUNTRY_INFO!C53=0," ",COUNTRY_INFO!C53) -> KAPCHORWA | D53: =IF(COUNTRY_INFO!$T$9:$T$993="MDA1 (IVM+ALB)", COUNTRY_INFO!$T$9:$T$993, " ") ->  | I53: 0 | M53: 0
A54: =IF(COUNTRY_INFO!A54=0," ",COUNTRY_INFO!A54) -> Uganda | B54: =IF(COUNTRY_INFO!B54=0," ",COUNTRY_INFO!B54) -> EASTERN | C54: =IF(COUNTRY_INFO!C54=0," ",COUNTRY_INFO!C54) -> KAPELEBYONG | D54: =IF(COUNTRY_INFO!$T$9:$T$993="MDA1 (IVM+ALB)", COUNTRY_INFO!$T$9:$T$993, " ") ->  | I54: 0 | M54: 0
A55: =IF(COUNTRY_INFO!A55=0," ",COUNTRY_INFO!A55) -> Uganda | B55: =IF(COUNTRY_INFO!B55=0," ",COUNTRY_INFO!B55) -> EASTERN | C55: =IF(COUNTRY_INFO!C55=0," ",COUNTRY_INFO!C55) -> KATAKWI | D55: =IF(COUNTRY_INFO!$T$9:$T$993="MDA1 (IVM+ALB)", COUNTRY_INFO!$T$9:$T$993, " ") ->  | I55: 0 | M55: 0
A56: =IF(COUNTRY_INFO!A56=0," ",COUNTRY_INFO!A56) -> Uganda | B56: =IF(COUNTRY_INFO!B56=0," ",COUNTRY_INFO!B56) -> EASTERN | C56: =IF(COUNTRY_INFO!C56=0," ",COUNTRY_INFO!C56) -> KIBUKU | D56: =IF(COUNTRY_INFO!$T$9:$T$993="MDA1 (IVM+ALB)", COUNTRY_INFO!$T$9:$T$993, " ") ->  | I56: 0 | M56: 0
A57: =IF(COUNTRY_INFO!A57=0," ",COUNTRY_INFO!A57) -> Uganda | B57: =IF(COUNTRY_INFO!B57=0," ",COUNTRY_INFO!B57) -> EASTERN | C57: =IF(COUNTRY_INFO!C57=0," ",COUNTRY_INFO!C57) -> KUMI | D57: =IF(COUNTRY_INFO!$T$9:$T$993="MDA1 (IVM+ALB)", COUNTRY_INFO!$T$9:$T$993, " ") ->  | I57: 0 | M57: 0
A58: =IF(COUNTRY_INFO!A58=0," ",COUNTRY_INFO!A58) -> Uganda | B58: =IF(COUNTRY_INFO!B58=0," ",COUNTRY_INFO!B58) -> EASTERN | C58: =IF(COUNTRY_INFO!C58=0," ",COUNTRY_INFO!C58) -> KWEEN | D58: =IF(COUNTRY_INFO!$T$9:$T$993="MDA1 (IVM+ALB)", COUNTRY_INFO!$T$9:$T$993, " ") ->  | I58: 0 | M58: 0
A59: =IF(COUNTRY_INFO!A59=0," ",COUNTRY_INFO!A59) -> Uganda | B59: =IF(COUNTRY_INFO!B59=0," ",COUNTRY_INFO!B59) -> EASTERN | C59: =IF(COUNTRY_INFO!C59=0," ",COUNTRY_INFO!C59) -> LUUKA | D59: =IF(COUNTRY_INFO!$T$9:$T$993="MDA1 (IVM+ALB)", COUNTRY_INFO!$T$9:$T$993, " ") ->  | I59: 0 | M59: 0
A60: =IF(COUNTRY_INFO!A60=0," ",COUNTRY_INFO!A60) -> Uganda | B60: =IF(COUNTRY_INFO!B60=0," ",COUNTRY_INFO!B60) -> EASTERN | C60: =IF(COUNTRY_INFO!C60=0," ",COUNTRY_INFO!C60) -> MANAFWA | D60: =IF(COUNTRY_INFO!$T$9:$T$993="MDA1 (IVM+ALB)", COUNTRY_INFO!$T$9:$T$993, " ") ->  | I60: 0 | M60: 0
A61: =IF(COUNTRY_INFO!A61=0," ",COUNTRY_INFO!A61) -> Uganda | B61: =IF(COUNTRY_INFO!B61=0," ",COUNTRY_INFO!B61) -> EASTERN | C61: =IF(COUNTRY_INFO!C61=0," ",COUNTRY_INFO!C61) -> MAYUGE | D61: =IF(COUNTRY_INFO!$T$9:$T$993="MDA1 (IVM+ALB)", COUNTRY_INFO!$T$9:$T$993, " ") ->  | I61: 0 | M61: 0
A62: =IF(COUNTRY_INFO!A62=0," ",COUNTRY_INFO!A62) -> Uganda | B62: =IF(COUNTRY_INFO!B62=0," ",COUNTRY_INFO!B62) -> EASTERN | C62: =IF(COUNTRY_INFO!C62=0," ",COUNTRY_INFO!C62) -> MBALE | D62: =IF(COUNTRY_INFO!$T$9:$T$993="MDA1 (IVM+ALB)", COUNTRY_INFO!$T$9:$T$993, " ") ->  | I62: 0 | M62: 0
A63: =IF(COUNTRY_INFO!A63=0," ",COUNTRY_INFO!A63) -> Uganda | B63: =IF(COUNTRY_INFO!B63=0," ",COUNTRY_INFO!B63) -> EASTERN | C63: =IF(COUNTRY_INFO!C63=0," ",COUNTRY_INFO!C63) -> NAMAYINGO | D63: =IF(COUNTRY_INFO!$T$9:$T$993="MDA1 (IVM+ALB)", COUNTRY_INFO!$T$9:$T$993, " ") ->  | I63: 0 | M63: 0
A64: =IF(COUNTRY_INFO!A64=0," ",COUNTRY_INFO!A64) -> Uganda | B64: =IF(COUNTRY_INFO!B64=0," ",COUNTRY_INFO!B64) -> EASTERN | C64: =IF(COUNTRY_INFO!C64=0," ",COUNTRY_INFO!C64) -> NAMISINDWA | D64: =IF(COUNTRY_INFO!$T$9:$T$993="MDA1 (IVM+ALB)", COUNTRY_INFO!$T$9:$T$993, " ") ->  | I64: 0 | M64: 0
A65: =IF(COUNTRY_INFO!A65=0," ",COUNTRY_INFO!A65) -> Uganda | B65: =IF(COUNTRY_INFO!B65=0," ",COUNTRY_INFO!B65) -> EASTERN | C65: =IF(COUNTRY_INFO!C65=0," ",COUNTRY_INFO!C65) -> NAMUTUMBA | D65: =IF(COUNTRY_INFO!$T$9:$T$993="MDA1 (IVM+ALB)", COUNTRY_INFO!$T$9:$T$993, " ") ->  | I65: 0 | M65: 0
A66: =IF(COUNTRY_INFO!A66=0," ",COUNTRY_INFO!A66) -> Uganda | B66: =IF(COUNTRY_INFO!B66=0," ",COUNTRY_INFO!B66) -> EASTERN | C66: =IF(COUNTRY_INFO!C66=0," ",COUNTRY_INFO!C66) -> NGORA | D66: =IF(COUNTRY_INFO!$T$9:$T$993="MDA1 (IVM+ALB)", COUNTRY_INFO!$T$9:$T$993, " ") ->  | I66: 0 | M66: 0
A67: =IF(COUNTRY_INFO!A67=0," ",COUNTRY_INFO!A67) -> Uganda | B67: =IF(COUNTRY_INFO!B67=0," ",COUNTRY_INFO!B67) -> EASTERN | C67: =IF(COUNTRY_INFO!C67=0," ",COUNTRY_INFO!C67) -> PALLISA | D67: =IF(COUNTRY_INFO!$T$9:$T$993="MDA1 (IVM+ALB)", COUNTRY_INFO!$T$9:$T$993, " ") ->  | I67: 0 | M67: 0
A68: =IF(COUNTRY_INFO!A68=0," ",COUNTRY_INFO!A68) -> Uganda | B68: =IF(COUNTRY_INFO!B68=0," ",COUNTRY_INFO!B68) -> EASTERN | C68: =IF(COUNTRY_INFO!C68=0," ",COUNTRY_INFO!C68) -> SERERE | D68: =IF(COUNTRY_INFO!$T$9:$T$993="MDA1 (IVM+ALB)", COUNTRY_INFO!$T$9:$T$993, " ") ->  | I68: 0 | M68: 0
A69: =IF(COUNTRY_INFO!A69=0," ",COUNTRY_INFO!A69) -> Uganda | B69: =IF(COUNTRY_INFO!B69=0," ",COUNTRY_INFO!B69) -> EASTERN | C69: =IF(COUNTRY_INFO!C69=0," ",COUNTRY_INFO!C69) -> SIRONKO | D69: =IF(COUNTRY_INFO!$T$9:$T$993="MDA1 (IVM+ALB)", COUNTRY_INFO!$T$9:$T$993, " ") ->  | I69: 0 | M69: 0
A70: =IF(COUNTRY_INFO!A70=0," ",COUNTRY_INFO!A70) -> Uganda | B70: =IF(COUNTRY_INFO!B70=0," ",COUNTRY_INFO!B70) -> EASTERN | C70: =IF(COUNTRY_INFO!C70=0," ",COUNTRY_INFO!C70) -> SOROTI | D70: =IF(COUNTRY_INFO!$T$9:$T$993="MDA1 (IVM+ALB)", COUNTRY_INFO!$T$9:$T$993, " ") ->  | I70: 0 | M70: 0
A71: =IF(COUNTRY_INFO!A71=0," ",COUNTRY_INFO!A71) -> Uganda | B71: =IF(COUNTRY_INFO!B71=0," ",COUNTRY_INFO!B71) -> EASTERN | C71: =IF(COUNTRY_INFO!C71=0," ",COUNTRY_INFO!C71) -> TORORO | D71: =IF(COUNTRY_INFO!$T$9:$T$993="MDA1 (IVM+ALB)", COUNTRY_INFO!$T$9:$T$993, " ") ->  | I71: 0 | M71: 0
A72: =IF(COUNTRY_INFO!A72=0," ",COUNTRY_INFO!A72) -> Uganda | B72: =IF(COUNTRY_INFO!B72=0," ",COUNTRY_INFO!B72) -> NORTHERN | C72: =IF(COUNTRY_INFO!C72=0," ",COUNTRY_INFO!C72) -> ABIM | D72: =IF(COUNTRY_INFO!$T$9:$T$993="MDA1 (IVM+ALB)", COUNTRY_INFO!$T$9:$T$993, " ") ->  | I72: 0 | M72: 0
A73: =IF(COUNTRY_INFO!A73=0," ",COUNTRY_INFO!A73) -> Uganda | B73: =IF(COUNTRY_INFO!B73=0," ",COUNTRY_INFO!B73) -> NORTHERN | C73: =IF(COUNTRY_INFO!C73=0," ",COUNTRY_INFO!C73) -> ADJUMANI | D73: =IF(COUNTRY_INFO!$T$9:$T$993="MDA1 (IVM+ALB)", COUNTRY_INFO!$T$9:$T$993, " ") ->  | I73: 0 | M73: 0
A74: =IF(COUNTRY_INFO!A74=0," ",COUNTRY_INFO!A74) -> Uganda | B74: =IF(COUNTRY_INFO!B74=0," ",COUNTRY_INFO!B74) -> NORTHERN | C74: =IF(COUNTRY_INFO!C74=0," ",COUNTRY_INFO!C74) -> AGAGO | D74: =IF(COUNTRY_INFO!$T$9:$T$993="MDA1 (IVM+ALB)", COUNTRY_INFO!$T$9:$T$993, " ") ->  | I74: =SUM(F74:H74) -> 0 | M74: =SUM(J74:L74) -> 0 | O74: =IF(G74<>0, IF(K74/G74*100=0, "-", K74/G74*100), " ") ->  | P74: =IF(H74<>0, IF(L74/H74*100=0, "-", L74/H74*100), " ") ->  | Q74: =IF(I74<>0, IF(M74/I74*100=0, "-", M74/I74*100), " ") -> 
A75: =IF(COUNTRY_INFO!A75=0," ",COUNTRY_INFO!A75) -> Uganda | B75: =IF(COUNTRY_INFO!B75=0," ",COUNTRY_INFO!B75) -> NORTHERN | C75: =IF(COUNTRY_INFO!C75=0," ",COUNTRY_INFO!C75) -> ALEBTONG | D75: =IF(COUNTRY_INFO!$T$9:$T$993="MDA1 (IVM+ALB)", COUNTRY_INFO!$T$9:$T$993, " ") ->  | I75: 0 | M75: 0
A76: =IF(COUNTRY_INFO!A76=0," ",COUNTRY_INFO!A76) -> Uganda | B76: =IF(COUNTRY_INFO!B76=0," ",COUNTRY_INFO!B76) -> NORTHERN | C76: =IF(COUNTRY_INFO!C76=0," ",COUNTRY_INFO!C76) -> AMOLATAR | D76: =IF(COUNTRY_INFO!$T$9:$T$993="MDA1 (IVM+ALB)", COUNTRY_INFO!$T$9:$T$993, " ") ->  | I76: 0 | M76: 0
A77: =IF(COUNTRY_INFO!A77=0," ",COUNTRY_INFO!A77) -> Uganda | B77: =IF(COUNTRY_INFO!B77=0," ",COUNTRY_INFO!B77) -> NORTHERN | C77: =IF(COUNTRY_INFO!C77=0," ",COUNTRY_INFO!C77) -> AMUDAT | D77: =IF(COUNTRY_INFO!$T$9:$T$993="MDA1 (IVM+ALB)", COUNTRY_INFO!$T$9:$T$993, " ") ->  | I77: 0 | M77: 0
A78: =IF(COUNTRY_INFO!A78=0," ",COUNTRY_INFO!A78) -> Uganda | B78: =IF(COUNTRY_INFO!B78=0," ",COUNTRY_INFO!B78) -> NORTHERN | C78: =IF(COUNTRY_INFO!C78=0," ",COUNTRY_INFO!C78) -> AMURU | D78: =IF(COUNTRY_INFO!$T$9:$T$993="MDA1 (IVM+ALB)", COUNTRY_INFO!$T$9:$T$993, " ") ->  | I78: 0 | M78: 0
A79: =IF(COUNTRY_INFO!A79=0," ",COUNTRY_INFO!A79) -> Uganda | B79: =IF(COUNTRY_INFO!B79=0," ",COUNTRY_INFO!B79) -> NORTHERN | C79: =IF(COUNTRY_INFO!C79=0," ",COUNTRY_INFO!C79) -> APAC | D79: =IF(COUNTRY_INFO!$T$9:$T$993="MDA1 (IVM+ALB)", COUNTRY_INFO!$T$9:$T$993, " ") ->  | I79: 0 | M79: 0
A80: =IF(COUNTRY_INFO!A80=0," ",COUNTRY_INFO!A80) -> Uganda | B80: =IF(COUNTRY_INFO!B80=0," ",COUNTRY_INFO!B80) -> NORTHERN | C80: =IF(COUNTRY_INFO!C80=0," ",COUNTRY_INFO!C80) -> ARUA | D80: =IF(COUNTRY_INFO!$T$9:$T$993="MDA1 (IVM+ALB)", COUNTRY_INFO!$T$9:$T$993, " ") ->  | I80: 0 | M80: 0
A81: =IF(COUNTRY_INFO!A81=0," ",COUNTRY_INFO!A81) -> Uganda | B81: =IF(COUNTRY_INFO!B81=0," ",COUNTRY_INFO!B81) -> NORTHERN | C81: =IF(COUNTRY_INFO!C81=0," ",COUNTRY_INFO!C81) -> DOKOLO | D81: =IF(COUNTRY_INFO!$T$9:$T$993="MDA1 (IVM+ALB)", COUNTRY_INFO!$T$9:$T$993, " ") ->  | I81: 0 | M81: 0
A82: =IF(COUNTRY_INFO!A82=0," ",COUNTRY_INFO!A82) -> Uganda | B82: =IF(COUNTRY_INFO!B82=0," ",COUNTRY_INFO!B82) -> NORTHERN | C82: =IF(COUNTRY_INFO!C82=0," ",COUNTRY_INFO!C82) -> GULU | D82: =IF(COUNTRY_INFO!$T$9:$T$993="MDA1 (IVM+ALB)", COUNTRY_INFO!$T$9:$T$993, " ") ->  | I82: 0 | M82: 0
A83: =IF(COUNTRY_INFO!A83=0," ",COUNTRY_INFO!A83) -> Uganda | B83: =IF(COUNTRY_INFO!B83=0," ",COUNTRY_INFO!B83) -> NORTHERN | C83: =IF(COUNTRY_INFO!C83=0," ",COUNTRY_INFO!C83) -> KAABONG | D83: =IF(COUNTRY_INFO!$T$9:$T$993="MDA1 (IVM+ALB)", COUNTRY_INFO!$T$9:$T$993, " ") ->  | I83: 0 | M83: 0
A84: =IF(COUNTRY_INFO!A84=0," ",COUNTRY_INFO!A84) -> Uganda | B84: =IF(COUNTRY_INFO!B84=0," ",COUNTRY_INFO!B84) -> NORTHERN | C84: =IF(COUNTRY_INFO!C84=0," ",COUNTRY_INFO!C84) -> KARENGA | D84: =IF(COUNTRY_INFO!$T$9:$T$993="MDA1 (IVM+ALB)", COUNTRY_INFO!$T$9:$T$993, " ") ->  | I84: 0 | M84: 0
A85: =IF(COUNTRY_INFO!A85=0," ",COUNTRY_INFO!A85) -> Uganda | B85: =IF(COUNTRY_INFO!B85=0," ",COUNTRY_INFO!B85) -> NORTHERN | C85: =IF(COUNTRY_INFO!C85=0," ",COUNTRY_INFO!C85) -> KITGUM | D85: =IF(COUNTRY_INFO!$T$9:$T$993="MDA1 (IVM+ALB)", COUNTRY_INFO!$T$9:$T$993, " ") ->  | I85: 0 | M85: 0
A86: =IF(COUNTRY_INFO!A86=0," ",COUNTRY_INFO!A86) -> Uganda | B86: =IF(COUNTRY_INFO!B86=0," ",COUNTRY_INFO!B86) -> NORTHERN | C86: =IF(COUNTRY_INFO!C86=0," ",COUNTRY_INFO!C86) -> KOBOKO | D86: =IF(COUNTRY_INFO!$T$9:$T$993="MDA1 (IVM+ALB)", COUNTRY_INFO!$T$9:$T$993, " ") ->  | I86: 0 | M86: 0
A87: =IF(COUNTRY_INFO!A87=0," ",COUNTRY_INFO!A87) -> Uganda | B87: =IF(COUNTRY_INFO!B87=0," ",COUNTRY_INFO!B87) -> NORTHERN | C87: =IF(COUNTRY_INFO!C87=0," ",COUNTRY_INFO!C87) -> KOLE | D87: =IF(COUNTRY_INFO!$T$9:$T$993="MDA1 (IVM+ALB)", COUNTRY_INFO!$T$9:$T$993, " ") ->  | I87: 0 | M87: 0
A88: =IF(COUNTRY_INFO!A88=0," ",COUNTRY_INFO!A88) -> Uganda | B88: =IF(COUNTRY_INFO!B88=0," ",COUNTRY_INFO!B88) -> NORTHERN | C88: =IF(COUNTRY_INFO!C88=0," ",COUNTRY_INFO!C88) -> KOTIDO | D88: =IF(COUNTRY_INFO!$T$9:$T$993="MDA1 (IVM+ALB)", COUNTRY_INFO!$T$9:$T$993, " ") ->  | I88: 0 | M88: 0
A89: =IF(COUNTRY_INFO!A89=0," ",COUNTRY_INFO!A89) -> Uganda | B89: =IF(COUNTRY_INFO!B89=0," ",COUNTRY_INFO!B89) -> NORTHERN | C89: =IF(COUNTRY_INFO!C89=0," ",COUNTRY_INFO!C89) -> KWANIA | D89: =IF(COUNTRY_INFO!$T$9:$T$993="MDA1 (IVM+ALB)", COUNTRY_INFO!$T$9:$T$993, " ") ->  | I89: 0 | M89: 0
A90: =IF(COUNTRY_INFO!A90=0," ",COUNTRY_INFO!A90) -> Uganda | B90: =IF(COUNTRY_INFO!B90=0," ",COUNTRY_INFO!B90) -> NORTHERN | C90: =IF(COUNTRY_INFO!C90=0," ",COUNTRY_INFO!C90) -> LAMWO | D90: =IF(COUNTRY_INFO!$T$9:$T$993="MDA1 (IVM+ALB)", COUNTRY_INFO!$T$9:$T$993, " ") ->  | I90: 0 | M90: 0
A91: =IF(COUNTRY_INFO!A91=0," ",COUNTRY_INFO!A91) -> Uganda | B91: =IF(COUNTRY_INFO!B91=0," ",COUNTRY_INFO!B91) -> NORTHERN | C91: =IF(COUNTRY_INFO!C91=0," ",COUNTRY_INFO!C91) -> LIRA | D91: =IF(COUNTRY_INFO!$T$9:$T$993="MDA1 (IVM+ALB)", COUNTRY_INFO!$T$9:$T$993, " ") ->  | I91: 0 | M91: 0
A92: =IF(COUNTRY_INFO!A92=0," ",COUNTRY_INFO!A92) -> Uganda | B92: =IF(COUNTRY_INFO!B92=0," ",COUNTRY_INFO!B92) -> NORTHERN | C92: =IF(COUNTRY_INFO!C92=0," ",COUNTRY_INFO!C92) -> MADI OKOLLO | D92: =IF(COUNTRY_INFO!$T$9:$T$993="MDA1 (IVM+ALB)", COUNTRY_INFO!$T$9:$T$993, " ") ->  | I92: 0 | M92: 0
A93: =IF(COUNTRY_INFO!A93=0," ",COUNTRY_INFO!A93) -> Uganda | B93: =IF(COUNTRY_INFO!B93=0," ",COUNTRY_INFO!B93) -> NORTHERN | C93: =IF(COUNTRY_INFO!C93=0," ",COUNTRY_INFO!C93) -> MARACHA | D93: =IF(COUNTRY_INFO!$T$9:$T$993="MDA1 (IVM+ALB)", COUNTRY_INFO!$T$9:$T$993, " ") ->  | I93: 0 | M93: 0
A94: =IF(COUNTRY_INFO!A94=0," ",COUNTRY_INFO!A94) -> Uganda | B94: =IF(COUNTRY_INFO!B94=0," ",COUNTRY_INFO!B94) -> NORTHERN | C94: =IF(COUNTRY_INFO!C94=0," ",COUNTRY_INFO!C94) -> MOROTO | D94: =IF(COUNTRY_INFO!$T$9:$T$993="MDA1 (IVM+ALB)", COUNTRY_INFO!$T$9:$T$993, " ") ->  | I94: 0 | M94: 0
A95: =IF(COUNTRY_INFO!A95=0," ",COUNTRY_INFO!A95) -> Uganda | B95: =IF(COUNTRY_INFO!B95=0," ",COUNTRY_INFO!B95) -> NORTHERN | C95: =IF(COUNTRY_INFO!C95=0," ",COUNTRY_INFO!C95) -> MOYO | D95: =IF(COUNTRY_INFO!$T$9:$T$993="MDA1 (IVM+ALB)", COUNTRY_INFO!$T$9:$T$993, " ") ->  | I95: 0 | M95: 0
A96: =IF(COUNTRY_INFO!A96=0," ",COUNTRY_INFO!A96) -> Uganda | B96: =IF(COUNTRY_INFO!B96=0," ",COUNTRY_INFO!B96) -> NORTHERN | C96: =IF(COUNTRY_INFO!C96=0," ",COUNTRY_INFO!C96) -> NABILATUK | D96: =IF(COUNTRY_INFO!$T$9:$T$993="MDA1 (IVM+ALB)", COUNTRY_INFO!$T$9:$T$993, " ") ->  | I96: 0 | M96: 0
A97: =IF(COUNTRY_INFO!A97=0," ",COUNTRY_INFO!A97) -> Uganda | B97: =IF(COUNTRY_INFO!B97=0," ",COUNTRY_INFO!B97) -> NORTHERN | C97: =IF(COUNTRY_INFO!C97=0," ",COUNTRY_INFO!C97) -> NAKAPIRIPIRIT | D97: =IF(COUNTRY_INFO!$T$9:$T$993="MDA1 (IVM+ALB)", COUNTRY_INFO!$T$9:$T$993, " ") ->  | I97: 0 | M97: 0
A98: =IF(COUNTRY_INFO!A98=0," ",COUNTRY_INFO!A98) -> Uganda | B98: =IF(COUNTRY_INFO!B98=0," ",COUNTRY_INFO!B98) -> NORTHERN | C98: =IF(COUNTRY_INFO!C98=0," ",COUNTRY_INFO!C98) -> NAPAK | D98: =IF(COUNTRY_INFO!$T$9:$T$993="MDA1 (IVM+ALB)", COUNTRY_INFO!$T$9:$T$993, " ") ->  | I98: 0 | M98: 0
A99: =IF(COUNTRY_INFO!A99=0," ",COUNTRY_INFO!A99) -> Uganda | B99: =IF(COUNTRY_INFO!B99=0," ",COUNTRY_INFO!B99) -> NORTHERN | C99: =IF(COUNTRY_INFO!C99=0," ",COUNTRY_INFO!C99) -> NEBBI | D99: =IF(COUNTRY_INFO!$T$9:$T$993="MDA1 (IVM+ALB)", COUNTRY_INFO!$T$9:$T$993, " ") ->  | I99: 0 | M99: 0
A100: =IF(COUNTRY_INFO!A100=0," ",COUNTRY_INFO!A100) -> Uganda | B100: =IF(COUNTRY_INFO!B100=0," ",COUNTRY_INFO!B100) -> NORTHERN | C100: =IF(COUNTRY_INFO!C100=0," ",COUNTRY_INFO!C100) -> NWOYA | D100: =IF(COUNTRY_INFO!$T$9:$T$993="MDA1 (IVM+ALB)", COUNTRY_INFO!$T$9:$T$993, " ") ->  | I100: 0 | M100: 0
A101: =IF(COUNTRY_INFO!A101=0," ",COUNTRY_INFO!A101) -> Uganda | B101: =IF(COUNTRY_INFO!B101=0," ",COUNTRY_INFO!B101) -> NORTHERN | C101: =IF(COUNTRY_INFO!C101=0," ",COUNTRY_INFO!C101) -> OBONGI | D101: =IF(COUNTRY_INFO!$T$9:$T$993="MDA1 (IVM+ALB)", COUNTRY_INFO!$T$9:$T$993, " ") ->  | I101: 0 | M101: 0
A102: =IF(COUNTRY_INFO!A102=0," ",COUNTRY_INFO!A102) -> Uganda | B102: =IF(COUNTRY_INFO!B102=0," ",COUNTRY_INFO!B102) -> NORTHERN | C102: =IF(COUNTRY_INFO!C102=0," ",COUNTRY_INFO!C102) -> OMORO | D102: =IF(COUNTRY_INFO!$T$9:$T$993="MDA1 (IVM+ALB)", COUNTRY_INFO!$T$9:$T$993, " ") ->  | I102: 0 | M102: 0
A103: =IF(COUNTRY_INFO!A103=0," ",COUNTRY_INFO!A103) -> Uganda | B103: =IF(COUNTRY_INFO!B103=0," ",COUNTRY_INFO!B103) -> NORTHERN | C103: =IF(COUNTRY_INFO!C103=0," ",COUNTRY_INFO!C103) -> OTUKE | D103: =IF(COUNTRY_INFO!$T$9:$T$993="MDA1 (IVM+ALB)", COUNTRY_INFO!$T$9:$T$993, " ") ->  | I103: 0 | M103: 0
A104: =IF(COUNTRY_INFO!A104=0," ",COUNTRY_INFO!A104) -> Uganda | B104: =IF(COUNTRY_INFO!B104=0," ",COUNTRY_INFO!B104) -> NORTHERN | C104: =IF(COUNTRY_INFO!C104=0," ",COUNTRY_INFO!C104) -> OYAM | D104: =IF(COUNTRY_INFO!$T$9:$T$993="MDA1 (IVM+ALB)", COUNTRY_INFO!$T$9:$T$993, " ") ->  | I104: 0 | M104: 0
A105: =IF(COUNTRY_INFO!A105=0," ",COUNTRY_INFO!A105) -> Uganda | B105: =IF(COUNTRY_INFO!B105=0," ",COUNTRY_INFO!B105) -> NORTHERN | C105: =IF(COUNTRY_INFO!C105=0," ",COUNTRY_INFO!C105) -> PADER | D105: =IF(COUNTRY_INFO!$T$9:$T$993="MDA1 (IVM+ALB)", COUNTRY_INFO!$T$9:$T$993, " ") ->  | I105: 0 | M105: 0
A106: =IF(COUNTRY_INFO!A106=0," ",COUNTRY_INFO!A106) -> Uganda | B106: =IF(COUNTRY_INFO!B106=0," ",COUNTRY_INFO!B106) -> NORTHERN | C106: =IF(COUNTRY_INFO!C106=0," ",COUNTRY_INFO!C106) -> PAKWACH | D106: =IF(COUNTRY_INFO!$T$9:$T$993="MDA1 (IVM+ALB)", COUNTRY_INFO!$T$9:$T$993, " ") ->  | I106: 0 | M106: 0
A107: =IF(COUNTRY_INFO!A107=0," ",COUNTRY_INFO!A107) -> Uganda | B107: =IF(COUNTRY_INFO!B107=0," ",COUNTRY_INFO!B107) -> NORTHERN | C107: =IF(COUNTRY_INFO!C107=0," ",COUNTRY_INFO!C107) -> YUMBE | D107: =IF(COUNTRY_INFO!$T$9:$T$993="MDA1 (IVM+ALB)", COUNTRY_INFO!$T$9:$T$993, " ") ->  | I107: 0 | M107: 0
A108: =IF(COUNTRY_INFO!A108=0," ",COUNTRY_INFO!A108) -> Uganda | B108: =IF(COUNTRY_INFO!B108=0," ",COUNTRY_INFO!B108) -> NORTHERN | C108: =IF(COUNTRY_INFO!C108=0," ",COUNTRY_INFO!C108) -> ZOMBO | D108: =IF(COUNTRY_INFO!$T$9:$T$993="MDA1 (IVM+ALB)", COUNTRY_INFO!$T$9:$T$993, " ") ->  | I108: 0 | M108: 0
A109: =IF(COUNTRY_INFO!A109=0," ",COUNTRY_INFO!A109) -> Uganda | B109: =IF(COUNTRY_INFO!B109=0," ",COUNTRY_INFO!B109) -> WESTERN | C109: =IF(COUNTRY_INFO!C109=0," ",COUNTRY_INFO!C109) -> BUHWEJU | D109: =IF(COUNTRY_INFO!$T$9:$T$993="MDA1 (IVM+ALB)", COUNTRY_INFO!$T$9:$T$993, " ") ->  | I109: 0 | M109: 0
A110: =IF(COUNTRY_INFO!A110=0," ",COUNTRY_INFO!A110) -> Uganda | B110: =IF(COUNTRY_INFO!B110=0," ",COUNTRY_INFO!B110) -> WESTERN | C110: =IF(COUNTRY_INFO!C110=0," ",COUNTRY_INFO!C110) -> BULIISA | D110: =IF(COUNTRY_INFO!$T$9:$T$993="MDA1 (IVM+ALB)", COUNTRY_INFO!$T$9:$T$993, " ") ->  | I110: 0 | M110: 0
A111: =IF(COUNTRY_INFO!A111=0," ",COUNTRY_INFO!A111) -> Uganda | B111: =IF(COUNTRY_INFO!B111=0," ",COUNTRY_INFO!B111) -> WESTERN | C111: =IF(COUNTRY_INFO!C111=0," ",COUNTRY_INFO!C111) -> BUNDIBUGYO | D111: =IF(COUNTRY_INFO!$T$9:$T$993="MDA1 (IVM+ALB)", COUNTRY_INFO!$T$9:$T$993, " ") ->  | I111: 0 | M111: 0
A112: =IF(COUNTRY_INFO!A112=0," ",COUNTRY_INFO!A112) -> Uganda | B112: =IF(COUNTRY_INFO!B112=0," ",COUNTRY_INFO!B112) -> WESTERN | C112: =IF(COUNTRY_INFO!C112=0," ",COUNTRY_INFO!C112) -> BUNYANGABU | D112: =IF(COUNTRY_INFO!$T$9:$T$993="MDA1 (IVM+ALB)", COUNTRY_INFO!$T$9:$T$993, " ") ->  | I112: 0 | M112: 0
A113: =IF(COUNTRY_INFO!A113=0," ",COUNTRY_INFO!A113) -> Uganda | B113: =IF(COUNTRY_INFO!B113=0," ",COUNTRY_INFO!B113) -> WESTERN | C113: =IF(COUNTRY_INFO!C113=0," ",COUNTRY_INFO!C113) -> BUSHENYI | D113: =IF(COUNTRY_INFO!$T$9:$T$993="MDA1 (IVM+ALB)", COUNTRY_INFO!$T$9:$T$993, " ") ->  | I113: 0 | M113: 0
A114: =IF(COUNTRY_INFO!A114=0," ",COUNTRY_INFO!A114) -> Uganda | B114: =IF(COUNTRY_INFO!B114=0," ",COUNTRY_INFO!B114) -> WESTERN | C114: =IF(COUNTRY_INFO!C114=0," ",COUNTRY_INFO!C114) -> HOIMA | D114: =IF(COUNTRY_INFO!$T$9:$T$993="MDA1 (IVM+ALB)", COUNTRY_INFO!$T$9:$T$993, " ") ->  | I114: 0 | M114: 0
A115: =IF(COUNTRY_INFO!A115=0," ",COUNTRY_INFO!A115) -> Uganda | B115: =IF(COUNTRY_INFO!B115=0," ",COUNTRY_INFO!B115) -> WESTERN | C115: =IF(COUNTRY_INFO!C115=0," ",COUNTRY_INFO!C115) -> IBANDA | D115: =IF(COUNTRY_INFO!$T$9:$T$993="MDA1 (IVM+ALB)", COUNTRY_INFO!$T$9:$T$993, " ") ->  | I115: 0 | M115: 0
A116: =IF(COUNTRY_INFO!A116=0," ",COUNTRY_INFO!A116) -> Uganda | B116: =IF(COUNTRY_INFO!B116=0," ",COUNTRY_INFO!B116) -> WESTERN | C116: =IF(COUNTRY_INFO!C116=0," ",COUNTRY_INFO!C116) -> ISINGIRO | D116: =IF(COUNTRY_INFO!$T$9:$T$993="MDA1 (IVM+ALB)", COUNTRY_INFO!$T$9:$T$993, " ") ->  | I116: 0 | M116: 0
A117: =IF(COUNTRY_INFO!A117=0," ",COUNTRY_INFO!A117) -> Uganda | B117: =IF(COUNTRY_INFO!B117=0," ",COUNTRY_INFO!B117) -> WESTERN | C117: =IF(COUNTRY_INFO!C117=0," ",COUNTRY_INFO!C117) -> KABALE | D117: =IF(COUNTRY_INFO!$T$9:$T$993="MDA1 (IVM+ALB)", COUNTRY_INFO!$T$9:$T$993, " ") ->  | I117: 0 | M117: 0
A118: =IF(COUNTRY_INFO!A118=0," ",COUNTRY_INFO!A118) -> Uganda | B118: =IF(COUNTRY_INFO!B118=0," ",COUNTRY_INFO!B118) -> WESTERN | C118: =IF(COUNTRY_INFO!C118=0," ",COUNTRY_INFO!C118) -> KABAROLE | D118: =IF(COUNTRY_INFO!$T$9:$T$993="MDA1 (IVM+ALB)", COUNTRY_INFO!$T$9:$T$993, " ") ->  | I118: 0 | M118: 0
A119: =IF(COUNTRY_INFO!A119=0," ",COUNTRY_INFO!A119) -> Uganda | B119: =IF(COUNTRY_INFO!B119=0," ",COUNTRY_INFO!B119) -> WESTERN | C119: =IF(COUNTRY_INFO!C119=0," ",COUNTRY_INFO!C119) -> KAGADI | D119: =IF(COUNTRY_INFO!$T$9:$T$993="MDA1 (IVM+ALB)", COUNTRY_INFO!$T$9:$T$993, " ") ->  | I119: 0 | M119: 0
A120: =IF(COUNTRY_INFO!A120=0," ",COUNTRY_INFO!A120) -> Uganda | B120: =IF(COUNTRY_INFO!B120=0," ",COUNTRY_INFO!B120) -> WESTERN | C120: =IF(COUNTRY_INFO!C120=0," ",COUNTRY_INFO!C120) -> KAKUMIRO | D120: =IF(COUNTRY_INFO!$T$9:$T$993="MDA1 (IVM+ALB)", COUNTRY_INFO!$T$9:$T$993, " ") ->  | I120: 0 | M120: 0
A121: =IF(COUNTRY_INFO!A121=0," ",COUNTRY_INFO!A121) -> Uganda | B121: =IF(COUNTRY_INFO!B121=0," ",COUNTRY_INFO!B121) -> WESTERN | C121: =IF(COUNTRY_INFO!C121=0," ",COUNTRY_INFO!C121) -> KAMWENGE | D121: =IF(COUNTRY_INFO!$T$9:$T$993="MDA1 (IVM+ALB)", COUNTRY_INFO!$T$9:$T$993, " ") ->  | I121: 0 | M121: 0
A122: =IF(COUNTRY_INFO!A122=0," ",COUNTRY_INFO!A122) -> Uganda | B122: =IF(COUNTRY_INFO!B122=0," ",COUNTRY_INFO!B122) -> WESTERN | C122: =IF(COUNTRY_INFO!C122=0," ",COUNTRY_INFO!C122) -> KANUNGU | D122: =IF(COUNTRY_INFO!$T$9:$T$993="MDA1 (IVM+ALB)", COUNTRY_INFO!$T$9:$T$993, " ") ->  | I122: 0 | M122: 0
A123: =IF(COUNTRY_INFO!A123=0," ",COUNTRY_INFO!A123) -> Uganda | B123: =IF(COUNTRY_INFO!B123=0," ",COUNTRY_INFO!B123) -> WESTERN | C123: =IF(COUNTRY_INFO!C123=0," ",COUNTRY_INFO!C123) -> KASESE | D123: =IF(COUNTRY_INFO!$T$9:$T$993="MDA1 (IVM+ALB)", COUNTRY_INFO!$T$9:$T$993, " ") ->  | I123: 0 | M123: 0
A124: =IF(COUNTRY_INFO!A124=0," ",COUNTRY_INFO!A124) -> Uganda | B124: =IF(COUNTRY_INFO!B124=0," ",COUNTRY_INFO!B124) -> WESTERN | C124: =IF(COUNTRY_INFO!C124=0," ",COUNTRY_INFO!C124) -> KAZO | D124: =IF(COUNTRY_INFO!$T$9:$T$993="MDA1 (IVM+ALB)", COUNTRY_INFO!$T$9:$T$993, " ") ->  | I124: 0 | M124: 0
A125: =IF(COUNTRY_INFO!A125=0," ",COUNTRY_INFO!A125) -> Uganda | B125: =IF(COUNTRY_INFO!B125=0," ",COUNTRY_INFO!B125) -> WESTERN | C125: =IF(COUNTRY_INFO!C125=0," ",COUNTRY_INFO!C125) -> KIBAALE | D125: =IF(COUNTRY_INFO!$T$9:$T$993="MDA1 (IVM+ALB)", COUNTRY_INFO!$T$9:$T$993, " ") ->  | I125: 0 | M125: 0
A126: =IF(COUNTRY_INFO!A126=0," ",COUNTRY_INFO!A126) -> Uganda | B126: =IF(COUNTRY_INFO!B126=0," ",COUNTRY_INFO!B126) -> WESTERN | C126: =IF(COUNTRY_INFO!C126=0," ",COUNTRY_INFO!C126) -> KIKUUBE | D126: =IF(COUNTRY_INFO!$T$9:$T$993="MDA1 (IVM+ALB)", COUNTRY_INFO!$T$9:$T$993, " ") ->  | I126: 0 | M126: 0
A127: =IF(COUNTRY_INFO!A127=0," ",COUNTRY_INFO!A127) -> Uganda | B127: =IF(COUNTRY_INFO!B127=0," ",COUNTRY_INFO!B127) -> WESTERN | C127: =IF(COUNTRY_INFO!C127=0," ",COUNTRY_INFO!C127) -> KIRUHURA | D127: =IF(COUNTRY_INFO!$T$9:$T$993="MDA1 (IVM+ALB)", COUNTRY_INFO!$T$9:$T$993, " ") ->  | I127: 0 | M127: 0
A128: =IF(COUNTRY_INFO!A128=0," ",COUNTRY_INFO!A128) -> Uganda | B128: =IF(COUNTRY_INFO!B128=0," ",COUNTRY_INFO!B128) -> WESTERN | C128: =IF(COUNTRY_INFO!C128=0," ",COUNTRY_INFO!C128) -> KIRYANDONGO | D128: =IF(COUNTRY_INFO!$T$9:$T$993="MDA1 (IVM+ALB)", COUNTRY_INFO!$T$9:$T$993, " ") ->  | I128: 0 | M128: 0
A129: =IF(COUNTRY_INFO!A129=0," ",COUNTRY_INFO!A129) -> Uganda | B129: =IF(COUNTRY_INFO!B129=0," ",COUNTRY_INFO!B129) -> WESTERN | C129: =IF(COUNTRY_INFO!C129=0," ",COUNTRY_INFO!C129) -> KISORO | D129: =IF(COUNTRY_INFO!$T$9:$T$993="MDA1 (IVM+ALB)", COUNTRY_INFO!$T$9:$T$993, " ") ->  | I129: 0 | M129: 0
A130: =IF(COUNTRY_INFO!A130=0," ",COUNTRY_INFO!A130) -> Uganda | B130: =IF(COUNTRY_INFO!B130=0," ",COUNTRY_INFO!B130) -> WESTERN | C130: =IF(COUNTRY_INFO!C130=0," ",COUNTRY_INFO!C130) -> KITAGWENDA | D130: =IF(COUNTRY_INFO!$T$9:$T$993="MDA1 (IVM+ALB)", COUNTRY_INFO!$T$9:$T$993, " ") ->  | I130: 0 | M130: 0
A131: =IF(COUNTRY_INFO!A131=0," ",COUNTRY_INFO!A131) -> Uganda | B131: =IF(COUNTRY_INFO!B131=0," ",COUNTRY_INFO!B131) -> WESTERN | C131: =IF(COUNTRY_INFO!C131=0," ",COUNTRY_INFO!C131) -> KYEGEGWA | D131: =IF(COUNTRY_INFO!$T$9:$T$993="MDA1 (IVM+ALB)", COUNTRY_INFO!$T$9:$T$993, " ") ->  | I131: 0 | M131: 0
A132: =IF(COUNTRY_INFO!A132=0," ",COUNTRY_INFO!A132) -> Uganda | B132: =IF(COUNTRY_INFO!B132=0," ",COUNTRY_INFO!B132) -> WESTERN | C132: =IF(COUNTRY_INFO!C132=0," ",COUNTRY_INFO!C132) -> KYENJOJO | D132: =IF(COUNTRY_INFO!$T$9:$T$993="MDA1 (IVM+ALB)", COUNTRY_INFO!$T$9:$T$993, " ") ->  | I132: 0 | M132: 0
A133: =IF(COUNTRY_INFO!A133=0," ",COUNTRY_INFO!A133) -> Uganda | B133: =IF(COUNTRY_INFO!B133=0," ",COUNTRY_INFO!B133) -> WESTERN | C133: =IF(COUNTRY_INFO!C133=0," ",COUNTRY_INFO!C133) -> MASINDI | D133: =IF(COUNTRY_INFO!$T$9:$T$993="MDA1 (IVM+ALB)", COUNTRY_INFO!$T$9:$T$993, " ") ->  | I133: 0 | M133: 0
A134: =IF(COUNTRY_INFO!A134=0," ",COUNTRY_INFO!A134) -> Uganda | B134: =IF(COUNTRY_INFO!B134=0," ",COUNTRY_INFO!B134) -> WESTERN | C134: =IF(COUNTRY_INFO!C134=0," ",COUNTRY_INFO!C134) -> MBARARA | D134: =IF(COUNTRY_INFO!$T$9:$T$993="MDA1 (IVM+ALB)", COUNTRY_INFO!$T$9:$T$993, " ") ->  | I134: 0 | M134: 0
A135: =IF(COUNTRY_INFO!A135=0," ",COUNTRY_INFO!A135) -> Uganda | B135: =IF(COUNTRY_INFO!B135=0," ",COUNTRY_INFO!B135) -> WESTERN | C135: =IF(COUNTRY_INFO!C135=0," ",COUNTRY_INFO!C135) -> MITOOMA | D135: =IF(COUNTRY_INFO!$T$9:$T$993="MDA1 (IVM+ALB)", COUNTRY_INFO!$T$9:$T$993, " ") ->  | I135: 0 | M135: 0
A136: =IF(COUNTRY_INFO!A136=0," ",COUNTRY_INFO!A136) -> Uganda | B136: =IF(COUNTRY_INFO!B136=0," ",COUNTRY_INFO!B136) -> WESTERN | C136: =IF(COUNTRY_INFO!C136=0," ",COUNTRY_INFO!C136) -> NTOROKO | D136: =IF(COUNTRY_INFO!$T$9:$T$993="MDA1 (IVM+ALB)", COUNTRY_INFO!$T$9:$T$993, " ") ->  | I136: 0 | M136: 0
A137: =IF(COUNTRY_INFO!A137=0," ",COUNTRY_INFO!A137) -> Uganda | B137: =IF(COUNTRY_INFO!B137=0," ",COUNTRY_INFO!B137) -> WESTERN | C137: =IF(COUNTRY_INFO!C137=0," ",COUNTRY_INFO!C137) -> NTUNGAMO | D137: =IF(COUNTRY_INFO!$T$9:$T$993="MDA1 (IVM+ALB)", COUNTRY_INFO!$T$9:$T$993, " ") ->  | I137: 0 | M137: 0
A138: =IF(COUNTRY_INFO!A138=0," ",COUNTRY_INFO!A138) -> Uganda | B138: =IF(COUNTRY_INFO!B138=0," ",COUNTRY_INFO!B138) -> WESTERN | C138: =IF(COUNTRY_INFO!C138=0," ",COUNTRY_INFO!C138) -> RUBANDA | D138: =IF(COUNTRY_INFO!$T$9:$T$993="MDA1 (IVM+ALB)", COUNTRY_INFO!$T$9:$T$993, " ") ->  | I138: =SUM(F138:H138) -> 0 | M138: =SUM(J138:L138) -> 0 | O138: =IF(G138<>0, IF(K138/G138*100=0, "-", K138/G138*100), " ") ->  | P138: =IF(H138<>0, IF(L138/H138*100=0, "-", L138/H138*100), " ") ->  | Q138: =IF(I138<>0, IF(M138/I138*100=0, "-", M138/I138*100), " ") -> 
A139: =IF(COUNTRY_INFO!A139=0," ",COUNTRY_INFO!A139) -> Uganda | B139: =IF(COUNTRY_INFO!B139=0," ",COUNTRY_INFO!B139) -> WESTERN | C139: =IF(COUNTRY_INFO!C139=0," ",COUNTRY_INFO!C139) -> RUBIRIZI | D139: =IF(COUNTRY_INFO!$T$9:$T$993="MDA1 (IVM+ALB)", COUNTRY_INFO!$T$9:$T$993, " ") ->  | I139: 0 | M139: 0
A140: =IF(COUNTRY_INFO!A140=0," ",COUNTRY_INFO!A140) -> Uganda | B140: =IF(COUNTRY_INFO!B140=0," ",COUNTRY_INFO!B140) -> WESTERN | C140: =IF(COUNTRY_INFO!C140=0," ",COUNTRY_INFO!C140) -> RUKIGA | D140: =IF(COUNTRY_INFO!$T$9:$T$993="MDA1 (IVM+ALB)", COUNTRY_INFO!$T$9:$T$993, " ") ->  | I140: 0 | M140: 0
A141: =IF(COUNTRY_INFO!A141=0," ",COUNTRY_INFO!A141) -> Uganda | B141: =IF(COUNTRY_INFO!B141=0," ",COUNTRY_INFO!B141) -> WESTERN | C141: =IF(COUNTRY_INFO!C141=0," ",COUNTRY_INFO!C141) -> RUKUNGIRI | D141: =IF(COUNTRY_INFO!$T$9:$T$993="MDA1 (IVM+ALB)", COUNTRY_INFO!$T$9:$T$993, " ") ->  | I141: 0 | M141: 0
A142: =IF(COUNTRY_INFO!A142=0," ",COUNTRY_INFO!A142) -> Uganda | B142: =IF(COUNTRY_INFO!B142=0," ",COUNTRY_INFO!B142) -> WESTERN | C142: =IF(COUNTRY_INFO!C142=0," ",COUNTRY_INFO!C142) -> RWAMPARA | D142: =IF(COUNTRY_INFO!$T$9:$T$993="MDA1 (IVM+ALB)", COUNTRY_INFO!$T$9:$T$993, " ") ->  | I142: 0 | M142: 0
A143: =IF(COUNTRY_INFO!A143=0," ",COUNTRY_INFO!A143) -> Uganda | B143: =IF(COUNTRY_INFO!B143=0," ",COUNTRY_INFO!B143) -> WESTERN | C143: =IF(COUNTRY_INFO!C143=0," ",COUNTRY_INFO!C143) -> SHEEMA | D143: =IF(COUNTRY_INFO!$T$9:$T$993="MDA1 (IVM+ALB)", COUNTRY_INFO!$T$9:$T$993, " ") ->  | I143: 0 | M143: 0

Sheet MDA2 (hidden)
A1: MDA 2 - Diethylcarbamazine citrate (DEC) + Albendazole (ALB)
A2: Administrative structure, population requiring PC by age group, population treated by age group and coverage
A4: TOTAL | F4: =SUM(F$9:F$1000) -> 0 | G4: =SUM(G$9:G$1000) -> 0 | H4: 0 | I4: 0 | J4: 0 | K4: 0 | L4: 0 | M4: 0 | N4: =IF(F4<>0, IF(J4/F4*100=0, "-", J4/F4*100), " ") ->  | O4: =IF(G4<>0, IF(K4/G4*100=0, "-", K4/G4*100), " ") ->  | P4: =IF(H4<>0, IF(L4/H4*100=0, "-", L4/H4*100), " ") ->  | Q4: =IF(I4<>0, IF(M4/I4*100=0, "-", M4/I4*100), " ") -> 
D6: PC implemented | E6: Date | F6: Population targeted for MDA 2 | J6: Population treated | N6: Programme coverage (%)
A7: Country | B7: Province/State | C7: District | F7: PreSAC | G7: SAC | H7: Adults | I7: Total | J7: PreSAC | K7: SAC | L7: Adults | M7: Total | N7: PreSAC | O7: SAC | P7: Adults | Q7: Total
A9: =IF(COUNTRY_INFO!A9=0," ",COUNTRY_INFO!A9) -> Uganda | B9: =IF(COUNTRY_INFO!B9=0," ",COUNTRY_INFO!B9) -> CENTRAL | C9: =IF(COUNTRY_INFO!C9=0," ",COUNTRY_INFO!C9) -> BUIKWE | D9: =IF(COUNTRY_INFO!$T$9:$T$993="MDA2 (DEC+ALB)", COUNTRY_INFO!$T$9:$T$993, " ") ->  | I9: =SUM(F9:H9) -> 0 | M9: =SUM(J9:L9) -> 0 | N9: =IF(F9<>0, IF(J9/F9*100=0, "-", J9/F9*100), " ") -> 
A10: =IF(COUNTRY_INFO!A10=0," ",COUNTRY_INFO!A10) -> Uganda | B10: =IF(COUNTRY_INFO!B10=0," ",COUNTRY_INFO!B10) -> CENTRAL | C10: =IF(COUNTRY_INFO!C10=0," ",COUNTRY_INFO!C10) -> BUKOMANSIMBI | D10: =IF(COUNTRY_INFO!$T$9:$T$993="MDA2 (DEC+ALB)", COUNTRY_INFO!$T$9:$T$993, " ") ->  | I10: =SUM(F10:H10) -> 0 | M10: =SUM(J10:L10) -> 0 | N10: =IF(F10<>0, IF(J10/F10*100=0, "-", J10/F10*100), " ") ->  | O10: =IF(G10<>0, IF(K10/G10*100=0, "-", K10/G10*100), " ") ->  | P10: =IF(H10<>0, IF(L10/H10*100=0, "-", L10/H10*100), " ") ->  | Q10: =IF(I10<>0, IF(M10/I10*100=0, "-", M10/I10*100), " ") -> 
A11: =IF(COUNTRY_INFO!A11=0," ",COUNTRY_INFO!A11) -> Uganda | B11: =IF(COUNTRY_INFO!B11=0," ",COUNTRY_INFO!B11) -> CENTRAL | C11: =IF(COUNTRY_INFO!C11=0," ",COUNTRY_INFO!C11) -> BUTAMBALA | D11: =IF(COUNTRY_INFO!$T$9:$T$993="MDA2 (DEC+ALB)", COUNTRY_INFO!$T$9:$T$993, " ") ->  | I11: 0 | M11: 0
A12: =IF(COUNTRY_INFO!A12=0," ",COUNTRY_INFO!A12) -> Uganda | B12: =IF(COUNTRY_INFO!B12=0," ",COUNTRY_INFO!B12) -> CENTRAL | C12: =IF(COUNTRY_INFO!C12=0," ",COUNTRY_INFO!C12) -> BUVUMA | D12: =IF(COUNTRY_INFO!$T$9:$T$993="MDA2 (DEC+ALB)", COUNTRY_INFO!$T$9:$T$993, " ") ->  | I12: 0 | M12: 0
A13: =IF(COUNTRY_INFO!A13=0," ",COUNTRY_INFO!A13) -> Uganda | B13: =IF(COUNTRY_INFO!B13=0," ",COUNTRY_INFO!B13) -> CENTRAL | C13: =IF(COUNTRY_INFO!C13=0," ",COUNTRY_INFO!C13) -> GOMBA | D13: =IF(COUNTRY_INFO!$T$9:$T$993="MDA2 (DEC+ALB)", COUNTRY_INFO!$T$9:$T$993, " ") ->  | I13: 0 | M13: 0
A14: =IF(COUNTRY_INFO!A14=0," ",COUNTRY_INFO!A14) -> Uganda | B14: =IF(COUNTRY_INFO!B14=0," ",COUNTRY_INFO!B14) -> CENTRAL | C14: =IF(COUNTRY_INFO!C14=0," ",COUNTRY_INFO!C14) -> KALANGALA | D14: =IF(COUNTRY_INFO!$T$9:$T$993="MDA2 (DEC+ALB)", COUNTRY_INFO!$T$9:$T$993, " ") ->  | I14: 0 | M14: 0
A15: =IF(COUNTRY_INFO!A15=0," ",COUNTRY_INFO!A15) -> Uganda | B15: =IF(COUNTRY_INFO!B15=0," ",COUNTRY_INFO!B15) -> CENTRAL | C15: =IF(COUNTRY_INFO!C15=0," ",COUNTRY_INFO!C15) -> KALUNGU | D15: =IF(COUNTRY_INFO!$T$9:$T$993="MDA2 (DEC+ALB)", COUNTRY_INFO!$T$9:$T$993, " ") ->  | I15: 0 | M15: 0
A16: =IF(COUNTRY_INFO!A16=0," ",COUNTRY_INFO!A16) -> Uganda | B16: =IF(COUNTRY_INFO!B16=0," ",COUNTRY_INFO!B16) -> CENTRAL | C16: =IF(COUNTRY_INFO!C16=0," ",COUNTRY_INFO!C16) -> KAMPALA | D16: =IF(COUNTRY_INFO!$T$9:$T$993="MDA2 (DEC+ALB)", COUNTRY_INFO!$T$9:$T$993, " ") ->  | I16: 0 | M16: 0
A17: =IF(COUNTRY_INFO!A17=0," ",COUNTRY_INFO!A17) -> Uganda | B17: =IF(COUNTRY_INFO!B17=0," ",COUNTRY_INFO!B17) -> CENTRAL | C17: =IF(COUNTRY_INFO!C17=0," ",COUNTRY_INFO!C17) -> KASSANDA | D17: =IF(COUNTRY_INFO!$T$9:$T$993="MDA2 (DEC+ALB)", COUNTRY_INFO!$T$9:$T$993, " ") ->  | I17: 0 | M17: 0
A18: =IF(COUNTRY_INFO!A18=0," ",COUNTRY_INFO!A18) -> Uganda | B18: =IF(COUNTRY_INFO!B18=0," ",COUNTRY_INFO!B18) -> CENTRAL | C18: =IF(COUNTRY_INFO!C18=0," ",COUNTRY_INFO!C18) -> KAYUNGA | D18: =IF(COUNTRY_INFO!$T$9:$T$993="MDA2 (DEC+ALB)", COUNTRY_INFO!$T$9:$T$993, " ") ->  | I18: 0 | M18: 0
A19: =IF(COUNTRY_INFO!A19=0," ",COUNTRY_INFO!A19) -> Uganda | B19: =IF(COUNTRY_INFO!B19=0," ",COUNTRY_INFO!B19) -> CENTRAL | C19: =IF(COUNTRY_INFO!C19=0," ",COUNTRY_INFO!C19) -> KIBOGA | D19: =IF(COUNTRY_INFO!$T$9:$T$993="MDA2 (DEC+ALB)", COUNTRY_INFO!$T$9:$T$993, " ") ->  | I19: 0 | M19: 0
A20: =IF(COUNTRY_INFO!A20=0," ",COUNTRY_INFO!A20) -> Uganda | B20: =IF(COUNTRY_INFO!B20=0," ",COUNTRY_INFO!B20) -> CENTRAL | C20: =IF(COUNTRY_INFO!C20=0," ",COUNTRY_INFO!C20) -> KYANKWANZI | D20: =IF(COUNTRY_INFO!$T$9:$T$993="MDA2 (DEC+ALB)", COUNTRY_INFO!$T$9:$T$993, " ") ->  | I20: 0 | M20: 0
A21: =IF(COUNTRY_INFO!A21=0," ",COUNTRY_INFO!A21) -> Uganda | B21: =IF(COUNTRY_INFO!B21=0," ",COUNTRY_INFO!B21) -> CENTRAL | C21: =IF(COUNTRY_INFO!C21=0," ",COUNTRY_INFO!C21) -> KYOTERA | D21: =IF(COUNTRY_INFO!$T$9:$T$993="MDA2 (DEC+ALB)", COUNTRY_INFO!$T$9:$T$993, " ") ->  | I21: 0 | M21: 0
A22: =IF(COUNTRY_INFO!A22=0," ",COUNTRY_INFO!A22) -> Uganda | B22: =IF(COUNTRY_INFO!B22=0," ",COUNTRY_INFO!B22) -> CENTRAL | C22: =IF(COUNTRY_INFO!C22=0," ",COUNTRY_INFO!C22) -> LUWERO | D22: =IF(COUNTRY_INFO!$T$9:$T$993="MDA2 (DEC+ALB)", COUNTRY_INFO!$T$9:$T$993, " ") ->  | I22: 0 | M22: 0
A23: =IF(COUNTRY_INFO!A23=0," ",COUNTRY_INFO!A23) -> Uganda | B23: =IF(COUNTRY_INFO!B23=0," ",COUNTRY_INFO!B23) -> CENTRAL | C23: =IF(COUNTRY_INFO!C23=0," ",COUNTRY_INFO!C23) -> LWENGO | D23: =IF(COUNTRY_INFO!$T$9:$T$993="MDA2 (DEC+ALB)", COUNTRY_INFO!$T$9:$T$993, " ") ->  | I23: 0 | M23: 0
A24: =IF(COUNTRY_INFO!A24=0," ",COUNTRY_INFO!A24) -> Uganda | B24: =IF(COUNTRY_INFO!B24=0," ",COUNTRY_INFO!B24) -> CENTRAL | C24: =IF(COUNTRY_INFO!C24=0," ",COUNTRY_INFO!C24) -> LYANTONDE | D24: =IF(COUNTRY_INFO!$T$9:$T$993="MDA2 (DEC+ALB)", COUNTRY_INFO!$T$9:$T$993, " ") ->  | I24: 0 | M24: 0
A25: =IF(COUNTRY_INFO!A25=0," ",COUNTRY_INFO!A25) -> Uganda | B25: =IF(COUNTRY_INFO!B25=0," ",COUNTRY_INFO!B25) -> CENTRAL | C25: =IF(COUNTRY_INFO!C25=0," ",COUNTRY_INFO!C25) -> MASAKA | D25: =IF(COUNTRY_INFO!$T$9:$T$993="MDA2 (DEC+ALB)", COUNTRY_INFO!$T$9:$T$993, " ") ->  | I25: 0 | M25: 0
A26: =IF(COUNTRY_INFO!A26=0," ",COUNTRY_INFO!A26) -> Uganda | B26: =IF(COUNTRY_INFO!B26=0," ",COUNTRY_INFO!B26) -> CENTRAL | C26: =IF(COUNTRY_INFO!C26=0," ",COUNTRY_INFO!C26) -> MITYANA | D26: =IF(COUNTRY_INFO!$T$9:$T$993="MDA2 (DEC+ALB)", COUNTRY_INFO!$T$9:$T$993, " ") ->  | I26: 0 | M26: 0
A27: =IF(COUNTRY_INFO!A27=0," ",COUNTRY_INFO!A27) -> Uganda | B27: =IF(COUNTRY_INFO!B27=0," ",COUNTRY_INFO!B27) -> CENTRAL | C27: =IF(COUNTRY_INFO!C27=0," ",COUNTRY_INFO!C27) -> MPIGI | D27: =IF(COUNTRY_INFO!$T$9:$T$993="MDA2 (DEC+ALB)", COUNTRY_INFO!$T$9:$T$993, " ") ->  | I27: 0 | M27: 0
A28: =IF(COUNTRY_INFO!A28=0," ",COUNTRY_INFO!A28) -> Uganda | B28: =IF(COUNTRY_INFO!B28=0," ",COUNTRY_INFO!B28) -> CENTRAL | C28: =IF(COUNTRY_INFO!C28=0," ",COUNTRY_INFO!C28) -> MUBENDE | D28: =IF(COUNTRY_INFO!$T$9:$T$993="MDA2 (DEC+ALB)", COUNTRY_INFO!$T$9:$T$993, " ") ->  | I28: 0 | M28: 0
A29: =IF(COUNTRY_INFO!A29=0," ",COUNTRY_INFO!A29) -> Uganda | B29: =IF(COUNTRY_INFO!B29=0," ",COUNTRY_INFO!B29) -> CENTRAL | C29: =IF(COUNTRY_INFO!C29=0," ",COUNTRY_INFO!C29) -> MUKONO | D29: =IF(COUNTRY_INFO!$T$9:$T$993="MDA2 (DEC+ALB)", COUNTRY_INFO!$T$9:$T$993, " ") ->  | I29: 0 | M29: 0
A30: =IF(COUNTRY_INFO!A30=0," ",COUNTRY_INFO!A30) -> Uganda | B30: =IF(COUNTRY_INFO!B30=0," ",COUNTRY_INFO!B30) -> CENTRAL | C30: =IF(COUNTRY_INFO!C30=0," ",COUNTRY_INFO!C30) -> NAKASEKE | D30: =IF(COUNTRY_INFO!$T$9:$T$993="MDA2 (DEC+ALB)", COUNTRY_INFO!$T$9:$T$993, " ") ->  | I30: 0 | M30: 0
A31: =IF(COUNTRY_INFO!A31=0," ",COUNTRY_INFO!A31) -> Uganda | B31: =IF(COUNTRY_INFO!B31=0," ",COUNTRY_INFO!B31) -> CENTRAL | C31: =IF(COUNTRY_INFO!C31=0," ",COUNTRY_INFO!C31) -> NAKASONGOLA | D31: =IF(COUNTRY_INFO!$T$9:$T$993="MDA2 (DEC+ALB)", COUNTRY_INFO!$T$9:$T$993, " ") ->  | I31: 0 | M31: 0
A32: =IF(COUNTRY_INFO!A32=0," ",COUNTRY_INFO!A32) -> Uganda | B32: =IF(COUNTRY_INFO!B32=0," ",COUNTRY_INFO!B32) -> CENTRAL | C32: =IF(COUNTRY_INFO!C32=0," ",COUNTRY_INFO!C32) -> RAKAI | D32: =IF(COUNTRY_INFO!$T$9:$T$993="MDA2 (DEC+ALB)", COUNTRY_INFO!$T$9:$T$993, " ") ->  | I32: 0 | M32: 0
A33: =IF(COUNTRY_INFO!A33=0," ",COUNTRY_INFO!A33) -> Uganda | B33: =IF(COUNTRY_INFO!B33=0," ",COUNTRY_INFO!B33) -> CENTRAL | C33: =IF(COUNTRY_INFO!C33=0," ",COUNTRY_INFO!C33) -> SEMBABULE | D33: =IF(COUNTRY_INFO!$T$9:$T$993="MDA2 (DEC+ALB)", COUNTRY_INFO!$T$9:$T$993, " ") ->  | I33: 0 | M33: 0
A34: =IF(COUNTRY_INFO!A34=0," ",COUNTRY_INFO!A34) -> Uganda | B34: =IF(COUNTRY_INFO!B34=0," ",COUNTRY_INFO!B34) -> CENTRAL | C34: =IF(COUNTRY_INFO!C34=0," ",COUNTRY_INFO!C34) -> WAKISO | D34: =IF(COUNTRY_INFO!$T$9:$T$993="MDA2 (DEC+ALB)", COUNTRY_INFO!$T$9:$T$993, " ") ->  | I34: 0 | M34: 0
A35: =IF(COUNTRY_INFO!A35=0," ",COUNTRY_INFO!A35) -> Uganda | B35: =IF(COUNTRY_INFO!B35=0," ",COUNTRY_INFO!B35) -> EASTERN | C35: =IF(COUNTRY_INFO!C35=0," ",COUNTRY_INFO!C35) -> AMURIA | D35: =IF(COUNTRY_INFO!$T$9:$T$993="MDA2 (DEC+ALB)", COUNTRY_INFO!$T$9:$T$993, " ") ->  | I35: 0 | M35: 0
A36: =IF(COUNTRY_INFO!A36=0," ",COUNTRY_INFO!A36) -> Uganda | B36: =IF(COUNTRY_INFO!B36=0," ",COUNTRY_INFO!B36) -> EASTERN | C36: =IF(COUNTRY_INFO!C36=0," ",COUNTRY_INFO!C36) -> BUDAKA | D36: =IF(COUNTRY_INFO!$T$9:$T$993="MDA2 (DEC+ALB)", COUNTRY_INFO!$T$9:$T$993, " ") ->  | I36: 0 | M36: 0
A37: =IF(COUNTRY_INFO!A37=0," ",COUNTRY_INFO!A37) -> Uganda | B37: =IF(COUNTRY_INFO!B37=0," ",COUNTRY_INFO!B37) -> EASTERN | C37: =IF(COUNTRY_INFO!C37=0," ",COUNTRY_INFO!C37) -> BUDUDA | D37: =IF(COUNTRY_INFO!$T$9:$T$993="MDA2 (DEC+ALB)", COUNTRY_INFO!$T$9:$T$993, " ") ->  | I37: 0 | M37: 0
A38: =IF(COUNTRY_INFO!A38=0," ",COUNTRY_INFO!A38) -> Uganda | B38: =IF(COUNTRY_INFO!B38=0," ",COUNTRY_INFO!B38) -> EASTERN | C38: =IF(COUNTRY_INFO!C38=0," ",COUNTRY_INFO!C38) -> BUGIRI | D38: =IF(COUNTRY_INFO!$T$9:$T$993="MDA2 (DEC+ALB)", COUNTRY_INFO!$T$9:$T$993, " ") ->  | I38: 0 | M38: 0
A39: =IF(COUNTRY_INFO!A39=0," ",COUNTRY_INFO!A39) -> Uganda | B39: =IF(COUNTRY_INFO!B39=0," ",COUNTRY_INFO!B39) -> EASTERN | C39: =IF(COUNTRY_INFO!C39=0," ",COUNTRY_INFO!C39) -> BUGWERI | D39: =IF(COUNTRY_INFO!$T$9:$T$993="MDA2 (DEC+ALB)", COUNTRY_INFO!$T$9:$T$993, " ") ->  | I39: 0 | M39: 0
A40: =IF(COUNTRY_INFO!A40=0," ",COUNTRY_INFO!A40) -> Uganda | B40: =IF(COUNTRY_INFO!B40=0," ",COUNTRY_INFO!B40) -> EASTERN | C40: =IF(COUNTRY_INFO!C40=0," ",COUNTRY_INFO!C40) -> BUKEDEA | D40: =IF(COUNTRY_INFO!$T$9:$T$993="MDA2 (DEC+ALB)", COUNTRY_INFO!$T$9:$T$993, " ") ->  | I40: 0 | M40: 0
A41: =IF(COUNTRY_INFO!A41=0," ",COUNTRY_INFO!A41) -> Uganda | B41: =IF(COUNTRY_INFO!B41=0," ",COUNTRY_INFO!B41) -> EASTERN | C41: =IF(COUNTRY_INFO!C41=0," ",COUNTRY_INFO!C41) -> BUKWO | D41: =IF(COUNTRY_INFO!$T$9:$T$993="MDA2 (DEC+ALB)", COUNTRY_INFO!$T$9:$T$993, " ") ->  | I41: 0 | M41: 0
A42: =IF(COUNTRY_INFO!A42=0," ",COUNTRY_INFO!A42) -> Uganda | B42: =IF(COUNTRY_INFO!B42=0," ",COUNTRY_INFO!B42) -> EASTERN | C42: =IF(COUNTRY_INFO!C42=0," ",COUNTRY_INFO!C42) -> BULAMBULI | D42: =IF(COUNTRY_INFO!$T$9:$T$993="MDA2 (DEC+ALB)", COUNTRY_INFO!$T$9:$T$993, " ") ->  | I42: 0 | M42: 0
A43: =IF(COUNTRY_INFO!A43=0," ",COUNTRY_INFO!A43) -> Uganda | B43: =IF(COUNTRY_INFO!B43=0," ",COUNTRY_INFO!B43) -> EASTERN | C43: =IF(COUNTRY_INFO!C43=0," ",COUNTRY_INFO!C43) -> BUSIA | D43: =IF(COUNTRY_INFO!$T$9:$T$993="MDA2 (DEC+ALB)", COUNTRY_INFO!$T$9:$T$993, " ") ->  | I43: 0 | M43: 0
A44: =IF(COUNTRY_INFO!A44=0," ",COUNTRY_INFO!A44) -> Uganda | B44: =IF(COUNTRY_INFO!B44=0," ",COUNTRY_INFO!B44) -> EASTERN | C44: =IF(COUNTRY_INFO!C44=0," ",COUNTRY_INFO!C44) -> BUTALEJA | D44: =IF(COUNTRY_INFO!$T$9:$T$993="MDA2 (DEC+ALB)", COUNTRY_INFO!$T$9:$T$993, " ") ->  | I44: 0 | M44: 0
A45: =IF(COUNTRY_INFO!A45=0," ",COUNTRY_INFO!A45) -> Uganda | B45: =IF(COUNTRY_INFO!B45=0," ",COUNTRY_INFO!B45) -> EASTERN | C45: =IF(COUNTRY_INFO!C45=0," ",COUNTRY_INFO!C45) -> BUTEBO | D45: =IF(COUNTRY_INFO!$T$9:$T$993="MDA2 (DEC+ALB)", COUNTRY_INFO!$T$9:$T$993, " ") ->  | I45: 0 | M45: 0
A46: =IF(COUNTRY_INFO!A46=0," ",COUNTRY_INFO!A46) -> Uganda | B46: =IF(COUNTRY_INFO!B46=0," ",COUNTRY_INFO!B46) -> EASTERN | C46: =IF(COUNTRY_INFO!C46=0," ",COUNTRY_INFO!C46) -> BUYENDE | D46: =IF(COUNTRY_INFO!$T$9:$T$993="MDA2 (DEC+ALB)", COUNTRY_INFO!$T$9:$T$993, " ") ->  | I46: 0 | M46: 0
A47: =IF(COUNTRY_INFO!A47=0," ",COUNTRY_INFO!A47) -> Uganda | B47: =IF(COUNTRY_INFO!B47=0," ",COUNTRY_INFO!B47) -> EASTERN | C47: =IF(COUNTRY_INFO!C47=0," ",COUNTRY_INFO!C47) -> IGANGA | D47: =IF(COUNTRY_INFO!$T$9:$T$993="MDA2 (DEC+ALB)", COUNTRY_INFO!$T$9:$T$993, " ") ->  | I47: 0 | M47: 0
A48: =IF(COUNTRY_INFO!A48=0," ",COUNTRY_INFO!A48) -> Uganda | B48: =IF(COUNTRY_INFO!B48=0," ",COUNTRY_INFO!B48) -> EASTERN | C48: =IF(COUNTRY_INFO!C48=0," ",COUNTRY_INFO!C48) -> JINJA | D48: =IF(COUNTRY_INFO!$T$9:$T$993="MDA2 (DEC+ALB)", COUNTRY_INFO!$T$9:$T$993, " ") ->  | I48: 0 | M48: 0
A49: =IF(COUNTRY_INFO!A49=0," ",COUNTRY_INFO!A49) -> Uganda | B49: =IF(COUNTRY_INFO!B49=0," ",COUNTRY_INFO!B49) -> EASTERN | C49: =IF(COUNTRY_INFO!C49=0," ",COUNTRY_INFO!C49) -> KABERAMAIDO | D49: =IF(COUNTRY_INFO!$T$9:$T$993="MDA2 (DEC+ALB)", COUNTRY_INFO!$T$9:$T$993, " ") ->  | I49: 0 | M49: 0
A50: =IF(COUNTRY_INFO!A50=0," ",COUNTRY_INFO!A50) -> Uganda | B50: =IF(COUNTRY_INFO!B50=0," ",COUNTRY_INFO!B50) -> EASTERN | C50: =IF(COUNTRY_INFO!C50=0," ",COUNTRY_INFO!C50) -> KALAKI | D50: =IF(COUNTRY_INFO!$T$9:$T$993="MDA2 (DEC+ALB)", COUNTRY_INFO!$T$9:$T$993, " ") ->  | I50: 0 | M50: 0
A51: =IF(COUNTRY_INFO!A51=0," ",COUNTRY_INFO!A51) -> Uganda | B51: =IF(COUNTRY_INFO!B51=0," ",COUNTRY_INFO!B51) -> EASTERN | C51: =IF(COUNTRY_INFO!C51=0," ",COUNTRY_INFO!C51) -> KALIRO | D51: =IF(COUNTRY_INFO!$T$9:$T$993="MDA2 (DEC+ALB)", COUNTRY_INFO!$T$9:$T$993, " ") ->  | I51: 0 | M51: 0
A52: =IF(COUNTRY_INFO!A52=0," ",COUNTRY_INFO!A52) -> Uganda | B52: =IF(COUNTRY_INFO!B52=0," ",COUNTRY_INFO!B52) -> EASTERN | C52: =IF(COUNTRY_INFO!C52=0," ",COUNTRY_INFO!C52) -> KAMULI | D52: =IF(COUNTRY_INFO!$T$9:$T$993="MDA2 (DEC+ALB)", COUNTRY_INFO!$T$9:$T$993, " ") ->  | I52: 0 | M52: 0
A53: =IF(COUNTRY_INFO!A53=0," ",COUNTRY_INFO!A53) -> Uganda | B53: =IF(COUNTRY_INFO!B53=0," ",COUNTRY_INFO!B53) -> EASTERN | C53: =IF(COUNTRY_INFO!C53=0," ",COUNTRY_INFO!C53) -> KAPCHORWA | D53: =IF(COUNTRY_INFO!$T$9:$T$993="MDA2 (DEC+ALB)", COUNTRY_INFO!$T$9:$T$993, " ") ->  | I53: 0 | M53: 0
A54: =IF(COUNTRY_INFO!A54=0," ",COUNTRY_INFO!A54) -> Uganda | B54: =IF(COUNTRY_INFO!B54=0," ",COUNTRY_INFO!B54) -> EASTERN | C54: =IF(COUNTRY_INFO!C54=0," ",COUNTRY_INFO!C54) -> KAPELEBYONG | D54: =IF(COUNTRY_INFO!$T$9:$T$993="MDA2 (DEC+ALB)", COUNTRY_INFO!$T$9:$T$993, " ") ->  | I54: 0 | M54: 0
A55: =IF(COUNTRY_INFO!A55=0," ",COUNTRY_INFO!A55) -> Uganda | B55: =IF(COUNTRY_INFO!B55=0," ",COUNTRY_INFO!B55) -> EASTERN | C55: =IF(COUNTRY_INFO!C55=0," ",COUNTRY_INFO!C55) -> KATAKWI | D55: =IF(COUNTRY_INFO!$T$9:$T$993="MDA2 (DEC+ALB)", COUNTRY_INFO!$T$9:$T$993, " ") ->  | I55: 0 | M55: 0
A56: =IF(COUNTRY_INFO!A56=0," ",COUNTRY_INFO!A56) -> Uganda | B56: =IF(COUNTRY_INFO!B56=0," ",COUNTRY_INFO!B56) -> EASTERN | C56: =IF(COUNTRY_INFO!C56=0," ",COUNTRY_INFO!C56) -> KIBUKU | D56: =IF(COUNTRY_INFO!$T$9:$T$993="MDA2 (DEC+ALB)", COUNTRY_INFO!$T$9:$T$993, " ") ->  | I56: 0 | M56: 0
A57: =IF(COUNTRY_INFO!A57=0," ",COUNTRY_INFO!A57) -> Uganda | B57: =IF(COUNTRY_INFO!B57=0," ",COUNTRY_INFO!B57) -> EASTERN | C57: =IF(COUNTRY_INFO!C57=0," ",COUNTRY_INFO!C57) -> KUMI | D57: =IF(COUNTRY_INFO!$T$9:$T$993="MDA2 (DEC+ALB)", COUNTRY_INFO!$T$9:$T$993, " ") ->  | I57: 0 | M57: 0
A58: =IF(COUNTRY_INFO!A58=0," ",COUNTRY_INFO!A58) -> Uganda | B58: =IF(COUNTRY_INFO!B58=0," ",COUNTRY_INFO!B58) -> EASTERN | C58: =IF(COUNTRY_INFO!C58=0," ",COUNTRY_INFO!C58) -> KWEEN | D58: =IF(COUNTRY_INFO!$T$9:$T$993="MDA2 (DEC+ALB)", COUNTRY_INFO!$T$9:$T$993, " ") ->  | I58: 0 | M58: 0
A59: =IF(COUNTRY_INFO!A59=0," ",COUNTRY_INFO!A59) -> Uganda | B59: =IF(COUNTRY_INFO!B59=0," ",COUNTRY_INFO!B59) -> EASTERN | C59: =IF(COUNTRY_INFO!C59=0," ",COUNTRY_INFO!C59) -> LUUKA | D59: =IF(COUNTRY_INFO!$T$9:$T$993="MDA2 (DEC+ALB)", COUNTRY_INFO!$T$9:$T$993, " ") ->  | I59: 0 | M59: 0
A60: =IF(COUNTRY_INFO!A60=0," ",COUNTRY_INFO!A60) -> Uganda | B60: =IF(COUNTRY_INFO!B60=0," ",COUNTRY_INFO!B60) -> EASTERN | C60: =IF(COUNTRY_INFO!C60=0," ",COUNTRY_INFO!C60) -> MANAFWA | D60: =IF(COUNTRY_INFO!$T$9:$T$993="MDA2 (DEC+ALB)", COUNTRY_INFO!$T$9:$T$993, " ") ->  | I60: 0 | M60: 0
A61: =IF(COUNTRY_INFO!A61=0," ",COUNTRY_INFO!A61) -> Uganda | B61: =IF(COUNTRY_INFO!B61=0," ",COUNTRY_INFO!B61) -> EASTERN | C61: =IF(COUNTRY_INFO!C61=0," ",COUNTRY_INFO!C61) -> MAYUGE | D61: =IF(COUNTRY_INFO!$T$9:$T$993="MDA2 (DEC+ALB)", COUNTRY_INFO!$T$9:$T$993, " ") ->  | I61: 0 | M61: 0
A62: =IF(COUNTRY_INFO!A62=0," ",COUNTRY_INFO!A62) -> Uganda | B62: =IF(COUNTRY_INFO!B62=0," ",COUNTRY_INFO!B62) -> EASTERN | C62: =IF(COUNTRY_INFO!C62=0," ",COUNTRY_INFO!C62) -> MBALE | D62: =IF(COUNTRY_INFO!$T$9:$T$993="MDA2 (DEC+ALB)", COUNTRY_INFO!$T$9:$T$993, " ") ->  | I62: 0 | M62: 0
A63: =IF(COUNTRY_INFO!A63=0," ",COUNTRY_INFO!A63) -> Uganda | B63: =IF(COUNTRY_INFO!B63=0," ",COUNTRY_INFO!B63) -> EASTERN | C63: =IF(COUNTRY_INFO!C63=0," ",COUNTRY_INFO!C63) -> NAMAYINGO | D63: =IF(COUNTRY_INFO!$T$9:$T$993="MDA2 (DEC+ALB)", COUNTRY_INFO!$T$9:$T$993, " ") ->  | I63: 0 | M63: 0
A64: =IF(COUNTRY_INFO!A64=0," ",COUNTRY_INFO!A64) -> Uganda | B64: =IF(COUNTRY_INFO!B64=0," ",COUNTRY_INFO!B64) -> EASTERN | C64: =IF(COUNTRY_INFO!C64=0," ",COUNTRY_INFO!C64) -> NAMISINDWA | D64: =IF(COUNTRY_INFO!$T$9:$T$993="MDA2 (DEC+ALB)", COUNTRY_INFO!$T$9:$T$993, " ") ->  | I64: 0 | M64: 0
A65: =IF(COUNTRY_INFO!A65=0," ",COUNTRY_INFO!A65) -> Uganda | B65: =IF(COUNTRY_INFO!B65=0," ",COUNTRY_INFO!B65) -> EASTERN | C65: =IF(COUNTRY_INFO!C65=0," ",COUNTRY_INFO!C65) -> NAMUTUMBA | D65: =IF(COUNTRY_INFO!$T$9:$T$993="MDA2 (DEC+ALB)", COUNTRY_INFO!$T$9:$T$993, " ") ->  | I65: 0 | M65: 0
A66: =IF(COUNTRY_INFO!A66=0," ",COUNTRY_INFO!A66) -> Uganda | B66: =IF(COUNTRY_INFO!B66=0," ",COUNTRY_INFO!B66) -> EASTERN | C66: =IF(COUNTRY_INFO!C66=0," ",COUNTRY_INFO!C66) -> NGORA | D66: =IF(COUNTRY_INFO!$T$9:$T$993="MDA2 (DEC+ALB)", COUNTRY_INFO!$T$9:$T$993, " ") ->  | I66: 0 | M66: 0
A67: =IF(COUNTRY_INFO!A67=0," ",COUNTRY_INFO!A67) -> Uganda | B67: =IF(COUNTRY_INFO!B67=0," ",COUNTRY_INFO!B67) -> EASTERN | C67: =IF(COUNTRY_INFO!C67=0," ",COUNTRY_INFO!C67) -> PALLISA | D67: =IF(COUNTRY_INFO!$T$9:$T$993="MDA2 (DEC+ALB)", COUNTRY_INFO!$T$9:$T$993, " ") ->  | I67: 0 | M67: 0
A68: =IF(COUNTRY_INFO!A68=0," ",COUNTRY_INFO!A68) -> Uganda | B68: =IF(COUNTRY_INFO!B68=0," ",COUNTRY_INFO!B68) -> EASTERN | C68: =IF(COUNTRY_INFO!C68=0," ",COUNTRY_INFO!C68) -> SERERE | D68: =IF(COUNTRY_INFO!$T$9:$T$993="MDA2 (DEC+ALB)", COUNTRY_INFO!$T$9:$T$993, " ") ->  | I68: 0 | M68: 0
A69: =IF(COUNTRY_INFO!A69=0," ",COUNTRY_INFO!A69) -> Uganda | B69: =IF(COUNTRY_INFO!B69=0," ",COUNTRY_INFO!B69) -> EASTERN | C69: =IF(COUNTRY_INFO!C69=0," ",COUNTRY_INFO!C69) -> SIRONKO | D69: =IF(COUNTRY_INFO!$T$9:$T$993="MDA2 (DEC+ALB)", COUNTRY_INFO!$T$9:$T$993, " ") ->  | I69: 0 | M69: 0
A70: =IF(COUNTRY_INFO!A70=0," ",COUNTRY_INFO!A70) -> Uganda | B70: =IF(COUNTRY_INFO!B70=0," ",COUNTRY_INFO!B70) -> EASTERN | C70: =IF(COUNTRY_INFO!C70=0," ",COUNTRY_INFO!C70) -> SOROTI | D70: =IF(COUNTRY_INFO!$T$9:$T$993="MDA2 (DEC+ALB)", COUNTRY_INFO!$T$9:$T$993, " ") ->  | I70: 0 | M70: 0
A71: =IF(COUNTRY_INFO!A71=0," ",COUNTRY_INFO!A71) -> Uganda | B71: =IF(COUNTRY_INFO!B71=0," ",COUNTRY_INFO!B71) -> EASTERN | C71: =IF(COUNTRY_INFO!C71=0," ",COUNTRY_INFO!C71) -> TORORO | D71: =IF(COUNTRY_INFO!$T$9:$T$993="MDA2 (DEC+ALB)", COUNTRY_INFO!$T$9:$T$993, " ") ->  | I71: 0 | M71: 0
A72: =IF(COUNTRY_INFO!A72=0," ",COUNTRY_INFO!A72) -> Uganda | B72: =IF(COUNTRY_INFO!B72=0," ",COUNTRY_INFO!B72) -> NORTHERN | C72: =IF(COUNTRY_INFO!C72=0," ",COUNTRY_INFO!C72) -> ABIM | D72: =IF(COUNTRY_INFO!$T$9:$T$993="MDA2 (DEC+ALB)", COUNTRY_INFO!$T$9:$T$993, " ") ->  | I72: 0 | M72: 0
A73: =IF(COUNTRY_INFO!A73=0," ",COUNTRY_INFO!A73) -> Uganda | B73: =IF(COUNTRY_INFO!B73=0," ",COUNTRY_INFO!B73) -> NORTHERN | C73: =IF(COUNTRY_INFO!C73=0," ",COUNTRY_INFO!C73) -> ADJUMANI | D73: =IF(COUNTRY_INFO!$T$9:$T$993="MDA2 (DEC+ALB)", COUNTRY_INFO!$T$9:$T$993, " ") ->  | I73: 0 | M73: 0
A74: =IF(COUNTRY_INFO!A74=0," ",COUNTRY_INFO!A74) -> Uganda | B74: =IF(COUNTRY_INFO!B74=0," ",COUNTRY_INFO!B74) -> NORTHERN | C74: =IF(COUNTRY_INFO!C74=0," ",COUNTRY_INFO!C74) -> AGAGO | D74: =IF(COUNTRY_INFO!$T$9:$T$993="MDA2 (DEC+ALB)", COUNTRY_INFO!$T$9:$T$993, " ") ->  | I74: =SUM(F74:H74) -> 0 | M74: =SUM(J74:L74) -> 0 | N74: =IF(F74<>0, IF(J74/F74*100=0, "-", J74/F74*100), " ") ->  | O74: =IF(G74<>0, IF(K74/G74*100=0, "-", K74/G74*100), " ") ->  | P74: =IF(H74<>0, IF(L74/H74*100=0, "-", L74/H74*100), " ") ->  | Q74: =IF(I74<>0, IF(M74/I74*100=0, "-", M74/I74*100), " ") -> 
A75: =IF(COUNTRY_INFO!A75=0," ",COUNTRY_INFO!A75) -> Uganda | B75: =IF(COUNTRY_INFO!B75=0," ",COUNTRY_INFO!B75) -> NORTHERN | C75: =IF(COUNTRY_INFO!C75=0," ",COUNTRY_INFO!C75) -> ALEBTONG | D75: =IF(COUNTRY_INFO!$T$9:$T$993="MDA2 (DEC+ALB)", COUNTRY_INFO!$T$9:$T$993, " ") ->  | I75: 0 | M75: 0
A76: =IF(COUNTRY_INFO!A76=0," ",COUNTRY_INFO!A76) -> Uganda | B76: =IF(COUNTRY_INFO!B76=0," ",COUNTRY_INFO!B76) -> NORTHERN | C76: =IF(COUNTRY_INFO!C76=0," ",COUNTRY_INFO!C76) -> AMOLATAR | D76: =IF(COUNTRY_INFO!$T$9:$T$993="MDA2 (DEC+ALB)", COUNTRY_INFO!$T$9:$T$993, " ") ->  | I76: 0 | M76: 0
A77: =IF(COUNTRY_INFO!A77=0," ",COUNTRY_INFO!A77) -> Uganda | B77: =IF(COUNTRY_INFO!B77=0," ",COUNTRY_INFO!B77) -> NORTHERN | C77: =IF(COUNTRY_INFO!C77=0," ",COUNTRY_INFO!C77) -> AMUDAT | D77: =IF(COUNTRY_INFO!$T$9:$T$993="MDA2 (DEC+ALB)", COUNTRY_INFO!$T$9:$T$993, " ") ->  | I77: 0 | M77: 0
A78: =IF(COUNTRY_INFO!A78=0," ",COUNTRY_INFO!A78) -> Uganda | B78: =IF(COUNTRY_INFO!B78=0," ",COUNTRY_INFO!B78) -> NORTHERN | C78: =IF(COUNTRY_INFO!C78=0," ",COUNTRY_INFO!C78) -> AMURU | D78: =IF(COUNTRY_INFO!$T$9:$T$993="MDA2 (DEC+ALB)", COUNTRY_INFO!$T$9:$T$993, " ") ->  | I78: 0 | M78: 0
A79: =IF(COUNTRY_INFO!A79=0," ",COUNTRY_INFO!A79) -> Uganda | B79: =IF(COUNTRY_INFO!B79=0," ",COUNTRY_INFO!B79) -> NORTHERN | C79: =IF(COUNTRY_INFO!C79=0," ",COUNTRY_INFO!C79) -> APAC | D79: =IF(COUNTRY_INFO!$T$9:$T$993="MDA2 (DEC+ALB)", COUNTRY_INFO!$T$9:$T$993, " ") ->  | I79: 0 | M79: 0
A80: =IF(COUNTRY_INFO!A80=0," ",COUNTRY_INFO!A80) -> Uganda | B80: =IF(COUNTRY_INFO!B80=0," ",COUNTRY_INFO!B80) -> NORTHERN | C80: =IF(COUNTRY_INFO!C80=0," ",COUNTRY_INFO!C80) -> ARUA | D80: =IF(COUNTRY_INFO!$T$9:$T$993="MDA2 (DEC+ALB)", COUNTRY_INFO!$T$9:$T$993, " ") ->  | I80: 0 | M80: 0
A81: =IF(COUNTRY_INFO!A81=0," ",COUNTRY_INFO!A81) -> Uganda | B81: =IF(COUNTRY_INFO!B81=0," ",COUNTRY_INFO!B81) -> NORTHERN | C81: =IF(COUNTRY_INFO!C81=0," ",COUNTRY_INFO!C81) -> DOKOLO | D81: =IF(COUNTRY_INFO!$T$9:$T$993="MDA2 (DEC+ALB)", COUNTRY_INFO!$T$9:$T$993, " ") ->  | I81: 0 | M81: 0
A82: =IF(COUNTRY_INFO!A82=0," ",COUNTRY_INFO!A82) -> Uganda | B82: =IF(COUNTRY_INFO!B82=0," ",COUNTRY_INFO!B82) -> NORTHERN | C82: =IF(COUNTRY_INFO!C82=0," ",COUNTRY_INFO!C82) -> GULU | D82: =IF(COUNTRY_INFO!$T$9:$T$993="MDA2 (DEC+ALB)", COUNTRY_INFO!$T$9:$T$993, " ") ->  | I82: 0 | M82: 0
A83: =IF(COUNTRY_INFO!A83=0," ",COUNTRY_INFO!A83) -> Uganda | B83: =IF(COUNTRY_INFO!B83=0," ",COUNTRY_INFO!B83) -> NORTHERN | C83: =IF(COUNTRY_INFO!C83=0," ",COUNTRY_INFO!C83) -> KAABONG | D83: =IF(COUNTRY_INFO!$T$9:$T$993="MDA2 (DEC+ALB)", COUNTRY_INFO!$T$9:$T$993, " ") ->  | I83: 0 | M83: 0
A84: =IF(COUNTRY_INFO!A84=0," ",COUNTRY_INFO!A84) -> Uganda | B84: =IF(COUNTRY_INFO!B84=0," ",COUNTRY_INFO!B84) -> NORTHERN | C84: =IF(COUNTRY_INFO!C84=0," ",COUNTRY_INFO!C84) -> KARENGA | D84: =IF(COUNTRY_INFO!$T$9:$T$993="MDA2 (DEC+ALB)", COUNTRY_INFO!$T$9:$T$993, " ") ->  | I84: 0 | M84: 0
A85: =IF(COUNTRY_INFO!A85=0," ",COUNTRY_INFO!A85) -> Uganda | B85: =IF(COUNTRY_INFO!B85=0," ",COUNTRY_INFO!B85) -> NORTHERN | C85: =IF(COUNTRY_INFO!C85=0," ",COUNTRY_INFO!C85) -> KITGUM | D85: =IF(COUNTRY_INFO!$T$9:$T$993="MDA2 (DEC+ALB)", COUNTRY_INFO!$T$9:$T$993, " ") ->  | I85: 0 | M85: 0
A86: =IF(COUNTRY_INFO!A86=0," ",COUNTRY_INFO!A86) -> Uganda | B86: =IF(COUNTRY_INFO!B86=0," ",COUNTRY_INFO!B86) -> NORTHERN | C86: =IF(COUNTRY_INFO!C86=0," ",COUNTRY_INFO!C86) -> KOBOKO | D86: =IF(COUNTRY_INFO!$T$9:$T$993="MDA2 (DEC+ALB)", COUNTRY_INFO!$T$9:$T$993, " ") ->  | I86: 0 | M86: 0
A87: =IF(COUNTRY_INFO!A87=0," ",COUNTRY_INFO!A87) -> Uganda | B87: =IF(COUNTRY_INFO!B87=0," ",COUNTRY_INFO!B87) -> NORTHERN | C87: =IF(COUNTRY_INFO!C87=0," ",COUNTRY_INFO!C87) -> KOLE | D87: =IF(COUNTRY_INFO!$T$9:$T$993="MDA2 (DEC+ALB)", COUNTRY_INFO!$T$9:$T$993, " ") ->  | I87: 0 | M87: 0
A88: =IF(COUNTRY_INFO!A88=0," ",COUNTRY_INFO!A88) -> Uganda | B88: =IF(COUNTRY_INFO!B88=0," ",COUNTRY_INFO!B88) -> NORTHERN | C88: =IF(COUNTRY_INFO!C88=0," ",COUNTRY_INFO!C88) -> KOTIDO | D88: =IF(COUNTRY_INFO!$T$9:$T$993="MDA2 (DEC+ALB)", COUNTRY_INFO!$T$9:$T$993, " ") ->  | I88: 0 | M88: 0
A89: =IF(COUNTRY_INFO!A89=0," ",COUNTRY_INFO!A89) -> Uganda | B89: =IF(COUNTRY_INFO!B89=0," ",COUNTRY_INFO!B89) -> NORTHERN | C89: =IF(COUNTRY_INFO!C89=0," ",COUNTRY_INFO!C89) -> KWANIA | D89: =IF(COUNTRY_INFO!$T$9:$T$993="MDA2 (DEC+ALB)", COUNTRY_INFO!$T$9:$T$993, " ") ->  | I89: 0 | M89: 0
A90: =IF(COUNTRY_INFO!A90=0," ",COUNTRY_INFO!A90) -> Uganda | B90: =IF(COUNTRY_INFO!B90=0," ",COUNTRY_INFO!B90) -> NORTHERN | C90: =IF(COUNTRY_INFO!C90=0," ",COUNTRY_INFO!C90) -> LAMWO | D90: =IF(COUNTRY_INFO!$T$9:$T$993="MDA2 (DEC+ALB)", COUNTRY_INFO!$T$9:$T$993, " ") ->  | I90: 0 | M90: 0
A91: =IF(COUNTRY_INFO!A91=0," ",COUNTRY_INFO!A91) -> Uganda | B91: =IF(COUNTRY_INFO!B91=0," ",COUNTRY_INFO!B91) -> NORTHERN | C91: =IF(COUNTRY_INFO!C91=0," ",COUNTRY_INFO!C91) -> LIRA | D91: =IF(COUNTRY_INFO!$T$9:$T$993="MDA2 (DEC+ALB)", COUNTRY_INFO!$T$9:$T$993, " ") ->  | I91: 0 | M91: 0
A92: =IF(COUNTRY_INFO!A92=0," ",COUNTRY_INFO!A92) -> Uganda | B92: =IF(COUNTRY_INFO!B92=0," ",COUNTRY_INFO!B92) -> NORTHERN | C92: =IF(COUNTRY_INFO!C92=0," ",COUNTRY_INFO!C92) -> MADI OKOLLO | D92: =IF(COUNTRY_INFO!$T$9:$T$993="MDA2 (DEC+ALB)", COUNTRY_INFO!$T$9:$T$993, " ") ->  | I92: 0 | M92: 0
A93: =IF(COUNTRY_INFO!A93=0," ",COUNTRY_INFO!A93) -> Uganda | B93: =IF(COUNTRY_INFO!B93=0," ",COUNTRY_INFO!B93) -> NORTHERN | C93: =IF(COUNTRY_INFO!C93=0," ",COUNTRY_INFO!C93) -> MARACHA | D93: =IF(COUNTRY_INFO!$T$9:$T$993="MDA2 (DEC+ALB)", COUNTRY_INFO!$T$9:$T$993, " ") ->  | I93: 0 | M93: 0
A94: =IF(COUNTRY_INFO!A94=0," ",COUNTRY_INFO!A94) -> Uganda | B94: =IF(COUNTRY_INFO!B94=0," ",COUNTRY_INFO!B94) -> NORTHERN | C94: =IF(COUNTRY_INFO!C94=0," ",COUNTRY_INFO!C94) -> MOROTO | D94: =IF(COUNTRY_INFO!$T$9:$T$993="MDA2 (DEC+ALB)", COUNTRY_INFO!$T$9:$T$993, " ") ->  | I94: 0 | M94: 0
A95: =IF(COUNTRY_INFO!A95=0," ",COUNTRY_INFO!A95) -> Uganda | B95: =IF(COUNTRY_INFO!B95=0," ",COUNTRY_INFO!B95) -> NORTHERN | C95: =IF(COUNTRY_INFO!C95=0," ",COUNTRY_INFO!C95) -> MOYO | D95: =IF(COUNTRY_INFO!$T$9:$T$993="MDA2 (DEC+ALB)", COUNTRY_INFO!$T$9:$T$993, " ") ->  | I95: 0 | M95: 0
A96: =IF(COUNTRY_INFO!A96=0," ",COUNTRY_INFO!A96) -> Uganda | B96: =IF(COUNTRY_INFO!B96=0," ",COUNTRY_INFO!B96) -> NORTHERN | C96: =IF(COUNTRY_INFO!C96=0," ",COUNTRY_INFO!C96) -> NABILATUK | D96: =IF(COUNTRY_INFO!$T$9:$T$993="MDA2 (DEC+ALB)", COUNTRY_INFO!$T$9:$T$993, " ") ->  | I96: 0 | M96: 0
A97: =IF(COUNTRY_INFO!A97=0," ",COUNTRY_INFO!A97) -> Uganda | B97: =IF(COUNTRY_INFO!B97=0," ",COUNTRY_INFO!B97) -> NORTHERN | C97: =IF(COUNTRY_INFO!C97=0," ",COUNTRY_INFO!C97) -> NAKAPIRIPIRIT | D97: =IF(COUNTRY_INFO!$T$9:$T$993="MDA2 (DEC+ALB)", COUNTRY_INFO!$T$9:$T$993, " ") ->  | I97: 0 | M97: 0
A98: =IF(COUNTRY_INFO!A98=0," ",COUNTRY_INFO!A98) -> Uganda | B98: =IF(COUNTRY_INFO!B98=0," ",COUNTRY_INFO!B98) -> NORTHERN | C98: =IF(COUNTRY_INFO!C98=0," ",COUNTRY_INFO!C98) -> NAPAK | D98: =IF(COUNTRY_INFO!$T$9:$T$993="MDA2 (DEC+ALB)", COUNTRY_INFO!$T$9:$T$993, " ") ->  | I98: 0 | M98: 0
A99: =IF(COUNTRY_INFO!A99=0," ",COUNTRY_INFO!A99) -> Uganda | B99: =IF(COUNTRY_INFO!B99=0," ",COUNTRY_INFO!B99) -> NORTHERN | C99: =IF(COUNTRY_INFO!C99=0," ",COUNTRY_INFO!C99) -> NEBBI | D99: =IF(COUNTRY_INFO!$T$9:$T$993="MDA2 (DEC+ALB)", COUNTRY_INFO!$T$9:$T$993, " ") ->  | I99: 0 | M99: 0
A100: =IF(COUNTRY_INFO!A100=0," ",COUNTRY_INFO!A100) -> Uganda | B100: =IF(COUNTRY_INFO!B100=0," ",COUNTRY_INFO!B100) -> NORTHERN | C100: =IF(COUNTRY_INFO!C100=0," ",COUNTRY_INFO!C100) -> NWOYA | D100: =IF(COUNTRY_INFO!$T$9:$T$993="MDA2 (DEC+ALB)", COUNTRY_INFO!$T$9:$T$993, " ") ->  | I100: 0 | M100: 0
A101: =IF(COUNTRY_INFO!A101=0," ",COUNTRY_INFO!A101) -> Uganda | B101: =IF(COUNTRY_INFO!B101=0," ",COUNTRY_INFO!B101) -> NORTHERN | C101: =IF(COUNTRY_INFO!C101=0," ",COUNTRY_INFO!C101) -> OBONGI | D101: =IF(COUNTRY_INFO!$T$9:$T$993="MDA2 (DEC+ALB)", COUNTRY_INFO!$T$9:$T$993, " ") ->  | I101: 0 | M101: 0
A102: =IF(COUNTRY_INFO!A102=0," ",COUNTRY_INFO!A102) -> Uganda | B102: =IF(COUNTRY_INFO!B102=0," ",COUNTRY_INFO!B102) -> NORTHERN | C102: =IF(COUNTRY_INFO!C102=0," ",COUNTRY_INFO!C102) -> OMORO | D102: =IF(COUNTRY_INFO!$T$9:$T$993="MDA2 (DEC+ALB)", COUNTRY_INFO!$T$9:$T$993, " ") ->  | I102: 0 | M102: 0
A103: =IF(COUNTRY_INFO!A103=0," ",COUNTRY_INFO!A103) -> Uganda | B103: =IF(COUNTRY_INFO!B103=0," ",COUNTRY_INFO!B103) -> NORTHERN | C103: =IF(COUNTRY_INFO!C103=0," ",COUNTRY_INFO!C103) -> OTUKE | D103: =IF(COUNTRY_INFO!$T$9:$T$993="MDA2 (DEC+ALB)", COUNTRY_INFO!$T$9:$T$993, " ") ->  | I103: 0 | M103: 0
A104: =IF(COUNTRY_INFO!A104=0," ",COUNTRY_INFO!A104) -> Uganda | B104: =IF(COUNTRY_INFO!B104=0," ",COUNTRY_INFO!B104) -> NORTHERN | C104: =IF(COUNTRY_INFO!C104=0," ",COUNTRY_INFO!C104) -> OYAM | D104: =IF(COUNTRY_INFO!$T$9:$T$993="MDA2 (DEC+ALB)", COUNTRY_INFO!$T$9:$T$993, " ") ->  | I104: 0 | M104: 0
A105: =IF(COUNTRY_INFO!A105=0," ",COUNTRY_INFO!A105) -> Uganda | B105: =IF(COUNTRY_INFO!B105=0," ",COUNTRY_INFO!B105) -> NORTHERN | C105: =IF(COUNTRY_INFO!C105=0," ",COUNTRY_INFO!C105) -> PADER | D105: =IF(COUNTRY_INFO!$T$9:$T$993="MDA2 (DEC+ALB)", COUNTRY_INFO!$T$9:$T$993, " ") ->  | I105: 0 | M105: 0
A106: =IF(COUNTRY_INFO!A106=0," ",COUNTRY_INFO!A106) -> Uganda | B106: =IF(COUNTRY_INFO!B106=0," ",COUNTRY_INFO!B106) -> NORTHERN | C106: =IF(COUNTRY_INFO!C106=0," ",COUNTRY_INFO!C106) -> PAKWACH | D106: =IF(COUNTRY_INFO!$T$9:$T$993="MDA2 (DEC+ALB)", COUNTRY_INFO!$T$9:$T$993, " ") ->  | I106: 0 | M106: 0
A107: =IF(COUNTRY_INFO!A107=0," ",COUNTRY_INFO!A107) -> Uganda | B107: =IF(COUNTRY_INFO!B107=0," ",COUNTRY_INFO!B107) -> NORTHERN | C107: =IF(COUNTRY_INFO!C107=0," ",COUNTRY_INFO!C107) -> YUMBE | D107: =IF(COUNTRY_INFO!$T$9:$T$993="MDA2 (DEC+ALB)", COUNTRY_INFO!$T$9:$T$993, " ") ->  | I107: 0 | M107: 0
A108: =IF(COUNTRY_INFO!A108=0," ",COUNTRY_INFO!A108) -> Uganda | B108: =IF(COUNTRY_INFO!B108=0," ",COUNTRY_INFO!B108) -> NORTHERN | C108: =IF(COUNTRY_INFO!C108=0," ",COUNTRY_INFO!C108) -> ZOMBO | D108: =IF(COUNTRY_INFO!$T$9:$T$993="MDA2 (DEC+ALB)", COUNTRY_INFO!$T$9:$T$993, " ") ->  | I108: 0 | M108: 0
A109: =IF(COUNTRY_INFO!A109=0," ",COUNTRY_INFO!A109) -> Uganda | B109: =IF(COUNTRY_INFO!B109=0," ",COUNTRY_INFO!B109) -> WESTERN | C109: =IF(COUNTRY_INFO!C109=0," ",COUNTRY_INFO!C109) -> BUHWEJU | D109: =IF(COUNTRY_INFO!$T$9:$T$993="MDA2 (DEC+ALB)", COUNTRY_INFO!$T$9:$T$993, " ") ->  | I109: 0 | M109: 0
A110: =IF(COUNTRY_INFO!A110=0," ",COUNTRY_INFO!A110) -> Uganda | B110: =IF(COUNTRY_INFO!B110=0," ",COUNTRY_INFO!B110) -> WESTERN | C110: =IF(COUNTRY_INFO!C110=0," ",COUNTRY_INFO!C110) -> BULIISA | D110: =IF(COUNTRY_INFO!$T$9:$T$993="MDA2 (DEC+ALB)", COUNTRY_INFO!$T$9:$T$993, " ") ->  | I110: 0 | M110: 0
A111: =IF(COUNTRY_INFO!A111=0," ",COUNTRY_INFO!A111) -> Uganda | B111: =IF(COUNTRY_INFO!B111=0," ",COUNTRY_INFO!B111) -> WESTERN | C111: =IF(COUNTRY_INFO!C111=0," ",COUNTRY_INFO!C111) -> BUNDIBUGYO | D111: =IF(COUNTRY_INFO!$T$9:$T$993="MDA2 (DEC+ALB)", COUNTRY_INFO!$T$9:$T$993, " ") ->  | I111: 0 | M111: 0
A112: =IF(COUNTRY_INFO!A112=0," ",COUNTRY_INFO!A112) -> Uganda | B112: =IF(COUNTRY_INFO!B112=0," ",COUNTRY_INFO!B112) -> WESTERN | C112: =IF(COUNTRY_INFO!C112=0," ",COUNTRY_INFO!C112) -> BUNYANGABU | D112: =IF(COUNTRY_INFO!$T$9:$T$993="MDA2 (DEC+ALB)", COUNTRY_INFO!$T$9:$T$993, " ") ->  | I112: 0 | M112: 0
A113: =IF(COUNTRY_INFO!A113=0," ",COUNTRY_INFO!A113) -> Uganda | B113: =IF(COUNTRY_INFO!B113=0," ",COUNTRY_INFO!B113) -> WESTERN | C113: =IF(COUNTRY_INFO!C113=0," ",COUNTRY_INFO!C113) -> BUSHENYI | D113: =IF(COUNTRY_INFO!$T$9:$T$993="MDA2 (DEC+ALB)", COUNTRY_INFO!$T$9:$T$993, " ") ->  | I113: 0 | M113: 0
A114: =IF(COUNTRY_INFO!A114=0," ",COUNTRY_INFO!A114) -> Uganda | B114: =IF(COUNTRY_INFO!B114=0," ",COUNTRY_INFO!B114) -> WESTERN | C114: =IF(COUNTRY_INFO!C114=0," ",COUNTRY_INFO!C114) -> HOIMA | D114: =IF(COUNTRY_INFO!$T$9:$T$993="MDA2 (DEC+ALB)", COUNTRY_INFO!$T$9:$T$993, " ") ->  | I114: 0 | M114: 0
A115: =IF(COUNTRY_INFO!A115=0," ",COUNTRY_INFO!A115) -> Uganda | B115: =IF(COUNTRY_INFO!B115=0," ",COUNTRY_INFO!B115) -> WESTERN | C115: =IF(COUNTRY_INFO!C115=0," ",COUNTRY_INFO!C115) -> IBANDA | D115: =IF(COUNTRY_INFO!$T$9:$T$993="MDA2 (DEC+ALB)", COUNTRY_INFO!$T$9:$T$993, " ") ->  | I115: 0 | M115: 0
A116: =IF(COUNTRY_INFO!A116=0," ",COUNTRY_INFO!A116) -> Uganda | B116: =IF(COUNTRY_INFO!B116=0," ",COUNTRY_INFO!B116) -> WESTERN | C116: =IF(COUNTRY_INFO!C116=0," ",COUNTRY_INFO!C116) -> ISINGIRO | D116: =IF(COUNTRY_INFO!$T$9:$T$993="MDA2 (DEC+ALB)", COUNTRY_INFO!$T$9:$T$993, " ") ->  | I116: 0 | M116: 0
A117: =IF(COUNTRY_INFO!A117=0," ",COUNTRY_INFO!A117) -> Uganda | B117: =IF(COUNTRY_INFO!B117=0," ",COUNTRY_INFO!B117) -> WESTERN | C117: =IF(COUNTRY_INFO!C117=0," ",COUNTRY_INFO!C117) -> KABALE | D117: =IF(COUNTRY_INFO!$T$9:$T$993="MDA2 (DEC+ALB)", COUNTRY_INFO!$T$9:$T$993, " ") ->  | I117: 0 | M117: 0
A118: =IF(COUNTRY_INFO!A118=0," ",COUNTRY_INFO!A118) -> Uganda | B118: =IF(COUNTRY_INFO!B118=0," ",COUNTRY_INFO!B118) -> WESTERN | C118: =IF(COUNTRY_INFO!C118=0," ",COUNTRY_INFO!C118) -> KABAROLE | D118: =IF(COUNTRY_INFO!$T$9:$T$993="MDA2 (DEC+ALB)", COUNTRY_INFO!$T$9:$T$993, " ") ->  | I118: 0 | M118: 0
A119: =IF(COUNTRY_INFO!A119=0," ",COUNTRY_INFO!A119) -> Uganda | B119: =IF(COUNTRY_INFO!B119=0," ",COUNTRY_INFO!B119) -> WESTERN | C119: =IF(COUNTRY_INFO!C119=0," ",COUNTRY_INFO!C119) -> KAGADI | D119: =IF(COUNTRY_INFO!$T$9:$T$993="MDA2 (DEC+ALB)", COUNTRY_INFO!$T$9:$T$993, " ") ->  | I119: 0 | M119: 0
A120: =IF(COUNTRY_INFO!A120=0," ",COUNTRY_INFO!A120) -> Uganda | B120: =IF(COUNTRY_INFO!B120=0," ",COUNTRY_INFO!B120) -> WESTERN | C120: =IF(COUNTRY_INFO!C120=0," ",COUNTRY_INFO!C120) -> KAKUMIRO | D120: =IF(COUNTRY_INFO!$T$9:$T$993="MDA2 (DEC+ALB)", COUNTRY_INFO!$T$9:$T$993, " ") ->  | I120: 0 | M120: 0
A121: =IF(COUNTRY_INFO!A121=0," ",COUNTRY_INFO!A121) -> Uganda | B121: =IF(COUNTRY_INFO!B121=0," ",COUNTRY_INFO!B121) -> WESTERN | C121: =IF(COUNTRY_INFO!C121=0," ",COUNTRY_INFO!C121) -> KAMWENGE | D121: =IF(COUNTRY_INFO!$T$9:$T$993="MDA2 (DEC+ALB)", COUNTRY_INFO!$T$9:$T$993, " ") ->  | I121: 0 | M121: 0
A122: =IF(COUNTRY_INFO!A122=0," ",COUNTRY_INFO!A122) -> Uganda | B122: =IF(COUNTRY_INFO!B122=0," ",COUNTRY_INFO!B122) -> WESTERN | C122: =IF(COUNTRY_INFO!C122=0," ",COUNTRY_INFO!C122) -> KANUNGU | D122: =IF(COUNTRY_INFO!$T$9:$T$993="MDA2 (DEC+ALB)", COUNTRY_INFO!$T$9:$T$993, " ") ->  | I122: 0 | M122: 0
A123: =IF(COUNTRY_INFO!A123=0," ",COUNTRY_INFO!A123) -> Uganda | B123: =IF(COUNTRY_INFO!B123=0," ",COUNTRY_INFO!B123) -> WESTERN | C123: =IF(COUNTRY_INFO!C123=0," ",COUNTRY_INFO!C123) -> KASESE | D123: =IF(COUNTRY_INFO!$T$9:$T$993="MDA2 (DEC+ALB)", COUNTRY_INFO!$T$9:$T$993, " ") ->  | I123: 0 | M123: 0
A124: =IF(COUNTRY_INFO!A124=0," ",COUNTRY_INFO!A124) -> Uganda | B124: =IF(COUNTRY_INFO!B124=0," ",COUNTRY_INFO!B124) -> WESTERN | C124: =IF(COUNTRY_INFO!C124=0," ",COUNTRY_INFO!C124) -> KAZO | D124: =IF(COUNTRY_INFO!$T$9:$T$993="MDA2 (DEC+ALB)", COUNTRY_INFO!$T$9:$T$993, " ") ->  | I124: 0 | M124: 0
A125: =IF(COUNTRY_INFO!A125=0," ",COUNTRY_INFO!A125) -> Uganda | B125: =IF(COUNTRY_INFO!B125=0," ",COUNTRY_INFO!B125) -> WESTERN | C125: =IF(COUNTRY_INFO!C125=0," ",COUNTRY_INFO!C125) -> KIBAALE | D125: =IF(COUNTRY_INFO!$T$9:$T$993="MDA2 (DEC+ALB)", COUNTRY_INFO!$T$9:$T$993, " ") ->  | I125: 0 | M125: 0
A126: =IF(COUNTRY_INFO!A126=0," ",COUNTRY_INFO!A126) -> Uganda | B126: =IF(COUNTRY_INFO!B126=0," ",COUNTRY_INFO!B126) -> WESTERN | C126: =IF(COUNTRY_INFO!C126=0," ",COUNTRY_INFO!C126) -> KIKUUBE | D126: =IF(COUNTRY_INFO!$T$9:$T$993="MDA2 (DEC+ALB)", COUNTRY_INFO!$T$9:$T$993, " ") ->  | I126: 0 | M126: 0
A127: =IF(COUNTRY_INFO!A127=0," ",COUNTRY_INFO!A127) -> Uganda | B127: =IF(COUNTRY_INFO!B127=0," ",COUNTRY_INFO!B127) -> WESTERN | C127: =IF(COUNTRY_INFO!C127=0," ",COUNTRY_INFO!C127) -> KIRUHURA | D127: =IF(COUNTRY_INFO!$T$9:$T$993="MDA2 (DEC+ALB)", COUNTRY_INFO!$T$9:$T$993, " ") ->  | I127: 0 | M127: 0
A128: =IF(COUNTRY_INFO!A128=0," ",COUNTRY_INFO!A128) -> Uganda | B128: =IF(COUNTRY_INFO!B128=0," ",COUNTRY_INFO!B128) -> WESTERN | C128: =IF(COUNTRY_INFO!C128=0," ",COUNTRY_INFO!C128) -> KIRYANDONGO | D128: =IF(COUNTRY_INFO!$T$9:$T$993="MDA2 (DEC+ALB)", COUNTRY_INFO!$T$9:$T$993, " ") ->  | I128: 0 | M128: 0
A129: =IF(COUNTRY_INFO!A129=0," ",COUNTRY_INFO!A129) -> Uganda | B129: =IF(COUNTRY_INFO!B129=0," ",COUNTRY_INFO!B129) -> WESTERN | C129: =IF(COUNTRY_INFO!C129=0," ",COUNTRY_INFO!C129) -> KISORO | D129: =IF(COUNTRY_INFO!$T$9:$T$993="MDA2 (DEC+ALB)", COUNTRY_INFO!$T$9:$T$993, " ") ->  | I129: 0 | M129: 0
A130: =IF(COUNTRY_INFO!A130=0," ",COUNTRY_INFO!A130) -> Uganda | B130: =IF(COUNTRY_INFO!B130=0," ",COUNTRY_INFO!B130) -> WESTERN | C130: =IF(COUNTRY_INFO!C130=0," ",COUNTRY_INFO!C130) -> KITAGWENDA | D130: =IF(COUNTRY_INFO!$T$9:$T$993="MDA2 (DEC+ALB)", COUNTRY_INFO!$T$9:$T$993, " ") ->  | I130: 0 | M130: 0
A131: =IF(COUNTRY_INFO!A131=0," ",COUNTRY_INFO!A131) -> Uganda | B131: =IF(COUNTRY_INFO!B131=0," ",COUNTRY_INFO!B131) -> WESTERN | C131: =IF(COUNTRY_INFO!C131=0," ",COUNTRY_INFO!C131) -> KYEGEGWA | D131: =IF(COUNTRY_INFO!$T$9:$T$993="MDA2 (DEC+ALB)", COUNTRY_INFO!$T$9:$T$993, " ") ->  | I131: 0 | M131: 0
A132: =IF(COUNTRY_INFO!A132=0," ",COUNTRY_INFO!A132) -> Uganda | B132: =IF(COUNTRY_INFO!B132=0," ",COUNTRY_INFO!B132) -> WESTERN | C132: =IF(COUNTRY_INFO!C132=0," ",COUNTRY_INFO!C132) -> KYENJOJO | D132: =IF(COUNTRY_INFO!$T$9:$T$993="MDA2 (DEC+ALB)", COUNTRY_INFO!$T$9:$T$993, " ") ->  | I132: 0 | M132: 0
A133: =IF(COUNTRY_INFO!A133=0," ",COUNTRY_INFO!A133) -> Uganda | B133: =IF(COUNTRY_INFO!B133=0," ",COUNTRY_INFO!B133) -> WESTERN | C133: =IF(COUNTRY_INFO!C133=0," ",COUNTRY_INFO!C133) -> MASINDI | D133: =IF(COUNTRY_INFO!$T$9:$T$993="MDA2 (DEC+ALB)", COUNTRY_INFO!$T$9:$T$993, " ") ->  | I133: 0 | M133: 0
A134: =IF(COUNTRY_INFO!A134=0," ",COUNTRY_INFO!A134) -> Uganda | B134: =IF(COUNTRY_INFO!B134=0," ",COUNTRY_INFO!B134) -> WESTERN | C134: =IF(COUNTRY_INFO!C134=0," ",COUNTRY_INFO!C134) -> MBARARA | D134: =IF(COUNTRY_INFO!$T$9:$T$993="MDA2 (DEC+ALB)", COUNTRY_INFO!$T$9:$T$993, " ") ->  | I134: 0 | M134: 0
A135: =IF(COUNTRY_INFO!A135=0," ",COUNTRY_INFO!A135) -> Uganda | B135: =IF(COUNTRY_INFO!B135=0," ",COUNTRY_INFO!B135) -> WESTERN | C135: =IF(COUNTRY_INFO!C135=0," ",COUNTRY_INFO!C135) -> MITOOMA | D135: =IF(COUNTRY_INFO!$T$9:$T$993="MDA2 (DEC+ALB)", COUNTRY_INFO!$T$9:$T$993, " ") ->  | I135: 0 | M135: 0
A136: =IF(COUNTRY_INFO!A136=0," ",COUNTRY_INFO!A136) -> Uganda | B136: =IF(COUNTRY_INFO!B136=0," ",COUNTRY_INFO!B136) -> WESTERN | C136: =IF(COUNTRY_INFO!C136=0," ",COUNTRY_INFO!C136) -> NTOROKO | D136: =IF(COUNTRY_INFO!$T$9:$T$993="MDA2 (DEC+ALB)", COUNTRY_INFO!$T$9:$T$993, " ") ->  | I136: 0 | M136: 0
A137: =IF(COUNTRY_INFO!A137=0," ",COUNTRY_INFO!A137) -> Uganda | B137: =IF(COUNTRY_INFO!B137=0," ",COUNTRY_INFO!B137) -> WESTERN | C137: =IF(COUNTRY_INFO!C137=0," ",COUNTRY_INFO!C137) -> NTUNGAMO | D137: =IF(COUNTRY_INFO!$T$9:$T$993="MDA2 (DEC+ALB)", COUNTRY_INFO!$T$9:$T$993, " ") ->  | I137: 0 | M137: 0
A138: =IF(COUNTRY_INFO!A138=0," ",COUNTRY_INFO!A138) -> Uganda | B138: =IF(COUNTRY_INFO!B138=0," ",COUNTRY_INFO!B138) -> WESTERN | C138: =IF(COUNTRY_INFO!C138=0," ",COUNTRY_INFO!C138) -> RUBANDA | D138: =IF(COUNTRY_INFO!$T$9:$T$993="MDA2 (DEC+ALB)", COUNTRY_INFO!$T$9:$T$993, " ") ->  | I138: =SUM(F138:H138) -> 0 | M138: =SUM(J138:L138) -> 0 | N138: =IF(F138<>0, IF(J138/F138*100=0, "-", J138/F138*100), " ") ->  | O138: =IF(G138<>0, IF(K138/G138*100=0, "-", K138/G138*100), " ") ->  | P138: =IF(H138<>0, IF(L138/H138*100=0, "-", L138/H138*100), " ") ->  | Q138: =IF(I138<>0, IF(M138/I138*100=0, "-", M138/I138*100), " ") -> 
A139: =IF(COUNTRY_INFO!A139=0," ",COUNTRY_INFO!A139) -> Uganda | B139: =IF(COUNTRY_INFO!B139=0," ",COUNTRY_INFO!B139) -> WESTERN | C139: =IF(COUNTRY_INFO!C139=0," ",COUNTRY_INFO!C139) -> RUBIRIZI | D139: =IF(COUNTRY_INFO!$T$9:$T$993="MDA2 (DEC+ALB)", COUNTRY_INFO!$T$9:$T$993, " ") ->  | I139: 0 | M139: 0
A140: =IF(COUNTRY_INFO!A140=0," ",COUNTRY_INFO!A140) -> Uganda | B140: =IF(COUNTRY_INFO!B140=0," ",COUNTRY_INFO!B140) -> WESTERN | C140: =IF(COUNTRY_INFO!C140=0," ",COUNTRY_INFO!C140) -> RUKIGA | D140: =IF(COUNTRY_INFO!$T$9:$T$993="MDA2 (DEC+ALB)", COUNTRY_INFO!$T$9:$T$993, " ") ->  | I140: 0 | M140: 0
A141: =IF(COUNTRY_INFO!A141=0," ",COUNTRY_INFO!A141) -> Uganda | B141: =IF(COUNTRY_INFO!B141=0," ",COUNTRY_INFO!B141) -> WESTERN | C141: =IF(COUNTRY_INFO!C141=0," ",COUNTRY_INFO!C141) -> RUKUNGIRI | D141: =IF(COUNTRY_INFO!$T$9:$T$993="MDA2 (DEC+ALB)", COUNTRY_INFO!$T$9:$T$993, " ") ->  | I141: 0 | M141: 0
A142: =IF(COUNTRY_INFO!A142=0," ",COUNTRY_INFO!A142) -> Uganda | B142: =IF(COUNTRY_INFO!B142=0," ",COUNTRY_INFO!B142) -> WESTERN | C142: =IF(COUNTRY_INFO!C142=0," ",COUNTRY_INFO!C142) -> RWAMPARA | D142: =IF(COUNTRY_INFO!$T$9:$T$993="MDA2 (DEC+ALB)", COUNTRY_INFO!$T$9:$T$993, " ") ->  | I142: 0 | M142: 0
A143: =IF(COUNTRY_INFO!A143=0," ",COUNTRY_INFO!A143) -> Uganda | B143: =IF(COUNTRY_INFO!B143=0," ",COUNTRY_INFO!B143) -> WESTERN | C143: =IF(COUNTRY_INFO!C143=0," ",COUNTRY_INFO!C143) -> SHEEMA | D143: =IF(COUNTRY_INFO!$T$9:$T$993="MDA2 (DEC+ALB)", COUNTRY_INFO!$T$9:$T$993, " ") ->  | I143: 0 | M143: 0

Sheet MDA3
A1: MDA 3 - Ivermectin (IVM)
A2: Administrative structure, population requiring PC by age group, population treated by age group and coverage
A4: TOTAL | F4: =SUM(F$9:F$993) -> 539575 | G4: 930856 | H4: 1470431 | I4: 507065.339 | J4: 874771.661 | K4: 1381837 | L4: 507381.6501 | M4: 875317.3499 | N4: 1382699 | O4: 511404.8919 | P4: 882258.1081 | Q4: 1393663 | R4: =IF(F4<>0, IF(O4/F4*100=0, "-", O4/F4*100), " ") -> 94.77920435 | S4: =IF(G4<>0, IF(P4/G4*100=0, "-", P4/G4*100), " ") -> 94.77922559 | T4: =IF(H4<>0, IF(Q4/H4*100=0, "-", Q4/H4*100), " ") -> 94.77921779
D6: PC implemented | E6: Date | F6: Population targeted for MDA 3 | I6: Population treated - 1st round | L6: Population treated - 2nd round | O6: Population treated | R6: Programme coverage (%) | W6: ReqPC
A7: Country | B7: Province/State | C7: District | F7: SAC | G7: Adults | H7: Total | I7: SAC | J7: Adults | K7: Total | L7: SAC | M7: Adults | N7: Total | O7: SAC | P7: Adults | Q7: Total | R7: SAC | S7: Adults | T7: Total | W7: Tot | X7: SAC | Y7: Adults | Z7: x | AA7: x | AB7: x | AC7: x | AD7: x | AE7: x | AF7: x | AG7: x | AH7: x | AI7: x | AJ7: x
A9: =IF(COUNTRY_INFO!A9=0," ",COUNTRY_INFO!A9) -> Uganda | B9: =IF(COUNTRY_INFO!B9=0," ",COUNTRY_INFO!B9) -> CENTRAL | C9: =IF(COUNTRY_INFO!C9=0," ",COUNTRY_INFO!C9) -> BUIKWE | D9: =IF(COUNTRY_INFO!$T$9:$T$993="MDA3 (IVM)", COUNTRY_INFO!$T$9:$T$993, " ") ->  | H9: =SUM(F9:G9) -> 0 | K9: =SUM(I9:J9) -> 0 | N9: =SUM(L9:M9) -> 0 | O9: =MAX(I9,L9) -> 0 | P9: 0 | Q9: =SUM(O9:P9) -> 0 | R9: =IF(F9<>0, IF(MAX(I9,L9)/F9*100=0, "-", MAX(I9,L9)/F9*100), " ") ->  | T9: =IF(H9<>0, IF((MAX(I9,L9)+MAX(J9,M9))/H9*100=0, "-",(MAX(I9,L9)+MAX(J9,M9))/H9*100), " ") -> 
A10: =IF(COUNTRY_INFO!A10=0," ",COUNTRY_INFO!A10) -> Uganda | B10: =IF(COUNTRY_INFO!B10=0," ",COUNTRY_INFO!B10) -> CENTRAL | C10: =IF(COUNTRY_INFO!C10=0," ",COUNTRY_INFO!C10) -> BUKOMANSIMBI | D10: =IF(COUNTRY_INFO!$T$9:$T$993="MDA3 (IVM)", COUNTRY_INFO!$T$9:$T$993, " ") ->  | H10: =SUM(F10:G10) -> 0 | K10: =SUM(I10:J10) -> 0 | N10: =SUM(L10:M10) -> 0 | O10: =MAX(I10,L10) -> 0 | P10: =MAX(J10,M10) -> 0 | Q10: =SUM(O10:P10) -> 0 | R10: =IF(F10<>0, IF(MAX(I10,L10)/F10*100=0, "-", MAX(I10,L10)/F10*100), " ") ->  | S10: =IF(G10<>0, IF(MAX(J10,M10)/G10*100=0, "-", MAX(J10,M10)/G10*100), " ") ->  | T10: =IF(H10<>0, IF((MAX(I10,L10)+MAX(J10,M10))/H10*100=0, "-",(MAX(I10,L10)+MAX(J10,M10))/H10*100), " ") -> 
A11: =IF(COUNTRY_INFO!A11=0," ",COUNTRY_INFO!A11) -> Uganda | B11: =IF(COUNTRY_INFO!B11=0," ",COUNTRY_INFO!B11) -> CENTRAL | C11: =IF(COUNTRY_INFO!C11=0," ",COUNTRY_INFO!C11) -> BUTAMBALA | D11: =IF(COUNTRY_INFO!$T$9:$T$993="MDA3 (IVM)", COUNTRY_INFO!$T$9:$T$993, " ") ->  | H11: 0 | K11: 0 | N11: 0 | O11: 0 | P11: 0 | Q11: 0
A12: =IF(COUNTRY_INFO!A12=0," ",COUNTRY_INFO!A12) -> Uganda | B12: =IF(COUNTRY_INFO!B12=0," ",COUNTRY_INFO!B12) -> CENTRAL | C12: =IF(COUNTRY_INFO!C12=0," ",COUNTRY_INFO!C12) -> BUVUMA | D12: =IF(COUNTRY_INFO!$T$9:$T$993="MDA3 (IVM)", COUNTRY_INFO!$T$9:$T$993, " ") ->  | H12: 0 | K12: 0 | N12: 0 | O12: 0 | P12: 0 | Q12: 0
A13: =IF(COUNTRY_INFO!A13=0," ",COUNTRY_INFO!A13) -> Uganda | B13: =IF(COUNTRY_INFO!B13=0," ",COUNTRY_INFO!B13) -> CENTRAL | C13: =IF(COUNTRY_INFO!C13=0," ",COUNTRY_INFO!C13) -> GOMBA | D13: =IF(COUNTRY_INFO!$T$9:$T$993="MDA3 (IVM)", COUNTRY_INFO!$T$9:$T$993, " ") ->  | H13: 0 | K13: 0 | N13: 0 | O13: 0 | P13: 0 | Q13: 0
A14: =IF(COUNTRY_INFO!A14=0," ",COUNTRY_INFO!A14) -> Uganda | B14: =IF(COUNTRY_INFO!B14=0," ",COUNTRY_INFO!B14) -> CENTRAL | C14: =IF(COUNTRY_INFO!C14=0," ",COUNTRY_INFO!C14) -> KALANGALA | D14: =IF(COUNTRY_INFO!$T$9:$T$993="MDA3 (IVM)", COUNTRY_INFO!$T$9:$T$993, " ") ->  | H14: 0 | K14: 0 | N14: 0 | O14: 0 | P14: 0 | Q14: 0
A15: =IF(COUNTRY_INFO!A15=0," ",COUNTRY_INFO!A15) -> Uganda | B15: =IF(COUNTRY_INFO!B15=0," ",COUNTRY_INFO!B15) -> CENTRAL | C15: =IF(COUNTRY_INFO!C15=0," ",COUNTRY_INFO!C15) -> KALUNGU | D15: =IF(COUNTRY_INFO!$T$9:$T$993="MDA3 (IVM)", COUNTRY_INFO!$T$9:$T$993, " ") ->  | H15: 0 | K15: 0 | N15: 0 | O15: 0 | P15: 0 | Q15: 0
A16: =IF(COUNTRY_INFO!A16=0," ",COUNTRY_INFO!A16) -> Uganda | B16: =IF(COUNTRY_INFO!B16=0," ",COUNTRY_INFO!B16) -> CENTRAL | C16: =IF(COUNTRY_INFO!C16=0," ",COUNTRY_INFO!C16) -> KAMPALA | D16: =IF(COUNTRY_INFO!$T$9:$T$993="MDA3 (IVM)", COUNTRY_INFO!$T$9:$T$993, " ") ->  | H16: 0 | K16: 0 | N16: 0 | O16: 0 | P16: 0 | Q16: 0
A17: =IF(COUNTRY_INFO!A17=0," ",COUNTRY_INFO!A17) -> Uganda | B17: =IF(COUNTRY_INFO!B17=0," ",COUNTRY_INFO!B17) -> CENTRAL | C17: =IF(COUNTRY_INFO!C17=0," ",COUNTRY_INFO!C17) -> KASSANDA | D17: =IF(COUNTRY_INFO!$T$9:$T$993="MDA3 (IVM)", COUNTRY_INFO!$T$9:$T$993, " ") ->  | H17: 0 | K17: 0 | N17: 0 | O17: 0 | P17: 0 | Q17: 0
A18: =IF(COUNTRY_INFO!A18=0," ",COUNTRY_INFO!A18) -> Uganda | B18: =IF(COUNTRY_INFO!B18=0," ",COUNTRY_INFO!B18) -> CENTRAL | C18: =IF(COUNTRY_INFO!C18=0," ",COUNTRY_INFO!C18) -> KAYUNGA | D18: =IF(COUNTRY_INFO!$T$9:$T$993="MDA3 (IVM)", COUNTRY_INFO!$T$9:$T$993, " ") ->  | H18: 0 | K18: 0 | N18: 0 | O18: 0 | P18: 0 | Q18: 0
A19: =IF(COUNTRY_INFO!A19=0," ",COUNTRY_INFO!A19) -> Uganda | B19: =IF(COUNTRY_INFO!B19=0," ",COUNTRY_INFO!B19) -> CENTRAL | C19: =IF(COUNTRY_INFO!C19=0," ",COUNTRY_INFO!C19) -> KIBOGA | D19: =IF(COUNTRY_INFO!$T$9:$T$993="MDA3 (IVM)", COUNTRY_INFO!$T$9:$T$993, " ") ->  | H19: 0 | K19: 0 | N19: 0 | O19: 0 | P19: 0 | Q19: 0
A20: =IF(COUNTRY_INFO!A20=0," ",COUNTRY_INFO!A20) -> Uganda | B20: =IF(COUNTRY_INFO!B20=0," ",COUNTRY_INFO!B20) -> CENTRAL | C20: =IF(COUNTRY_INFO!C20=0," ",COUNTRY_INFO!C20) -> KYANKWANZI | D20: =IF(COUNTRY_INFO!$T$9:$T$993="MDA3 (IVM)", COUNTRY_INFO!$T$9:$T$993, " ") ->  | H20: 0 | K20: 0 | N20: 0 | O20: 0 | P20: 0 | Q20: 0
A21: =IF(COUNTRY_INFO!A21=0," ",COUNTRY_INFO!A21) -> Uganda | B21: =IF(COUNTRY_INFO!B21=0," ",COUNTRY_INFO!B21) -> CENTRAL | C21: =IF(COUNTRY_INFO!C21=0," ",COUNTRY_INFO!C21) -> KYOTERA | D21: =IF(COUNTRY_INFO!$T$9:$T$993="MDA3 (IVM)", COUNTRY_INFO!$T$9:$T$993, " ") ->  | H21: 0 | K21: 0 | N21: 0 | O21: 0 | P21: 0 | Q21: 0
A22: =IF(COUNTRY_INFO!A22=0," ",COUNTRY_INFO!A22) -> Uganda | B22: =IF(COUNTRY_INFO!B22=0," ",COUNTRY_INFO!B22) -> CENTRAL | C22: =IF(COUNTRY_INFO!C22=0," ",COUNTRY_INFO!C22) -> LUWERO | D22: =IF(COUNTRY_INFO!$T$9:$T$993="MDA3 (IVM)", COUNTRY_INFO!$T$9:$T$993, " ") ->  | H22: 0 | K22: 0 | N22: 0 | O22: 0 | P22: 0 | Q22: 0
A23: =IF(COUNTRY_INFO!A23=0," ",COUNTRY_INFO!A23) -> Uganda | B23: =IF(COUNTRY_INFO!B23=0," ",COUNTRY_INFO!B23) -> CENTRAL | C23: =IF(COUNTRY_INFO!C23=0," ",COUNTRY_INFO!C23) -> LWENGO | D23: =IF(COUNTRY_INFO!$T$9:$T$993="MDA3 (IVM)", COUNTRY_INFO!$T$9:$T$993, " ") ->  | H23: 0 | K23: 0 | N23: 0 | O23: 0 | P23: 0 | Q23: 0
A24: =IF(COUNTRY_INFO!A24=0," ",COUNTRY_INFO!A24) -> Uganda | B24: =IF(COUNTRY_INFO!B24=0," ",COUNTRY_INFO!B24) -> CENTRAL | C24: =IF(COUNTRY_INFO!C24=0," ",COUNTRY_INFO!C24) -> LYANTONDE | D24: =IF(COUNTRY_INFO!$T$9:$T$993="MDA3 (IVM)", COUNTRY_INFO!$T$9:$T$993, " ") ->  | H24: 0 | K24: 0 | N24: 0 | O24: 0 | P24: 0 | Q24: 0
A25: =IF(COUNTRY_INFO!A25=0," ",COUNTRY_INFO!A25) -> Uganda | B25: =IF(COUNTRY_INFO!B25=0," ",COUNTRY_INFO!B25) -> CENTRAL | C25: =IF(COUNTRY_INFO!C25=0," ",COUNTRY_INFO!C25) -> MASAKA | D25: =IF(COUNTRY_INFO!$T$9:$T$993="MDA3 (IVM)", COUNTRY_INFO!$T$9:$T$993, " ") ->  | H25: 0 | K25: 0 | N25: 0 | O25: 0 | P25: 0 | Q25: 0
A26: =IF(COUNTRY_INFO!A26=0," ",COUNTRY_INFO!A26) -> Uganda | B26: =IF(COUNTRY_INFO!B26=0," ",COUNTRY_INFO!B26) -> CENTRAL | C26: =IF(COUNTRY_INFO!C26=0," ",COUNTRY_INFO!C26) -> MITYANA | D26: =IF(COUNTRY_INFO!$T$9:$T$993="MDA3 (IVM)", COUNTRY_INFO!$T$9:$T$993, " ") ->  | H26: 0 | K26: 0 | N26: 0 | O26: 0 | P26: 0 | Q26: 0
A27: =IF(COUNTRY_INFO!A27=0," ",COUNTRY_INFO!A27) -> Uganda | B27: =IF(COUNTRY_INFO!B27=0," ",COUNTRY_INFO!B27) -> CENTRAL | C27: =IF(COUNTRY_INFO!C27=0," ",COUNTRY_INFO!C27) -> MPIGI | D27: =IF(COUNTRY_INFO!$T$9:$T$993="MDA3 (IVM)", COUNTRY_INFO!$T$9:$T$993, " ") ->  | H27: 0 | K27: 0 | N27: 0 | O27: 0 | P27: 0 | Q27: 0
A28: =IF(COUNTRY_INFO!A28=0," ",COUNTRY_INFO!A28) -> Uganda | B28: =IF(COUNTRY_INFO!B28=0," ",COUNTRY_INFO!B28) -> CENTRAL | C28: =IF(COUNTRY_INFO!C28=0," ",COUNTRY_INFO!C28) -> MUBENDE | D28: =IF(COUNTRY_INFO!$T$9:$T$993="MDA3 (IVM)", COUNTRY_INFO!$T$9:$T$993, " ") ->  | H28: 0 | K28: 0 | N28: 0 | O28: 0 | P28: 0 | Q28: 0
A29: =IF(COUNTRY_INFO!A29=0," ",COUNTRY_INFO!A29) -> Uganda | B29: =IF(COUNTRY_INFO!B29=0," ",COUNTRY_INFO!B29) -> CENTRAL | C29: =IF(COUNTRY_INFO!C29=0," ",COUNTRY_INFO!C29) -> MUKONO | D29: =IF(COUNTRY_INFO!$T$9:$T$993="MDA3 (IVM)", COUNTRY_INFO!$T$9:$T$993, " ") ->  | H29: 0 | K29: 0 | N29: 0 | O29: 0 | P29: 0 | Q29: 0
A30: =IF(COUNTRY_INFO!A30=0," ",COUNTRY_INFO!A30) -> Uganda | B30: =IF(COUNTRY_INFO!B30=0," ",COUNTRY_INFO!B30) -> CENTRAL | C30: =IF(COUNTRY_INFO!C30=0," ",COUNTRY_INFO!C30) -> NAKASEKE | D30: =IF(COUNTRY_INFO!$T$9:$T$993="MDA3 (IVM)", COUNTRY_INFO!$T$9:$T$993, " ") ->  | H30: 0 | K30: 0 | N30: 0 | O30: 0 | P30: 0 | Q30: 0
A31: =IF(COUNTRY_INFO!A31=0," ",COUNTRY_INFO!A31) -> Uganda | B31: =IF(COUNTRY_INFO!B31=0," ",COUNTRY_INFO!B31) -> CENTRAL | C31: =IF(COUNTRY_INFO!C31=0," ",COUNTRY_INFO!C31) -> NAKASONGOLA | D31: =IF(COUNTRY_INFO!$T$9:$T$993="MDA3 (IVM)", COUNTRY_INFO!$T$9:$T$993, " ") ->  | H31: 0 | K31: 0 | N31: 0 | O31: 0 | P31: 0 | Q31: 0
A32: =IF(COUNTRY_INFO!A32=0," ",COUNTRY_INFO!A32) -> Uganda | B32: =IF(COUNTRY_INFO!B32=0," ",COUNTRY_INFO!B32) -> CENTRAL | C32: =IF(COUNTRY_INFO!C32=0," ",COUNTRY_INFO!C32) -> RAKAI | D32: =IF(COUNTRY_INFO!$T$9:$T$993="MDA3 (IVM)", COUNTRY_INFO!$T$9:$T$993, " ") ->  | H32: 0 | K32: 0 | N32: 0 | O32: 0 | P32: 0 | Q32: 0
A33: =IF(COUNTRY_INFO!A33=0," ",COUNTRY_INFO!A33) -> Uganda | B33: =IF(COUNTRY_INFO!B33=0," ",COUNTRY_INFO!B33) -> CENTRAL | C33: =IF(COUNTRY_INFO!C33=0," ",COUNTRY_INFO!C33) -> SEMBABULE | D33: =IF(COUNTRY_INFO!$T$9:$T$993="MDA3 (IVM)", COUNTRY_INFO!$T$9:$T$993, " ") ->  | H33: 0 | K33: 0 | N33: 0 | O33: 0 | P33: 0 | Q33: 0
A34: =IF(COUNTRY_INFO!A34=0," ",COUNTRY_INFO!A34) -> Uganda | B34: =IF(COUNTRY_INFO!B34=0," ",COUNTRY_INFO!B34) -> CENTRAL | C34: =IF(COUNTRY_INFO!C34=0," ",COUNTRY_INFO!C34) -> WAKISO | D34: =IF(COUNTRY_INFO!$T$9:$T$993="MDA3 (IVM)", COUNTRY_INFO!$T$9:$T$993, " ") ->  | H34: 0 | K34: 0 | N34: 0 | O34: 0 | P34: 0 | Q34: 0
A35: =IF(COUNTRY_INFO!A35=0," ",COUNTRY_INFO!A35) -> Uganda | B35: =IF(COUNTRY_INFO!B35=0," ",COUNTRY_INFO!B35) -> EASTERN | C35: =IF(COUNTRY_INFO!C35=0," ",COUNTRY_INFO!C35) -> AMURIA | D35: =IF(COUNTRY_INFO!$T$9:$T$993="MDA3 (IVM)", COUNTRY_INFO!$T$9:$T$993, " ") ->  | H35: 0 | K35: 0 | N35: 0 | O35: 0 | P35: 0 | Q35: 0
A36: =IF(COUNTRY_INFO!A36=0," ",COUNTRY_INFO!A36) -> Uganda | B36: =IF(COUNTRY_INFO!B36=0," ",COUNTRY_INFO!B36) -> EASTERN | C36: =IF(COUNTRY_INFO!C36=0," ",COUNTRY_INFO!C36) -> BUDAKA | D36: =IF(COUNTRY_INFO!$T$9:$T$993="MDA3 (IVM)", COUNTRY_INFO!$T$9:$T$993, " ") ->  | H36: 0 | K36: 0 | N36: 0 | O36: 0 | P36: 0 | Q36: 0
A37: =IF(COUNTRY_INFO!A37=0," ",COUNTRY_INFO!A37) -> Uganda | B37: =IF(COUNTRY_INFO!B37=0," ",COUNTRY_INFO!B37) -> EASTERN | C37: =IF(COUNTRY_INFO!C37=0," ",COUNTRY_INFO!C37) -> BUDUDA | D37: =IF(COUNTRY_INFO!$T$9:$T$993="MDA3 (IVM)", COUNTRY_INFO!$T$9:$T$993, " ") ->  | H37: 0 | K37: 0 | N37: 0 | O37: 0 | P37: 0 | Q37: 0
A38: =IF(COUNTRY_INFO!A38=0," ",COUNTRY_INFO!A38) -> Uganda | B38: =IF(COUNTRY_INFO!B38=0," ",COUNTRY_INFO!B38) -> EASTERN | C38: =IF(COUNTRY_INFO!C38=0," ",COUNTRY_INFO!C38) -> BUGIRI | D38: =IF(COUNTRY_INFO!$T$9:$T$993="MDA3 (IVM)", COUNTRY_INFO!$T$9:$T$993, " ") ->  | H38: 0 | K38: 0 | N38: 0 | O38: 0 | P38: 0 | Q38: 0
A39: =IF(COUNTRY_INFO!A39=0," ",COUNTRY_INFO!A39) -> Uganda | B39: =IF(COUNTRY_INFO!B39=0," ",COUNTRY_INFO!B39) -> EASTERN | C39: =IF(COUNTRY_INFO!C39=0," ",COUNTRY_INFO!C39) -> BUGWERI | D39: =IF(COUNTRY_INFO!$T$9:$T$993="MDA3 (IVM)", COUNTRY_INFO!$T$9:$T$993, " ") ->  | H39: 0 | K39: 0 | N39: 0 | O39: 0 | P39: 0 | Q39: 0
A40: =IF(COUNTRY_INFO!A40=0," ",COUNTRY_INFO!A40) -> Uganda | B40: =IF(COUNTRY_INFO!B40=0," ",COUNTRY_INFO!B40) -> EASTERN | C40: =IF(COUNTRY_INFO!C40=0," ",COUNTRY_INFO!C40) -> BUKEDEA | D40: =IF(COUNTRY_INFO!$T$9:$T$993="MDA3 (IVM)", COUNTRY_INFO!$T$9:$T$993, " ") ->  | H40: 0 | K40: 0 | N40: 0 | O40: 0 | P40: 0 | Q40: 0
A41: =IF(COUNTRY_INFO!A41=0," ",COUNTRY_INFO!A41) -> Uganda | B41: =IF(COUNTRY_INFO!B41=0," ",COUNTRY_INFO!B41) -> EASTERN | C41: =IF(COUNTRY_INFO!C41=0," ",COUNTRY_INFO!C41) -> BUKWO | D41: =IF(COUNTRY_INFO!$T$9:$T$993="MDA3 (IVM)", COUNTRY_INFO!$T$9:$T$993, " ") ->  | H41: 0 | K41: 0 | N41: 0 | O41: 0 | P41: 0 | Q41: 0
A42: =IF(COUNTRY_INFO!A42=0," ",COUNTRY_INFO!A42) -> Uganda | B42: =IF(COUNTRY_INFO!B42=0," ",COUNTRY_INFO!B42) -> EASTERN | C42: =IF(COUNTRY_INFO!C42=0," ",COUNTRY_INFO!C42) -> BULAMBULI | D42: =IF(COUNTRY_INFO!$T$9:$T$993="MDA3 (IVM)", COUNTRY_INFO!$T$9:$T$993, " ") ->  | H42: 0 | K42: 0 | N42: 0 | O42: 0 | P42: 0 | Q42: 0
A43: =IF(COUNTRY_INFO!A43=0," ",COUNTRY_INFO!A43) -> Uganda | B43: =IF(COUNTRY_INFO!B43=0," ",COUNTRY_INFO!B43) -> EASTERN | C43: =IF(COUNTRY_INFO!C43=0," ",COUNTRY_INFO!C43) -> BUSIA | D43: =IF(COUNTRY_INFO!$T$9:$T$993="MDA3 (IVM)", COUNTRY_INFO!$T$9:$T$993, " ") ->  | H43: 0 | K43: 0 | N43: 0 | O43: 0 | P43: 0 | Q43: 0
A44: =IF(COUNTRY_INFO!A44=0," ",COUNTRY_INFO!A44) -> Uganda | B44: =IF(COUNTRY_INFO!B44=0," ",COUNTRY_INFO!B44) -> EASTERN | C44: =IF(COUNTRY_INFO!C44=0," ",COUNTRY_INFO!C44) -> BUTALEJA | D44: =IF(COUNTRY_INFO!$T$9:$T$993="MDA3 (IVM)", COUNTRY_INFO!$T$9:$T$993, " ") ->  | H44: 0 | K44: 0 | N44: 0 | O44: 0 | P44: 0 | Q44: 0
A45: =IF(COUNTRY_INFO!A45=0," ",COUNTRY_INFO!A45) -> Uganda | B45: =IF(COUNTRY_INFO!B45=0," ",COUNTRY_INFO!B45) -> EASTERN | C45: =IF(COUNTRY_INFO!C45=0," ",COUNTRY_INFO!C45) -> BUTEBO | D45: =IF(COUNTRY_INFO!$T$9:$T$993="MDA3 (IVM)", COUNTRY_INFO!$T$9:$T$993, " ") ->  | H45: 0 | K45: 0 | N45: 0 | O45: 0 | P45: 0 | Q45: 0
A46: =IF(COUNTRY_INFO!A46=0," ",COUNTRY_INFO!A46) -> Uganda | B46: =IF(COUNTRY_INFO!B46=0," ",COUNTRY_INFO!B46) -> EASTERN | C46: =IF(COUNTRY_INFO!C46=0," ",COUNTRY_INFO!C46) -> BUYENDE | D46: =IF(COUNTRY_INFO!$T$9:$T$993="MDA3 (IVM)", COUNTRY_INFO!$T$9:$T$993, " ") ->  | H46: 0 | K46: 0 | N46: 0 | O46: 0 | P46: 0 | Q46: 0
A47: =IF(COUNTRY_INFO!A47=0," ",COUNTRY_INFO!A47) -> Uganda | B47: =IF(COUNTRY_INFO!B47=0," ",COUNTRY_INFO!B47) -> EASTERN | C47: =IF(COUNTRY_INFO!C47=0," ",COUNTRY_INFO!C47) -> IGANGA | D47: =IF(COUNTRY_INFO!$T$9:$T$993="MDA3 (IVM)", COUNTRY_INFO!$T$9:$T$993, " ") ->  | H47: 0 | K47: 0 | N47: 0 | O47: 0 | P47: 0 | Q47: 0
A48: =IF(COUNTRY_INFO!A48=0," ",COUNTRY_INFO!A48) -> Uganda | B48: =IF(COUNTRY_INFO!B48=0," ",COUNTRY_INFO!B48) -> EASTERN | C48: =IF(COUNTRY_INFO!C48=0," ",COUNTRY_INFO!C48) -> JINJA | D48: =IF(COUNTRY_INFO!$T$9:$T$993="MDA3 (IVM)", COUNTRY_INFO!$T$9:$T$993, " ") ->  | H48: 0 | K48: 0 | N48: 0 | O48: 0 | P48: 0 | Q48: 0
A49: =IF(COUNTRY_INFO!A49=0," ",COUNTRY_INFO!A49) -> Uganda | B49: =IF(COUNTRY_INFO!B49=0," ",COUNTRY_INFO!B49) -> EASTERN | C49: =IF(COUNTRY_INFO!C49=0," ",COUNTRY_INFO!C49) -> KABERAMAIDO | D49: =IF(COUNTRY_INFO!$T$9:$T$993="MDA3 (IVM)", COUNTRY_INFO!$T$9:$T$993, " ") ->  | H49: 0 | K49: 0 | N49: 0 | O49: 0 | P49: 0 | Q49: 0
A50: =IF(COUNTRY_INFO!A50=0," ",COUNTRY_INFO!A50) -> Uganda | B50: =IF(COUNTRY_INFO!B50=0," ",COUNTRY_INFO!B50) -> EASTERN | C50: =IF(COUNTRY_INFO!C50=0," ",COUNTRY_INFO!C50) -> KALAKI | D50: =IF(COUNTRY_INFO!$T$9:$T$993="MDA3 (IVM)", COUNTRY_INFO!$T$9:$T$993, " ") ->  | H50: 0 | K50: 0 | N50: 0 | O50: 0 | P50: 0 | Q50: 0
A51: =IF(COUNTRY_INFO!A51=0," ",COUNTRY_INFO!A51) -> Uganda | B51: =IF(COUNTRY_INFO!B51=0," ",COUNTRY_INFO!B51) -> EASTERN | C51: =IF(COUNTRY_INFO!C51=0," ",COUNTRY_INFO!C51) -> KALIRO | D51: =IF(COUNTRY_INFO!$T$9:$T$993="MDA3 (IVM)", COUNTRY_INFO!$T$9:$T$993, " ") ->  | H51: 0 | K51: 0 | N51: 0 | O51: 0 | P51: 0 | Q51: 0
A52: =IF(COUNTRY_INFO!A52=0," ",COUNTRY_INFO!A52) -> Uganda | B52: =IF(COUNTRY_INFO!B52=0," ",COUNTRY_INFO!B52) -> EASTERN | C52: =IF(COUNTRY_INFO!C52=0," ",COUNTRY_INFO!C52) -> KAMULI | D52: =IF(COUNTRY_INFO!$T$9:$T$993="MDA3 (IVM)", COUNTRY_INFO!$T$9:$T$993, " ") ->  | H52: 0 | K52: 0 | N52: 0 | O52: 0 | P52: 0 | Q52: 0
A53: =IF(COUNTRY_INFO!A53=0," ",COUNTRY_INFO!A53) -> Uganda | B53: =IF(COUNTRY_INFO!B53=0," ",COUNTRY_INFO!B53) -> EASTERN | C53: =IF(COUNTRY_INFO!C53=0," ",COUNTRY_INFO!C53) -> KAPCHORWA | D53: =IF(COUNTRY_INFO!$T$9:$T$993="MDA3 (IVM)", COUNTRY_INFO!$T$9:$T$993, " ") ->  | H53: 0 | K53: 0 | N53: 0 | O53: 0 | P53: 0 | Q53: 0
A54: =IF(COUNTRY_INFO!A54=0," ",COUNTRY_INFO!A54) -> Uganda | B54: =IF(COUNTRY_INFO!B54=0," ",COUNTRY_INFO!B54) -> EASTERN | C54: =IF(COUNTRY_INFO!C54=0," ",COUNTRY_INFO!C54) -> KAPELEBYONG | D54: =IF(COUNTRY_INFO!$T$9:$T$993="MDA3 (IVM)", COUNTRY_INFO!$T$9:$T$993, " ") ->  | H54: 0 | K54: 0 | N54: 0 | O54: 0 | P54: 0 | Q54: 0
A55: =IF(COUNTRY_INFO!A55=0," ",COUNTRY_INFO!A55) -> Uganda | B55: =IF(COUNTRY_INFO!B55=0," ",COUNTRY_INFO!B55) -> EASTERN | C55: =IF(COUNTRY_INFO!C55=0," ",COUNTRY_INFO!C55) -> KATAKWI | D55: =IF(COUNTRY_INFO!$T$9:$T$993="MDA3 (IVM)", COUNTRY_INFO!$T$9:$T$993, " ") ->  | H55: 0 | K55: 0 | N55: 0 | O55: 0 | P55: 0 | Q55: 0
A56: =IF(COUNTRY_INFO!A56=0," ",COUNTRY_INFO!A56) -> Uganda | B56: =IF(COUNTRY_INFO!B56=0," ",COUNTRY_INFO!B56) -> EASTERN | C56: =IF(COUNTRY_INFO!C56=0," ",COUNTRY_INFO!C56) -> KIBUKU | D56: =IF(COUNTRY_INFO!$T$9:$T$993="MDA3 (IVM)", COUNTRY_INFO!$T$9:$T$993, " ") ->  | H56: 0 | K56: 0 | N56: 0 | O56: 0 | P56: 0 | Q56: 0
A57: =IF(COUNTRY_INFO!A57=0," ",COUNTRY_INFO!A57) -> Uganda | B57: =IF(COUNTRY_INFO!B57=0," ",COUNTRY_INFO!B57) -> EASTERN | C57: =IF(COUNTRY_INFO!C57=0," ",COUNTRY_INFO!C57) -> KUMI | D57: =IF(COUNTRY_INFO!$T$9:$T$993="MDA3 (IVM)", COUNTRY_INFO!$T$9:$T$993, " ") ->  | H57: 0 | K57: 0 | N57: 0 | O57: 0 | P57: 0 | Q57: 0
A58: =IF(COUNTRY_INFO!A58=0," ",COUNTRY_INFO!A58) -> Uganda | B58: =IF(COUNTRY_INFO!B58=0," ",COUNTRY_INFO!B58) -> EASTERN | C58: =IF(COUNTRY_INFO!C58=0," ",COUNTRY_INFO!C58) -> KWEEN | D58: =IF(COUNTRY_INFO!$T$9:$T$993="MDA3 (IVM)", COUNTRY_INFO!$T$9:$T$993, " ") ->  | H58: 0 | K58: 0 | N58: 0 | O58: 0 | P58: 0 | Q58: 0
A59: =IF(COUNTRY_INFO!A59=0," ",COUNTRY_INFO!A59) -> Uganda | B59: =IF(COUNTRY_INFO!B59=0," ",COUNTRY_INFO!B59) -> EASTERN | C59: =IF(COUNTRY_INFO!C59=0," ",COUNTRY_INFO!C59) -> LUUKA | D59: =IF(COUNTRY_INFO!$T$9:$T$993="MDA3 (IVM)", COUNTRY_INFO!$T$9:$T$993, " ") ->  | H59: 0 | K59: 0 | N59: 0 | O59: 0 | P59: 0 | Q59: 0
A60: =IF(COUNTRY_INFO!A60=0," ",COUNTRY_INFO!A60) -> Uganda | B60: =IF(COUNTRY_INFO!B60=0," ",COUNTRY_INFO!B60) -> EASTERN | C60: =IF(COUNTRY_INFO!C60=0," ",COUNTRY_INFO!C60) -> MANAFWA | D60: =IF(COUNTRY_INFO!$T$9:$T$993="MDA3 (IVM)", COUNTRY_INFO!$T$9:$T$993, " ") ->  | H60: 0 | K60: 0 | N60: 0 | O60: 0 | P60: 0 | Q60: 0
A61: =IF(COUNTRY_INFO!A61=0," ",COUNTRY_INFO!A61) -> Uganda | B61: =IF(COUNTRY_INFO!B61=0," ",COUNTRY_INFO!B61) -> EASTERN | C61: =IF(COUNTRY_INFO!C61=0," ",COUNTRY_INFO!C61) -> MAYUGE | D61: =IF(COUNTRY_INFO!$T$9:$T$993="MDA3 (IVM)", COUNTRY_INFO!$T$9:$T$993, " ") ->  | H61: 0 | K61: 0 | N61: 0 | O61: 0 | P61: 0 | Q61: 0
A62: =IF(COUNTRY_INFO!A62=0," ",COUNTRY_INFO!A62) -> Uganda | B62: =IF(COUNTRY_INFO!B62=0," ",COUNTRY_INFO!B62) -> EASTERN | C62: =IF(COUNTRY_INFO!C62=0," ",COUNTRY_INFO!C62) -> MBALE | D62: =IF(COUNTRY_INFO!$T$9:$T$993="MDA3 (IVM)", COUNTRY_INFO!$T$9:$T$993, " ") ->  | H62: 0 | K62: 0 | N62: 0 | O62: 0 | P62: 0 | Q62: 0
A63: =IF(COUNTRY_INFO!A63=0," ",COUNTRY_INFO!A63) -> Uganda | B63: =IF(COUNTRY_INFO!B63=0," ",COUNTRY_INFO!B63) -> EASTERN | C63: =IF(COUNTRY_INFO!C63=0," ",COUNTRY_INFO!C63) -> NAMAYINGO | D63: =IF(COUNTRY_INFO!$T$9:$T$993="MDA3 (IVM)", COUNTRY_INFO!$T$9:$T$993, " ") ->  | H63: 0 | K63: 0 | N63: 0 | O63: 0 | P63: 0 | Q63: 0
A64: =IF(COUNTRY_INFO!A64=0," ",COUNTRY_INFO!A64) -> Uganda | B64: =IF(COUNTRY_INFO!B64=0," ",COUNTRY_INFO!B64) -> EASTERN | C64: =IF(COUNTRY_INFO!C64=0," ",COUNTRY_INFO!C64) -> NAMISINDWA | D64: =IF(COUNTRY_INFO!$T$9:$T$993="MDA3 (IVM)", COUNTRY_INFO!$T$9:$T$993, " ") ->  | H64: 0 | K64: 0 | N64: 0 | O64: 0 | P64: 0 | Q64: 0
A65: =IF(COUNTRY_INFO!A65=0," ",COUNTRY_INFO!A65) -> Uganda | B65: =IF(COUNTRY_INFO!B65=0," ",COUNTRY_INFO!B65) -> EASTERN | C65: =IF(COUNTRY_INFO!C65=0," ",COUNTRY_INFO!C65) -> NAMUTUMBA | D65: =IF(COUNTRY_INFO!$T$9:$T$993="MDA3 (IVM)", COUNTRY_INFO!$T$9:$T$993, " ") ->  | H65: 0 | K65: 0 | N65: 0 | O65: 0 | P65: 0 | Q65: 0
A66: =IF(COUNTRY_INFO!A66=0," ",COUNTRY_INFO!A66) -> Uganda | B66: =IF(COUNTRY_INFO!B66=0," ",COUNTRY_INFO!B66) -> EASTERN | C66: =IF(COUNTRY_INFO!C66=0," ",COUNTRY_INFO!C66) -> NGORA | D66: =IF(COUNTRY_INFO!$T$9:$T$993="MDA3 (IVM)", COUNTRY_INFO!$T$9:$T$993, " ") ->  | H66: 0 | K66: 0 | N66: 0 | O66: 0 | P66: 0 | Q66: 0
A67: =IF(COUNTRY_INFO!A67=0," ",COUNTRY_INFO!A67) -> Uganda | B67: =IF(COUNTRY_INFO!B67=0," ",COUNTRY_INFO!B67) -> EASTERN | C67: =IF(COUNTRY_INFO!C67=0," ",COUNTRY_INFO!C67) -> PALLISA | D67: =IF(COUNTRY_INFO!$T$9:$T$993="MDA3 (IVM)", COUNTRY_INFO!$T$9:$T$993, " ") ->  | H67: 0 | K67: 0 | N67: 0 | O67: 0 | P67: 0 | Q67: 0
A68: =IF(COUNTRY_INFO!A68=0," ",COUNTRY_INFO!A68) -> Uganda | B68: =IF(COUNTRY_INFO!B68=0," ",COUNTRY_INFO!B68) -> EASTERN | C68: =IF(COUNTRY_INFO!C68=0," ",COUNTRY_INFO!C68) -> SERERE | D68: =IF(COUNTRY_INFO!$T$9:$T$993="MDA3 (IVM)", COUNTRY_INFO!$T$9:$T$993, " ") ->  | H68: 0 | K68: 0 | N68: 0 | O68: 0 | P68: 0 | Q68: 0
A69: =IF(COUNTRY_INFO!A69=0," ",COUNTRY_INFO!A69) -> Uganda | B69: =IF(COUNTRY_INFO!B69=0," ",COUNTRY_INFO!B69) -> EASTERN | C69: =IF(COUNTRY_INFO!C69=0," ",COUNTRY_INFO!C69) -> SIRONKO | D69: =IF(COUNTRY_INFO!$T$9:$T$993="MDA3 (IVM)", COUNTRY_INFO!$T$9:$T$993, " ") ->  | H69: 0 | K69: 0 | N69: 0 | O69: 0 | P69: 0 | Q69: 0
A70: =IF(COUNTRY_INFO!A70=0," ",COUNTRY_INFO!A70) -> Uganda | B70: =IF(COUNTRY_INFO!B70=0," ",COUNTRY_INFO!B70) -> EASTERN | C70: =IF(COUNTRY_INFO!C70=0," ",COUNTRY_INFO!C70) -> SOROTI | D70: =IF(COUNTRY_INFO!$T$9:$T$993="MDA3 (IVM)", COUNTRY_INFO!$T$9:$T$993, " ") ->  | H70: 0 | K70: 0 | N70: 0 | O70: 0 | P70: 0 | Q70: 0
A71: =IF(COUNTRY_INFO!A71=0," ",COUNTRY_INFO!A71) -> Uganda | B71: =IF(COUNTRY_INFO!B71=0," ",COUNTRY_INFO!B71) -> EASTERN | C71: =IF(COUNTRY_INFO!C71=0," ",COUNTRY_INFO!C71) -> TORORO | D71: =IF(COUNTRY_INFO!$T$9:$T$993="MDA3 (IVM)", COUNTRY_INFO!$T$9:$T$993, " ") ->  | H71: 0 | K71: 0 | N71: 0 | O71: 0 | P71: 0 | Q71: 0
A72: =IF(COUNTRY_INFO!A72=0," ",COUNTRY_INFO!A72) -> Uganda | B72: =IF(COUNTRY_INFO!B72=0," ",COUNTRY_INFO!B72) -> NORTHERN | C72: =IF(COUNTRY_INFO!C72=0," ",COUNTRY_INFO!C72) -> ABIM | D72: =IF(COUNTRY_INFO!$T$9:$T$993="MDA3 (IVM)", COUNTRY_INFO!$T$9:$T$993, " ") ->  | H72: 0 | K72: 0 | N72: 0 | O72: 0 | P72: 0 | Q72: 0
A73: =IF(COUNTRY_INFO!A73=0," ",COUNTRY_INFO!A73) -> Uganda | B73: =IF(COUNTRY_INFO!B73=0," ",COUNTRY_INFO!B73) -> NORTHERN | C73: =IF(COUNTRY_INFO!C73=0," ",COUNTRY_INFO!C73) -> ADJUMANI | D73: =IF(COUNTRY_INFO!$T$9:$T$993="MDA3 (IVM)", COUNTRY_INFO!$T$9:$T$993, " ") -> MDA3 (IVM) | E73: April and Oct 2021 | F73: 10752 | G73: 18548 | H73: 29300 | I73: 10509.45322 | J73: 18130.54678 | K73: 28640 | L73: 10187.27096 | M73: 17574.72904 | N73: 27762 | O73: 10509.45322 | P73: 18130.54678 | Q73: 28640 | R73: 97.74417057 | S73: 97.74933567 | T73: 97.74744027 | W73: 29300 | X73: =ROUND($W73*COUNTRY_INFO!F73/(COUNTRY_INFO!$F73+COUNTRY_INFO!$G73),0) -> 10752 | Y73: =ROUND($W73*COUNTRY_INFO!G73/(COUNTRY_INFO!$F73+COUNTRY_INFO!$G73),0) -> 18548
A74: =IF(COUNTRY_INFO!A74=0," ",COUNTRY_INFO!A74) -> Uganda | B74: =IF(COUNTRY_INFO!B74=0," ",COUNTRY_INFO!B74) -> NORTHERN | C74: =IF(COUNTRY_INFO!C74=0," ",COUNTRY_INFO!C74) -> AGAGO | D74: =IF(COUNTRY_INFO!$T$9:$T$993="MDA3 (IVM)", COUNTRY_INFO!$T$9:$T$993, " ") ->  | H74: =SUM(F74:G74) -> 0 | K74: =SUM(I74:J74) -> 0 | N74: =SUM(L74:M74) -> 0 | O74: =MAX(I74,L74) -> 0 | P74: =MAX(J74,M74) -> 0 | Q74: =SUM(O74:P74) -> 0 | R74: =IF(F74<>0, IF(MAX(I74,L74)/F74*100=0, "-", MAX(I74,L74)/F74*100), " ") ->  | S74: =IF(G74<>0, IF(MAX(J74,M74)/G74*100=0, "-", MAX(J74,M74)/G74*100), " ") ->  | T74: =IF(H74<>0, IF((MAX(I74,L74)+MAX(J74,M74))/H74*100=0, "-",(MAX(I74,L74)+MAX(J74,M74))/H74*100), " ") -> 
A75: =IF(COUNTRY_INFO!A75=0," ",COUNTRY_INFO!A75) -> Uganda | B75: =IF(COUNTRY_INFO!B75=0," ",COUNTRY_INFO!B75) -> NORTHERN | C75: =IF(COUNTRY_INFO!C75=0," ",COUNTRY_INFO!C75) -> ALEBTONG | D75: =IF(COUNTRY_INFO!$T$9:$T$993="MDA3 (IVM)", COUNTRY_INFO!$T$9:$T$993, " ") ->  | H75: 0 | K75: 0 | N75: 0 | O75: 0 | P75: 0 | Q75: 0
A76: =IF(COUNTRY_INFO!A76=0," ",COUNTRY_INFO!A76) -> Uganda | B76: =IF(COUNTRY_INFO!B76=0," ",COUNTRY_INFO!B76) -> NORTHERN | C76: =IF(COUNTRY_INFO!C76=0," ",COUNTRY_INFO!C76) -> AMOLATAR | D76: =IF(COUNTRY_INFO!$T$9:$T$993="MDA3 (IVM)", COUNTRY_INFO!$T$9:$T$993, " ") ->  | H76: 0 | K76: 0 | N76: 0 | O76: 0 | P76: 0 | Q76: 0
A77: =IF(COUNTRY_INFO!A77=0," ",COUNTRY_INFO!A77) -> Uganda | B77: =IF(COUNTRY_INFO!B77=0," ",COUNTRY_INFO!B77) -> NORTHERN | C77: =IF(COUNTRY_INFO!C77=0," ",COUNTRY_INFO!C77) -> AMUDAT | D77: =IF(COUNTRY_INFO!$T$9:$T$993="MDA3 (IVM)", COUNTRY_INFO!$T$9:$T$993, " ") ->  | H77: 0 | K77: 0 | N77: 0 | O77: 0 | P77: 0 | Q77: 0
A78: =IF(COUNTRY_INFO!A78=0," ",COUNTRY_INFO!A78) -> Uganda | B78: =IF(COUNTRY_INFO!B78=0," ",COUNTRY_INFO!B78) -> NORTHERN | C78: =IF(COUNTRY_INFO!C78=0," ",COUNTRY_INFO!C78) -> AMURU | D78: =IF(COUNTRY_INFO!$T$9:$T$993="MDA3 (IVM)", COUNTRY_INFO!$T$9:$T$993, " ") -> MDA3 (IVM) | E78: April and Oct 2021 | F78: 83653 | G78: 144315 | H78: 227968 | I78: 80223.38275 | J78: 138398.6173 | K78: 218622 | L78: 79498.28919 | M78: 137147.7108 | N78: 216646 | O78: 80223.38275 | P78: 138398.6173 | Q78: 218622 | R78: 95.90018618 | S78: 95.90036881 | T78: 95.9003018 | W78: 227967.84 | X78: =ROUND($W78*COUNTRY_INFO!F78/(COUNTRY_INFO!$F78+COUNTRY_INFO!$G78),0) -> 83653 | Y78: =ROUND($W78*COUNTRY_INFO!G78/(COUNTRY_INFO!$F78+COUNTRY_INFO!$G78),0) -> 144315
A79: =IF(COUNTRY_INFO!A79=0," ",COUNTRY_INFO!A79) -> Uganda | B79: =IF(COUNTRY_INFO!B79=0," ",COUNTRY_INFO!B79) -> NORTHERN | C79: =IF(COUNTRY_INFO!C79=0," ",COUNTRY_INFO!C79) -> APAC | D79: =IF(COUNTRY_INFO!$T$9:$T$993="MDA3 (IVM)", COUNTRY_INFO!$T$9:$T$993, " ") ->  | H79: 0 | K79: 0 | N79: 0 | O79: 0 | P79: 0 | Q79: 0
A80: =IF(COUNTRY_INFO!A80=0," ",COUNTRY_INFO!A80) -> Uganda | B80: =IF(COUNTRY_INFO!B80=0," ",COUNTRY_INFO!B80) -> NORTHERN | C80: =IF(COUNTRY_INFO!C80=0," ",COUNTRY_INFO!C80) -> ARUA | D80: =IF(COUNTRY_INFO!$T$9:$T$993="MDA3 (IVM)", COUNTRY_INFO!$T$9:$T$993, " ") ->  | H80: 0 | K80: 0 | N80: 0 | O80: 0 | P80: 0 | Q80: 0
A81: =IF(COUNTRY_INFO!A81=0," ",COUNTRY_INFO!A81) -> Uganda | B81: =IF(COUNTRY_INFO!B81=0," ",COUNTRY_INFO!B81) -> NORTHERN | C81: =IF(COUNTRY_INFO!C81=0," ",COUNTRY_INFO!C81) -> DOKOLO | D81: =IF(COUNTRY_INFO!$T$9:$T$993="MDA3 (IVM)", COUNTRY_INFO!$T$9:$T$993, " ") ->  | H81: 0 | K81: 0 | N81: 0 | O81: 0 | P81: 0 | Q81: 0
A82: =IF(COUNTRY_INFO!A82=0," ",COUNTRY_INFO!A82) -> Uganda | B82: =IF(COUNTRY_INFO!B82=0," ",COUNTRY_INFO!B82) -> NORTHERN | C82: =IF(COUNTRY_INFO!C82=0," ",COUNTRY_INFO!C82) -> GULU | D82: =IF(COUNTRY_INFO!$T$9:$T$993="MDA3 (IVM)", COUNTRY_INFO!$T$9:$T$993, " ") -> MDA3 (IVM) | E82: April and Oct 2021 | F82: 49939 | G82: 86152 | H82: 136091 | I82: 48139.82746 | J82: 83049.17254 | K82: 131189 | L82: 47241.16646 | M82: 81498.83354 | N82: 128740 | O82: 48139.82746 | P82: 83049.17254 | Q82: 131189 | R82: 96.39725958 | S82: 96.39842666 | T82: 96.3979984 | W82: 136090.81 | X82: =ROUND($W82*COUNTRY_INFO!F82/(COUNTRY_INFO!$F82+COUNTRY_INFO!$G82),0) -> 49939 | Y82: =ROUND($W82*COUNTRY_INFO!G82/(COUNTRY_INFO!$F82+COUNTRY_INFO!$G82),0) -> 86152
A83: =IF(COUNTRY_INFO!A83=0," ",COUNTRY_INFO!A83) -> Uganda | B83: =IF(COUNTRY_INFO!B83=0," ",COUNTRY_INFO!B83) -> NORTHERN | C83: =IF(COUNTRY_INFO!C83=0," ",COUNTRY_INFO!C83) -> KAABONG | D83: =IF(COUNTRY_INFO!$T$9:$T$993="MDA3 (IVM)", COUNTRY_INFO!$T$9:$T$993, " ") ->  | H83: 0 | K83: 0 | N83: 0 | O83: 0 | P83: 0 | Q83: 0
A84: =IF(COUNTRY_INFO!A84=0," ",COUNTRY_INFO!A84) -> Uganda | B84: =IF(COUNTRY_INFO!B84=0," ",COUNTRY_INFO!B84) -> NORTHERN | C84: =IF(COUNTRY_INFO!C84=0," ",COUNTRY_INFO!C84) -> KARENGA | D84: =IF(COUNTRY_INFO!$T$9:$T$993="MDA3 (IVM)", COUNTRY_INFO!$T$9:$T$993, " ") ->  | H84: 0 | K84: 0 | N84: 0 | O84: 0 | P84: 0 | Q84: 0
A85: =IF(COUNTRY_INFO!A85=0," ",COUNTRY_INFO!A85) -> Uganda | B85: =IF(COUNTRY_INFO!B85=0," ",COUNTRY_INFO!B85) -> NORTHERN | C85: =IF(COUNTRY_INFO!C85=0," ",COUNTRY_INFO!C85) -> KITGUM | D85: =IF(COUNTRY_INFO!$T$9:$T$993="MDA3 (IVM)", COUNTRY_INFO!$T$9:$T$993, " ") -> MDA3 (IVM) | E85: April and Oct 2021 | F85: 33925 | G85: 58527 | H85: 92452 | I85: 32609.76185 | J85: 56257.23815 | K85: 88867 | L85: 32811.58445 | M85: 56605.41555 | N85: 89417 | O85: 32811.58445 | P85: 56605.41555 | Q85: 89417 | R85: 96.71800869 | S85: 96.7167556 | T85: 96.71721542 | W85: 92452.8 | X85: =ROUND($W85*COUNTRY_INFO!F85/(COUNTRY_INFO!$F85+COUNTRY_INFO!$G85),0) -> 33925 | Y85: =ROUND($W85*COUNTRY_INFO!G85/(COUNTRY_INFO!$F85+COUNTRY_INFO!$G85),0) -> 58527
A86: =IF(COUNTRY_INFO!A86=0," ",COUNTRY_INFO!A86) -> Uganda | B86: =IF(COUNTRY_INFO!B86=0," ",COUNTRY_INFO!B86) -> NORTHERN | C86: =IF(COUNTRY_INFO!C86=0," ",COUNTRY_INFO!C86) -> KOBOKO | D86: =IF(COUNTRY_INFO!$T$9:$T$993="MDA3 (IVM)", COUNTRY_INFO!$T$9:$T$993, " ") ->  | H86: 0 | K86: 0 | N86: 0 | O86: 0 | P86: 0 | Q86: 0
A87: =IF(COUNTRY_INFO!A87=0," ",COUNTRY_INFO!A87) -> Uganda | B87: =IF(COUNTRY_INFO!B87=0," ",COUNTRY_INFO!B87) -> NORTHERN | C87: =IF(COUNTRY_INFO!C87=0," ",COUNTRY_INFO!C87) -> KOLE | D87: =IF(COUNTRY_INFO!$T$9:$T$993="MDA3 (IVM)", COUNTRY_INFO!$T$9:$T$993, " ") ->  | H87: 0 | K87: 0 | N87: 0 | O87: 0 | P87: 0 | Q87: 0
A88: =IF(COUNTRY_INFO!A88=0," ",COUNTRY_INFO!A88) -> Uganda | B88: =IF(COUNTRY_INFO!B88=0," ",COUNTRY_INFO!B88) -> NORTHERN | C88: =IF(COUNTRY_INFO!C88=0," ",COUNTRY_INFO!C88) -> KOTIDO | D88: =IF(COUNTRY_INFO!$T$9:$T$993="MDA3 (IVM)", COUNTRY_INFO!$T$9:$T$993, " ") ->  | H88: 0 | K88: 0 | N88: 0 | O88: 0 | P88: 0 | Q88: 0
A89: =IF(COUNTRY_INFO!A89=0," ",COUNTRY_INFO!A89) -> Uganda | B89: =IF(COUNTRY_INFO!B89=0," ",COUNTRY_INFO!B89) -> NORTHERN | C89: =IF(COUNTRY_INFO!C89=0," ",COUNTRY_INFO!C89) -> KWANIA | D89: =IF(COUNTRY_INFO!$T$9:$T$993="MDA3 (IVM)", COUNTRY_INFO!$T$9:$T$993, " ") ->  | H89: 0 | K89: 0 | N89: 0 | O89: 0 | P89: 0 | Q89: 0
A90: =IF(COUNTRY_INFO!A90=0," ",COUNTRY_INFO!A90) -> Uganda | B90: =IF(COUNTRY_INFO!B90=0," ",COUNTRY_INFO!B90) -> NORTHERN | C90: =IF(COUNTRY_INFO!C90=0," ",COUNTRY_INFO!C90) -> LAMWO | D90: =IF(COUNTRY_INFO!$T$9:$T$993="MDA3 (IVM)", COUNTRY_INFO!$T$9:$T$993, " ") -> MDA3 (IVM) | E90: April and Oct 2021 | F90: 49944 | G90: 86162 | H90: 136106 | I90: 47939.47266 | J90: 82703.52734 | K90: 130643 | L90: 47734.34751 | M90: 82349.65249 | N90: 130084 | O90: 47939.47266 | P90: 82703.52734 | Q90: 130643 | R90: 95.98645015 | S90: 95.98608126 | T90: 95.98621663 | W90: 136105.23 | X90: =ROUND($W90*COUNTRY_INFO!F90/(COUNTRY_INFO!$F90+COUNTRY_INFO!$G90),0) -> 49944 | Y90: =ROUND($W90*COUNTRY_INFO!G90/(COUNTRY_INFO!$F90+COUNTRY_INFO!$G90),0) -> 86162
A91: =IF(COUNTRY_INFO!A91=0," ",COUNTRY_INFO!A91) -> Uganda | B91: =IF(COUNTRY_INFO!B91=0," ",COUNTRY_INFO!B91) -> NORTHERN | C91: =IF(COUNTRY_INFO!C91=0," ",COUNTRY_INFO!C91) -> LIRA | D91: =IF(COUNTRY_INFO!$T$9:$T$993="MDA3 (IVM)", COUNTRY_INFO!$T$9:$T$993, " ") -> MDA3 (IVM) | E91: April and Oct 2021 | F91: 25349 | G91: 43731 | H91: 69080 | I91: 24073.03281 | J91: 41529.96719 | K91: 65603 | L91: 24333.93439 | M91: 41980.06561 | N91: 66314 | O91: 24333.93439 | P91: 41980.06561 | Q91: 66314 | R91: 95.99563843 | S91: 95.99612543 | T91: 95.99594673 | W91: 69080.04 | X91: =ROUND($W91*COUNTRY_INFO!F91/(COUNTRY_INFO!$F91+COUNTRY_INFO!$G91),0) -> 25349 | Y91: =ROUND($W91*COUNTRY_INFO!G91/(COUNTRY_INFO!$F91+COUNTRY_INFO!$G91),0) -> 43731
A92: =IF(COUNTRY_INFO!A92=0," ",COUNTRY_INFO!A92) -> Uganda | B92: =IF(COUNTRY_INFO!B92=0," ",COUNTRY_INFO!B92) -> NORTHERN | C92: =IF(COUNTRY_INFO!C92=0," ",COUNTRY_INFO!C92) -> MADI OKOLLO | D92: =IF(COUNTRY_INFO!$T$9:$T$993="MDA3 (IVM)", COUNTRY_INFO!$T$9:$T$993, " ") ->  | H92: 0 | K92: 0 | N92: 0 | O92: 0 | P92: 0 | Q92: 0
A93: =IF(COUNTRY_INFO!A93=0," ",COUNTRY_INFO!A93) -> Uganda | B93: =IF(COUNTRY_INFO!B93=0," ",COUNTRY_INFO!B93) -> NORTHERN | C93: =IF(COUNTRY_INFO!C93=0," ",COUNTRY_INFO!C93) -> MARACHA | D93: =IF(COUNTRY_INFO!$T$9:$T$993="MDA3 (IVM)", COUNTRY_INFO!$T$9:$T$993, " ") ->  | H93: 0 | K93: 0 | N93: 0 | O93: 0 | P93: 0 | Q93: 0
A94: =IF(COUNTRY_INFO!A94=0," ",COUNTRY_INFO!A94) -> Uganda | B94: =IF(COUNTRY_INFO!B94=0," ",COUNTRY_INFO!B94) -> NORTHERN | C94: =IF(COUNTRY_INFO!C94=0," ",COUNTRY_INFO!C94) -> MOROTO | D94: =IF(COUNTRY_INFO!$T$9:$T$993="MDA3 (IVM)", COUNTRY_INFO!$T$9:$T$993, " ") ->  | H94: 0 | K94: 0 | N94: 0 | O94: 0 | P94: 0 | Q94: 0
A95: =IF(COUNTRY_INFO!A95=0," ",COUNTRY_INFO!A95) -> Uganda | B95: =IF(COUNTRY_INFO!B95=0," ",COUNTRY_INFO!B95) -> NORTHERN | C95: =IF(COUNTRY_INFO!C95=0," ",COUNTRY_INFO!C95) -> MOYO | D95: =IF(COUNTRY_INFO!$T$9:$T$993="MDA3 (IVM)", COUNTRY_INFO!$T$9:$T$993, " ") -> MDA3 (IVM) | E95: April and Oct 2021 | F95: 33117 | G95: 57133 | H95: 90250 | I95: 31917.32685 | J95: 55062.67315 | K95: 86980 | L95: 32343.72296 | M95: 55798.27704 | N95: 88142 | O95: 32343.72296 | P95: 55798.27704 | Q95: 88142 | R95: 97.66501484 | S95: 97.66383182 | T95: 97.66426593 | W95: 90250.66 | X95: =ROUND($W95*COUNTRY_INFO!F95/(COUNTRY_INFO!$F95+COUNTRY_INFO!$G95),0) -> 33117 | Y95: =ROUND($W95*COUNTRY_INFO!G95/(COUNTRY_INFO!$F95+COUNTRY_INFO!$G95),0) -> 57133
A96: =IF(COUNTRY_INFO!A96=0," ",COUNTRY_INFO!A96) -> Uganda | B96: =IF(COUNTRY_INFO!B96=0," ",COUNTRY_INFO!B96) -> NORTHERN | C96: =IF(COUNTRY_INFO!C96=0," ",COUNTRY_INFO!C96) -> NABILATUK | D96: =IF(COUNTRY_INFO!$T$9:$T$993="MDA3 (IVM)", COUNTRY_INFO!$T$9:$T$993, " ") ->  | H96: 0 | K96: 0 | N96: 0 | O96: 0 | P96: 0 | Q96: 0
A97: =IF(COUNTRY_INFO!A97=0," ",COUNTRY_INFO!A97) -> Uganda | B97: =IF(COUNTRY_INFO!B97=0," ",COUNTRY_INFO!B97) -> NORTHERN | C97: =IF(COUNTRY_INFO!C97=0," ",COUNTRY_INFO!C97) -> NAKAPIRIPIRIT | D97: =IF(COUNTRY_INFO!$T$9:$T$993="MDA3 (IVM)", COUNTRY_INFO!$T$9:$T$993, " ") ->  | H97: 0 | K97: 0 | N97: 0 | O97: 0 | P97: 0 | Q97: 0
A98: =IF(COUNTRY_INFO!A98=0," ",COUNTRY_INFO!A98) -> Uganda | B98: =IF(COUNTRY_INFO!B98=0," ",COUNTRY_INFO!B98) -> NORTHERN | C98: =IF(COUNTRY_INFO!C98=0," ",COUNTRY_INFO!C98) -> NAPAK | D98: =IF(COUNTRY_INFO!$T$9:$T$993="MDA3 (IVM)", COUNTRY_INFO!$T$9:$T$993, " ") ->  | H98: 0 | K98: 0 | N98: 0 | O98: 0 | P98: 0 | Q98: 0
A99: =IF(COUNTRY_INFO!A99=0," ",COUNTRY_INFO!A99) -> Uganda | B99: =IF(COUNTRY_INFO!B99=0," ",COUNTRY_INFO!B99) -> NORTHERN | C99: =IF(COUNTRY_INFO!C99=0," ",COUNTRY_INFO!C99) -> NEBBI | D99: =IF(COUNTRY_INFO!$T$9:$T$993="MDA3 (IVM)", COUNTRY_INFO!$T$9:$T$993, " ") ->  | H99: 0 | K99: 0 | N99: 0 | O99: 0 | P99: 0 | Q99: 0
A100: =IF(COUNTRY_INFO!A100=0," ",COUNTRY_INFO!A100) -> Uganda | B100: =IF(COUNTRY_INFO!B100=0," ",COUNTRY_INFO!B100) -> NORTHERN | C100: =IF(COUNTRY_INFO!C100=0," ",COUNTRY_INFO!C100) -> NWOYA | D100: =IF(COUNTRY_INFO!$T$9:$T$993="MDA3 (IVM)", COUNTRY_INFO!$T$9:$T$993, " ") -> MDA3 (IVM) | E100: April and Oct 2021 | F100: 67829 | G100: 117015 | H100: 184844 | I100: 54878.50061 | J100: 94674.49939 | K100: 149553 | L100: 57553.56744 | M100: 99289.43256 | N100: 156843 | O100: 57553.56744 | P100: 99289.43256 | Q100: 156843 | R100: 84.85097442 | S100: 84.85188443 | T100: 84.8515505 | W100: 184844 | X100: =ROUND($W100*COUNTRY_INFO!F100/(COUNTRY_INFO!$F100+COUNTRY_INFO!$G100),0) -> 67829 | Y100: =ROUND($W100*COUNTRY_INFO!G100/(COUNTRY_INFO!$F100+COUNTRY_INFO!$G100),0) -> 117015
A101: =IF(COUNTRY_INFO!A101=0," ",COUNTRY_INFO!A101) -> Uganda | B101: =IF(COUNTRY_INFO!B101=0," ",COUNTRY_INFO!B101) -> NORTHERN | C101: =IF(COUNTRY_INFO!C101=0," ",COUNTRY_INFO!C101) -> OBONGI | D101: =IF(COUNTRY_INFO!$T$9:$T$993="MDA3 (IVM)", COUNTRY_INFO!$T$9:$T$993, " ") ->  | H101: 0 | K101: 0 | N101: 0 | O101: 0 | P101: 0 | Q101: 0
A102: =IF(COUNTRY_INFO!A102=0," ",COUNTRY_INFO!A102) -> Uganda | B102: =IF(COUNTRY_INFO!B102=0," ",COUNTRY_INFO!B102) -> NORTHERN | C102: =IF(COUNTRY_INFO!C102=0," ",COUNTRY_INFO!C102) -> OMORO | D102: =IF(COUNTRY_INFO!$T$9:$T$993="MDA3 (IVM)", COUNTRY_INFO!$T$9:$T$993, " ") -> MDA3 (IVM) | E102: April and Oct 2021 | F102: 63320 | G102: 109239 | H102: 172559 | I102: 59219.88821 | J102: 102164.1118 | K102: 161384 | L102: 59995.25395 | M102: 103501.7461 | N102: 163497 | O102: 59995.25395 | P102: 103501.7461 | Q102: 163497 | R102: 94.74929556 | S102: 94.74798016 | T102: 94.74846284 | W102: 172558.99 | X102: =ROUND($W102*COUNTRY_INFO!F102/(COUNTRY_INFO!$F102+COUNTRY_INFO!$G102),0) -> 63320 | Y102: =ROUND($W102*COUNTRY_INFO!G102/(COUNTRY_INFO!$F102+COUNTRY_INFO!$G102),0) -> 109239
A103: =IF(COUNTRY_INFO!A103=0," ",COUNTRY_INFO!A103) -> Uganda | B103: =IF(COUNTRY_INFO!B103=0," ",COUNTRY_INFO!B103) -> NORTHERN | C103: =IF(COUNTRY_INFO!C103=0," ",COUNTRY_INFO!C103) -> OTUKE | D103: =IF(COUNTRY_INFO!$T$9:$T$993="MDA3 (IVM)", COUNTRY_INFO!$T$9:$T$993, " ") ->  | H103: 0 | K103: 0 | N103: 0 | O103: 0 | P103: 0 | Q103: 0
A104: =IF(COUNTRY_INFO!A104=0," ",COUNTRY_INFO!A104) -> Uganda | B104: =IF(COUNTRY_INFO!B104=0," ",COUNTRY_INFO!B104) -> NORTHERN | C104: =IF(COUNTRY_INFO!C104=0," ",COUNTRY_INFO!C104) -> OYAM | D104: =IF(COUNTRY_INFO!$T$9:$T$993="MDA3 (IVM)", COUNTRY_INFO!$T$9:$T$993, " ") -> MDA3 (IVM) | E104: April and Oct 2021 | F104: 9133 | G104: 15755 | H104: 24888 | I104: 8370.133657 | J104: 14439.86634 | K104: 22810 | L104: 8111.433779 | M104: 13993.56622 | N104: 22105 | O104: 8370.133657 | P104: 14439.86634 | Q104: 22810 | R104: 91.64714395 | S104: 91.652595 | T104: 91.65059466 | W104: 24887.89 | X104: =ROUND($W104*COUNTRY_INFO!F104/(COUNTRY_INFO!$F104+COUNTRY_INFO!$G104),0) -> 9133 | Y104: =ROUND($W104*COUNTRY_INFO!G104/(COUNTRY_INFO!$F104+COUNTRY_INFO!$G104),0) -> 15755
A105: =IF(COUNTRY_INFO!A105=0," ",COUNTRY_INFO!A105) -> Uganda | B105: =IF(COUNTRY_INFO!B105=0," ",COUNTRY_INFO!B105) -> NORTHERN | C105: =IF(COUNTRY_INFO!C105=0," ",COUNTRY_INFO!C105) -> PADER | D105: =IF(COUNTRY_INFO!$T$9:$T$993="MDA3 (IVM)", COUNTRY_INFO!$T$9:$T$993, " ") -> MDA3 (IVM) | E105: April and Oct 2021 | F105: 66794 | G105: 115231 | H105: 182025 | I105: 63878.32078 | J105: 110200.6792 | K105: 174079 | L105: 63244.23086 | M105: 109106.7691 | N105: 172351 | O105: 63878.32078 | P105: 110200.6792 | Q105: 174079 | R105: 95.63481866 | S105: 95.63457683 | T105: 95.63466557 | W105: 182024.69 | X105: =ROUND($W105*COUNTRY_INFO!F105/(COUNTRY_INFO!$F105+COUNTRY_INFO!$G105),0) -> 66794 | Y105: =ROUND($W105*COUNTRY_INFO!G105/(COUNTRY_INFO!$F105+COUNTRY_INFO!$G105),0) -> 115231
A106: =IF(COUNTRY_INFO!A106=0," ",COUNTRY_INFO!A106) -> Uganda | B106: =IF(COUNTRY_INFO!B106=0," ",COUNTRY_INFO!B106) -> NORTHERN | C106: =IF(COUNTRY_INFO!C106=0," ",COUNTRY_INFO!C106) -> PAKWACH | D106: =IF(COUNTRY_INFO!$T$9:$T$993="MDA3 (IVM)", COUNTRY_INFO!$T$9:$T$993, " ") ->  | H106: 0 | K106: 0 | N106: 0 | O106: 0 | P106: 0 | Q106: 0
A107: =IF(COUNTRY_INFO!A107=0," ",COUNTRY_INFO!A107) -> Uganda | B107: =IF(COUNTRY_INFO!B107=0," ",COUNTRY_INFO!B107) -> NORTHERN | C107: =IF(COUNTRY_INFO!C107=0," ",COUNTRY_INFO!C107) -> YUMBE | D107: =IF(COUNTRY_INFO!$T$9:$T$993="MDA3 (IVM)", COUNTRY_INFO!$T$9:$T$993, " ") ->  | H107: 0 | K107: 0 | N107: 0 | O107: 0 | P107: 0 | Q107: 0
A108: =IF(COUNTRY_INFO!A108=0," ",COUNTRY_INFO!A108) -> Uganda | B108: =IF(COUNTRY_INFO!B108=0," ",COUNTRY_INFO!B108) -> NORTHERN | C108: =IF(COUNTRY_INFO!C108=0," ",COUNTRY_INFO!C108) -> ZOMBO | D108: =IF(COUNTRY_INFO!$T$9:$T$993="MDA3 (IVM)", COUNTRY_INFO!$T$9:$T$993, " ") ->  | H108: 0 | K108: 0 | N108: 0 | O108: 0 | P108: 0 | Q108: 0
A109: =IF(COUNTRY_INFO!A109=0," ",COUNTRY_INFO!A109) -> Uganda | B109: =IF(COUNTRY_INFO!B109=0," ",COUNTRY_INFO!B109) -> WESTERN | C109: =IF(COUNTRY_INFO!C109=0," ",COUNTRY_INFO!C109) -> BUHWEJU | D109: =IF(COUNTRY_INFO!$T$9:$T$993="MDA3 (IVM)", COUNTRY_INFO!$T$9:$T$993, " ") ->  | H109: 0 | K109: 0 | N109: 0 | O109: 0 | P109: 0 | Q109: 0
A110: =IF(COUNTRY_INFO!A110=0," ",COUNTRY_INFO!A110) -> Uganda | B110: =IF(COUNTRY_INFO!B110=0," ",COUNTRY_INFO!B110) -> WESTERN | C110: =IF(COUNTRY_INFO!C110=0," ",COUNTRY_INFO!C110) -> BULIISA | D110: =IF(COUNTRY_INFO!$T$9:$T$993="MDA3 (IVM)", COUNTRY_INFO!$T$9:$T$993, " ") ->  | H110: 0 | K110: 0 | N110: 0 | O110: 0 | P110: 0 | Q110: 0
A111: =IF(COUNTRY_INFO!A111=0," ",COUNTRY_INFO!A111) -> Uganda | B111: =IF(COUNTRY_INFO!B111=0," ",COUNTRY_INFO!B111) -> WESTERN | C111: =IF(COUNTRY_INFO!C111=0," ",COUNTRY_INFO!C111) -> BUNDIBUGYO | D111: =IF(COUNTRY_INFO!$T$9:$T$993="MDA3 (IVM)", COUNTRY_INFO!$T$9:$T$993, " ") ->  | H111: 0 | K111: 0 | N111: 0 | O111: 0 | P111: 0 | Q111: 0
A112: =IF(COUNTRY_INFO!A112=0," ",COUNTRY_INFO!A112) -> Uganda | B112: =IF(COUNTRY_INFO!B112=0," ",COUNTRY_INFO!B112) -> WESTERN | C112: =IF(COUNTRY_INFO!C112=0," ",COUNTRY_INFO!C112) -> BUNYANGABU | D112: =IF(COUNTRY_INFO!$T$9:$T$993="MDA3 (IVM)", COUNTRY_INFO!$T$9:$T$993, " ") ->  | H112: 0 | K112: 0 | N112: 0 | O112: 0 | P112: 0 | Q112: 0
A113: =IF(COUNTRY_INFO!A113=0," ",COUNTRY_INFO!A113) -> Uganda | B113: =IF(COUNTRY_INFO!B113=0," ",COUNTRY_INFO!B113) -> WESTERN | C113: =IF(COUNTRY_INFO!C113=0," ",COUNTRY_INFO!C113) -> BUSHENYI | D113: =IF(COUNTRY_INFO!$T$9:$T$993="MDA3 (IVM)", COUNTRY_INFO!$T$9:$T$993, " ") ->  | H113: 0 | K113: 0 | N113: 0 | O113: 0 | P113: 0 | Q113: 0
A114: =IF(COUNTRY_INFO!A114=0," ",COUNTRY_INFO!A114) -> Uganda | B114: =IF(COUNTRY_INFO!B114=0," ",COUNTRY_INFO!B114) -> WESTERN | C114: =IF(COUNTRY_INFO!C114=0," ",COUNTRY_INFO!C114) -> HOIMA | D114: =IF(COUNTRY_INFO!$T$9:$T$993="MDA3 (IVM)", COUNTRY_INFO!$T$9:$T$993, " ") ->  | H114: 0 | K114: 0 | N114: 0 | O114: 0 | P114: 0 | Q114: 0
A115: =IF(COUNTRY_INFO!A115=0," ",COUNTRY_INFO!A115) -> Uganda | B115: =IF(COUNTRY_INFO!B115=0," ",COUNTRY_INFO!B115) -> WESTERN | C115: =IF(COUNTRY_INFO!C115=0," ",COUNTRY_INFO!C115) -> IBANDA | D115: =IF(COUNTRY_INFO!$T$9:$T$993="MDA3 (IVM)", COUNTRY_INFO!$T$9:$T$993, " ") ->  | H115: 0 | K115: 0 | N115: 0 | O115: 0 | P115: 0 | Q115: 0
A116: =IF(COUNTRY_INFO!A116=0," ",COUNTRY_INFO!A116) -> Uganda | B116: =IF(COUNTRY_INFO!B116=0," ",COUNTRY_INFO!B116) -> WESTERN | C116: =IF(COUNTRY_INFO!C116=0," ",COUNTRY_INFO!C116) -> ISINGIRO | D116: =IF(COUNTRY_INFO!$T$9:$T$993="MDA3 (IVM)", COUNTRY_INFO!$T$9:$T$993, " ") ->  | H116: 0 | K116: 0 | N116: 0 | O116: 0 | P116: 0 | Q116: 0
A117: =IF(COUNTRY_INFO!A117=0," ",COUNTRY_INFO!A117) -> Uganda | B117: =IF(COUNTRY_INFO!B117=0," ",COUNTRY_INFO!B117) -> WESTERN | C117: =IF(COUNTRY_INFO!C117=0," ",COUNTRY_INFO!C117) -> KABALE | D117: =IF(COUNTRY_INFO!$T$9:$T$993="MDA3 (IVM)", COUNTRY_INFO!$T$9:$T$993, " ") ->  | H117: 0 | K117: 0 | N117: 0 | O117: 0 | P117: 0 | Q117: 0
A118: =IF(COUNTRY_INFO!A118=0," ",COUNTRY_INFO!A118) -> Uganda | B118: =IF(COUNTRY_INFO!B118=0," ",COUNTRY_INFO!B118) -> WESTERN | C118: =IF(COUNTRY_INFO!C118=0," ",COUNTRY_INFO!C118) -> KABAROLE | D118: =IF(COUNTRY_INFO!$T$9:$T$993="MDA3 (IVM)", COUNTRY_INFO!$T$9:$T$993, " ") ->  | H118: 0 | K118: 0 | N118: 0 | O118: 0 | P118: 0 | Q118: 0
A119: =IF(COUNTRY_INFO!A119=0," ",COUNTRY_INFO!A119) -> Uganda | B119: =IF(COUNTRY_INFO!B119=0," ",COUNTRY_INFO!B119) -> WESTERN | C119: =IF(COUNTRY_INFO!C119=0," ",COUNTRY_INFO!C119) -> KAGADI | D119: =IF(COUNTRY_INFO!$T$9:$T$993="MDA3 (IVM)", COUNTRY_INFO!$T$9:$T$993, " ") ->  | H119: 0 | K119: 0 | N119: 0 | O119: 0 | P119: 0 | Q119: 0
A120: =IF(COUNTRY_INFO!A120=0," ",COUNTRY_INFO!A120) -> Uganda | B120: =IF(COUNTRY_INFO!B120=0," ",COUNTRY_INFO!B120) -> WESTERN | C120: =IF(COUNTRY_INFO!C120=0," ",COUNTRY_INFO!C120) -> KAKUMIRO | D120: =IF(COUNTRY_INFO!$T$9:$T$993="MDA3 (IVM)", COUNTRY_INFO!$T$9:$T$993, " ") ->  | H120: 0 | K120: 0 | N120: 0 | O120: 0 | P120: 0 | Q120: 0
A121: =IF(COUNTRY_INFO!A121=0," ",COUNTRY_INFO!A121) -> Uganda | B121: =IF(COUNTRY_INFO!B121=0," ",COUNTRY_INFO!B121) -> WESTERN | C121: =IF(COUNTRY_INFO!C121=0," ",COUNTRY_INFO!C121) -> KAMWENGE | D121: =IF(COUNTRY_INFO!$T$9:$T$993="MDA3 (IVM)", COUNTRY_INFO!$T$9:$T$993, " ") ->  | H121: 0 | K121: 0 | N121: 0 | O121: 0 | P121: 0 | Q121: 0
A122: =IF(COUNTRY_INFO!A122=0," ",COUNTRY_INFO!A122) -> Uganda | B122: =IF(COUNTRY_INFO!B122=0," ",COUNTRY_INFO!B122) -> WESTERN | C122: =IF(COUNTRY_INFO!C122=0," ",COUNTRY_INFO!C122) -> KANUNGU | D122: =IF(COUNTRY_INFO!$T$9:$T$993="MDA3 (IVM)", COUNTRY_INFO!$T$9:$T$993, " ") ->  | H122: 0 | K122: 0 | N122: 0 | O122: 0 | P122: 0 | Q122: 0
A123: =IF(COUNTRY_INFO!A123=0," ",COUNTRY_INFO!A123) -> Uganda | B123: =IF(COUNTRY_INFO!B123=0," ",COUNTRY_INFO!B123) -> WESTERN | C123: =IF(COUNTRY_INFO!C123=0," ",COUNTRY_INFO!C123) -> KASESE | D123: =IF(COUNTRY_INFO!$T$9:$T$993="MDA3 (IVM)", COUNTRY_INFO!$T$9:$T$993, " ") -> MDA3 (IVM) | E123: April and Oct 2021 | F123: 45820 | G123: 79048 | H123: 124868 | I123: 45306.23815 | J123: 78160.76185 | K123: 123467 | L123: 44326.84812 | M123: 76471.15188 | N123: 120798 | O123: 45306.23815 | P123: 78160.76185 | Q123: 123467 | R123: 98.87873888 | S123: 98.8775957 | T123: 98.87801518 | W123: 124867.93 | X123: =ROUND($W123*COUNTRY_INFO!F123/(COUNTRY_INFO!$F123+COUNTRY_INFO!$G123),0) -> 45820 | Y123: =ROUND($W123*COUNTRY_INFO!G123/(COUNTRY_INFO!$F123+COUNTRY_INFO!$G123),0) -> 79048
A124: =IF(COUNTRY_INFO!A124=0," ",COUNTRY_INFO!A124) -> Uganda | B124: =IF(COUNTRY_INFO!B124=0," ",COUNTRY_INFO!B124) -> WESTERN | C124: =IF(COUNTRY_INFO!C124=0," ",COUNTRY_INFO!C124) -> KAZO | D124: =IF(COUNTRY_INFO!$T$9:$T$993="MDA3 (IVM)", COUNTRY_INFO!$T$9:$T$993, " ") ->  | H124: 0 | K124: 0 | N124: 0 | O124: 0 | P124: 0 | Q124: 0
A125: =IF(COUNTRY_INFO!A125=0," ",COUNTRY_INFO!A125) -> Uganda | B125: =IF(COUNTRY_INFO!B125=0," ",COUNTRY_INFO!B125) -> WESTERN | C125: =IF(COUNTRY_INFO!C125=0," ",COUNTRY_INFO!C125) -> KIBAALE | D125: =IF(COUNTRY_INFO!$T$9:$T$993="MDA3 (IVM)", COUNTRY_INFO!$T$9:$T$993, " ") ->  | H125: 0 | K125: 0 | N125: 0 | O125: 0 | P125: 0 | Q125: 0
A126: =IF(COUNTRY_INFO!A126=0," ",COUNTRY_INFO!A126) -> Uganda | B126: =IF(COUNTRY_INFO!B126=0," ",COUNTRY_INFO!B126) -> WESTERN | C126: =IF(COUNTRY_INFO!C126=0," ",COUNTRY_INFO!C126) -> KIKUUBE | D126: =IF(COUNTRY_INFO!$T$9:$T$993="MDA3 (IVM)", COUNTRY_INFO!$T$9:$T$993, " ") ->  | H126: 0 | K126: 0 | N126: 0 | O126: 0 | P126: 0 | Q126: 0
A127: =IF(COUNTRY_INFO!A127=0," ",COUNTRY_INFO!A127) -> Uganda | B127: =IF(COUNTRY_INFO!B127=0," ",COUNTRY_INFO!B127) -> WESTERN | C127: =IF(COUNTRY_INFO!C127=0," ",COUNTRY_INFO!C127) -> KIRUHURA | D127: =IF(COUNTRY_INFO!$T$9:$T$993="MDA3 (IVM)", COUNTRY_INFO!$T$9:$T$993, " ") ->  | H127: 0 | K127: 0 | N127: 0 | O127: 0 | P127: 0 | Q127: 0
A128: =IF(COUNTRY_INFO!A128=0," ",COUNTRY_INFO!A128) -> Uganda | B128: =IF(COUNTRY_INFO!B128=0," ",COUNTRY_INFO!B128) -> WESTERN | C128: =IF(COUNTRY_INFO!C128=0," ",COUNTRY_INFO!C128) -> KIRYANDONGO | D128: =IF(COUNTRY_INFO!$T$9:$T$993="MDA3 (IVM)", COUNTRY_INFO!$T$9:$T$993, " ") ->  | H128: 0 | K128: 0 | N128: 0 | O128: 0 | P128: 0 | Q128: 0
A129: =IF(COUNTRY_INFO!A129=0," ",COUNTRY_INFO!A129) -> Uganda | B129: =IF(COUNTRY_INFO!B129=0," ",COUNTRY_INFO!B129) -> WESTERN | C129: =IF(COUNTRY_INFO!C129=0," ",COUNTRY_INFO!C129) -> KISORO | D129: =IF(COUNTRY_INFO!$T$9:$T$993="MDA3 (IVM)", COUNTRY_INFO!$T$9:$T$993, " ") ->  | H129: 0 | K129: 0 | N129: 0 | O129: 0 | P129: 0 | Q129: 0
A130: =IF(COUNTRY_INFO!A130=0," ",COUNTRY_INFO!A130) -> Uganda | B130: =IF(COUNTRY_INFO!B130=0," ",COUNTRY_INFO!B130) -> WESTERN | C130: =IF(COUNTRY_INFO!C130=0," ",COUNTRY_INFO!C130) -> KITAGWENDA | D130: =IF(COUNTRY_INFO!$T$9:$T$993="MDA3 (IVM)", COUNTRY_INFO!$T$9:$T$993, " ") ->  | H130: 0 | K130: 0 | N130: 0 | O130: 0 | P130: 0 | Q130: 0
A131: =IF(COUNTRY_INFO!A131=0," ",COUNTRY_INFO!A131) -> Uganda | B131: =IF(COUNTRY_INFO!B131=0," ",COUNTRY_INFO!B131) -> WESTERN | C131: =IF(COUNTRY_INFO!C131=0," ",COUNTRY_INFO!C131) -> KYEGEGWA | D131: =IF(COUNTRY_INFO!$T$9:$T$993="MDA3 (IVM)", COUNTRY_INFO!$T$9:$T$993, " ") ->  | H131: 0 | K131: 0 | N131: 0 | O131: 0 | P131: 0 | Q131: 0
A132: =IF(COUNTRY_INFO!A132=0," ",COUNTRY_INFO!A132) -> Uganda | B132: =IF(COUNTRY_INFO!B132=0," ",COUNTRY_INFO!B132) -> WESTERN | C132: =IF(COUNTRY_INFO!C132=0," ",COUNTRY_INFO!C132) -> KYENJOJO | D132: =IF(COUNTRY_INFO!$T$9:$T$993="MDA3 (IVM)", COUNTRY_INFO!$T$9:$T$993, " ") ->  | H132: 0 | K132: 0 | N132: 0 | O132: 0 | P132: 0 | Q132: 0
A133: =IF(COUNTRY_INFO!A133=0," ",COUNTRY_INFO!A133) -> Uganda | B133: =IF(COUNTRY_INFO!B133=0," ",COUNTRY_INFO!B133) -> WESTERN | C133: =IF(COUNTRY_INFO!C133=0," ",COUNTRY_INFO!C133) -> MASINDI | D133: =IF(COUNTRY_INFO!$T$9:$T$993="MDA3 (IVM)", COUNTRY_INFO!$T$9:$T$993, " ") ->  | H133: 0 | K133: 0 | N133: 0 | O133: 0 | P133: 0 | Q133: 0
A134: =IF(COUNTRY_INFO!A134=0," ",COUNTRY_INFO!A134) -> Uganda | B134: =IF(COUNTRY_INFO!B134=0," ",COUNTRY_INFO!B134) -> WESTERN | C134: =IF(COUNTRY_INFO!C134=0," ",COUNTRY_INFO!C134) -> MBARARA | D134: =IF(COUNTRY_INFO!$T$9:$T$993="MDA3 (IVM)", COUNTRY_INFO!$T$9:$T$993, " ") ->  | H134: 0 | K134: 0 | N134: 0 | O134: 0 | P134: 0 | Q134: 0
A135: =IF(COUNTRY_INFO!A135=0," ",COUNTRY_INFO!A135) -> Uganda | B135: =IF(COUNTRY_INFO!B135=0," ",COUNTRY_INFO!B135) -> WESTERN | C135: =IF(COUNTRY_INFO!C135=0," ",COUNTRY_INFO!C135) -> MITOOMA | D135: =IF(COUNTRY_INFO!$T$9:$T$993="MDA3 (IVM)", COUNTRY_INFO!$T$9:$T$993, " ") ->  | H135: 0 | K135: 0 | N135: 0 | O135: 0 | P135: 0 | Q135: 0
A136: =IF(COUNTRY_INFO!A136=0," ",COUNTRY_INFO!A136) -> Uganda | B136: =IF(COUNTRY_INFO!B136=0," ",COUNTRY_INFO!B136) -> WESTERN | C136: =IF(COUNTRY_INFO!C136=0," ",COUNTRY_INFO!C136) -> NTOROKO | D136: =IF(COUNTRY_INFO!$T$9:$T$993="MDA3 (IVM)", COUNTRY_INFO!$T$9:$T$993, " ") ->  | H136: 0 | K136: 0 | N136: 0 | O136: 0 | P136: 0 | Q136: 0
A137: =IF(COUNTRY_INFO!A137=0," ",COUNTRY_INFO!A137) -> Uganda | B137: =IF(COUNTRY_INFO!B137=0," ",COUNTRY_INFO!B137) -> WESTERN | C137: =IF(COUNTRY_INFO!C137=0," ",COUNTRY_INFO!C137) -> NTUNGAMO | D137: =IF(COUNTRY_INFO!$T$9:$T$993="MDA3 (IVM)", COUNTRY_INFO!$T$9:$T$993, " ") ->  | H137: 0 | K137: 0 | N137: 0 | O137: 0 | P137: 0 | Q137: 0
A138: =IF(COUNTRY_INFO!A138=0," ",COUNTRY_INFO!A138) -> Uganda | B138: =IF(COUNTRY_INFO!B138=0," ",COUNTRY_INFO!B138) -> WESTERN | C138: =IF(COUNTRY_INFO!C138=0," ",COUNTRY_INFO!C138) -> RUBANDA | D138: =IF(COUNTRY_INFO!$T$9:$T$993="MDA3 (IVM)", COUNTRY_INFO!$T$9:$T$993, " ") ->  | H138: =SUM(F138:G138) -> 0 | K138: =SUM(I138:J138) -> 0 | N138: =SUM(L138:M138) -> 0 | O138: =MAX(I138,L138) -> 0 | P138: =MAX(J138,M138) -> 0 | Q138: =SUM(O138:P138) -> 0 | R138: =IF(F138<>0, IF(MAX(I138,L138)/F138*100=0, "-", MAX(I138,L138)/F138*100), " ") ->  | S138: =IF(G138<>0, IF(MAX(J138,M138)/G138*100=0, "-", MAX(J138,M138)/G138*100), " ") ->  | T138: =IF(H138<>0, IF((MAX(I138,L138)+MAX(J138,M138))/H138*100=0, "-",(MAX(I138,L138)+MAX(J138,M138))/H138*100), " ") -> 
A139: =IF(COUNTRY_INFO!A139=0," ",COUNTRY_INFO!A139) -> Uganda | B139: =IF(COUNTRY_INFO!B139=0," ",COUNTRY_INFO!B139) -> WESTERN | C139: =IF(COUNTRY_INFO!C139=0," ",COUNTRY_INFO!C139) -> RUBIRIZI | D139: =IF(COUNTRY_INFO!$T$9:$T$993="MDA3 (IVM)", COUNTRY_INFO!$T$9:$T$993, " ") ->  | H139: 0 | K139: 0 | N139: 0 | O139: 0 | P139: 0 | Q139: 0
A140: =IF(COUNTRY_INFO!A140=0," ",COUNTRY_INFO!A140) -> Uganda | B140: =IF(COUNTRY_INFO!B140=0," ",COUNTRY_INFO!B140) -> WESTERN | C140: =IF(COUNTRY_INFO!C140=0," ",COUNTRY_INFO!C140) -> RUKIGA | D140: =IF(COUNTRY_INFO!$T$9:$T$993="MDA3 (IVM)", COUNTRY_INFO!$T$9:$T$993, " ") ->  | H140: 0 | K140: 0 | N140: 0 | O140: 0 | P140: 0 | Q140: 0
A141: =IF(COUNTRY_INFO!A141=0," ",COUNTRY_INFO!A141) -> Uganda | B141: =IF(COUNTRY_INFO!B141=0," ",COUNTRY_INFO!B141) -> WESTERN | C141: =IF(COUNTRY_INFO!C141=0," ",COUNTRY_INFO!C141) -> RUKUNGIRI | D141: =IF(COUNTRY_INFO!$T$9:$T$993="MDA3 (IVM)", COUNTRY_INFO!$T$9:$T$993, " ") ->  | H141: 0 | K141: 0 | N141: 0 | O141: 0 | P141: 0 | Q141: 0
